{"text_format":"3","workbook":"xlsx","n_sheets":9,"sheets":["Cover","PS5_Supply","BoQ_Equipment","BoQ - Services","Summary","Transport and Offloading Matrix","Installation & Commissioning","CPA Formula","Exchange Rates"],"not_rendered":{"images":1,"defined_names":19},"read":"whole","date_system":"1900"}

{"sheet":"Cover","index":0,"n_rows":41,"n_cols":2,"rows_kept":41,"merged":[[28,0,28,1],[31,0,31,1]]}
{"$rows_empty":10}
["PRICING INFORMATION"]
[]
["INVITATION TO TENDER"]
[]
[" ENQUIRY No. or RFP number"]
["FOR"]
["Name of enquiry"]
[]
[]
[]
["TENDERER’S NAME:  "]
[]
[]
[]
["THE PRICE:  IN RAND (excluding VAT) :",{"$f":"Summary!G24","v":0}]
["THE PRICE:  IN RAND (Including VAT) :",{"$f":"Summary!G28","v":0}]
[]
["RAND VALUE IN WORDS EXCLUDING VAT"]
[]
[]
["RAND VALUE IN WORDS INCLUDING VAT"]
[]
[]
["DATE :"]
[]
[]
["AUTHORISED SIGNATORY "]
[]
["NAME :"]
[]
["DESIGNATION :"]

{"sheet":"PS5_Supply","index":1,"n_rows":106,"n_cols":110,"rows_kept":106,"merged":[[3,18,4,19],[3,28,4,29],[3,38,4,39],[3,48,4,49],[3,58,4,59],[3,68,4,69],[3,78,4,79],[3,88,4,89],[3,98,4,99],[3,108,4,109],[5,1,6,9],[9,10,12,10],[9,11,12,11],[9,12,12,12],[9,13,12,13],[9,14,12,14],[9,15,12,15],[9,16,12,16],[9,17,12,17],[9,18,12,18],[9,19,12,19],[9,20,12,20],[9,21,12,21],[9,22,12,22],[9,23,12,23],[9,24,12,24],[9,25,12,25],[9,26,12,26],[9,27,12,27],[9,28,12,28],[9,29,12,29],[9,30,12,30],[9,31,12,31],[9,32,12,32],[9,33,12,33],[9,34,12,34],[9,35,12,35],[9,36,12,36],[9,37,12,37],[9,38,12,38],[9,39,12,39],[9,40,12,40],[9,41,12,41],[9,42,12,42],[9,43,12,43],[9,44,12,44],[9,45,12,45],[9,46,12,46],[9,47,12,47],[9,48,12,48],[9,49,12,49],[9,50,12,50],[9,51,12,51],[9,52,12,52],[9,53,12,53],[9,54,12,54],[9,55,12,55],[9,56,12,56],[9,57,12,57],[9,58,12,58],[9,59,12,59],[9,60,12,60],[9,61,12,61],[9,62,12,62],[9,63,12,63],[9,64,12,64],[9,65,12,65],[9,66,12,66],[9,67,12,67],[9,68,12,68],[9,69,12,69],[9,70,12,70],[9,71,12,71],[9,72,12,72],[9,73,12,73],[9,74,12,74],[9,75,12,75],[9,76,12,76],[9,77,12,77],[9,78,12,78],[9,79,12,79],[9,80,12,80],[9,81,12,81],[9,82,12,82],[9,83,12,83],[9,84,12,84],[9,85,12,85],[9,86,12,86],[9,87,12,87],[9,88,12,88],[9,89,12,89],[9,90,12,90],[9,91,12,91],[9,92,12,92],[9,93,12,93],[9,94,12,94],[9,95,12,95],[9,96,12,96],[9,97,12,97],[9,98,12,98],[9,99,12,99],[9,100,12,100],[9,101,12,101],[9,102,12,102],[9,103,12,103],[9,104,12,104],[9,105,12,105],[9,106,12,106],[9,107,12,107],[9,108,12,108],[9,109,12,109],[61,18,62,19],[61,28,62,29],[61,38,62,39],[61,48,62,49],[61,58,62,59],[61,68,62,69],[61,78,62,79],[61,88,62,89],[61,98,62,99],[61,108,62,109],[63,1,64,9],[68,10,70,10],[68,11,70,11],[68,12,70,12],[68,13,70,13],[68,14,70,14],[68,15,70,15],[68,16,70,16],[68,17,70,17],[68,18,70,18],[68,19,70,19],[68,20,70,20],[68,21,70,21],[68,22,70,22],[68,23,70,23],[68,24,70,24],[68,25,70,25],[68,26,70,26],[68,27,70,27],[68,28,70,28],[68,29,70,29],[68,30,70,30],[68,31,70,31],[68,32,70,32],[68,33,70,33],[68,34,70,34],[68,35,70,35],[68,36,70,36],[68,37,70,37],[68,38,70,38],[68,39,70,39],[68,40,70,40],[68,41,70,41],[68,42,70,42],[68,43,70,43],[68,44,70,44],[68,45,70,45],[68,46,70,46],[68,47,70,47],[68,48,70,48],[68,49,70,49],[68,50,70,50],[68,51,70,51],[68,52,70,52],[68,53,70,53],[68,54,70,54],[68,55,70,55],[68,56,70,56],[68,57,70,57],[68,58,70,58],[68,59,70,59],[68,60,70,60],[68,61,70,61],[68,62,70,62],[68,63,70,63],[68,64,70,64],[68,65,70,65],[68,66,70,66],[68,67,70,67],[68,68,70,68],[68,69,70,69],[68,70,70,70],[68,71,70,71],[68,72,70,72],[68,73,70,73],[68,74,70,74],[68,75,70,75],[68,76,70,76],[68,77,70,77],[68,78,70,78],[68,79,70,79],[68,80,70,80],[68,81,70,81],[68,82,70,82],[68,83,70,83],[68,84,70,84],[68,85,70,85],[68,86,70,86],[68,87,70,87],[68,88,70,88],[68,89,70,89],[68,90,70,90],[68,91,70,91],[68,92,70,92],[68,93,70,93],[68,94,70,94],[68,95,70,95],[68,96,70,96],[68,97,70,97],[68,98,70,98],[68,99,70,99],[68,100,70,100],[68,101,70,101],[68,102,70,102],[68,103,70,103],[68,104,70,104],[68,105,70,105],[68,106,70,106],[68,107,70,107],[68,108,70,108],[68,109,70,109]]}
[]
[null,{"$f":"\"ENQUIRY NUMBER :\"&Cover!$B$15","v":"ENQUIRY NUMBER :"},{"$nulls":3},"PRICES INCLUSIVE OF VAT (VALUE ADDED TAX)"]
[]
[null,{"$f":"\"PRICE SCHEDULE : C (PS5) :\"&Cover!$B$17","v":"PRICE SCHEDULE : C (PS5) :"},{"$nulls":16},{"$f":"\"SUPPLIER:\"&Cover!$B$21","v":"SUPPLIER:"},{"$nulls":9},{"$f":"\"SUPPLIER:\"&Cover!$B$21","v":"SUPPLIER:"},{"$nulls":9},{"$f":"\"SUPPLIER:\"&Cover!$B$21","v":"SUPPLIER:"},{"$nulls":9},{"$f":"\"SUPPLIER:\"&Cover!$B$21","v":"SUPPLIER:"},{"$nulls":9},{"$f":"\"SUPPLIER:\"&Cover!$B$21","v":"SUPPLIER:"},{"$nulls":9},{"$f":"\"SUPPLIER:\"&Cover!$B$21","v":"SUPPLIER:"},{"$nulls":9},{"$f":"\"SUPPLIER:\"&Cover!$B$21","v":"SUPPLIER:"},{"$nulls":9},{"$f":"\"SUPPLIER:\"&Cover!$B$21","v":"SUPPLIER:"},{"$nulls":9},{"$f":"\"SUPPLIER:\"&Cover!$B$21","v":"SUPPLIER:"},{"$nulls":9},{"$f":"\"SUPPLIER:\"&Cover!$B$21","v":"SUPPLIER:"}]
[]
[null,"PRICE SCHEDULE FOR GOODS MANUFACTURED IN AND OUTSIDE THE R.S.A.  PRICE PER UNIT FOR SUPPLY, DELIVERY AND OFF LOADING.  ALL AMOUNTS EXPRESSED IN RANDS"]
[]
[]
[null," REMARKS",{"$nulls":5},"                       ITEM NO",null,null,1,2,3,4,5,6,7,8,9,10,11,12,13,14,15,16,17,18,19,20,21,22,23,24,25,26,27,28,29,30,31,32,33,34,35,36,37,38,39,40,41,42,43,44,45,46,47,48,49,50,51,52,53,54,55,56,57,58,59,60,61,62,63,64,65,66,67,68,69,70,71,72,73,74,75,76,77,78,79,80,81,82,83,84,85,86,87,88,89,90,91,92,93,94,95,96,97,98]
[null," *Eskom may effect this insurance which includes war",{"$nulls":5},"                  ITEM DESCRIPTION",null,null,{"$f":"INDEX(BoQ_Equipment!$C:$C,MATCH(PS5_Supply!K$9,BoQ_Equipment!$B:$B,0))","v":"Scheme: 1 Feeder Double Busbar - 110 VDC"},{"$f":"INDEX(BoQ_Equipment!$C:$C,MATCH(PS5_Supply!L$9,BoQ_Equipment!$B:$B,0))","v":"Scheme: 1 Feeder Double Busbar - 220 VDC"},{"$f":"INDEX(BoQ_Equipment!$C:$C,MATCH(PS5_Supply!M$9,BoQ_Equipment!$B:$B,0))","v":"Scheme: 2 Feeder Double Busbar  - 110 VDC"},{"$f":"INDEX(BoQ_Equipment!$C:$C,MATCH(PS5_Supply!N$9,BoQ_Equipment!$B:$B,0))","v":"Scheme: 2 Feeder Double Busbar  - 220 VDC"},{"$f":"INDEX(BoQ_Equipment!$C:$C,MATCH(PS5_Supply!O$9,BoQ_Equipment!$B:$B,0))","v":"Scheme: 3 Feeder Double Busbar - 110 VDC"},{"$f":"INDEX(BoQ_Equipment!$C:$C,MATCH(PS5_Supply!P$9,BoQ_Equipment!$B:$B,0))","v":"Scheme: 3 Feeder Double Busbar - 220 VDC"},{"$f":"INDEX(BoQ_Equipment!$C:$C,MATCH(PS5_Supply!Q$9,BoQ_Equipment!$B:$B,0))","v":"Scheme: 4 Feeder Double Busbar - 110 VDC"},{"$f":"INDEX(BoQ_Equipment!$C:$C,MATCH(PS5_Supply!R$9,BoQ_Equipment!$B:$B,0))","v":"Scheme: 4 Feeder Double Busbar - 220 VDC"},{"$f":"INDEX(BoQ_Equipment!$C:$C,MATCH(PS5_Supply!S$9,BoQ_Equipment!$B:$B,0))","v":"Scheme: 1 Feeder & 1 Transformer BAH - 110 VDC"},{"$f":"INDEX(BoQ_Equipment!$C:$C,MATCH(PS5_Supply!T$9,BoQ_Equipment!$B:$B,0))","v":"Scheme: 1 Feeder & 1 Transformer BAH - 220 VDC"},{"$f":"INDEX(BoQ_Equipment!$C:$C,MATCH(PS5_Supply!U$9,BoQ_Equipment!$B:$B,0))","v":"Scheme: 2 Feeders BAH - 110 VDC"},{"$f":"INDEX(BoQ_Equipment!$C:$C,MATCH(PS5_Supply!V$9,BoQ_Equipment!$B:$B,0))","v":"Scheme: 2 Feeders BAH - 220 VDC"},{"$f":"INDEX(BoQ_Equipment!$C:$C,MATCH(PS5_Supply!W$9,BoQ_Equipment!$B:$B,0))","v":"Scheme: 1 Feeder with Line Reactor BAH - 110 VDC"},{"$f":"INDEX(BoQ_Equipment!$C:$C,MATCH(PS5_Supply!X$9,BoQ_Equipment!$B:$B,0))","v":"Scheme: 1 Feeder with Line Reactor BAH - 220 VDC"},{"$f":"INDEX(BoQ_Equipment!$C:$C,MATCH(PS5_Supply!Y$9,BoQ_Equipment!$B:$B,0))","v":"Scheme: 1 Feeder with Line Reactor & 1 Transformer BAH - 110 VDC"},{"$f":"INDEX(BoQ_Equipment!$C:$C,MATCH(PS5_Supply!Z$9,BoQ_Equipment!$B:$B,0))","v":"Scheme: 1 Feeder with Line Reactor & 1 Transformer BAH - 220 VDC"},{"$f":"INDEX(BoQ_Equipment!$C:$C,MATCH(PS5_Supply!AA$9,BoQ_Equipment!$B:$B,0))","v":"Scheme: 2 Feeders with Line Reactors BAH - 110 VDC"},{"$f":"INDEX(BoQ_Equipment!$C:$C,MATCH(PS5_Supply!AB$9,BoQ_Equipment!$B:$B,0))","v":"Scheme: 2 Feeders with Line Reactors BAH - 220 VDC"},{"$f":"INDEX(BoQ_Equipment!$C:$C,MATCH(PS5_Supply!AC$9,BoQ_Equipment!$B:$B,0))","v":"Scheme: 1 Feeder & 1 Feeder with Line Reactor BAH - 110 VDC"},{"$f":"INDEX(BoQ_Equipment!$C:$C,MATCH(PS5_Supply!AD$9,BoQ_Equipment!$B:$B,0))","v":"Scheme: 1 Feeder & 1 Feeder with Line Reactor BAH - 220 VDC"},{"$f":"INDEX(BoQ_Equipment!$C:$C,MATCH(PS5_Supply!AE$9,BoQ_Equipment!$B:$B,0))","v":"Scheme: 1 Busbar Reactor BAH - 110 VDC"},{"$f":"INDEX(BoQ_Equipment!$C:$C,MATCH(PS5_Supply!AF$9,BoQ_Equipment!$B:$B,0))","v":"Scheme: 1 Busbar Reactor BAH - 220 VDC"},{"$f":"INDEX(BoQ_Equipment!$C:$C,MATCH(PS5_Supply!AG$9,BoQ_Equipment!$B:$B,0))","v":"Scheme: 1 Feeder BAH - 110 VDC"},{"$f":"INDEX(BoQ_Equipment!$C:$C,MATCH(PS5_Supply!AH$9,BoQ_Equipment!$B:$B,0))","v":"Scheme: 1 Feeder BAH - 220 VDC"},{"$f":"INDEX(BoQ_Equipment!$C:$C,MATCH(PS5_Supply!AI$9,BoQ_Equipment!$B:$B,0))","v":"Scheme: 1 Transformer BAH - 110 VDC"},{"$f":"INDEX(BoQ_Equipment!$C:$C,MATCH(PS5_Supply!AJ$9,BoQ_Equipment!$B:$B,0))","v":"Scheme: 1 Transformer BAH - 220 VDC"},{"$f":"INDEX(BoQ_Equipment!$C:$C,MATCH(PS5_Supply!AK$9,BoQ_Equipment!$B:$B,0))","v":"Scheme: 1 Feeder & 1 Transformer BAH (Trfr MV - DBB Config) - 110 VDC"},{"$f":"INDEX(BoQ_Equipment!$C:$C,MATCH(PS5_Supply!AL$9,BoQ_Equipment!$B:$B,0))","v":"Scheme: 1 Feeder & 1 Transformer BAH (Trfr MV - DBB Config) - 220 VDC"},{"$f":"INDEX(BoQ_Equipment!$C:$C,MATCH(PS5_Supply!AM$9,BoQ_Equipment!$B:$B,0))","v":"Scheme: 1 Feeder with Line Reactor & 1 Transformer BAH (Trfr MV - DBB Config) - 110 VDC"},{"$f":"INDEX(BoQ_Equipment!$C:$C,MATCH(PS5_Supply!AN$9,BoQ_Equipment!$B:$B,0))","v":"Scheme: 1 Feeder with Line Reactor & 1 Transformer BAH (Trfr MV - DBB Config) - 220 VDC"},{"$f":"INDEX(BoQ_Equipment!$C:$C,MATCH(PS5_Supply!AO$9,BoQ_Equipment!$B:$B,0))","v":"Scheme: 1 Transformer BAH (Trfr MV - DBB Config) - 110 VDC"},{"$f":"INDEX(BoQ_Equipment!$C:$C,MATCH(PS5_Supply!AP$9,BoQ_Equipment!$B:$B,0))","v":"Scheme: 1 Transformer BAH (Trfr MV - DBB Config) - 220 VDC"},{"$f":"INDEX(BoQ_Equipment!$C:$C,MATCH(PS5_Supply!AQ$9,BoQ_Equipment!$B:$B,0))","v":"Scheme: IDM+6U with 1 Traveling Wave Fault Locator Card for 2 Lines (DBB) - 110 VDC"},{"$f":"INDEX(BoQ_Equipment!$C:$C,MATCH(PS5_Supply!AR$9,BoQ_Equipment!$B:$B,0))","v":"Scheme: IDM+6U with 1 Traveling Wave Fault Locator Card for 2 Lines (DBB) - 220 VDC"},{"$f":"INDEX(BoQ_Equipment!$C:$C,MATCH(PS5_Supply!AS$9,BoQ_Equipment!$B:$B,0))","v":"Scheme: IDM+6U with 1 Traveling Wave Fault Locator Card for 1 Line (BAH) - 110 VDC"},{"$f":"INDEX(BoQ_Equipment!$C:$C,MATCH(PS5_Supply!AT$9,BoQ_Equipment!$B:$B,0))","v":"Scheme: IDM+6U with 1 Traveling Wave Fault Locator Card for 1 Line (BAH) - 220 VDC"},{"$f":"INDEX(BoQ_Equipment!$C:$C,MATCH(PS5_Supply!AU$9,BoQ_Equipment!$B:$B,0))","v":"Scheme: IDM+6U with 2 Traveling Wave Fault Locator Cards for 4 Lines (DBB) - 110 VDC"},{"$f":"INDEX(BoQ_Equipment!$C:$C,MATCH(PS5_Supply!AV$9,BoQ_Equipment!$B:$B,0))","v":"Scheme: IDM+6U with 2 Traveling Wave Fault Locator Cards for 4 Lines (DBB) - 220 VDC"},{"$f":"INDEX(BoQ_Equipment!$C:$C,MATCH(PS5_Supply!AW$9,BoQ_Equipment!$B:$B,0))","v":"Scheme: IDM+6U with 2 Traveling Wave Fault Locator Cards for 2 Lines (BAH)  - 110 VDC"},{"$f":"INDEX(BoQ_Equipment!$C:$C,MATCH(PS5_Supply!AX$9,BoQ_Equipment!$B:$B,0))","v":"Scheme: IDM+6U with 2 Traveling Wave Fault Locator Cards for 2 Lines (BAH)  - 220 VDC"},{"$f":"INDEX(BoQ_Equipment!$C:$C,MATCH(PS5_Supply!AY$9,BoQ_Equipment!$B:$B,0))","v":"Loose: IDM+6U with 9A/32B c/w Chassis Plate & Loom - 110 VDC"},{"$f":"INDEX(BoQ_Equipment!$C:$C,MATCH(PS5_Supply!AZ$9,BoQ_Equipment!$B:$B,0))","v":"Loose: IDM+6U with 9A/32B c/w Chassis Plate & Loom - 220 VDC"},{"$f":"INDEX(BoQ_Equipment!$C:$C,MATCH(PS5_Supply!BA$9,BoQ_Equipment!$B:$B,0))","v":"Loose: IDM+6U with 18A/64B c/w Chassis Plate & Loom - 110 VDC"},{"$f":"INDEX(BoQ_Equipment!$C:$C,MATCH(PS5_Supply!BB$9,BoQ_Equipment!$B:$B,0))","v":"Loose: IDM+6U with 18A/64B c/w Chassis Plate & Loom - 220 VDC"},{"$f":"INDEX(BoQ_Equipment!$C:$C,MATCH(PS5_Supply!BC$9,BoQ_Equipment!$B:$B,0))","v":"Loose: IDM+6U with 27A/96B c/w Chassis Plate & Loom - 110 VDC"},{"$f":"INDEX(BoQ_Equipment!$C:$C,MATCH(PS5_Supply!BD$9,BoQ_Equipment!$B:$B,0))","v":"Loose: IDM+6U with 27A/96B c/w Chassis Plate & Loom - 220 VDC"},{"$f":"INDEX(BoQ_Equipment!$C:$C,MATCH(PS5_Supply!BE$9,BoQ_Equipment!$B:$B,0))","v":"Loose: IDM+6U with 36A/128B c/w Chassis Plate & Loom - 110 VDC"},{"$f":"INDEX(BoQ_Equipment!$C:$C,MATCH(PS5_Supply!BF$9,BoQ_Equipment!$B:$B,0))","v":"Loose: IDM+6U with 36A/128B c/w Chassis Plate & Loom - 220 VDC"},{"$f":"INDEX(BoQ_Equipment!$C:$C,MATCH(PS5_Supply!BG$9,BoQ_Equipment!$B:$B,0))","v":"Loose: IDM+6U with 1 x TWS Card, 1 x 9A/32B Card c/w Chassis Plate & Loom - 110 VDC"},{"$f":"INDEX(BoQ_Equipment!$C:$C,MATCH(PS5_Supply!BH$9,BoQ_Equipment!$B:$B,0))","v":"Loose: IDM+6U with 1 x TWS Card, 1 x 9A/32B Card c/w Chassis Plate & Loom - 220 VDC"},{"$f":"INDEX(BoQ_Equipment!$C:$C,MATCH(PS5_Supply!BI$9,BoQ_Equipment!$B:$B,0))","v":"Loose: IDM+6U with 2 x TWS Cards, 2 x 9A/32B Cards c/w Chassis Plate & Loom - 110 VDC"},{"$f":"INDEX(BoQ_Equipment!$C:$C,MATCH(PS5_Supply!BJ$9,BoQ_Equipment!$B:$B,0))","v":"Loose: IDM+6U with 2 x TWS Cards, 2 x 9A/32B Cards c/w Chassis Plate & Loom - 220 VDC"},{"$f":"INDEX(BoQ_Equipment!$C:$C,MATCH(PS5_Supply!BK$9,BoQ_Equipment!$B:$B,0))","v":"Portable IDM+6U Unit 1 with 18A/64B and long loom"},{"$f":"INDEX(BoQ_Equipment!$C:$C,MATCH(PS5_Supply!BL$9,BoQ_Equipment!$B:$B,0))","v":"Portable IDM+6U Unit 2 with 36A/128B and long loom"},{"$f":"INDEX(BoQ_Equipment!$C:$C,MATCH(PS5_Supply!BM$9,BoQ_Equipment!$B:$B,0))","v":"Portable IDM+6U Unit 3 with 1 x TWS Card, 1 x 9A/32B Card and long loom "},{"$f":"INDEX(BoQ_Equipment!$C:$C,MATCH(PS5_Supply!BN$9,BoQ_Equipment!$B:$B,0))","v":"Portable IDM+6U Unit 4 with 2 x TWS Card, 2 x 9A/32B Card and long loom "},{"$f":"INDEX(BoQ_Equipment!$C:$C,MATCH(PS5_Supply!BO$9,BoQ_Equipment!$B:$B,0))","v":"Additional Card for Traveling Wave Fault Locator "},{"$f":"INDEX(BoQ_Equipment!$C:$C,MATCH(PS5_Supply!BP$9,BoQ_Equipment!$B:$B,0))","v":"Expansion Kit: 9A/32B to 18A/64B "},{"$f":"INDEX(BoQ_Equipment!$C:$C,MATCH(PS5_Supply!BQ$9,BoQ_Equipment!$B:$B,0))","v":"Expansion Kit: 18A/64B to 27A/96B - 110 VDC"},{"$f":"INDEX(BoQ_Equipment!$C:$C,MATCH(PS5_Supply!BR$9,BoQ_Equipment!$B:$B,0))","v":"Expansion Kit: 18A/64B to 27A/96B - 220 VDC"},{"$f":"INDEX(BoQ_Equipment!$C:$C,MATCH(PS5_Supply!BS$9,BoQ_Equipment!$B:$B,0))","v":"Expansion Kit: 27A/96B to 36A/128B"},{"$f":"INDEX(BoQ_Equipment!$C:$C,MATCH(PS5_Supply!BT$9,BoQ_Equipment!$B:$B,0))","v":"Loose: Chassis Plate & Loom for 9A/32B Card "},{"$f":"INDEX(BoQ_Equipment!$C:$C,MATCH(PS5_Supply!BU$9,BoQ_Equipment!$B:$B,0))","v":"PC Communications cable for DFRs (RJ45 for PC connection)"},{"$f":"INDEX(BoQ_Equipment!$C:$C,MATCH(PS5_Supply!BV$9,BoQ_Equipment!$B:$B,0))","v":"Ethernet Switch: RSG2100 "},{"$f":"INDEX(BoQ_Equipment!$C:$C,MATCH(PS5_Supply!BW$9,BoQ_Equipment!$B:$B,0))","v":"Fibre Optic Patch Panel"},{"$f":"INDEX(BoQ_Equipment!$C:$C,MATCH(PS5_Supply!BX$9,BoQ_Equipment!$B:$B,0))","v":"CPU Board "},{"$f":"INDEX(BoQ_Equipment!$C:$C,MATCH(PS5_Supply!BY$9,BoQ_Equipment!$B:$B,0))","v":"Signal Conditioning Board  (18-250Vdc Pickup)"},{"$f":"INDEX(BoQ_Equipment!$C:$C,MATCH(PS5_Supply!BZ$9,BoQ_Equipment!$B:$B,0))","v":"Signal Conditioning Board  (35-250Vdc Pickup)"},{"$f":"INDEX(BoQ_Equipment!$C:$C,MATCH(PS5_Supply!CA$9,BoQ_Equipment!$B:$B,0))","v":"PSU Board "},{"$f":"INDEX(BoQ_Equipment!$C:$C,MATCH(PS5_Supply!CB$9,BoQ_Equipment!$B:$B,0))","v":"MMI Board "},{"$f":"INDEX(BoQ_Equipment!$C:$C,MATCH(PS5_Supply!CC$9,BoQ_Equipment!$B:$B,0))","v":"IDM+ with 9A/32D "},{"$f":"INDEX(BoQ_Equipment!$C:$C,MATCH(PS5_Supply!CD$9,BoQ_Equipment!$B:$B,0))","v":"IDM+ with 18A/64D "},{"$f":"INDEX(BoQ_Equipment!$C:$C,MATCH(PS5_Supply!CE$9,BoQ_Equipment!$B:$B,0))","v":"IDM+ with 27A/96D "},{"$f":"INDEX(BoQ_Equipment!$C:$C,MATCH(PS5_Supply!CF$9,BoQ_Equipment!$B:$B,0))","v":"IDM+ with 36A/128D "},{"$f":"INDEX(BoQ_Equipment!$C:$C,MATCH(PS5_Supply!CG$9,BoQ_Equipment!$B:$B,0))","v":"IDM+ with 1 x TWS (No LC or CT Snap) & 1 x 9/32 "},{"$f":"INDEX(BoQ_Equipment!$C:$C,MATCH(PS5_Supply!CH$9,BoQ_Equipment!$B:$B,0))","v":"IDM+ with 2 x TWS (No LC or CT Snap) & 2 x 9/32 "},{"$f":"INDEX(BoQ_Equipment!$C:$C,MATCH(PS5_Supply!CI$9,BoQ_Equipment!$B:$B,0))","v":"FL Card "},{"$f":"INDEX(BoQ_Equipment!$C:$C,MATCH(PS5_Supply!CJ$9,BoQ_Equipment!$B:$B,0))","v":"Internal GPS Receiver "},{"$f":"INDEX(BoQ_Equipment!$C:$C,MATCH(PS5_Supply!CK$9,BoQ_Equipment!$B:$B,0))","v":"GPS Cable & Antenna 30m "},{"$f":"INDEX(BoQ_Equipment!$C:$C,MATCH(PS5_Supply!CL$9,BoQ_Equipment!$B:$B,0))","v":"Linear Couplers with cables (set of 3) "},{"$f":"INDEX(BoQ_Equipment!$C:$C,MATCH(PS5_Supply!CM$9,BoQ_Equipment!$B:$B,0))","v":"Linear Couplers mounted on Snaptrack with cables (set of 3) "},{"$f":"INDEX(BoQ_Equipment!$C:$C,MATCH(PS5_Supply!CN$9,BoQ_Equipment!$B:$B,0))","v":"230Vac Finder Relay with Base (60.13.8.230)"},{"$f":"INDEX(BoQ_Equipment!$C:$C,MATCH(PS5_Supply!CO$9,BoQ_Equipment!$B:$B,0))","v":"24Vdc Finder Relay with Base (60.13.9.24)"},{"$f":"INDEX(BoQ_Equipment!$C:$C,MATCH(PS5_Supply!CP$9,BoQ_Equipment!$B:$B,0))","v":"48Vdc Finder Relay with Base (60.13.9.48)"},{"$f":"INDEX(BoQ_Equipment!$C:$C,MATCH(PS5_Supply!CQ$9,BoQ_Equipment!$B:$B,0))","v":"110Vdc Finder Relay with Base (60.13.9.110)"},{"$f":"INDEX(BoQ_Equipment!$C:$C,MATCH(PS5_Supply!CR$9,BoQ_Equipment!$B:$B,0))","v":"220Vdc Finder Relay with Base (60.13.9.220)"},{"$f":"INDEX(BoQ_Equipment!$C:$C,MATCH(PS5_Supply!CS$9,BoQ_Equipment!$B:$B,0))","v":"RF4 Relay with Base (RF4 & FN-DE-IP-10) (110Vdc)"},{"$f":"INDEX(BoQ_Equipment!$C:$C,MATCH(PS5_Supply!CT$9,BoQ_Equipment!$B:$B,0))","v":"RF4 Relay with Base (RF4 & FN-DE-IP-10) (220Vdc)"},{"$f":"INDEX(BoQ_Equipment!$C:$C,MATCH(PS5_Supply!CU$9,BoQ_Equipment!$B:$B,0))","v":"DC Monitoring Relay (CM-ESS.1S)"},{"$f":"INDEX(BoQ_Equipment!$C:$C,MATCH(PS5_Supply!CV$9,BoQ_Equipment!$B:$B,0))","v":"110/220Vdc 6A MCB (S202M-C6UC +S2C-H6R)"},{"$f":"INDEX(BoQ_Equipment!$C:$C,MATCH(PS5_Supply!CW$9,BoQ_Equipment!$B:$B,0))","v":"110/220Vdc 10A MCB (S202M-C10UC +S2C-H6R)"},{"$f":"INDEX(BoQ_Equipment!$C:$C,MATCH(PS5_Supply!CX$9,BoQ_Equipment!$B:$B,0))","v":"230Vac 10A 2P MCB (S202-C10)"},{"$f":"INDEX(BoQ_Equipment!$C:$C,MATCH(PS5_Supply!CY$9,BoQ_Equipment!$B:$B,0))","v":"230Vac 2A 2P MCB (S202-C2 + S2C-H6R)"},{"$f":"INDEX(BoQ_Equipment!$C:$C,MATCH(PS5_Supply!CZ$9,BoQ_Equipment!$B:$B,0))","v":"415Vac 2A 3P MCB (S203-C2 + S2C-H6R)"},{"$f":"INDEX(BoQ_Equipment!$C:$C,MATCH(PS5_Supply!DA$9,BoQ_Equipment!$B:$B,0))","v":"SecuControl 8 Way Test Block (FLTP08015AD-SL17F-1523)"},{"$f":"INDEX(BoQ_Equipment!$C:$C,MATCH(PS5_Supply!DB$9,BoQ_Equipment!$B:$B,0))","v":"DC/DC Converter (ML60.242)"},{"$f":"INDEX(BoQ_Equipment!$C:$C,MATCH(PS5_Supply!DC$9,BoQ_Equipment!$B:$B,0))","v":"8GB Flash Drive "},{"$f":"INDEX(BoQ_Equipment!$C:$C,MATCH(PS5_Supply!DD$9,BoQ_Equipment!$B:$B,0))","v":"Diode Board (4 Way)"}]
[]
[null,"   risk insurance"]
[null,"**Please specify"]
[{"$nulls":10},10,11,12,13,14,15,16,17,18,19,20,21,22,23,24,25,26,27,28,29,30,31,32,33,34,35,36,37,38,39,40,41,42,43,44,45,46,47,48,49,50,51,52,53,54,55,56,57,58,59,60,61,62,63,64,65,66,67,68,69,70,71,72,73,74,75,76,77,78,79,80,81,82,83,84,85,86,87,88,89,90,91,92,93,94,95,96,97,98,99,100,101,102,103,104,105,106,107,108,109]
[null,"SUPPLIED FROM OUTSIDE R.S.A.(If Applicable):",{"$nulls":7},"(In ZAR)"]
[null,"1: F.O.B. PRICE",{"$nulls":7},"(In ZAR)"]
[null,"2: COST OF SEA  FREIGHT",{"$nulls":7},"(In ZAR)"]
[null,"3: COST OF AIR  FREIGHT",{"$nulls":7},"(In ZAR)"]
[null,"4: COST OF MARINE INSURANCES *",{"$nulls":7},"(In ZAR)"]
[null,"5: TOTAL PRICE DELIVERED PORT R.S.A. ...",{"$nulls":5},"(1+2+3+4)",null,"(In ZAR)",{"$f":"SUM(K16:K19)","v":0},0,{"$f":"SUM(M16:M19)","v":0},{"$f":"SUM(N16:N19)","v":0},{"$f":"SUM(O16:O19)","v":0},{"$f":"SUM(P16:P19)","v":0},{"$f":"SUM(Q16:Q19)","v":0},{"$f":"SUM(R16:R19)","v":0},{"$f":"SUM(S16:S19)","v":0},{"$f":"SUM(T16:T19)","v":0},{"$f":"SUM(U16:U19)","v":0},{"$f":"SUM(V16:V19)","v":0},{"$f":"SUM(W16:W19)","v":0},{"$f":"SUM(X16:X19)","v":0},{"$f":"SUM(Y16:Y19)","v":0},{"$f":"SUM(Z16:Z19)","v":0},{"$f":"SUM(AA16:AA19)","v":0},{"$f":"SUM(AB16:AB19)","v":0},{"$f":"SUM(AC16:AC19)","v":0},{"$f":"SUM(AD16:AD19)","v":0},{"$f":"SUM(AE16:AE19)","v":0},{"$f":"SUM(AF16:AF19)","v":0},{"$f":"SUM(AG16:AG19)","v":0},{"$f":"SUM(AH16:AH19)","v":0},{"$f":"SUM(AI16:AI19)","v":0},{"$f":"SUM(AJ16:AJ19)","v":0},{"$f":"SUM(AK16:AK19)","v":0},{"$f":"SUM(AL16:AL19)","v":0},{"$f":"SUM(AM16:AM19)","v":0},{"$f":"SUM(AN16:AN19)","v":0},{"$f":"SUM(AO16:AO19)","v":0},{"$f":"SUM(AP16:AP19)","v":0},{"$f":"SUM(AQ16:AQ19)","v":0},{"$f":"SUM(AR16:AR19)","v":0},{"$f":"SUM(AS16:AS19)","v":0},{"$f":"SUM(AT16:AT19)","v":0},{"$f":"SUM(AU16:AU19)","v":0},{"$f":"SUM(AV16:AV19)","v":0},{"$f":"SUM(AW16:AW19)","v":0},{"$f":"SUM(AX16:AX19)","v":0},{"$f":"SUM(AY16:AY19)","v":0},{"$f":"SUM(AZ16:AZ19)","v":0},{"$f":"SUM(BA16:BA19)","v":0},{"$f":"SUM(BB16:BB19)","v":0},{"$f":"SUM(BC16:BC19)","v":0},{"$f":"SUM(BD16:BD19)","v":0},{"$f":"SUM(BE16:BE19)","v":0},{"$f":"SUM(BF16:BF19)","v":0},{"$f":"SUM(BG16:BG19)","v":0},{"$f":"SUM(BH16:BH19)","v":0},{"$f":"SUM(BI16:BI19)","v":0},{"$f":"SUM(BJ16:BJ19)","v":0},{"$f":"SUM(BK16:BK19)","v":0},{"$f":"SUM(BL16:BL19)","v":0},{"$f":"SUM(BM16:BM19)","v":0},{"$f":"SUM(BN16:BN19)","v":0},{"$f":"SUM(BO16:BO19)","v":0},{"$f":"SUM(BP16:BP19)","v":0},{"$f":"SUM(BQ16:BQ19)","v":0},{"$f":"SUM(BR16:BR19)","v":0},{"$f":"SUM(BS16:BS19)","v":0},{"$f":"SUM(BT16:BT19)","v":0},{"$f":"SUM(BU16:BU19)","v":0},{"$f":"SUM(BV16:BV19)","v":0},{"$f":"SUM(BW16:BW19)","v":0},{"$f":"SUM(BX16:BX19)","v":0},{"$f":"SUM(BY16:BY19)","v":0},{"$f":"SUM(BZ16:BZ19)","v":0},{"$f":"SUM(CA16:CA19)","v":0},{"$f":"SUM(CB16:CB19)","v":0},{"$f":"SUM(CC16:CC19)","v":0},{"$f":"SUM(CD16:CD19)","v":0},{"$f":"SUM(CE16:CE19)","v":0},{"$f":"SUM(CF16:CF19)","v":0},{"$f":"SUM(CG16:CG19)","v":0},{"$f":"SUM(CH16:CH19)","v":0},{"$f":"SUM(CI16:CI19)","v":0},{"$f":"SUM(CJ16:CJ19)","v":0},{"$f":"SUM(CK16:CK19)","v":0},{"$f":"SUM(CL16:CL19)","v":0},{"$f":"SUM(CM16:CM19)","v":0},{"$f":"SUM(CN16:CN19)","v":0},{"$f":"SUM(CO16:CO19)","v":0},{"$f":"SUM(CP16:CP19)","v":0},{"$f":"SUM(CQ16:CQ19)","v":0},{"$f":"SUM(CR16:CR19)","v":0},{"$f":"SUM(CS16:CS19)","v":0},{"$f":"SUM(CT16:CT19)","v":0},{"$f":"SUM(CU16:CU19)","v":0},{"$f":"SUM(CV16:CV19)","v":0},{"$f":"SUM(CW16:CW19)","v":0},{"$f":"SUM(CX16:CX19)","v":0},{"$f":"SUM(CY16:CY19)","v":0},{"$f":"SUM(CZ16:CZ19)","v":0},{"$f":"SUM(DA16:DA19)","v":0},{"$f":"SUM(DB16:DB19)","v":0},{"$f":"SUM(DC16:DC19)","v":0},{"$f":"SUM(DD16:DD19)","v":0},{"$f":"SUM(DE16:DE19)","v":0},{"$f":"SUM(DF16:DF19)","v":0}]
[null,"6: WHARFAGE",{"$nulls":7},"(In ZAR)"]
[null,"7: LANDING CHARGES",{"$nulls":7},"(In ZAR)"]
[null,"8: CUSTOMS DUTIES",{"$nulls":7},"(In ZAR)"]
[null,"9: IMPORT SURCHARGE",{"$nulls":7},"(In ZAR)"]
[null,"10: OTHER**",{"$nulls":7},"(In ZAR)"]
[null,"11: COST OF IMPORTATION ...",{"$nulls":5},"(6+7+8+9+10)",null,"(In ZAR)",{"$f":"SUM(K21:K25)","v":0},0,{"$f":"SUM(M21:M25)","v":0},{"$f":"SUM(N21:N25)","v":0},{"$f":"SUM(O21:O25)","v":0},{"$f":"SUM(P21:P25)","v":0},{"$f":"SUM(Q21:Q25)","v":0},{"$f":"SUM(R21:R25)","v":0},{"$f":"SUM(S21:S25)","v":0},{"$f":"SUM(T21:T25)","v":0},{"$f":"SUM(U21:U25)","v":0},{"$f":"SUM(V21:V25)","v":0},{"$f":"SUM(W21:W25)","v":0},{"$f":"SUM(X21:X25)","v":0},{"$f":"SUM(Y21:Y25)","v":0},{"$f":"SUM(Z21:Z25)","v":0},{"$f":"SUM(AA21:AA25)","v":0},{"$f":"SUM(AB21:AB25)","v":0},{"$f":"SUM(AC21:AC25)","v":0},{"$f":"SUM(AD21:AD25)","v":0},{"$f":"SUM(AE21:AE25)","v":0},{"$f":"SUM(AF21:AF25)","v":0},{"$f":"SUM(AG21:AG25)","v":0},{"$f":"SUM(AH21:AH25)","v":0},{"$f":"SUM(AI21:AI25)","v":0},{"$f":"SUM(AJ21:AJ25)","v":0},{"$f":"SUM(AK21:AK25)","v":0},{"$f":"SUM(AL21:AL25)","v":0},{"$f":"SUM(AM21:AM25)","v":0},{"$f":"SUM(AN21:AN25)","v":0},{"$f":"SUM(AO21:AO25)","v":0},{"$f":"SUM(AP21:AP25)","v":0},{"$f":"SUM(AQ21:AQ25)","v":0},{"$f":"SUM(AR21:AR25)","v":0},{"$f":"SUM(AS21:AS25)","v":0},{"$f":"SUM(AT21:AT25)","v":0},{"$f":"SUM(AU21:AU25)","v":0},{"$f":"SUM(AV21:AV25)","v":0},{"$f":"SUM(AW21:AW25)","v":0},{"$f":"SUM(AX21:AX25)","v":0},{"$f":"SUM(AY21:AY25)","v":0},{"$f":"SUM(AZ21:AZ25)","v":0},{"$f":"SUM(BA21:BA25)","v":0},{"$f":"SUM(BB21:BB25)","v":0},{"$f":"SUM(BC21:BC25)","v":0},{"$f":"SUM(BD21:BD25)","v":0},{"$f":"SUM(BE21:BE25)","v":0},{"$f":"SUM(BF21:BF25)","v":0},{"$f":"SUM(BG21:BG25)","v":0},{"$f":"SUM(BH21:BH25)","v":0},{"$f":"SUM(BI21:BI25)","v":0},{"$f":"SUM(BJ21:BJ25)","v":0},{"$f":"SUM(BK21:BK25)","v":0},{"$f":"SUM(BL21:BL25)","v":0},{"$f":"SUM(BM21:BM25)","v":0},{"$f":"SUM(BN21:BN25)","v":0},{"$f":"SUM(BO21:BO25)","v":0},{"$f":"SUM(BP21:BP25)","v":0},{"$f":"SUM(BQ21:BQ25)","v":0},{"$f":"SUM(BR21:BR25)","v":0},{"$f":"SUM(BS21:BS25)","v":0},{"$f":"SUM(BT21:BT25)","v":0},{"$f":"SUM(BU21:BU25)","v":0},{"$f":"SUM(BV21:BV25)","v":0},{"$f":"SUM(BW21:BW25)","v":0},{"$f":"SUM(BX21:BX25)","v":0},{"$f":"SUM(BY21:BY25)","v":0},{"$f":"SUM(BZ21:BZ25)","v":0},{"$f":"SUM(CA21:CA25)","v":0},{"$f":"SUM(CB21:CB25)","v":0},{"$f":"SUM(CC21:CC25)","v":0},{"$f":"SUM(CD21:CD25)","v":0},{"$f":"SUM(CE21:CE25)","v":0},{"$f":"SUM(CF21:CF25)","v":0},{"$f":"SUM(CG21:CG25)","v":0},{"$f":"SUM(CH21:CH25)","v":0},{"$f":"SUM(CI21:CI25)","v":0},{"$f":"SUM(CJ21:CJ25)","v":0},{"$f":"SUM(CK21:CK25)","v":0},{"$f":"SUM(CL21:CL25)","v":0},{"$f":"SUM(CM21:CM25)","v":0},{"$f":"SUM(CN21:CN25)","v":0},{"$f":"SUM(CO21:CO25)","v":0},{"$f":"SUM(CP21:CP25)","v":0},{"$f":"SUM(CQ21:CQ25)","v":0},{"$f":"SUM(CR21:CR25)","v":0},{"$f":"SUM(CS21:CS25)","v":0},{"$f":"SUM(CT21:CT25)","v":0},{"$f":"SUM(CU21:CU25)","v":0},{"$f":"SUM(CV21:CV25)","v":0},{"$f":"SUM(CW21:CW25)","v":0},{"$f":"SUM(CX21:CX25)","v":0},{"$f":"SUM(CY21:CY25)","v":0},{"$f":"SUM(CZ21:CZ25)","v":0},{"$f":"SUM(DA21:DA25)","v":0},{"$f":"SUM(DB21:DB25)","v":0},{"$f":"SUM(DC21:DC25)","v":0},{"$f":"SUM(DD21:DD25)","v":0},{"$f":"SUM(DE21:DE25)","v":0},{"$f":"SUM(DF21:DF25)","v":0}]
[null,"12: COST OF RAIL TRANSPORT IN R.S.A.",{"$nulls":7},"(In ZAR)"]
[null,"13: COST OF ROAD TRANSPORT IN R.S.A.",{"$nulls":7},"(In ZAR)"]
[null,"14: TOTAL COST OF TRANSPORT S.A. PORT TO WORK/SITE ...",{"$nulls":5},"(12+13)",null,"(In ZAR)",{"$f":"SUM(K27:K28)","v":0},0,{"$f":"SUM(M27:M28)","v":0},{"$f":"SUM(N27:N28)","v":0},{"$f":"SUM(O27:O28)","v":0},{"$f":"SUM(P27:P28)","v":0},{"$f":"SUM(Q27:Q28)","v":0},{"$f":"SUM(R27:R28)","v":0},{"$f":"SUM(S27:S28)","v":0},{"$f":"SUM(T27:T28)","v":0},{"$f":"SUM(U27:U28)","v":0},{"$f":"SUM(V27:V28)","v":0},{"$f":"SUM(W27:W28)","v":0},{"$f":"SUM(X27:X28)","v":0},{"$f":"SUM(Y27:Y28)","v":0},{"$f":"SUM(Z27:Z28)","v":0},{"$f":"SUM(AA27:AA28)","v":0},{"$f":"SUM(AB27:AB28)","v":0},{"$f":"SUM(AC27:AC28)","v":0},{"$f":"SUM(AD27:AD28)","v":0},{"$f":"SUM(AE27:AE28)","v":0},{"$f":"SUM(AF27:AF28)","v":0},{"$f":"SUM(AG27:AG28)","v":0},{"$f":"SUM(AH27:AH28)","v":0},{"$f":"SUM(AI27:AI28)","v":0},{"$f":"SUM(AJ27:AJ28)","v":0},{"$f":"SUM(AK27:AK28)","v":0},{"$f":"SUM(AL27:AL28)","v":0},{"$f":"SUM(AM27:AM28)","v":0},{"$f":"SUM(AN27:AN28)","v":0},{"$f":"SUM(AO27:AO28)","v":0},{"$f":"SUM(AP27:AP28)","v":0},{"$f":"SUM(AQ27:AQ28)","v":0},{"$f":"SUM(AR27:AR28)","v":0},{"$f":"SUM(AS27:AS28)","v":0},{"$f":"SUM(AT27:AT28)","v":0},{"$f":"SUM(AU27:AU28)","v":0},{"$f":"SUM(AV27:AV28)","v":0},{"$f":"SUM(AW27:AW28)","v":0},{"$f":"SUM(AX27:AX28)","v":0},{"$f":"SUM(AY27:AY28)","v":0},{"$f":"SUM(AZ27:AZ28)","v":0},{"$f":"SUM(BA27:BA28)","v":0},{"$f":"SUM(BB27:BB28)","v":0},{"$f":"SUM(BC27:BC28)","v":0},{"$f":"SUM(BD27:BD28)","v":0},{"$f":"SUM(BE27:BE28)","v":0},{"$f":"SUM(BF27:BF28)","v":0},{"$f":"SUM(BG27:BG28)","v":0},{"$f":"SUM(BH27:BH28)","v":0},{"$f":"SUM(BI27:BI28)","v":0},{"$f":"SUM(BJ27:BJ28)","v":0},{"$f":"SUM(BK27:BK28)","v":0},{"$f":"SUM(BL27:BL28)","v":0},{"$f":"SUM(BM27:BM28)","v":0},{"$f":"SUM(BN27:BN28)","v":0},{"$f":"SUM(BO27:BO28)","v":0},{"$f":"SUM(BP27:BP28)","v":0},{"$f":"SUM(BQ27:BQ28)","v":0},{"$f":"SUM(BR27:BR28)","v":0},{"$f":"SUM(BS27:BS28)","v":0},{"$f":"SUM(BT27:BT28)","v":0},{"$f":"SUM(BU27:BU28)","v":0},{"$f":"SUM(BV27:BV28)","v":0},{"$f":"SUM(BW27:BW28)","v":0},{"$f":"SUM(BX27:BX28)","v":0},{"$f":"SUM(BY27:BY28)","v":0},{"$f":"SUM(BZ27:BZ28)","v":0},{"$f":"SUM(CA27:CA28)","v":0},{"$f":"SUM(CB27:CB28)","v":0},{"$f":"SUM(CC27:CC28)","v":0},{"$f":"SUM(CD27:CD28)","v":0},{"$f":"SUM(CE27:CE28)","v":0},{"$f":"SUM(CF27:CF28)","v":0},{"$f":"SUM(CG27:CG28)","v":0},{"$f":"SUM(CH27:CH28)","v":0},{"$f":"SUM(CI27:CI28)","v":0},{"$f":"SUM(CJ27:CJ28)","v":0},{"$f":"SUM(CK27:CK28)","v":0},{"$f":"SUM(CL27:CL28)","v":0},{"$f":"SUM(CM27:CM28)","v":0},{"$f":"SUM(CN27:CN28)","v":0},{"$f":"SUM(CO27:CO28)","v":0},{"$f":"SUM(CP27:CP28)","v":0},{"$f":"SUM(CQ27:CQ28)","v":0},{"$f":"SUM(CR27:CR28)","v":0},{"$f":"SUM(CS27:CS28)","v":0},{"$f":"SUM(CT27:CT28)","v":0},{"$f":"SUM(CU27:CU28)","v":0},{"$f":"SUM(CV27:CV28)","v":0},{"$f":"SUM(CW27:CW28)","v":0},{"$f":"SUM(CX27:CX28)","v":0},{"$f":"SUM(CY27:CY28)","v":0},{"$f":"SUM(CZ27:CZ28)","v":0},{"$f":"SUM(DA27:DA28)","v":0},{"$f":"SUM(DB27:DB28)","v":0},{"$f":"SUM(DC27:DC28)","v":0},{"$f":"SUM(DD27:DD28)","v":0},{"$f":"SUM(DE27:DE28)","v":0},{"$f":"SUM(DF27:DF28)","v":0}]
[null,"15: TOTAL PRICE (F.O.B.) DELIVERED TO WORKS/SITE...",{"$nulls":5},"(5+11+14)",null,"(In ZAR)",{"$f":"K20+K26+K29","v":0},0,{"$f":"M20+M26+M29","v":0},{"$f":"N20+N26+N29","v":0},{"$f":"O20+O26+O29","v":0},{"$f":"P20+P26+P29","v":0},{"$f":"Q20+Q26+Q29","v":0},{"$f":"R20+R26+R29","v":0},{"$f":"S20+S26+S29","v":0},{"$f":"T20+T26+T29","v":0},{"$f":"U20+U26+U29","v":0},{"$f":"V20+V26+V29","v":0},{"$f":"W20+W26+W29","v":0},{"$f":"X20+X26+X29","v":0},{"$f":"Y20+Y26+Y29","v":0},{"$f":"Z20+Z26+Z29","v":0},{"$f":"AA20+AA26+AA29","v":0},{"$f":"AB20+AB26+AB29","v":0},{"$f":"AC20+AC26+AC29","v":0},{"$f":"AD20+AD26+AD29","v":0},{"$f":"AE20+AE26+AE29","v":0},{"$f":"AF20+AF26+AF29","v":0},{"$f":"AG20+AG26+AG29","v":0},{"$f":"AH20+AH26+AH29","v":0},{"$f":"AI20+AI26+AI29","v":0},{"$f":"AJ20+AJ26+AJ29","v":0},{"$f":"AK20+AK26+AK29","v":0},{"$f":"AL20+AL26+AL29","v":0},{"$f":"AM20+AM26+AM29","v":0},{"$f":"AN20+AN26+AN29","v":0},{"$f":"AO20+AO26+AO29","v":0},{"$f":"AP20+AP26+AP29","v":0},{"$f":"AQ20+AQ26+AQ29","v":0},{"$f":"AR20+AR26+AR29","v":0},{"$f":"AS20+AS26+AS29","v":0},{"$f":"AT20+AT26+AT29","v":0},{"$f":"AU20+AU26+AU29","v":0},{"$f":"AV20+AV26+AV29","v":0},{"$f":"AW20+AW26+AW29","v":0},{"$f":"AX20+AX26+AX29","v":0},{"$f":"AY20+AY26+AY29","v":0},{"$f":"AZ20+AZ26+AZ29","v":0},{"$f":"BA20+BA26+BA29","v":0},{"$f":"BB20+BB26+BB29","v":0},{"$f":"BC20+BC26+BC29","v":0},{"$f":"BD20+BD26+BD29","v":0},{"$f":"BE20+BE26+BE29","v":0},{"$f":"BF20+BF26+BF29","v":0},{"$f":"BG20+BG26+BG29","v":0},{"$f":"BH20+BH26+BH29","v":0},{"$f":"BI20+BI26+BI29","v":0},{"$f":"BJ20+BJ26+BJ29","v":0},{"$f":"BK20+BK26+BK29","v":0},{"$f":"BL20+BL26+BL29","v":0},{"$f":"BM20+BM26+BM29","v":0},{"$f":"BN20+BN26+BN29","v":0},{"$f":"BO20+BO26+BO29","v":0},{"$f":"BP20+BP26+BP29","v":0},{"$f":"BQ20+BQ26+BQ29","v":0},{"$f":"BR20+BR26+BR29","v":0},{"$f":"BS20+BS26+BS29","v":0},{"$f":"BT20+BT26+BT29","v":0},{"$f":"BU20+BU26+BU29","v":0},{"$f":"BV20+BV26+BV29","v":0},{"$f":"BW20+BW26+BW29","v":0},{"$f":"BX20+BX26+BX29","v":0},{"$f":"BY20+BY26+BY29","v":0},{"$f":"BZ20+BZ26+BZ29","v":0},{"$f":"CA20+CA26+CA29","v":0},{"$f":"CB20+CB26+CB29","v":0},{"$f":"CC20+CC26+CC29","v":0},{"$f":"CD20+CD26+CD29","v":0},{"$f":"CE20+CE26+CE29","v":0},{"$f":"CF20+CF26+CF29","v":0},{"$f":"CG20+CG26+CG29","v":0},{"$f":"CH20+CH26+CH29","v":0},{"$f":"CI20+CI26+CI29","v":0},{"$f":"CJ20+CJ26+CJ29","v":0},{"$f":"CK20+CK26+CK29","v":0},{"$f":"CL20+CL26+CL29","v":0},{"$f":"CM20+CM26+CM29","v":0},{"$f":"CN20+CN26+CN29","v":0},{"$f":"CO20+CO26+CO29","v":0},{"$f":"CP20+CP26+CP29","v":0},{"$f":"CQ20+CQ26+CQ29","v":0},{"$f":"CR20+CR26+CR29","v":0},{"$f":"CS20+CS26+CS29","v":0},{"$f":"CT20+CT26+CT29","v":0},{"$f":"CU20+CU26+CU29","v":0},{"$f":"CV20+CV26+CV29","v":0},{"$f":"CW20+CW26+CW29","v":0},{"$f":"CX20+CX26+CX29","v":0},{"$f":"CY20+CY26+CY29","v":0},{"$f":"CZ20+CZ26+CZ29","v":0},{"$f":"DA20+DA26+DA29","v":0},{"$f":"DB20+DB26+DB29","v":0},{"$f":"DC20+DC26+DC29","v":0},{"$f":"DD20+DD26+DD29","v":0},{"$f":"DE20+DE26+DE29","v":0},{"$f":"DF20+DF26+DF29","v":0}]
[]
[null,"SUPPLIED FROM INSIDE R.S.A."]
[null,"16: F.O.R. PRICE-GOODS MANUFACTURED INSIDE R.S.A."]
[null,"17: F.O.R. PRICE-GOODS SUPPLIED FROM IMPORTED ITEMS"]
[null,"18: TOTAL F.O.R. PRICE ...",{"$nulls":5},"(16+17)",null,null,{"$f":"SUM(K33:K34)","v":0},0,{"$f":"SUM(M33:M34)","v":0},{"$f":"SUM(N33:N34)","v":0},{"$f":"SUM(O33:O34)","v":0},{"$f":"SUM(P33:P34)","v":0},{"$f":"SUM(Q33:Q34)","v":0},{"$f":"SUM(R33:R34)","v":0},{"$f":"SUM(S33:S34)","v":0},{"$f":"SUM(T33:T34)","v":0},{"$f":"SUM(U33:U34)","v":0},{"$f":"SUM(V33:V34)","v":0},{"$f":"SUM(W33:W34)","v":0},{"$f":"SUM(X33:X34)","v":0},{"$f":"SUM(Y33:Y34)","v":0},{"$f":"SUM(Z33:Z34)","v":0},{"$f":"SUM(AA33:AA34)","v":0},{"$f":"SUM(AB33:AB34)","v":0},{"$f":"SUM(AC33:AC34)","v":0},{"$f":"SUM(AD33:AD34)","v":0},{"$f":"SUM(AE33:AE34)","v":0},{"$f":"SUM(AF33:AF34)","v":0},{"$f":"SUM(AG33:AG34)","v":0},{"$f":"SUM(AH33:AH34)","v":0},{"$f":"SUM(AI33:AI34)","v":0},{"$f":"SUM(AJ33:AJ34)","v":0},{"$f":"SUM(AK33:AK34)","v":0},{"$f":"SUM(AL33:AL34)","v":0},{"$f":"SUM(AM33:AM34)","v":0},{"$f":"SUM(AN33:AN34)","v":0},{"$f":"SUM(AO33:AO34)","v":0},{"$f":"SUM(AP33:AP34)","v":0},{"$f":"SUM(AQ33:AQ34)","v":0},{"$f":"SUM(AR33:AR34)","v":0},{"$f":"SUM(AS33:AS34)","v":0},{"$f":"SUM(AT33:AT34)","v":0},{"$f":"SUM(AU33:AU34)","v":0},{"$f":"SUM(AV33:AV34)","v":0},{"$f":"SUM(AW33:AW34)","v":0},{"$f":"SUM(AX33:AX34)","v":0},{"$f":"SUM(AY33:AY34)","v":0},{"$f":"SUM(AZ33:AZ34)","v":0},{"$f":"SUM(BA33:BA34)","v":0},{"$f":"SUM(BB33:BB34)","v":0},{"$f":"SUM(BC33:BC34)","v":0},{"$f":"SUM(BD33:BD34)","v":0},{"$f":"SUM(BE33:BE34)","v":0},{"$f":"SUM(BF33:BF34)","v":0},{"$f":"SUM(BG33:BG34)","v":0},{"$f":"SUM(BH33:BH34)","v":0},{"$f":"SUM(BI33:BI34)","v":0},{"$f":"SUM(BJ33:BJ34)","v":0},{"$f":"SUM(BK33:BK34)","v":0},{"$f":"SUM(BL33:BL34)","v":0},{"$f":"SUM(BM33:BM34)","v":0},{"$f":"SUM(BN33:BN34)","v":0},{"$f":"SUM(BO33:BO34)","v":0},{"$f":"SUM(BP33:BP34)","v":0},{"$f":"SUM(BQ33:BQ34)","v":0},{"$f":"SUM(BR33:BR34)","v":0},{"$f":"SUM(BS33:BS34)","v":0},{"$f":"SUM(BT33:BT34)","v":0},{"$f":"SUM(BU33:BU34)","v":0},{"$f":"SUM(BV33:BV34)","v":0},{"$f":"SUM(BW33:BW34)","v":0},{"$f":"SUM(BX33:BX34)","v":0},{"$f":"SUM(BY33:BY34)","v":0},{"$f":"SUM(BZ33:BZ34)","v":0},{"$f":"SUM(CA33:CA34)","v":0},{"$f":"SUM(CB33:CB34)","v":0},{"$f":"SUM(CC33:CC34)","v":0},{"$f":"SUM(CD33:CD34)","v":0},{"$f":"SUM(CE33:CE34)","v":0},{"$f":"SUM(CF33:CF34)","v":0},{"$f":"SUM(CG33:CG34)","v":0},{"$f":"SUM(CH33:CH34)","v":0},{"$f":"SUM(CI33:CI34)","v":0},{"$f":"SUM(CJ33:CJ34)","v":0},{"$f":"SUM(CK33:CK34)","v":0},{"$f":"SUM(CL33:CL34)","v":0},{"$f":"SUM(CM33:CM34)","v":0},{"$f":"SUM(CN33:CN34)","v":0},{"$f":"SUM(CO33:CO34)","v":0},{"$f":"SUM(CP33:CP34)","v":0},{"$f":"SUM(CQ33:CQ34)","v":0},{"$f":"SUM(CR33:CR34)","v":0},{"$f":"SUM(CS33:CS34)","v":0},{"$f":"SUM(CT33:CT34)","v":0},{"$f":"SUM(CU33:CU34)","v":0},{"$f":"SUM(CV33:CV34)","v":0},{"$f":"SUM(CW33:CW34)","v":0},{"$f":"SUM(CX33:CX34)","v":0},{"$f":"SUM(CY33:CY34)","v":0},{"$f":"SUM(CZ33:CZ34)","v":0},{"$f":"SUM(DA33:DA34)","v":0},{"$f":"SUM(DB33:DB34)","v":0},{"$f":"SUM(DC33:DC34)","v":0},{"$f":"SUM(DD33:DD34)","v":0},{"$f":"SUM(DE33:DE34)","v":0},{"$f":"SUM(DF33:DF34)","v":0}]
[null,"19: COST OF RAIL TRANSPORT (per Transportation & Off-loading Matrix)"]
[null,"20: COST OF ROAD TRANSPORT (per Transportation & Off-loading Matrix)"]
[null,"21: COST OF TRANSPORT WORKS TO SITE ...          ",{"$nulls":5},"(19+20)",null,null,{"$f":"SUM(K36:K37)","v":0},0,{"$f":"SUM(M36:M37)","v":0},{"$f":"SUM(N36:N37)","v":0},{"$f":"SUM(O36:O37)","v":0},{"$f":"SUM(P36:P37)","v":0},{"$f":"SUM(Q36:Q37)","v":0},{"$f":"SUM(R36:R37)","v":0},{"$f":"SUM(S36:S37)","v":0},{"$f":"SUM(T36:T37)","v":0},{"$f":"SUM(U36:U37)","v":0},{"$f":"SUM(V36:V37)","v":0},{"$f":"SUM(W36:W37)","v":0},{"$f":"SUM(X36:X37)","v":0},{"$f":"SUM(Y36:Y37)","v":0},{"$f":"SUM(Z36:Z37)","v":0},{"$f":"SUM(AA36:AA37)","v":0},{"$f":"SUM(AB36:AB37)","v":0},{"$f":"SUM(AC36:AC37)","v":0},{"$f":"SUM(AD36:AD37)","v":0},{"$f":"SUM(AE36:AE37)","v":0},{"$f":"SUM(AF36:AF37)","v":0},{"$f":"SUM(AG36:AG37)","v":0},{"$f":"SUM(AH36:AH37)","v":0},{"$f":"SUM(AI36:AI37)","v":0},{"$f":"SUM(AJ36:AJ37)","v":0},{"$f":"SUM(AK36:AK37)","v":0},{"$f":"SUM(AL36:AL37)","v":0},{"$f":"SUM(AM36:AM37)","v":0},{"$f":"SUM(AN36:AN37)","v":0},{"$f":"SUM(AO36:AO37)","v":0},{"$f":"SUM(AP36:AP37)","v":0},{"$f":"SUM(AQ36:AQ37)","v":0},{"$f":"SUM(AR36:AR37)","v":0},{"$f":"SUM(AS36:AS37)","v":0},{"$f":"SUM(AT36:AT37)","v":0},{"$f":"SUM(AU36:AU37)","v":0},{"$f":"SUM(AV36:AV37)","v":0},{"$f":"SUM(AW36:AW37)","v":0},{"$f":"SUM(AX36:AX37)","v":0},{"$f":"SUM(AY36:AY37)","v":0},{"$f":"SUM(AZ36:AZ37)","v":0},{"$f":"SUM(BA36:BA37)","v":0},{"$f":"SUM(BB36:BB37)","v":0},{"$f":"SUM(BC36:BC37)","v":0},{"$f":"SUM(BD36:BD37)","v":0},{"$f":"SUM(BE36:BE37)","v":0},{"$f":"SUM(BF36:BF37)","v":0},{"$f":"SUM(BG36:BG37)","v":0},{"$f":"SUM(BH36:BH37)","v":0},{"$f":"SUM(BI36:BI37)","v":0},{"$f":"SUM(BJ36:BJ37)","v":0},{"$f":"SUM(BK36:BK37)","v":0},{"$f":"SUM(BL36:BL37)","v":0},{"$f":"SUM(BM36:BM37)","v":0},{"$f":"SUM(BN36:BN37)","v":0},{"$f":"SUM(BO36:BO37)","v":0},{"$f":"SUM(BP36:BP37)","v":0},{"$f":"SUM(BQ36:BQ37)","v":0},{"$f":"SUM(BR36:BR37)","v":0},{"$f":"SUM(BS36:BS37)","v":0},{"$f":"SUM(BT36:BT37)","v":0},{"$f":"SUM(BU36:BU37)","v":0},{"$f":"SUM(BV36:BV37)","v":0},{"$f":"SUM(BW36:BW37)","v":0},{"$f":"SUM(BX36:BX37)","v":0},{"$f":"SUM(BY36:BY37)","v":0},{"$f":"SUM(BZ36:BZ37)","v":0},{"$f":"SUM(CA36:CA37)","v":0},{"$f":"SUM(CB36:CB37)","v":0},{"$f":"SUM(CC36:CC37)","v":0},{"$f":"SUM(CD36:CD37)","v":0},{"$f":"SUM(CE36:CE37)","v":0},{"$f":"SUM(CF36:CF37)","v":0},{"$f":"SUM(CG36:CG37)","v":0},{"$f":"SUM(CH36:CH37)","v":0},{"$f":"SUM(CI36:CI37)","v":0},{"$f":"SUM(CJ36:CJ37)","v":0},{"$f":"SUM(CK36:CK37)","v":0},{"$f":"SUM(CL36:CL37)","v":0},{"$f":"SUM(CM36:CM37)","v":0},{"$f":"SUM(CN36:CN37)","v":0},{"$f":"SUM(CO36:CO37)","v":0},{"$f":"SUM(CP36:CP37)","v":0},{"$f":"SUM(CQ36:CQ37)","v":0},{"$f":"SUM(CR36:CR37)","v":0},{"$f":"SUM(CS36:CS37)","v":0},{"$f":"SUM(CT36:CT37)","v":0},{"$f":"SUM(CU36:CU37)","v":0},{"$f":"SUM(CV36:CV37)","v":0},{"$f":"SUM(CW36:CW37)","v":0},{"$f":"SUM(CX36:CX37)","v":0},{"$f":"SUM(CY36:CY37)","v":0},{"$f":"SUM(CZ36:CZ37)","v":0},{"$f":"SUM(DA36:DA37)","v":0},{"$f":"SUM(DB36:DB37)","v":0},{"$f":"SUM(DC36:DC37)","v":0},{"$f":"SUM(DD36:DD37)","v":0},{"$f":"SUM(DE36:DE37)","v":0},{"$f":"SUM(DF36:DF37)","v":0}]
[null,"22: PRICE (F.O.R.) DELIVERED TO SITE ...          ",{"$nulls":5},"(18+21)",null,null,{"$f":"K35+K38","v":0},0,{"$f":"M35+M38","v":0},{"$f":"N35+N38","v":0},{"$f":"O35+O38","v":0},{"$f":"P35+P38","v":0},{"$f":"Q35+Q38","v":0},{"$f":"R35+R38","v":0},{"$f":"S35+S38","v":0},{"$f":"T35+T38","v":0},{"$f":"U35+U38","v":0},{"$f":"V35+V38","v":0},{"$f":"W35+W38","v":0},{"$f":"X35+X38","v":0},{"$f":"Y35+Y38","v":0},{"$f":"Z35+Z38","v":0},{"$f":"AA35+AA38","v":0},{"$f":"AB35+AB38","v":0},{"$f":"AC35+AC38","v":0},{"$f":"AD35+AD38","v":0},{"$f":"AE35+AE38","v":0},{"$f":"AF35+AF38","v":0},{"$f":"AG35+AG38","v":0},{"$f":"AH35+AH38","v":0},{"$f":"AI35+AI38","v":0},{"$f":"AJ35+AJ38","v":0},{"$f":"AK35+AK38","v":0},{"$f":"AL35+AL38","v":0},{"$f":"AM35+AM38","v":0},{"$f":"AN35+AN38","v":0},{"$f":"AO35+AO38","v":0},{"$f":"AP35+AP38","v":0},{"$f":"AQ35+AQ38","v":0},{"$f":"AR35+AR38","v":0},{"$f":"AS35+AS38","v":0},{"$f":"AT35+AT38","v":0},{"$f":"AU35+AU38","v":0},{"$f":"AV35+AV38","v":0},{"$f":"AW35+AW38","v":0},{"$f":"AX35+AX38","v":0},{"$f":"AY35+AY38","v":0},{"$f":"AZ35+AZ38","v":0},{"$f":"BA35+BA38","v":0},{"$f":"BB35+BB38","v":0},{"$f":"BC35+BC38","v":0},{"$f":"BD35+BD38","v":0},{"$f":"BE35+BE38","v":0},{"$f":"BF35+BF38","v":0},{"$f":"BG35+BG38","v":0},{"$f":"BH35+BH38","v":0},{"$f":"BI35+BI38","v":0},{"$f":"BJ35+BJ38","v":0},{"$f":"BK35+BK38","v":0},{"$f":"BL35+BL38","v":0},{"$f":"BM35+BM38","v":0},{"$f":"BN35+BN38","v":0},{"$f":"BO35+BO38","v":0},{"$f":"BP35+BP38","v":0},{"$f":"BQ35+BQ38","v":0},{"$f":"BR35+BR38","v":0},{"$f":"BS35+BS38","v":0},{"$f":"BT35+BT38","v":0},{"$f":"BU35+BU38","v":0},{"$f":"BV35+BV38","v":0},{"$f":"BW35+BW38","v":0},{"$f":"BX35+BX38","v":0},{"$f":"BY35+BY38","v":0},{"$f":"BZ35+BZ38","v":0},{"$f":"CA35+CA38","v":0},{"$f":"CB35+CB38","v":0},{"$f":"CC35+CC38","v":0},{"$f":"CD35+CD38","v":0},{"$f":"CE35+CE38","v":0},{"$f":"CF35+CF38","v":0},{"$f":"CG35+CG38","v":0},{"$f":"CH35+CH38","v":0},{"$f":"CI35+CI38","v":0},{"$f":"CJ35+CJ38","v":0},{"$f":"CK35+CK38","v":0},{"$f":"CL35+CL38","v":0},{"$f":"CM35+CM38","v":0},{"$f":"CN35+CN38","v":0},{"$f":"CO35+CO38","v":0},{"$f":"CP35+CP38","v":0},{"$f":"CQ35+CQ38","v":0},{"$f":"CR35+CR38","v":0},{"$f":"CS35+CS38","v":0},{"$f":"CT35+CT38","v":0},{"$f":"CU35+CU38","v":0},{"$f":"CV35+CV38","v":0},{"$f":"CW35+CW38","v":0},{"$f":"CX35+CX38","v":0},{"$f":"CY35+CY38","v":0},{"$f":"CZ35+CZ38","v":0},{"$f":"DA35+DA38","v":0},{"$f":"DB35+DB38","v":0},{"$f":"DC35+DC38","v":0},{"$f":"DD35+DD38","v":0},{"$f":"DE35+DE38","v":0},{"$f":"DF35+DF38","v":0}]
[null," SITE WORK (ERECTION / INSTALLATION INCL. COMMISSIONING) (per Installation & Commissioning matrix)"]
[null,"23: LOCAL LABOUR"]
[null,"24: EXPATRIATE  LABOUR"]
[null,"25: TOTAL PRICE FOR SITE WORK ...          ",{"$nulls":5},"(23+24)",null,null,{"$f":"SUM(K41:K42)","v":0},0,{"$f":"SUM(M41:M42)","v":0},{"$f":"SUM(N41:N42)","v":0},{"$f":"SUM(O41:O42)","v":0},{"$f":"SUM(P41:P42)","v":0},{"$f":"SUM(Q41:Q42)","v":0},{"$f":"SUM(R41:R42)","v":0},{"$f":"SUM(S41:S42)","v":0},{"$f":"SUM(T41:T42)","v":0},{"$f":"SUM(U41:U42)","v":0},{"$f":"SUM(V41:V42)","v":0},{"$f":"SUM(W41:W42)","v":0},{"$f":"SUM(X41:X42)","v":0},{"$f":"SUM(Y41:Y42)","v":0},{"$f":"SUM(Z41:Z42)","v":0},{"$f":"SUM(AA41:AA42)","v":0},{"$f":"SUM(AB41:AB42)","v":0},{"$f":"SUM(AC41:AC42)","v":0},{"$f":"SUM(AD41:AD42)","v":0},{"$f":"SUM(AE41:AE42)","v":0},{"$f":"SUM(AF41:AF42)","v":0},{"$f":"SUM(AG41:AG42)","v":0},{"$f":"SUM(AH41:AH42)","v":0},{"$f":"SUM(AI41:AI42)","v":0},{"$f":"SUM(AJ41:AJ42)","v":0},{"$f":"SUM(AK41:AK42)","v":0},{"$f":"SUM(AL41:AL42)","v":0},{"$f":"SUM(AM41:AM42)","v":0},{"$f":"SUM(AN41:AN42)","v":0},{"$f":"SUM(AO41:AO42)","v":0},{"$f":"SUM(AP41:AP42)","v":0},{"$f":"SUM(AQ41:AQ42)","v":0},{"$f":"SUM(AR41:AR42)","v":0},{"$f":"SUM(AS41:AS42)","v":0},{"$f":"SUM(AT41:AT42)","v":0},{"$f":"SUM(AU41:AU42)","v":0},{"$f":"SUM(AV41:AV42)","v":0},{"$f":"SUM(AW41:AW42)","v":0},{"$f":"SUM(AX41:AX42)","v":0},{"$f":"SUM(AY41:AY42)","v":0},{"$f":"SUM(AZ41:AZ42)","v":0},{"$f":"SUM(BA41:BA42)","v":0},{"$f":"SUM(BB41:BB42)","v":0},{"$f":"SUM(BC41:BC42)","v":0},{"$f":"SUM(BD41:BD42)","v":0},{"$f":"SUM(BE41:BE42)","v":0},{"$f":"SUM(BF41:BF42)","v":0},{"$f":"SUM(BG41:BG42)","v":0},{"$f":"SUM(BH41:BH42)","v":0},{"$f":"SUM(BI41:BI42)","v":0},{"$f":"SUM(BJ41:BJ42)","v":0},{"$f":"SUM(BK41:BK42)","v":0},{"$f":"SUM(BL41:BL42)","v":0},{"$f":"SUM(BM41:BM42)","v":0},{"$f":"SUM(BN41:BN42)","v":0},{"$f":"SUM(BO41:BO42)","v":0},{"$f":"SUM(BP41:BP42)","v":0},{"$f":"SUM(BQ41:BQ42)","v":0},{"$f":"SUM(BR41:BR42)","v":0},{"$f":"SUM(BS41:BS42)","v":0},{"$f":"SUM(BT41:BT42)","v":0},{"$f":"SUM(BU41:BU42)","v":0},{"$f":"SUM(BV41:BV42)","v":0},{"$f":"SUM(BW41:BW42)","v":0},{"$f":"SUM(BX41:BX42)","v":0},{"$f":"SUM(BY41:BY42)","v":0},{"$f":"SUM(BZ41:BZ42)","v":0},{"$f":"SUM(CA41:CA42)","v":0},{"$f":"SUM(CB41:CB42)","v":0},{"$f":"SUM(CC41:CC42)","v":0},{"$f":"SUM(CD41:CD42)","v":0},{"$f":"SUM(CE41:CE42)","v":0},{"$f":"SUM(CF41:CF42)","v":0},{"$f":"SUM(CG41:CG42)","v":0},{"$f":"SUM(CH41:CH42)","v":0},{"$f":"SUM(CI41:CI42)","v":0},{"$f":"SUM(CJ41:CJ42)","v":0},{"$f":"SUM(CK41:CK42)","v":0},{"$f":"SUM(CL41:CL42)","v":0},{"$f":"SUM(CM41:CM42)","v":0},{"$f":"SUM(CN41:CN42)","v":0},{"$f":"SUM(CO41:CO42)","v":0},{"$f":"SUM(CP41:CP42)","v":0},{"$f":"SUM(CQ41:CQ42)","v":0},{"$f":"SUM(CR41:CR42)","v":0},{"$f":"SUM(CS41:CS42)","v":0},{"$f":"SUM(CT41:CT42)","v":0},{"$f":"SUM(CU41:CU42)","v":0},{"$f":"SUM(CV41:CV42)","v":0},{"$f":"SUM(CW41:CW42)","v":0},{"$f":"SUM(CX41:CX42)","v":0},{"$f":"SUM(CY41:CY42)","v":0},{"$f":"SUM(CZ41:CZ42)","v":0},{"$f":"SUM(DA41:DA42)","v":0},{"$f":"SUM(DB41:DB42)","v":0},{"$f":"SUM(DC41:DC42)","v":0},{"$f":"SUM(DD41:DD42)","v":0},{"$f":"SUM(DE41:DE42)","v":0},{"$f":"SUM(DF41:DF42)","v":0}]
[null,"26: OVERSEAS ENGINEERING SERVICES"]
[null,"27: LOCAL ENGINEERING SERVICES"]
[null,"28: TOTAL PRICE FOR ENGINEERING SERVICES...",{"$nulls":5},"(26+27)",null,null,{"$f":"SUM(K44:K45)","v":0},0,{"$f":"SUM(M44:M45)","v":0},{"$f":"SUM(N44:N45)","v":0},{"$f":"SUM(O44:O45)","v":0},{"$f":"SUM(P44:P45)","v":0},{"$f":"SUM(Q44:Q45)","v":0},{"$f":"SUM(R44:R45)","v":0},{"$f":"SUM(S44:S45)","v":0},{"$f":"SUM(T44:T45)","v":0},{"$f":"SUM(U44:U45)","v":0},{"$f":"SUM(V44:V45)","v":0},{"$f":"SUM(W44:W45)","v":0},{"$f":"SUM(X44:X45)","v":0},{"$f":"SUM(Y44:Y45)","v":0},{"$f":"SUM(Z44:Z45)","v":0},{"$f":"SUM(AA44:AA45)","v":0},{"$f":"SUM(AB44:AB45)","v":0},{"$f":"SUM(AC44:AC45)","v":0},{"$f":"SUM(AD44:AD45)","v":0},{"$f":"SUM(AE44:AE45)","v":0},{"$f":"SUM(AF44:AF45)","v":0},{"$f":"SUM(AG44:AG45)","v":0},{"$f":"SUM(AH44:AH45)","v":0},{"$f":"SUM(AI44:AI45)","v":0},{"$f":"SUM(AJ44:AJ45)","v":0},{"$f":"SUM(AK44:AK45)","v":0},{"$f":"SUM(AL44:AL45)","v":0},{"$f":"SUM(AM44:AM45)","v":0},{"$f":"SUM(AN44:AN45)","v":0},{"$f":"SUM(AO44:AO45)","v":0},{"$f":"SUM(AP44:AP45)","v":0},{"$f":"SUM(AQ44:AQ45)","v":0},{"$f":"SUM(AR44:AR45)","v":0},{"$f":"SUM(AS44:AS45)","v":0},{"$f":"SUM(AT44:AT45)","v":0},{"$f":"SUM(AU44:AU45)","v":0},{"$f":"SUM(AV44:AV45)","v":0},{"$f":"SUM(AW44:AW45)","v":0},{"$f":"SUM(AX44:AX45)","v":0},{"$f":"SUM(AY44:AY45)","v":0},{"$f":"SUM(AZ44:AZ45)","v":0},{"$f":"SUM(BA44:BA45)","v":0},{"$f":"SUM(BB44:BB45)","v":0},{"$f":"SUM(BC44:BC45)","v":0},{"$f":"SUM(BD44:BD45)","v":0},{"$f":"SUM(BE44:BE45)","v":0},{"$f":"SUM(BF44:BF45)","v":0},{"$f":"SUM(BG44:BG45)","v":0},{"$f":"SUM(BH44:BH45)","v":0},{"$f":"SUM(BI44:BI45)","v":0},{"$f":"SUM(BJ44:BJ45)","v":0},{"$f":"SUM(BK44:BK45)","v":0},{"$f":"SUM(BL44:BL45)","v":0},{"$f":"SUM(BM44:BM45)","v":0},{"$f":"SUM(BN44:BN45)","v":0},{"$f":"SUM(BO44:BO45)","v":0},{"$f":"SUM(BP44:BP45)","v":0},{"$f":"SUM(BQ44:BQ45)","v":0},{"$f":"SUM(BR44:BR45)","v":0},{"$f":"SUM(BS44:BS45)","v":0},{"$f":"SUM(BT44:BT45)","v":0},{"$f":"SUM(BU44:BU45)","v":0},{"$f":"SUM(BV44:BV45)","v":0},{"$f":"SUM(BW44:BW45)","v":0},{"$f":"SUM(BX44:BX45)","v":0},{"$f":"SUM(BY44:BY45)","v":0},{"$f":"SUM(BZ44:BZ45)","v":0},{"$f":"SUM(CA44:CA45)","v":0},{"$f":"SUM(CB44:CB45)","v":0},{"$f":"SUM(CC44:CC45)","v":0},{"$f":"SUM(CD44:CD45)","v":0},{"$f":"SUM(CE44:CE45)","v":0},{"$f":"SUM(CF44:CF45)","v":0},{"$f":"SUM(CG44:CG45)","v":0},{"$f":"SUM(CH44:CH45)","v":0},{"$f":"SUM(CI44:CI45)","v":0},{"$f":"SUM(CJ44:CJ45)","v":0},{"$f":"SUM(CK44:CK45)","v":0},{"$f":"SUM(CL44:CL45)","v":0},{"$f":"SUM(CM44:CM45)","v":0},{"$f":"SUM(CN44:CN45)","v":0},{"$f":"SUM(CO44:CO45)","v":0},{"$f":"SUM(CP44:CP45)","v":0},{"$f":"SUM(CQ44:CQ45)","v":0},{"$f":"SUM(CR44:CR45)","v":0},{"$f":"SUM(CS44:CS45)","v":0},{"$f":"SUM(CT44:CT45)","v":0},{"$f":"SUM(CU44:CU45)","v":0},{"$f":"SUM(CV44:CV45)","v":0},{"$f":"SUM(CW44:CW45)","v":0},{"$f":"SUM(CX44:CX45)","v":0},{"$f":"SUM(CY44:CY45)","v":0},{"$f":"SUM(CZ44:CZ45)","v":0},{"$f":"SUM(DA44:DA45)","v":0},{"$f":"SUM(DB44:DB45)","v":0},{"$f":"SUM(DC44:DC45)","v":0},{"$f":"SUM(DD44:DD45)","v":0},{"$f":"SUM(DE44:DE45)","v":0},{"$f":"SUM(DF44:DF45)","v":0}]
[null,"29: TOTAL PRICE EXCLUDING VAT",{"$nulls":8},{"$f":"K30+K39+K46+K43","v":0},0,{"$f":"M30+M39+M46+M43","v":0},{"$f":"N30+N39+N46+N43","v":0},{"$f":"O30+O39+O46+O43","v":0},{"$f":"P30+P39+P46+P43","v":0},{"$f":"Q30+Q39+Q46+Q43","v":0},{"$f":"R30+R39+R46+R43","v":0},{"$f":"S30+S39+S46+S43","v":0},{"$f":"T30+T39+T46+T43","v":0},{"$f":"U30+U39+U46+U43","v":0},{"$f":"V30+V39+V46+V43","v":0},{"$f":"W30+W39+W46+W43","v":0},{"$f":"X30+X39+X46+X43","v":0},{"$f":"Y30+Y39+Y46+Y43","v":0},{"$f":"Z30+Z39+Z46+Z43","v":0},{"$f":"AA30+AA39+AA46+AA43","v":0},{"$f":"AB30+AB39+AB46+AB43","v":0},{"$f":"AC30+AC39+AC46+AC43","v":0},{"$f":"AD30+AD39+AD46+AD43","v":0},{"$f":"AE30+AE39+AE46+AE43","v":0},{"$f":"AF30+AF39+AF46+AF43","v":0},{"$f":"AG30+AG39+AG46+AG43","v":0},{"$f":"AH30+AH39+AH46+AH43","v":0},{"$f":"AI30+AI39+AI46+AI43","v":0},{"$f":"AJ30+AJ39+AJ46+AJ43","v":0},{"$f":"AK30+AK39+AK46+AK43","v":0},{"$f":"AL30+AL39+AL46+AL43","v":0},{"$f":"AM30+AM39+AM46+AM43","v":0},{"$f":"AN30+AN39+AN46+AN43","v":0},{"$f":"AO30+AO39+AO46+AO43","v":0},{"$f":"AP30+AP39+AP46+AP43","v":0},{"$f":"AQ30+AQ39+AQ46+AQ43","v":0},{"$f":"AR30+AR39+AR46+AR43","v":0},{"$f":"AS30+AS39+AS46+AS43","v":0},{"$f":"AT30+AT39+AT46+AT43","v":0},{"$f":"AU30+AU39+AU46+AU43","v":0},{"$f":"AV30+AV39+AV46+AV43","v":0},{"$f":"AW30+AW39+AW46+AW43","v":0},{"$f":"AX30+AX39+AX46+AX43","v":0},{"$f":"AY30+AY39+AY46+AY43","v":0},{"$f":"AZ30+AZ39+AZ46+AZ43","v":0},{"$f":"BA30+BA39+BA46+BA43","v":0},{"$f":"BB30+BB39+BB46+BB43","v":0},{"$f":"BC30+BC39+BC46+BC43","v":0},{"$f":"BD30+BD39+BD46+BD43","v":0},{"$f":"BE30+BE39+BE46+BE43","v":0},{"$f":"BF30+BF39+BF46+BF43","v":0},{"$f":"BG30+BG39+BG46+BG43","v":0},{"$f":"BH30+BH39+BH46+BH43","v":0},{"$f":"BI30+BI39+BI46+BI43","v":0},{"$f":"BJ30+BJ39+BJ46+BJ43","v":0},{"$f":"BK30+BK39+BK46+BK43","v":0},{"$f":"BL30+BL39+BL46+BL43","v":0},{"$f":"BM30+BM39+BM46+BM43","v":0},{"$f":"BN30+BN39+BN46+BN43","v":0},{"$f":"BO30+BO39+BO46+BO43","v":0},{"$f":"BP30+BP39+BP46+BP43","v":0},{"$f":"BQ30+BQ39+BQ46+BQ43","v":0},{"$f":"BR30+BR39+BR46+BR43","v":0},{"$f":"BS30+BS39+BS46+BS43","v":0},{"$f":"BT30+BT39+BT46+BT43","v":0},{"$f":"BU30+BU39+BU46+BU43","v":0},{"$f":"BV30+BV39+BV46+BV43","v":0},{"$f":"BW30+BW39+BW46+BW43","v":0},{"$f":"BX30+BX39+BX46+BX43","v":0},{"$f":"BY30+BY39+BY46+BY43","v":0},{"$f":"BZ30+BZ39+BZ46+BZ43","v":0},{"$f":"CA30+CA39+CA46+CA43","v":0},{"$f":"CB30+CB39+CB46+CB43","v":0},{"$f":"CC30+CC39+CC46+CC43","v":0},{"$f":"CD30+CD39+CD46+CD43","v":0},{"$f":"CE30+CE39+CE46+CE43","v":0},{"$f":"CF30+CF39+CF46+CF43","v":0},{"$f":"CG30+CG39+CG46+CG43","v":0},{"$f":"CH30+CH39+CH46+CH43","v":0},{"$f":"CI30+CI39+CI46+CI43","v":0},{"$f":"CJ30+CJ39+CJ46+CJ43","v":0},{"$f":"CK30+CK39+CK46+CK43","v":0},{"$f":"CL30+CL39+CL46+CL43","v":0},{"$f":"CM30+CM39+CM46+CM43","v":0},{"$f":"CN30+CN39+CN46+CN43","v":0},{"$f":"CO30+CO39+CO46+CO43","v":0},{"$f":"CP30+CP39+CP46+CP43","v":0},{"$f":"CQ30+CQ39+CQ46+CQ43","v":0},{"$f":"CR30+CR39+CR46+CR43","v":0},{"$f":"CS30+CS39+CS46+CS43","v":0},{"$f":"CT30+CT39+CT46+CT43","v":0},{"$f":"CU30+CU39+CU46+CU43","v":0},{"$f":"CV30+CV39+CV46+CV43","v":0},{"$f":"CW30+CW39+CW46+CW43","v":0},{"$f":"CX30+CX39+CX46+CX43","v":0},{"$f":"CY30+CY39+CY46+CY43","v":0},{"$f":"CZ30+CZ39+CZ46+CZ43","v":0},{"$f":"DA30+DA39+DA46+DA43","v":0},{"$f":"DB30+DB39+DB46+DB43","v":0},{"$f":"DC30+DC39+DC46+DC43","v":0},{"$f":"DD30+DD39+DD46+DD43","v":0},{"$f":"DE30+DE39+DE46+DE43","v":0},{"$f":"DF30+DF39+DF46+DF43","v":0}]
[null,"29. VAT",{"$nulls":8},{"$f":"K47*15%","v":0},0,{"$f":"M47*15%","v":0},{"$f":"N47*15%","v":0},{"$f":"O47*15%","v":0},{"$f":"P47*15%","v":0},{"$f":"Q47*15%","v":0},{"$f":"R47*15%","v":0},{"$f":"S47*15%","v":0},{"$f":"T47*15%","v":0},{"$f":"U47*15%","v":0},{"$f":"V47*15%","v":0},{"$f":"W47*15%","v":0},{"$f":"X47*15%","v":0},{"$f":"Y47*15%","v":0},{"$f":"Z47*15%","v":0},{"$f":"AA47*15%","v":0},{"$f":"AB47*15%","v":0},{"$f":"AC47*15%","v":0},{"$f":"AD47*15%","v":0},{"$f":"AE47*15%","v":0},{"$f":"AF47*15%","v":0},{"$f":"AG47*15%","v":0},{"$f":"AH47*15%","v":0},{"$f":"AI47*15%","v":0},{"$f":"AJ47*15%","v":0},{"$f":"AK47*15%","v":0},{"$f":"AL47*15%","v":0},{"$f":"AM47*15%","v":0},{"$f":"AN47*15%","v":0},{"$f":"AO47*15%","v":0},{"$f":"AP47*15%","v":0},{"$f":"AQ47*15%","v":0},{"$f":"AR47*15%","v":0},{"$f":"AS47*15%","v":0},{"$f":"AT47*15%","v":0},{"$f":"AU47*15%","v":0},{"$f":"AV47*15%","v":0},{"$f":"AW47*15%","v":0},{"$f":"AX47*15%","v":0},{"$f":"AY47*15%","v":0},{"$f":"AZ47*15%","v":0},{"$f":"BA47*15%","v":0},{"$f":"BB47*15%","v":0},{"$f":"BC47*15%","v":0},{"$f":"BD47*15%","v":0},{"$f":"BE47*15%","v":0},{"$f":"BF47*15%","v":0},{"$f":"BG47*15%","v":0},{"$f":"BH47*15%","v":0},{"$f":"BI47*15%","v":0},{"$f":"BJ47*15%","v":0},{"$f":"BK47*15%","v":0},{"$f":"BL47*15%","v":0},{"$f":"BM47*15%","v":0},{"$f":"BN47*15%","v":0},{"$f":"BO47*15%","v":0},{"$f":"BP47*15%","v":0},{"$f":"BQ47*15%","v":0},{"$f":"BR47*15%","v":0},{"$f":"BS47*15%","v":0},{"$f":"BT47*15%","v":0},{"$f":"BU47*15%","v":0},{"$f":"BV47*15%","v":0},{"$f":"BW47*15%","v":0},{"$f":"BX47*15%","v":0},{"$f":"BY47*15%","v":0},{"$f":"BZ47*15%","v":0},{"$f":"CA47*15%","v":0},{"$f":"CB47*15%","v":0},{"$f":"CC47*15%","v":0},{"$f":"CD47*15%","v":0},{"$f":"CE47*15%","v":0},{"$f":"CF47*15%","v":0},{"$f":"CG47*15%","v":0},{"$f":"CH47*15%","v":0},{"$f":"CI47*15%","v":0},{"$f":"CJ47*15%","v":0},{"$f":"CK47*15%","v":0},{"$f":"CL47*15%","v":0},{"$f":"CM47*15%","v":0},{"$f":"CN47*15%","v":0},{"$f":"CO47*15%","v":0},{"$f":"CP47*15%","v":0},{"$f":"CQ47*15%","v":0},{"$f":"CR47*15%","v":0},{"$f":"CS47*15%","v":0},{"$f":"CT47*15%","v":0},{"$f":"CU47*15%","v":0},{"$f":"CV47*15%","v":0},{"$f":"CW47*15%","v":0},{"$f":"CX47*15%","v":0},{"$f":"CY47*15%","v":0},{"$f":"CZ47*15%","v":0},{"$f":"DA47*15%","v":0},{"$f":"DB47*15%","v":0},{"$f":"DC47*15%","v":0},{"$f":"DD47*15%","v":0},{"$f":"DE47*15%","v":0},{"$f":"DF47*15%","v":0}]
[null,"30: TOTAL  PRICE INCLUDING VAT",{"$nulls":5},"(27+36+46)",null,null,{"$f":"K47+K48","v":0},0,{"$f":"M47+M48","v":0},{"$f":"N47+N48","v":0},{"$f":"O47+O48","v":0},{"$f":"P47+P48","v":0},{"$f":"Q47+Q48","v":0},{"$f":"R47+R48","v":0},{"$f":"S47+S48","v":0},{"$f":"T47+T48","v":0},{"$f":"U47+U48","v":0},{"$f":"V47+V48","v":0},{"$f":"W47+W48","v":0},{"$f":"X47+X48","v":0},{"$f":"Y47+Y48","v":0},{"$f":"Z47+Z48","v":0},{"$f":"AA47+AA48","v":0},{"$f":"AB47+AB48","v":0},{"$f":"AC47+AC48","v":0},{"$f":"AD47+AD48","v":0},{"$f":"AE47+AE48","v":0},{"$f":"AF47+AF48","v":0},{"$f":"AG47+AG48","v":0},{"$f":"AH47+AH48","v":0},{"$f":"AI47+AI48","v":0},{"$f":"AJ47+AJ48","v":0},{"$f":"AK47+AK48","v":0},{"$f":"AL47+AL48","v":0},{"$f":"AM47+AM48","v":0},{"$f":"AN47+AN48","v":0},{"$f":"AO47+AO48","v":0},{"$f":"AP47+AP48","v":0},{"$f":"AQ47+AQ48","v":0},{"$f":"AR47+AR48","v":0},{"$f":"AS47+AS48","v":0},{"$f":"AT47+AT48","v":0},{"$f":"AU47+AU48","v":0},{"$f":"AV47+AV48","v":0},{"$f":"AW47+AW48","v":0},{"$f":"AX47+AX48","v":0},{"$f":"AY47+AY48","v":0},{"$f":"AZ47+AZ48","v":0},{"$f":"BA47+BA48","v":0},{"$f":"BB47+BB48","v":0},{"$f":"BC47+BC48","v":0},{"$f":"BD47+BD48","v":0},{"$f":"BE47+BE48","v":0},{"$f":"BF47+BF48","v":0},{"$f":"BG47+BG48","v":0},{"$f":"BH47+BH48","v":0},{"$f":"BI47+BI48","v":0},{"$f":"BJ47+BJ48","v":0},{"$f":"BK47+BK48","v":0},{"$f":"BL47+BL48","v":0},{"$f":"BM47+BM48","v":0},{"$f":"BN47+BN48","v":0},{"$f":"BO47+BO48","v":0},{"$f":"BP47+BP48","v":0},{"$f":"BQ47+BQ48","v":0},{"$f":"BR47+BR48","v":0},{"$f":"BS47+BS48","v":0},{"$f":"BT47+BT48","v":0},{"$f":"BU47+BU48","v":0},{"$f":"BV47+BV48","v":0},{"$f":"BW47+BW48","v":0},{"$f":"BX47+BX48","v":0},{"$f":"BY47+BY48","v":0},{"$f":"BZ47+BZ48","v":0},{"$f":"CA47+CA48","v":0},{"$f":"CB47+CB48","v":0},{"$f":"CC47+CC48","v":0},{"$f":"CD47+CD48","v":0},{"$f":"CE47+CE48","v":0},{"$f":"CF47+CF48","v":0},{"$f":"CG47+CG48","v":0},{"$f":"CH47+CH48","v":0},{"$f":"CI47+CI48","v":0},{"$f":"CJ47+CJ48","v":0},{"$f":"CK47+CK48","v":0},{"$f":"CL47+CL48","v":0},{"$f":"CM47+CM48","v":0},{"$f":"CN47+CN48","v":0},{"$f":"CO47+CO48","v":0},{"$f":"CP47+CP48","v":0},{"$f":"CQ47+CQ48","v":0},{"$f":"CR47+CR48","v":0},{"$f":"CS47+CS48","v":0},{"$f":"CT47+CT48","v":0},{"$f":"CU47+CU48","v":0},{"$f":"CV47+CV48","v":0},{"$f":"CW47+CW48","v":0},{"$f":"CX47+CX48","v":0},{"$f":"CY47+CY48","v":0},{"$f":"CZ47+CZ48","v":0},{"$f":"DA47+DA48","v":0},{"$f":"DB47+DB48","v":0},{"$f":"DC47+DC48","v":0},{"$f":"DD47+DD48","v":0},{"$f":"DE47+DE48","v":0},{"$f":"DF47+DF48","v":0}]
[]
[]
[]
[null,"SIGNATURE..................................................................."]
[]
[]
[null,"Date...................................................................",{"$nulls":14},"CAPACITY........................................................................",{"$nulls":9},"CAPACITY........................................................................",{"$nulls":9},"CAPACITY........................................................................",{"$nulls":9},"CAPACITY........................................................................",{"$nulls":9},"CAPACITY........................................................................",{"$nulls":9},"CAPACITY........................................................................",{"$nulls":9},"CAPACITY........................................................................",{"$nulls":9},"CAPACITY........................................................................",{"$nulls":9},"CAPACITY........................................................................",{"$nulls":9},"CAPACITY........................................................................"]
[]
[]
[]
[null,{"$f":"\"ENQUIRY NUMBER :\"&Cover!$B$15","v":"ENQUIRY NUMBER :"},{"$nulls":3},"PRICES INCLUSIVE OF VAT (VALUE ADDED TAX)"]
[]
[null,{"$f":"\"PRICE SCHEDULE : C (PS5) :\"&Cover!$B$17","v":"PRICE SCHEDULE : C (PS5) :"},{"$nulls":16},{"$f":"\"SUPPLIER:\"&Cover!$B$21","v":"SUPPLIER:"},{"$nulls":9},{"$f":"\"SUPPLIER:\"&Cover!$B$21","v":"SUPPLIER:"},{"$nulls":9},{"$f":"\"SUPPLIER:\"&Cover!$B$21","v":"SUPPLIER:"},{"$nulls":9},{"$f":"\"SUPPLIER:\"&Cover!$B$21","v":"SUPPLIER:"},{"$nulls":9},{"$f":"\"SUPPLIER:\"&Cover!$B$21","v":"SUPPLIER:"},{"$nulls":9},{"$f":"\"SUPPLIER:\"&Cover!$B$21","v":"SUPPLIER:"},{"$nulls":9},{"$f":"\"SUPPLIER:\"&Cover!$B$21","v":"SUPPLIER:"},{"$nulls":9},{"$f":"\"SUPPLIER:\"&Cover!$B$21","v":"SUPPLIER:"},{"$nulls":9},{"$f":"\"SUPPLIER:\"&Cover!$B$21","v":"SUPPLIER:"},{"$nulls":9},{"$f":"\"SUPPLIER:\"&Cover!$B$21","v":"SUPPLIER:"}]
[]
[null," PRICE SCHEDULE FOR GOODS MANUFACTURED OUTSIDE THE R.S.A.  PRICE PER UNIT FOR ENGINEERING, MANUFACTURE, SUPPLY AND DELIVERY.  ALL AMOUNTS EXPRESSED IN FOREIGN CURRENCY (UP TO LINE 49)."]
[]
[]
[]
[null," REMARKS",{"$nulls":5},"                       ITEM NO",null,null,{"$f":"K9","v":1},{"$f":"L9","v":2},3,4,5,6,7,8,9,10,11,12,13,14,15,16,17,18,19,20,21,22,23,24,25,26,27,28,29,30,31,32,33,34,35,36,37,38,39,40,41,42,43,44,45,46,47,48,49,50,51,52,53,54,55,56,57,58,59,60,61,62,63,64,65,{"$f":"BX9","v":66},67,68,69,70,71,72,73,74,75,76,77,78,79,80,81,82,83,84,85,86,87,88,89,90,91,92,93,94,95,96,97,98,0,0]
[null," *Eskom may effect this insurance which includes war",{"$nulls":5},"                  ITEM DESCRIPTION",null,null,{"$f":"K10","v":"Scheme: 1 Feeder Double Busbar - 110 VDC"},{"$f":"L10","v":"Scheme: 1 Feeder Double Busbar - 220 VDC"},"Scheme: 2 Feeder Double Busbar  - 110 VDC","Scheme: 2 Feeder Double Busbar  - 220 VDC","Scheme: 3 Feeder Double Busbar - 110 VDC","Scheme: 3 Feeder Double Busbar - 220 VDC","Scheme: 4 Feeder Double Busbar - 110 VDC","Scheme: 4 Feeder Double Busbar - 220 VDC","Scheme: 1 Feeder & 1 Transformer BAH - 110 VDC","Scheme: 1 Feeder & 1 Transformer BAH - 220 VDC","Scheme: 2 Feeders BAH - 110 VDC","Scheme: 2 Feeders BAH - 220 VDC","Scheme: 1 Feeder with Line Reactor BAH - 110 VDC","Scheme: 1 Feeder with Line Reactor BAH - 220 VDC","Scheme: 1 Feeder with Line Reactor & 1 Transformer BAH - 110 VDC","Scheme: 1 Feeder with Line Reactor & 1 Transformer BAH - 220 VDC","Scheme: 2 Feeders with Line Reactors BAH - 110 VDC","Scheme: 2 Feeders with Line Reactors BAH - 220 VDC","Scheme: 1 Feeder & 1 Feeder with Line Reactor BAH - 110 VDC","Scheme: 1 Feeder & 1 Feeder with Line Reactor BAH - 220 VDC","Scheme: 1 Busbar Reactor BAH - 110 VDC","Scheme: 1 Busbar Reactor BAH - 220 VDC","Scheme: 1 Feeder BAH - 110 VDC","Scheme: 1 Feeder BAH - 220 VDC","Scheme: 1 Transformer BAH - 110 VDC","Scheme: 1 Transformer BAH - 220 VDC","Scheme: 1 Feeder & 1 Transformer BAH (Trfr MV - DBB Config) - 110 VDC","Scheme: 1 Feeder & 1 Transformer BAH (Trfr MV - DBB Config) - 220 VDC","Scheme: 1 Feeder with Line Reactor & 1 Transformer BAH (Trfr MV - DBB Config) - 110 VDC","Scheme: 1 Feeder with Line Reactor & 1 Transformer BAH (Trfr MV - DBB Config) - 220 VDC","Scheme: 1 Transformer BAH (Trfr MV - DBB Config) - 110 VDC","Scheme: 1 Transformer BAH (Trfr MV - DBB Config) - 220 VDC","Scheme: IDM+6U with 1 Traveling Wave Fault Locator Card for 2 Lines (DBB) - 110 VDC","Scheme: IDM+6U with 1 Traveling Wave Fault Locator Card for 2 Lines (DBB) - 220 VDC","Scheme: IDM+6U with 1 Traveling Wave Fault Locator Card for 1 Line (BAH) - 110 VDC","Scheme: IDM+6U with 1 Traveling Wave Fault Locator Card for 1 Line (BAH) - 220 VDC","Scheme: IDM+6U with 2 Traveling Wave Fault Locator Cards for 4 Lines (DBB) - 110 VDC","Scheme: IDM+6U with 2 Traveling Wave Fault Locator Cards for 4 Lines (DBB) - 220 VDC","Scheme: IDM+6U with 2 Traveling Wave Fault Locator Cards for 2 Lines (BAH)  - 110 VDC","Scheme: IDM+6U with 2 Traveling Wave Fault Locator Cards for 2 Lines (BAH)  - 220 VDC","Loose: IDM+6U with 9A/32B c/w Chassis Plate & Loom - 110 VDC","Loose: IDM+6U with 9A/32B c/w Chassis Plate & Loom - 220 VDC","Loose: IDM+6U with 18A/64B c/w Chassis Plate & Loom - 110 VDC","Loose: IDM+6U with 18A/64B c/w Chassis Plate & Loom - 220 VDC","Loose: IDM+6U with 27A/96B c/w Chassis Plate & Loom - 110 VDC","Loose: IDM+6U with 27A/96B c/w Chassis Plate & Loom - 220 VDC","Loose: IDM+6U with 36A/128B c/w Chassis Plate & Loom - 110 VDC","Loose: IDM+6U with 36A/128B c/w Chassis Plate & Loom - 220 VDC","Loose: IDM+6U with 1 x TWS Card, 1 x 9A/32B Card c/w Chassis Plate & Loom - 110 VDC","Loose: IDM+6U with 1 x TWS Card, 1 x 9A/32B Card c/w Chassis Plate & Loom - 220 VDC","Loose: IDM+6U with 2 x TWS Cards, 2 x 9A/32B Cards c/w Chassis Plate & Loom - 110 VDC","Loose: IDM+6U with 2 x TWS Cards, 2 x 9A/32B Cards c/w Chassis Plate & Loom - 220 VDC","Portable IDM+6U Unit 1 with 18A/64B and long loom","Portable IDM+6U Unit 2 with 36A/128B and long loom","Portable IDM+6U Unit 3 with 1 x TWS Card, 1 x 9A/32B Card and long loom ","Portable IDM+6U Unit 4 with 2 x TWS Card, 2 x 9A/32B Card and long loom ","Additional Card for Traveling Wave Fault Locator ","Expansion Kit: 9A/32B to 18A/64B ","Expansion Kit: 18A/64B to 27A/96B - 110 VDC","Expansion Kit: 18A/64B to 27A/96B - 220 VDC","Expansion Kit: 27A/96B to 36A/128B","Loose: Chassis Plate & Loom for 9A/32B Card ","PC Communications cable for DFRs (RJ45 for PC connection)","Ethernet Switch: RSG2100 ","Fibre Optic Patch Panel",{"$f":"BX10","v":"CPU Board "},"Signal Conditioning Board  (18-250Vdc Pickup)","Signal Conditioning Board  (35-250Vdc Pickup)","PSU Board ","MMI Board ","IDM+ with 9A/32D ","IDM+ with 18A/64D ","IDM+ with 27A/96D ","IDM+ with 36A/128D ","IDM+ with 1 x TWS (No LC or CT Snap) & 1 x 9/32 ","IDM+ with 2 x TWS (No LC or CT Snap) & 2 x 9/32 ","FL Card ","Internal GPS Receiver ","GPS Cable & Antenna 30m ","Linear Couplers with cables (set of 3) ","Linear Couplers mounted on Snaptrack with cables (set of 3) ","230Vac Finder Relay with Base (60.13.8.230)","24Vdc Finder Relay with Base (60.13.9.24)","48Vdc Finder Relay with Base (60.13.9.48)","110Vdc Finder Relay with Base (60.13.9.110)","220Vdc Finder Relay with Base (60.13.9.220)","RF4 Relay with Base (RF4 & FN-DE-IP-10) (110Vdc)","RF4 Relay with Base (RF4 & FN-DE-IP-10) (220Vdc)","DC Monitoring Relay (CM-ESS.1S)","110/220Vdc 6A MCB (S202M-C6UC +S2C-H6R)","110/220Vdc 10A MCB (S202M-C10UC +S2C-H6R)","230Vac 10A 2P MCB (S202-C10)","230Vac 2A 2P MCB (S202-C2 + S2C-H6R)","415Vac 2A 3P MCB (S203-C2 + S2C-H6R)","SecuControl 8 Way Test Block (FLTP08015AD-SL17F-1523)","DC/DC Converter (ML60.242)","8GB Flash Drive ","Diode Board (4 Way)",{"v":0,"d":"0.00"},{"v":0,"d":"0.00"}]
[null,"   risk insurance"]
[null,"**Please specify"]
[null,"PRICE DELIVERED TO PORT R.S.A. (LINE 5)",{"$nulls":6},"(In Foreign Currency)"]
[null,"31: CURRENCY A   1 ZAR=............",null,null,"(FOB)",{"$nulls":3},"(In Foreign Currency)"]
[null,"32: CURRENCY B   1 ZAR=............",null,null,"(FOB)",{"$nulls":3},"(In Foreign Currency)"]
[null,"33: CURRENCY C   1 ZAR=............",null,null,"(FOB)",{"$nulls":3},"(In Foreign Currency)"]
[null,"34: CURRENCY D   1 ZAR=............",{"$nulls":6},"(In Foreign Currency)"]
[null,"35: CURRENCY E   1 ZAR=............",null,null,"(INSURANCE)",{"$nulls":3},"(In Foreign Currency)"]
[null,"36: TOTAL F.O.B. PRICE ",{"$nulls":5},"(5=31+32+33+34+35)"]
[null,"PRICE EXPATRIATE LABOUR (LINE 25)",{"$nulls":6},"(In Foreign Currency)"]
[null,"37: CURRENCY A   1 ZAR=............",{"$nulls":6},"(In Foreign Currency)"]
[null,"38: CURRENCY B   1 ZAR=............",{"$nulls":6},"(In Foreign Currency)"]
[null,"39: CURRENCY C   1 ZAR=............",{"$nulls":6},"(In Foreign Currency)"]
[null,"40: CURRENCY D   1 ZAR=............",{"$nulls":6},"(In Foreign Currency)"]
[null,"41: CURRENCY E   1 ZAR=.............",{"$nulls":6},"(In Foreign Currency)"]
[null,"42.TOTAL PRICE EXPATRIATE LABOUR ",{"$nulls":5},"(24=37+38+39+40+41)"]
[null,"PRICE OVERSEAS ENGINEERING SERVICES (LINE 27)",{"$nulls":6},"(In Foreign Currency)"]
[null,"43: CURRENCY A   1 ZAR=............",{"$nulls":6},"(In Foreign Currency)"]
[null,"44: CURRENCY B   1 ZAR=............",{"$nulls":6},"(In Foreign Currency)"]
[null,"45: CURRENCY C   1 ZAR=............",{"$nulls":6},"(In Foreign Currency)"]
[null,"46: CURRENCY D   1 ZAR=............",{"$nulls":6},"(In Foreign Currency)"]
[null,"47: CURRENCY E   1 ZAR=.............",{"$nulls":6},"(In Foreign Currency)"]
[null,"48: TOTAL PRICE OVERSEAS ENGINEERING SERVICES (LINE 26) ",{"$nulls":6},"(26=43+44+45+46+47)"]
[null,"49: FOREIGN CONTENT OF TOTAL PRICE",{"$nulls":5},"(36+42+48)"]
[null,"LOCAL PREFERENCE FOR ELECTRONICS ONLY"]
[null,"50. FOR PRICE GOODS MANUFACTURED IN R.S.A. (LINE 16)"]
[null,"51. PRICE FOR LOCAL DESIGN / ENGINEERING SERVICES (LINE 27) "]
[null,"52. PERCENTAGE PREFERENCE CLAIMED (=................) ON LINE 50"]
[null,"53. PERCENTAGE PREFERENCE CLAIMED (=................) ON LINE 51"]
[null,"54. TOTAL AMOUNT CLAIMED ",null,null,"(52 + 53)"]
[]
[]
[]
[null,"SIGNATURE..................................................................."]
[]
[]
[null,"Date...................................................................",{"$nulls":14},"CAPACITY........................................................................",{"$nulls":9},"CAPACITY........................................................................",{"$nulls":9},"CAPACITY........................................................................",{"$nulls":9},"CAPACITY........................................................................",{"$nulls":9},"CAPACITY........................................................................",{"$nulls":9},"CAPACITY........................................................................",{"$nulls":9},"CAPACITY........................................................................",{"$nulls":9},"CAPACITY........................................................................",{"$nulls":9},"CAPACITY........................................................................",{"$nulls":9},"CAPACITY........................................................................"]

{"sheet":"BoQ_Equipment","index":2,"n_rows":119,"n_cols":25,"rows_kept":119,"merged":[[6,6,6,10],[6,11,6,14],[6,15,6,22],[6,23,8,23],[6,24,8,24],[7,6,7,10],[7,11,7,14],[7,15,7,22]]}
["SCHEDULE OF PRICES"]
[]
["ESKOM TENDER",null,{"$f":"Cover!B17","v":0}]
[]
["YOUR REF: ",null,{"$f":"Cover!B15","v":0}]
[]
[{"$nulls":6},{"$f":"PS5_Supply!B15","v":"SUPPLIED FROM OUTSIDE R.S.A.(If Applicable):"},{"$nulls":4},{"$f":"PS5_Supply!B32","v":"SUPPLIED FROM INSIDE R.S.A."},{"$nulls":3},{"$f":"PS5_Supply!B40","v":" SITE WORK (ERECTION / INSTALLATION INCL. COMMISSIONING) (per Installation & Commissioning matrix)"},{"$nulls":7},"Total Unit Rate","Total Amount (Excl.VAT)"]
[{"$nulls":6},"In Local Currency",{"$nulls":4},"In Local Currency",{"$nulls":3},"In Local Currency"]
["SAP No.","ITEM","SHORT DESCRIPTION","LONG DESCRIPTION","UOM","Estimated Qty",{"$f":"PS5_Supply!B20","v":"5: TOTAL PRICE DELIVERED PORT R.S.A. ..."},{"$f":"PS5_Supply!B26","v":"11: COST OF IMPORTATION ..."},{"$f":"PS5_Supply!B29","v":"14: TOTAL COST OF TRANSPORT S.A. PORT TO WORK/SITE ..."},{"$f":"PS5_Supply!B30","v":"15: TOTAL PRICE (F.O.B.) DELIVERED TO WORKS/SITE..."},"TOTAL FOREIGN PORTION (IN LOCAL CURRENCY)",{"$f":"PS5_Supply!B35","v":"18: TOTAL F.O.R. PRICE ..."},{"$f":"PS5_Supply!B38","v":"21: COST OF TRANSPORT WORKS TO SITE ...          "},{"$f":"PS5_Supply!B39","v":"22: PRICE (F.O.R.) DELIVERED TO SITE ...          "},"TOTAL LOCAL PORTION (IN LOCAL CURRENCY)",{"$f":"PS5_Supply!B41","v":"23: LOCAL LABOUR"},{"$f":"PS5_Supply!B42","v":"24: EXPATRIATE  LABOUR"},{"$f":"PS5_Supply!B44","v":"26: OVERSEAS ENGINEERING SERVICES"},{"$f":"PS5_Supply!B45","v":"27: LOCAL ENGINEERING SERVICES"},"Total Foreign Labour; Engineering & Commissioning","Total Local Labour; Engineering & Commissioning",{"$f":"PS5_Supply!B46","v":"28: TOTAL PRICE FOR ENGINEERING SERVICES..."},"TOTAL PRICE FOR LABOUR & ENGINEERING SERVICES (IN LOCAL CURRENCY)"]
[{"$nulls":6},"CPA Formula:","CPA Formula:","CPA Formula:",null,null,"CPA Formula:","CPA Formula:",null,null,"CPA Formula:","CPA Formula:","CPA Formula:","CPA Formula:"]
[]
[null,null,"SCHEMES",{"$nulls":7},{"$f":"SUM(K14:K54)","v":0},{"$nulls":3},{"$f":"SUM(O14:O54)","v":0},{"$nulls":4},{"$f":"SUM(T14:T54)","v":0},{"$f":"SUM(U14:U54)","v":0},null,{"$f":"SUM(W14:W54)","v":0},null,{"$f":"SUM(Y14:Y54)","v":0}]
[null,null,"All scheme options (items 1 to 40) to exclude costs for Ethernet switch and Fibre Optic Patch Panel. \nEskom standard device licenses and configurations to apply."]
[660175,1,"Scheme: 1 Feeder Double Busbar - 110 VDC","SCHEME, PROTECTION: TYPE: DFR:1 FDR DBB;110VDC; APPLICATION: DIGITAL FAULT RECORDER; DFR SCHEME: 1 FEEDER DOUBLE BUSBAR; DIGITAL FAULT RECORDER SCHEME WITH 1 QUALITROL IDM+ 6U UNIT AND 1  9A/32B BOARDS + CONFIGURATION; FULLY ASSEMBLED WITH AUXILIARY SCHEME COMPONENTS; TESTED AND SUPPLIED IN A SWING FRAME PANEL. SCHEME; DRAWING NO: 0.52/30112; MODEL NO: 6DR-7100; VENDORS ARE RESPONSIBLE FOR ENSURING THAT THEY ARE PERFORMING AGAINST THE CORRECT DRAWING REVISION NUMBER (IF APPLICABLE).","No",20,{"$f":"VLOOKUP(G$9,PS5_Supply!$B:$ZP,INDEX(PS5_Supply!$14:$14,MATCH(BoQ_Equipment!$B14,PS5_Supply!$9:$9,0)),FALSE)","v":0},{"$f":"VLOOKUP(H$9,PS5_Supply!$B:$ZP,INDEX(PS5_Supply!$14:$14,MATCH(BoQ_Equipment!$B14,PS5_Supply!$9:$9,0)),FALSE)","v":0},{"$f":"VLOOKUP(I$9,PS5_Supply!$B:$ZP,INDEX(PS5_Supply!$14:$14,MATCH(BoQ_Equipment!$B14,PS5_Supply!$9:$9,0)),FALSE)","v":0},{"$f":"I14+H14+G14","v":0},{"$f":"F14*J14","v":0},{"$f":"VLOOKUP(L$9,PS5_Supply!$B:$ZP,INDEX(PS5_Supply!$14:$14,MATCH(BoQ_Equipment!$B14,PS5_Supply!$9:$9,0)),FALSE)","v":0},{"$f":"VLOOKUP(M$9,PS5_Supply!$B:$ZP,INDEX(PS5_Supply!$14:$14,MATCH(BoQ_Equipment!$B14,PS5_Supply!$9:$9,0)),FALSE)","v":0},{"$f":"SUM(L14:M14)","v":0},{"$f":"N14*F14","v":0},{"$f":"VLOOKUP(P$9,PS5_Supply!$B:$ZP,INDEX(PS5_Supply!$14:$14,MATCH(BoQ_Equipment!$B14,PS5_Supply!$9:$9,0)),FALSE)","v":0},{"$f":"VLOOKUP(Q$9,PS5_Supply!$B:$ZP,INDEX(PS5_Supply!$14:$14,MATCH(BoQ_Equipment!$B14,PS5_Supply!$9:$9,0)),FALSE)","v":0},{"$f":"VLOOKUP(R$9,PS5_Supply!$B:$ZP,INDEX(PS5_Supply!$14:$14,MATCH(BoQ_Equipment!$B14,PS5_Supply!$9:$9,0)),FALSE)","v":0},{"$f":"VLOOKUP(S$9,PS5_Supply!$B:$ZP,INDEX(PS5_Supply!$14:$14,MATCH(BoQ_Equipment!$B14,PS5_Supply!$9:$9,0)),FALSE)","v":0},{"$f":"(Q14+R14)*F14","v":0},{"$f":"(P14+S14)*F14","v":0},{"$f":"P14+Q14+R14+S14","v":0},{"$f":"F14*V14","v":0},{"$f":"J14+N14+V14","v":0},{"$f":"IF(F14=0,\"Rate Only\",X14*F14)","v":0}]
[660211,2,"Scheme: 1 Feeder Double Busbar - 220 VDC","SCHEME, PROTECTION: TYPE: DFR:1 FDR DBB; 220VDC; APPLICATION: DIGITAL FAULT RECORDER; DFR SCHEME: 1 FEEDER DOUBLE BUSBAR; DIGITAL FAULT RECORDER SCHEME WITH 1  QUALITROL IDM+ 6U UNIT AND 1  9A/32B BOARDS + CONFIGURATION. FULLY ASSEMBLED WITH AUXILIARY SCHEME COMPONENTS; TESTED AND SUPPLIED IN A SWING FRAME PANEL; DRAWING NO: 0.52/30112; MODEL NO: 6DR-7100; VENDORS ARE RESPONSIBLE FOR ENSURING THAT THEY ARE PERFORMING AGAINST THE CORRECT DRAWING REVISION NUMBER (IF APPLICABLE).","No",20,{"$f":"VLOOKUP(G$9,PS5_Supply!$B:$ZP,INDEX(PS5_Supply!$14:$14,MATCH(BoQ_Equipment!$B15,PS5_Supply!$9:$9,0)),FALSE)","v":0},{"$f":"VLOOKUP(H$9,PS5_Supply!$B:$ZP,INDEX(PS5_Supply!$14:$14,MATCH(BoQ_Equipment!$B15,PS5_Supply!$9:$9,0)),FALSE)","v":0},{"$f":"VLOOKUP(I$9,PS5_Supply!$B:$ZP,INDEX(PS5_Supply!$14:$14,MATCH(BoQ_Equipment!$B15,PS5_Supply!$9:$9,0)),FALSE)","v":0},{"$f":"I15+H15+G15","v":0},{"$f":"F15*J15","v":0},{"$f":"VLOOKUP(L$9,PS5_Supply!$B:$ZP,INDEX(PS5_Supply!$14:$14,MATCH(BoQ_Equipment!$B15,PS5_Supply!$9:$9,0)),FALSE)","v":0},{"$f":"VLOOKUP(M$9,PS5_Supply!$B:$ZP,INDEX(PS5_Supply!$14:$14,MATCH(BoQ_Equipment!$B15,PS5_Supply!$9:$9,0)),FALSE)","v":0},{"$f":"SUM(L15:M15)","v":0},{"$f":"N15*F15","v":0},{"$f":"VLOOKUP(P$9,PS5_Supply!$B:$ZP,INDEX(PS5_Supply!$14:$14,MATCH(BoQ_Equipment!$B15,PS5_Supply!$9:$9,0)),FALSE)","v":0},{"$f":"VLOOKUP(Q$9,PS5_Supply!$B:$ZP,INDEX(PS5_Supply!$14:$14,MATCH(BoQ_Equipment!$B15,PS5_Supply!$9:$9,0)),FALSE)","v":0},{"$f":"VLOOKUP(R$9,PS5_Supply!$B:$ZP,INDEX(PS5_Supply!$14:$14,MATCH(BoQ_Equipment!$B15,PS5_Supply!$9:$9,0)),FALSE)","v":0},{"$f":"VLOOKUP(S$9,PS5_Supply!$B:$ZP,INDEX(PS5_Supply!$14:$14,MATCH(BoQ_Equipment!$B15,PS5_Supply!$9:$9,0)),FALSE)","v":0},{"$f":"(Q15+R15)*F15","v":0},{"$f":"(P15+S15)*F15","v":0},{"$f":"P15+Q15+R15+S15","v":0},{"$f":"F15*V15","v":0},{"$f":"J15+N15+V15","v":0},{"$f":"IF(F15=0,\"Rate Only\",X15*F15)","v":0}]
[660213,3,"Scheme: 2 Feeder Double Busbar  - 110 VDC","SCHEME, PROTECTION: TYPE: DFR 2 FDR DBB; 110VDC; APPLICATION: DIGITAL FAULT RECORDER; DFR SCHEME: 2 FEEDER DOUBLE BUSBAR; DIGITAL FAULT RECORDER SCHEME WITH 1 QUALITROL IDM+ 6U UNIT AND 2 9A/32B BOARDS + CONFIGURATION. FULLY ASSEMBLED WITH AUXILIARY SCHEME COMPONENTS; TESTED AND SUPPLIED IN A SWING FRAME PANEL; DRAWING NO: 0.52/30112; MODEL NO: 6DR-7100; VENDORS ARE RESPONSIBLE FOR ENSURING THAT THEY ARE PERFORMING AGAINST THE CORRECT DRAWING REVISION NUMBER (IF APPLICABLE).","No",20,{"$f":"VLOOKUP(G$9,PS5_Supply!$B:$ZP,INDEX(PS5_Supply!$14:$14,MATCH(BoQ_Equipment!$B16,PS5_Supply!$9:$9,0)),FALSE)","v":0},{"$f":"VLOOKUP(H$9,PS5_Supply!$B:$ZP,INDEX(PS5_Supply!$14:$14,MATCH(BoQ_Equipment!$B16,PS5_Supply!$9:$9,0)),FALSE)","v":0},{"$f":"VLOOKUP(I$9,PS5_Supply!$B:$ZP,INDEX(PS5_Supply!$14:$14,MATCH(BoQ_Equipment!$B16,PS5_Supply!$9:$9,0)),FALSE)","v":0},0,0,{"$f":"VLOOKUP(L$9,PS5_Supply!$B:$ZP,INDEX(PS5_Supply!$14:$14,MATCH(BoQ_Equipment!$B16,PS5_Supply!$9:$9,0)),FALSE)","v":0},{"$f":"VLOOKUP(M$9,PS5_Supply!$B:$ZP,INDEX(PS5_Supply!$14:$14,MATCH(BoQ_Equipment!$B16,PS5_Supply!$9:$9,0)),FALSE)","v":0},0,0,{"$f":"VLOOKUP(P$9,PS5_Supply!$B:$ZP,INDEX(PS5_Supply!$14:$14,MATCH(BoQ_Equipment!$B16,PS5_Supply!$9:$9,0)),FALSE)","v":0},{"$f":"VLOOKUP(Q$9,PS5_Supply!$B:$ZP,INDEX(PS5_Supply!$14:$14,MATCH(BoQ_Equipment!$B16,PS5_Supply!$9:$9,0)),FALSE)","v":0},{"$f":"VLOOKUP(R$9,PS5_Supply!$B:$ZP,INDEX(PS5_Supply!$14:$14,MATCH(BoQ_Equipment!$B16,PS5_Supply!$9:$9,0)),FALSE)","v":0},{"$f":"VLOOKUP(S$9,PS5_Supply!$B:$ZP,INDEX(PS5_Supply!$14:$14,MATCH(BoQ_Equipment!$B16,PS5_Supply!$9:$9,0)),FALSE)","v":0},0,0,0,0,0,0]
[660215,4,"Scheme: 2 Feeder Double Busbar  - 220 VDC","SCHEME, PROTECTION: TYPE: DFR 2 FDR DBB; 220VDC; APPLICATION: DIGITAL FAULT RECORDER; DFR SCHEME: 2 FEEDER DOUBLE BUSBAR; DIGITAL FAULT RECORDER SCHEME WITH 1 QUALITROL IDM+ 6U UNIT AND 2 9A/32B BOARDS + CONFIGURATION. FULLY ASSEMBLED WITH AUXILIARY SCHEME COMPONENTS; TESTED AND SUPPLIED IN A SWING FRAME PANEL; DRAWING NO: 0.52/30112; MODEL NO: 6DR-7100; VENDORS ARE RESPONSIBLE FOR ENSURING THAT THEY ARE PERFORMING AGAINST THE CORRECT DRAWING REVISION NUMBER (IF APPLICABLE).","No",20,{"$f":"VLOOKUP(G$9,PS5_Supply!$B:$ZP,INDEX(PS5_Supply!$14:$14,MATCH(BoQ_Equipment!$B17,PS5_Supply!$9:$9,0)),FALSE)","v":0},{"$f":"VLOOKUP(H$9,PS5_Supply!$B:$ZP,INDEX(PS5_Supply!$14:$14,MATCH(BoQ_Equipment!$B17,PS5_Supply!$9:$9,0)),FALSE)","v":0},{"$f":"VLOOKUP(I$9,PS5_Supply!$B:$ZP,INDEX(PS5_Supply!$14:$14,MATCH(BoQ_Equipment!$B17,PS5_Supply!$9:$9,0)),FALSE)","v":0},0,0,{"$f":"VLOOKUP(L$9,PS5_Supply!$B:$ZP,INDEX(PS5_Supply!$14:$14,MATCH(BoQ_Equipment!$B17,PS5_Supply!$9:$9,0)),FALSE)","v":0},{"$f":"VLOOKUP(M$9,PS5_Supply!$B:$ZP,INDEX(PS5_Supply!$14:$14,MATCH(BoQ_Equipment!$B17,PS5_Supply!$9:$9,0)),FALSE)","v":0},0,0,{"$f":"VLOOKUP(P$9,PS5_Supply!$B:$ZP,INDEX(PS5_Supply!$14:$14,MATCH(BoQ_Equipment!$B17,PS5_Supply!$9:$9,0)),FALSE)","v":0},{"$f":"VLOOKUP(Q$9,PS5_Supply!$B:$ZP,INDEX(PS5_Supply!$14:$14,MATCH(BoQ_Equipment!$B17,PS5_Supply!$9:$9,0)),FALSE)","v":0},{"$f":"VLOOKUP(R$9,PS5_Supply!$B:$ZP,INDEX(PS5_Supply!$14:$14,MATCH(BoQ_Equipment!$B17,PS5_Supply!$9:$9,0)),FALSE)","v":0},{"$f":"VLOOKUP(S$9,PS5_Supply!$B:$ZP,INDEX(PS5_Supply!$14:$14,MATCH(BoQ_Equipment!$B17,PS5_Supply!$9:$9,0)),FALSE)","v":0},0,0,0,0,0,0]
[660217,5,"Scheme: 3 Feeder Double Busbar - 110 VDC","SCHEME, PROTECTION: TYPE: DFR 3 FDR DBB; 110VDC; APPLICATION: DIGITAL FAULT RECORDER; DFR SCHEME: 3 FEEDER DOUBLE BUSBAR; DIGITAL FAULT RECORDER SCHEME WITH 1 QUALITROL IDM+ 6U UNIT AND 3 9A/32B BOARDS + CONFIGURATION. FULLY ASSEMBLED WITH AUXILIARY SCHEME COMPONENTS; TESTED AND SUPPLIED IN A SWING FRAME PANEL; DRAWING NO: 0.52/30112; MODEL NO: 6DR-7100; VENDORS ARE RESPONSIBLE FOR ENSURING THAT THEY ARE PERFORMING AGAINST THE CORRECT DRAWING REVISION NUMBER (IF APPLICABLE).","No",9,{"$f":"VLOOKUP(G$9,PS5_Supply!$B:$ZP,INDEX(PS5_Supply!$14:$14,MATCH(BoQ_Equipment!$B18,PS5_Supply!$9:$9,0)),FALSE)","v":0},{"$f":"VLOOKUP(H$9,PS5_Supply!$B:$ZP,INDEX(PS5_Supply!$14:$14,MATCH(BoQ_Equipment!$B18,PS5_Supply!$9:$9,0)),FALSE)","v":0},{"$f":"VLOOKUP(I$9,PS5_Supply!$B:$ZP,INDEX(PS5_Supply!$14:$14,MATCH(BoQ_Equipment!$B18,PS5_Supply!$9:$9,0)),FALSE)","v":0},0,0,{"$f":"VLOOKUP(L$9,PS5_Supply!$B:$ZP,INDEX(PS5_Supply!$14:$14,MATCH(BoQ_Equipment!$B18,PS5_Supply!$9:$9,0)),FALSE)","v":0},{"$f":"VLOOKUP(M$9,PS5_Supply!$B:$ZP,INDEX(PS5_Supply!$14:$14,MATCH(BoQ_Equipment!$B18,PS5_Supply!$9:$9,0)),FALSE)","v":0},0,0,{"$f":"VLOOKUP(P$9,PS5_Supply!$B:$ZP,INDEX(PS5_Supply!$14:$14,MATCH(BoQ_Equipment!$B18,PS5_Supply!$9:$9,0)),FALSE)","v":0},{"$f":"VLOOKUP(Q$9,PS5_Supply!$B:$ZP,INDEX(PS5_Supply!$14:$14,MATCH(BoQ_Equipment!$B18,PS5_Supply!$9:$9,0)),FALSE)","v":0},{"$f":"VLOOKUP(R$9,PS5_Supply!$B:$ZP,INDEX(PS5_Supply!$14:$14,MATCH(BoQ_Equipment!$B18,PS5_Supply!$9:$9,0)),FALSE)","v":0},{"$f":"VLOOKUP(S$9,PS5_Supply!$B:$ZP,INDEX(PS5_Supply!$14:$14,MATCH(BoQ_Equipment!$B18,PS5_Supply!$9:$9,0)),FALSE)","v":0},0,0,0,0,0,0]
[660218,6,"Scheme: 3 Feeder Double Busbar - 220 VDC","SCHEME, PROTECTION: TYPE: DFR 3 FDR DBB; 220VDC; APPLICATION: DIGITAL FAULT RECORDER; DFR SCHEME: 3 FEEDER DOUBLE BUSBAR; DIGITAL FAULT RECORDER SCHEME WITH 1 QUALITROL IDM+ 6U UNIT AND 3 9A/32B BOARDS + CONFIGURATION. FULLY ASSEMBLED WITH AUXILIARY SCHEME COMPONENTS; TESTED AND SUPPLIED IN A SWING FRAME PANEL; DRAWING NO: 0.52/30112; MODEL NO: 6DR-7100; VENDORS ARE RESPONSIBLE FOR ENSURING THAT THEY ARE PERFORMING AGAINST THE CORRECT DRAWING REVISION NUMBER (IF APPLICABLE).","No",8,{"$f":"VLOOKUP(G$9,PS5_Supply!$B:$ZP,INDEX(PS5_Supply!$14:$14,MATCH(BoQ_Equipment!$B19,PS5_Supply!$9:$9,0)),FALSE)","v":0},{"$f":"VLOOKUP(H$9,PS5_Supply!$B:$ZP,INDEX(PS5_Supply!$14:$14,MATCH(BoQ_Equipment!$B19,PS5_Supply!$9:$9,0)),FALSE)","v":0},{"$f":"VLOOKUP(I$9,PS5_Supply!$B:$ZP,INDEX(PS5_Supply!$14:$14,MATCH(BoQ_Equipment!$B19,PS5_Supply!$9:$9,0)),FALSE)","v":0},0,0,{"$f":"VLOOKUP(L$9,PS5_Supply!$B:$ZP,INDEX(PS5_Supply!$14:$14,MATCH(BoQ_Equipment!$B19,PS5_Supply!$9:$9,0)),FALSE)","v":0},{"$f":"VLOOKUP(M$9,PS5_Supply!$B:$ZP,INDEX(PS5_Supply!$14:$14,MATCH(BoQ_Equipment!$B19,PS5_Supply!$9:$9,0)),FALSE)","v":0},0,0,{"$f":"VLOOKUP(P$9,PS5_Supply!$B:$ZP,INDEX(PS5_Supply!$14:$14,MATCH(BoQ_Equipment!$B19,PS5_Supply!$9:$9,0)),FALSE)","v":0},{"$f":"VLOOKUP(Q$9,PS5_Supply!$B:$ZP,INDEX(PS5_Supply!$14:$14,MATCH(BoQ_Equipment!$B19,PS5_Supply!$9:$9,0)),FALSE)","v":0},{"$f":"VLOOKUP(R$9,PS5_Supply!$B:$ZP,INDEX(PS5_Supply!$14:$14,MATCH(BoQ_Equipment!$B19,PS5_Supply!$9:$9,0)),FALSE)","v":0},{"$f":"VLOOKUP(S$9,PS5_Supply!$B:$ZP,INDEX(PS5_Supply!$14:$14,MATCH(BoQ_Equipment!$B19,PS5_Supply!$9:$9,0)),FALSE)","v":0},0,0,0,0,0,0]
[660221,7,"Scheme: 4 Feeder Double Busbar - 110 VDC","SCHEME, PROTECTION: TYPE: DFR 4 FDR DBB; 110VDC; APPLICATION: DIGITAL FAULT RECORDER; DFR SCHEME: 4 FEEDER DOUBLE BUSBAR (110VDC); DIGITAL FAULT RECORDER SCHEME WITH 1 QUALITROL IDM+ 6U UNIT AND 4 9A/32B BOARDS + CONFIGURATION. FULLY ASSEMBLED WITH AUXILIARY SCHEME COMPONENTS; TESTED AND SUPPLIED IN A SWING FRAME PANEL; DRAWING NO: 0.52/30112; MODEL NO: 6DR-7100; VENDORS ARE RESPONSIBLE FOR ENSURING THAT THEY ARE PERFORMING AGAINST THE CORRECT DRAWING REVISION NUMBER (IF APPLICABLE).","No",32,{"$f":"VLOOKUP(G$9,PS5_Supply!$B:$ZP,INDEX(PS5_Supply!$14:$14,MATCH(BoQ_Equipment!$B20,PS5_Supply!$9:$9,0)),FALSE)","v":0},{"$f":"VLOOKUP(H$9,PS5_Supply!$B:$ZP,INDEX(PS5_Supply!$14:$14,MATCH(BoQ_Equipment!$B20,PS5_Supply!$9:$9,0)),FALSE)","v":0},{"$f":"VLOOKUP(I$9,PS5_Supply!$B:$ZP,INDEX(PS5_Supply!$14:$14,MATCH(BoQ_Equipment!$B20,PS5_Supply!$9:$9,0)),FALSE)","v":0},0,0,{"$f":"VLOOKUP(L$9,PS5_Supply!$B:$ZP,INDEX(PS5_Supply!$14:$14,MATCH(BoQ_Equipment!$B20,PS5_Supply!$9:$9,0)),FALSE)","v":0},{"$f":"VLOOKUP(M$9,PS5_Supply!$B:$ZP,INDEX(PS5_Supply!$14:$14,MATCH(BoQ_Equipment!$B20,PS5_Supply!$9:$9,0)),FALSE)","v":0},0,0,{"$f":"VLOOKUP(P$9,PS5_Supply!$B:$ZP,INDEX(PS5_Supply!$14:$14,MATCH(BoQ_Equipment!$B20,PS5_Supply!$9:$9,0)),FALSE)","v":0},{"$f":"VLOOKUP(Q$9,PS5_Supply!$B:$ZP,INDEX(PS5_Supply!$14:$14,MATCH(BoQ_Equipment!$B20,PS5_Supply!$9:$9,0)),FALSE)","v":0},{"$f":"VLOOKUP(R$9,PS5_Supply!$B:$ZP,INDEX(PS5_Supply!$14:$14,MATCH(BoQ_Equipment!$B20,PS5_Supply!$9:$9,0)),FALSE)","v":0},{"$f":"VLOOKUP(S$9,PS5_Supply!$B:$ZP,INDEX(PS5_Supply!$14:$14,MATCH(BoQ_Equipment!$B20,PS5_Supply!$9:$9,0)),FALSE)","v":0},0,0,0,0,0,0]
[660222,8,"Scheme: 4 Feeder Double Busbar - 220 VDC","SCHEME, PROTECTION: TYPE: DFR 4 FDR DBB; 220VDC; APPLICATION: DIGITAL FAULT RECORDER; DFR SCHEME: 4 FEEDER DOUBLE BUSBAR; DIGITAL FAULT RECORDER SCHEME WITH 1 QUALITROL IDM+ 6U UNIT AND 4 9A/32B BOARDS + CONFIGURATION. FULLY ASSEMBLED WITH AUXILIARY SCHEME COMPONENTS; TESTED AND SUPPLIED IN A SWING FRAME PANEL; DRAWING NO: 0.52/30112; MODEL NO: 6DR-7100; VENDORS ARE RESPONSIBLE FOR ENSURING THAT THEY ARE PERFORMING AGAINST THE CORRECT DRAWING REVISION NUMBER (IF APPLICABLE).","No",30,{"$f":"VLOOKUP(G$9,PS5_Supply!$B:$ZP,INDEX(PS5_Supply!$14:$14,MATCH(BoQ_Equipment!$B21,PS5_Supply!$9:$9,0)),FALSE)","v":0},{"$f":"VLOOKUP(H$9,PS5_Supply!$B:$ZP,INDEX(PS5_Supply!$14:$14,MATCH(BoQ_Equipment!$B21,PS5_Supply!$9:$9,0)),FALSE)","v":0},{"$f":"VLOOKUP(I$9,PS5_Supply!$B:$ZP,INDEX(PS5_Supply!$14:$14,MATCH(BoQ_Equipment!$B21,PS5_Supply!$9:$9,0)),FALSE)","v":0},0,0,{"$f":"VLOOKUP(L$9,PS5_Supply!$B:$ZP,INDEX(PS5_Supply!$14:$14,MATCH(BoQ_Equipment!$B21,PS5_Supply!$9:$9,0)),FALSE)","v":0},{"$f":"VLOOKUP(M$9,PS5_Supply!$B:$ZP,INDEX(PS5_Supply!$14:$14,MATCH(BoQ_Equipment!$B21,PS5_Supply!$9:$9,0)),FALSE)","v":0},0,0,{"$f":"VLOOKUP(P$9,PS5_Supply!$B:$ZP,INDEX(PS5_Supply!$14:$14,MATCH(BoQ_Equipment!$B21,PS5_Supply!$9:$9,0)),FALSE)","v":0},{"$f":"VLOOKUP(Q$9,PS5_Supply!$B:$ZP,INDEX(PS5_Supply!$14:$14,MATCH(BoQ_Equipment!$B21,PS5_Supply!$9:$9,0)),FALSE)","v":0},{"$f":"VLOOKUP(R$9,PS5_Supply!$B:$ZP,INDEX(PS5_Supply!$14:$14,MATCH(BoQ_Equipment!$B21,PS5_Supply!$9:$9,0)),FALSE)","v":0},{"$f":"VLOOKUP(S$9,PS5_Supply!$B:$ZP,INDEX(PS5_Supply!$14:$14,MATCH(BoQ_Equipment!$B21,PS5_Supply!$9:$9,0)),FALSE)","v":0},0,0,0,0,0,0]
[660223,9,"Scheme: 1 Feeder & 1 Transformer BAH - 110 VDC","SCHEME, PROTECTION: TYPE: DFR:1 FDR;1 TRFR BAH; 110VDC; APPLICATION: DIGITAL FAULT RECORDER; DFR SCHEME: 1 FEEDER AND 1 TRANSFORMER BREAKER-AND-A-HALF; DIGITAL FAULT RECORDER SCHEME WITH 2 QUALITROL IDM+ 6U UNITS AND 6 9A/32B BOARDS + CONFIGURATION. FULLY ASSEMBLED WITH AUXILIARY SCHEME COMPONENTS; TESTED AND SUPPLIED IN A SWING FRAME PANEL; DRAWING NO: 0.52/30114; MODEL NO: 6DRB-7100; VENDORS ARE RESPONSIBLE FOR ENSURING THAT THEY ARE PERFORMING AGAINST THE CORRECT DRAWING REVISION NUMBER (IF APPLICABLE).","No",1,{"$f":"VLOOKUP(G$9,PS5_Supply!$B:$ZP,INDEX(PS5_Supply!$14:$14,MATCH(BoQ_Equipment!$B22,PS5_Supply!$9:$9,0)),FALSE)","v":0},{"$f":"VLOOKUP(H$9,PS5_Supply!$B:$ZP,INDEX(PS5_Supply!$14:$14,MATCH(BoQ_Equipment!$B22,PS5_Supply!$9:$9,0)),FALSE)","v":0},{"$f":"VLOOKUP(I$9,PS5_Supply!$B:$ZP,INDEX(PS5_Supply!$14:$14,MATCH(BoQ_Equipment!$B22,PS5_Supply!$9:$9,0)),FALSE)","v":0},0,0,{"$f":"VLOOKUP(L$9,PS5_Supply!$B:$ZP,INDEX(PS5_Supply!$14:$14,MATCH(BoQ_Equipment!$B22,PS5_Supply!$9:$9,0)),FALSE)","v":0},{"$f":"VLOOKUP(M$9,PS5_Supply!$B:$ZP,INDEX(PS5_Supply!$14:$14,MATCH(BoQ_Equipment!$B22,PS5_Supply!$9:$9,0)),FALSE)","v":0},0,0,{"$f":"VLOOKUP(P$9,PS5_Supply!$B:$ZP,INDEX(PS5_Supply!$14:$14,MATCH(BoQ_Equipment!$B22,PS5_Supply!$9:$9,0)),FALSE)","v":0},{"$f":"VLOOKUP(Q$9,PS5_Supply!$B:$ZP,INDEX(PS5_Supply!$14:$14,MATCH(BoQ_Equipment!$B22,PS5_Supply!$9:$9,0)),FALSE)","v":0},{"$f":"VLOOKUP(R$9,PS5_Supply!$B:$ZP,INDEX(PS5_Supply!$14:$14,MATCH(BoQ_Equipment!$B22,PS5_Supply!$9:$9,0)),FALSE)","v":0},{"$f":"VLOOKUP(S$9,PS5_Supply!$B:$ZP,INDEX(PS5_Supply!$14:$14,MATCH(BoQ_Equipment!$B22,PS5_Supply!$9:$9,0)),FALSE)","v":0},0,0,0,0,0,0]
[660224,10,"Scheme: 1 Feeder & 1 Transformer BAH - 220 VDC","SCHEME, PROTECTION: TYPE: DFR:1 FDR;1 TRFR BAH; 220VDC; APPLICATION: DIGITAL FAULT RECORDER; DFR SCHEME: 1 FEEDER & 1 TRANSFORMER BREAKER-AND-A-HALF; DIGITAL FAULT RECORDER SCHEME WITH 2 QUALITROL IDM+ 6U UNITS AND 6 9A/32B BOARDS + CONFIGURATION. FULLY ASSEMBLED WITH AUXILIARY SCHEME COMPONENTS; TESTED AND SUPPLIED IN A SWING FRAME PANEL; DRAWING NO: 0.52/30114; MODEL NO: 6DRB-7100; VENDORS ARE RESPONSIBLE FOR ENSURING THAT THEY ARE PERFORMING AGAINST THE CORRECT DRAWING REVISION NUMBER (IF APPLICABLE).","No",1,{"$f":"VLOOKUP(G$9,PS5_Supply!$B:$ZP,INDEX(PS5_Supply!$14:$14,MATCH(BoQ_Equipment!$B23,PS5_Supply!$9:$9,0)),FALSE)","v":0},{"$f":"VLOOKUP(H$9,PS5_Supply!$B:$ZP,INDEX(PS5_Supply!$14:$14,MATCH(BoQ_Equipment!$B23,PS5_Supply!$9:$9,0)),FALSE)","v":0},{"$f":"VLOOKUP(I$9,PS5_Supply!$B:$ZP,INDEX(PS5_Supply!$14:$14,MATCH(BoQ_Equipment!$B23,PS5_Supply!$9:$9,0)),FALSE)","v":0},0,0,{"$f":"VLOOKUP(L$9,PS5_Supply!$B:$ZP,INDEX(PS5_Supply!$14:$14,MATCH(BoQ_Equipment!$B23,PS5_Supply!$9:$9,0)),FALSE)","v":0},{"$f":"VLOOKUP(M$9,PS5_Supply!$B:$ZP,INDEX(PS5_Supply!$14:$14,MATCH(BoQ_Equipment!$B23,PS5_Supply!$9:$9,0)),FALSE)","v":0},0,0,{"$f":"VLOOKUP(P$9,PS5_Supply!$B:$ZP,INDEX(PS5_Supply!$14:$14,MATCH(BoQ_Equipment!$B23,PS5_Supply!$9:$9,0)),FALSE)","v":0},{"$f":"VLOOKUP(Q$9,PS5_Supply!$B:$ZP,INDEX(PS5_Supply!$14:$14,MATCH(BoQ_Equipment!$B23,PS5_Supply!$9:$9,0)),FALSE)","v":0},{"$f":"VLOOKUP(R$9,PS5_Supply!$B:$ZP,INDEX(PS5_Supply!$14:$14,MATCH(BoQ_Equipment!$B23,PS5_Supply!$9:$9,0)),FALSE)","v":0},{"$f":"VLOOKUP(S$9,PS5_Supply!$B:$ZP,INDEX(PS5_Supply!$14:$14,MATCH(BoQ_Equipment!$B23,PS5_Supply!$9:$9,0)),FALSE)","v":0},0,0,0,0,0,0]
[660225,11,"Scheme: 2 Feeders BAH - 110 VDC","SCHEME, PROTECTION: TYPE: DFR:2 FDR BAH; 110VDC; APPLICATION: DIGITAL FAULT RECORDER; DFR SCHEME: 2 FEEDERS BREAKER-AND-A-HALF; DIGITAL FAULT RECORDER SCHEME WITH 1 QUALITROL IDM+ 6U UNIT AND 4 9A/32B BOARDS + CONFIGURATION. FULLY ASSEMBLED WITH AUXILIARY SCHEME COMPONENTS; TESTED AND SUPPLIED IN A SWING FRAME PANEL; DRAWING NO: 0.52/30114; MODEL NO: 6DRB-7100; VENDORS ARE RESPONSIBLE FOR ENSURING THAT THEY ARE PERFORMING AGAINST THE CORRECT DRAWING REVISION NUMBER (IF APPLICABLE).","No",4,{"$f":"VLOOKUP(G$9,PS5_Supply!$B:$ZP,INDEX(PS5_Supply!$14:$14,MATCH(BoQ_Equipment!$B24,PS5_Supply!$9:$9,0)),FALSE)","v":0},{"$f":"VLOOKUP(H$9,PS5_Supply!$B:$ZP,INDEX(PS5_Supply!$14:$14,MATCH(BoQ_Equipment!$B24,PS5_Supply!$9:$9,0)),FALSE)","v":0},{"$f":"VLOOKUP(I$9,PS5_Supply!$B:$ZP,INDEX(PS5_Supply!$14:$14,MATCH(BoQ_Equipment!$B24,PS5_Supply!$9:$9,0)),FALSE)","v":0},0,0,{"$f":"VLOOKUP(L$9,PS5_Supply!$B:$ZP,INDEX(PS5_Supply!$14:$14,MATCH(BoQ_Equipment!$B24,PS5_Supply!$9:$9,0)),FALSE)","v":0},{"$f":"VLOOKUP(M$9,PS5_Supply!$B:$ZP,INDEX(PS5_Supply!$14:$14,MATCH(BoQ_Equipment!$B24,PS5_Supply!$9:$9,0)),FALSE)","v":0},0,0,{"$f":"VLOOKUP(P$9,PS5_Supply!$B:$ZP,INDEX(PS5_Supply!$14:$14,MATCH(BoQ_Equipment!$B24,PS5_Supply!$9:$9,0)),FALSE)","v":0},{"$f":"VLOOKUP(Q$9,PS5_Supply!$B:$ZP,INDEX(PS5_Supply!$14:$14,MATCH(BoQ_Equipment!$B24,PS5_Supply!$9:$9,0)),FALSE)","v":0},{"$f":"VLOOKUP(R$9,PS5_Supply!$B:$ZP,INDEX(PS5_Supply!$14:$14,MATCH(BoQ_Equipment!$B24,PS5_Supply!$9:$9,0)),FALSE)","v":0},{"$f":"VLOOKUP(S$9,PS5_Supply!$B:$ZP,INDEX(PS5_Supply!$14:$14,MATCH(BoQ_Equipment!$B24,PS5_Supply!$9:$9,0)),FALSE)","v":0},0,0,0,0,0,0]
[660226,12,"Scheme: 2 Feeders BAH - 220 VDC","SCHEME, PROTECTION: TYPE: DFR:2 FDR BAH; 220VDC; APPLICATION: DIGITAL FAULT RECORDER; DFR SCHEME: 2 FEEDERS BREAKER-AND-A-HALF; DIGITAL FAULT RECORDER SCHEME WITH 1 QUALITROL IDM+ 6U UNIT AND 4 9A/32B BOARDS + CONFIGURATION. FULLY ASSEMBLED WITH AUXILIARY SCHEME COMPONENTS; TESTED AND SUPPLIED IN A SWING FRAME PANEL; DRAWING NO: 0.52/30114; MODEL NO: 6DRB-7100; VENDORS ARE RESPONSIBLE FOR ENSURING THAT THEY ARE PERFORMING AGAINST THE CORRECT DRAWING REVISION NUMBER (IF APPLICABLE).","No",4,{"$f":"VLOOKUP(G$9,PS5_Supply!$B:$ZP,INDEX(PS5_Supply!$14:$14,MATCH(BoQ_Equipment!$B25,PS5_Supply!$9:$9,0)),FALSE)","v":0},{"$f":"VLOOKUP(H$9,PS5_Supply!$B:$ZP,INDEX(PS5_Supply!$14:$14,MATCH(BoQ_Equipment!$B25,PS5_Supply!$9:$9,0)),FALSE)","v":0},{"$f":"VLOOKUP(I$9,PS5_Supply!$B:$ZP,INDEX(PS5_Supply!$14:$14,MATCH(BoQ_Equipment!$B25,PS5_Supply!$9:$9,0)),FALSE)","v":0},0,0,{"$f":"VLOOKUP(L$9,PS5_Supply!$B:$ZP,INDEX(PS5_Supply!$14:$14,MATCH(BoQ_Equipment!$B25,PS5_Supply!$9:$9,0)),FALSE)","v":0},{"$f":"VLOOKUP(M$9,PS5_Supply!$B:$ZP,INDEX(PS5_Supply!$14:$14,MATCH(BoQ_Equipment!$B25,PS5_Supply!$9:$9,0)),FALSE)","v":0},0,0,{"$f":"VLOOKUP(P$9,PS5_Supply!$B:$ZP,INDEX(PS5_Supply!$14:$14,MATCH(BoQ_Equipment!$B25,PS5_Supply!$9:$9,0)),FALSE)","v":0},{"$f":"VLOOKUP(Q$9,PS5_Supply!$B:$ZP,INDEX(PS5_Supply!$14:$14,MATCH(BoQ_Equipment!$B25,PS5_Supply!$9:$9,0)),FALSE)","v":0},{"$f":"VLOOKUP(R$9,PS5_Supply!$B:$ZP,INDEX(PS5_Supply!$14:$14,MATCH(BoQ_Equipment!$B25,PS5_Supply!$9:$9,0)),FALSE)","v":0},{"$f":"VLOOKUP(S$9,PS5_Supply!$B:$ZP,INDEX(PS5_Supply!$14:$14,MATCH(BoQ_Equipment!$B25,PS5_Supply!$9:$9,0)),FALSE)","v":0},0,0,0,0,0,0]
[660227,13,"Scheme: 1 Feeder with Line Reactor BAH - 110 VDC","SCHEME, PROTECTION: TYPE: DFR:1 FDR+RX BAH; 110VDC; APPLICATION: DIGITAL FAULT RECORDER; DFR SCHEME: 1 FEEDER WITH LINE REACTOR BREAKER-AND-A-HALF; DIGITAL FAULT RECORDER SCHEME WITH 1 QUALITROL IDM+ 6U UNIT AND 3 9A/32B BOARDS + CONFIGURATION. FULLY ASSEMBLED WITH AUXILIARY SCHEME COMPONENTS; TESTED AND SUPPLIED IN A SWING FRAME PANEL; DRAWING NO: 0.52/30114; MODEL NO: 6DRB-7100; VENDORS ARE RESPONSIBLE FOR ENSURING THAT THEY ARE PERFORMING AGAINST THE CORRECT DRAWING REVISION NUMBER (IF APPLICABLE).","No",1,{"$f":"VLOOKUP(G$9,PS5_Supply!$B:$ZP,INDEX(PS5_Supply!$14:$14,MATCH(BoQ_Equipment!$B26,PS5_Supply!$9:$9,0)),FALSE)","v":0},{"$f":"VLOOKUP(H$9,PS5_Supply!$B:$ZP,INDEX(PS5_Supply!$14:$14,MATCH(BoQ_Equipment!$B26,PS5_Supply!$9:$9,0)),FALSE)","v":0},{"$f":"VLOOKUP(I$9,PS5_Supply!$B:$ZP,INDEX(PS5_Supply!$14:$14,MATCH(BoQ_Equipment!$B26,PS5_Supply!$9:$9,0)),FALSE)","v":0},0,0,{"$f":"VLOOKUP(L$9,PS5_Supply!$B:$ZP,INDEX(PS5_Supply!$14:$14,MATCH(BoQ_Equipment!$B26,PS5_Supply!$9:$9,0)),FALSE)","v":0},{"$f":"VLOOKUP(M$9,PS5_Supply!$B:$ZP,INDEX(PS5_Supply!$14:$14,MATCH(BoQ_Equipment!$B26,PS5_Supply!$9:$9,0)),FALSE)","v":0},0,0,{"$f":"VLOOKUP(P$9,PS5_Supply!$B:$ZP,INDEX(PS5_Supply!$14:$14,MATCH(BoQ_Equipment!$B26,PS5_Supply!$9:$9,0)),FALSE)","v":0},{"$f":"VLOOKUP(Q$9,PS5_Supply!$B:$ZP,INDEX(PS5_Supply!$14:$14,MATCH(BoQ_Equipment!$B26,PS5_Supply!$9:$9,0)),FALSE)","v":0},{"$f":"VLOOKUP(R$9,PS5_Supply!$B:$ZP,INDEX(PS5_Supply!$14:$14,MATCH(BoQ_Equipment!$B26,PS5_Supply!$9:$9,0)),FALSE)","v":0},{"$f":"VLOOKUP(S$9,PS5_Supply!$B:$ZP,INDEX(PS5_Supply!$14:$14,MATCH(BoQ_Equipment!$B26,PS5_Supply!$9:$9,0)),FALSE)","v":0},0,0,0,0,0,0]
[660228,14,"Scheme: 1 Feeder with Line Reactor BAH - 220 VDC","SCHEME, PROTECTION: TYPE: DFR:1 FDR+RX BAH; 220VDC; APPLICATION: DIGITAL FAULT RECORDER; DFR SCHEME: 1 FEEDER WITH LINE REACTOR BREAKER-AND-A-HALF; DIGITAL FAULT RECORDER SCHEME WITH 1 QUALITROL IDM+ 6U UNIT AND 3 9A/32B BOARDS + CONFIGURATION. FULLY ASSEMBLED WITH AUXILIARY SCHEME COMPONENTS; TESTED AND SUPPLIED IN A SWING FRAME PANEL; DRAWING NO: 0.52/30114; MODEL NO: 6DRB-7100; VENDORS ARE RESPONSIBLE FOR ENSURING THAT THEY ARE PERFORMING AGAINST THE CORRECT DRAWING REVISION NUMBER (IF APPLICABLE).","No",1,{"$f":"VLOOKUP(G$9,PS5_Supply!$B:$ZP,INDEX(PS5_Supply!$14:$14,MATCH(BoQ_Equipment!$B27,PS5_Supply!$9:$9,0)),FALSE)","v":0},{"$f":"VLOOKUP(H$9,PS5_Supply!$B:$ZP,INDEX(PS5_Supply!$14:$14,MATCH(BoQ_Equipment!$B27,PS5_Supply!$9:$9,0)),FALSE)","v":0},{"$f":"VLOOKUP(I$9,PS5_Supply!$B:$ZP,INDEX(PS5_Supply!$14:$14,MATCH(BoQ_Equipment!$B27,PS5_Supply!$9:$9,0)),FALSE)","v":0},0,0,{"$f":"VLOOKUP(L$9,PS5_Supply!$B:$ZP,INDEX(PS5_Supply!$14:$14,MATCH(BoQ_Equipment!$B27,PS5_Supply!$9:$9,0)),FALSE)","v":0},{"$f":"VLOOKUP(M$9,PS5_Supply!$B:$ZP,INDEX(PS5_Supply!$14:$14,MATCH(BoQ_Equipment!$B27,PS5_Supply!$9:$9,0)),FALSE)","v":0},0,0,{"$f":"VLOOKUP(P$9,PS5_Supply!$B:$ZP,INDEX(PS5_Supply!$14:$14,MATCH(BoQ_Equipment!$B27,PS5_Supply!$9:$9,0)),FALSE)","v":0},{"$f":"VLOOKUP(Q$9,PS5_Supply!$B:$ZP,INDEX(PS5_Supply!$14:$14,MATCH(BoQ_Equipment!$B27,PS5_Supply!$9:$9,0)),FALSE)","v":0},{"$f":"VLOOKUP(R$9,PS5_Supply!$B:$ZP,INDEX(PS5_Supply!$14:$14,MATCH(BoQ_Equipment!$B27,PS5_Supply!$9:$9,0)),FALSE)","v":0},{"$f":"VLOOKUP(S$9,PS5_Supply!$B:$ZP,INDEX(PS5_Supply!$14:$14,MATCH(BoQ_Equipment!$B27,PS5_Supply!$9:$9,0)),FALSE)","v":0},0,0,0,0,0,0]
[660247,15,"Scheme: 1 Feeder with Line Reactor & 1 Transformer BAH - 110 VDC","SCHEME, PROTECTION: TYPE: DFR:1 FDR+RX-1 TRFR BAH;110; APPLICATION: DIGITAL FAULT RECORDER; DFR SCHEME: 1 FEEDER WITH LINE REACTOR AND 1 TRANSFORMER BREAKER-AND-A-HALF; DIGITAL FAULT RECORDER SCHEME WITH 2 QUALITROL IDM+ 6U UNITS AND 7 9A/32B BOARDS + CONFIGURATION. FULLY ASSEMBLED WITH AUXILIARY SCHEME COMPONENTS; TESTED AND SUPPLIED IN A SWING FRAME PANEL; DRAWING NO: 0.52/30114; MODEL NO: 6DRB-7100; VENDORS ARE RESPONSIBLE FOR ENSURING THAT THEY ARE PERFORMING AGAINST THE CORRECT DRAWING REVISION NUMBER (IF APPLICABLE).","No",1,{"$f":"VLOOKUP(G$9,PS5_Supply!$B:$ZP,INDEX(PS5_Supply!$14:$14,MATCH(BoQ_Equipment!$B28,PS5_Supply!$9:$9,0)),FALSE)","v":0},{"$f":"VLOOKUP(H$9,PS5_Supply!$B:$ZP,INDEX(PS5_Supply!$14:$14,MATCH(BoQ_Equipment!$B28,PS5_Supply!$9:$9,0)),FALSE)","v":0},{"$f":"VLOOKUP(I$9,PS5_Supply!$B:$ZP,INDEX(PS5_Supply!$14:$14,MATCH(BoQ_Equipment!$B28,PS5_Supply!$9:$9,0)),FALSE)","v":0},0,0,{"$f":"VLOOKUP(L$9,PS5_Supply!$B:$ZP,INDEX(PS5_Supply!$14:$14,MATCH(BoQ_Equipment!$B28,PS5_Supply!$9:$9,0)),FALSE)","v":0},{"$f":"VLOOKUP(M$9,PS5_Supply!$B:$ZP,INDEX(PS5_Supply!$14:$14,MATCH(BoQ_Equipment!$B28,PS5_Supply!$9:$9,0)),FALSE)","v":0},0,0,{"$f":"VLOOKUP(P$9,PS5_Supply!$B:$ZP,INDEX(PS5_Supply!$14:$14,MATCH(BoQ_Equipment!$B28,PS5_Supply!$9:$9,0)),FALSE)","v":0},{"$f":"VLOOKUP(Q$9,PS5_Supply!$B:$ZP,INDEX(PS5_Supply!$14:$14,MATCH(BoQ_Equipment!$B28,PS5_Supply!$9:$9,0)),FALSE)","v":0},{"$f":"VLOOKUP(R$9,PS5_Supply!$B:$ZP,INDEX(PS5_Supply!$14:$14,MATCH(BoQ_Equipment!$B28,PS5_Supply!$9:$9,0)),FALSE)","v":0},{"$f":"VLOOKUP(S$9,PS5_Supply!$B:$ZP,INDEX(PS5_Supply!$14:$14,MATCH(BoQ_Equipment!$B28,PS5_Supply!$9:$9,0)),FALSE)","v":0},0,0,0,0,0,0]
[660248,16,"Scheme: 1 Feeder with Line Reactor & 1 Transformer BAH - 220 VDC","SCHEME, PROTECTION: TYPE: DFR:1 FDR+RX-1 TRFR BAH; 220; APPLICATION: DIGITAL FAULT RECORDER; DFR SCHEME: 1 FEEDER WITH LINE REACTOR AND 1 TRANSFORMER BREAKER-AND-A-HALF; DIGITAL FAULT RECORDER SCHEME WITH 2 QUALITROL IDM+ 6U UNITS AND 7 9A/32B BOARDS + CONFIGURATION. FULLY ASSEMBLED WITH AUXILIARY SCHEME COMPONENTS; TESTED AND SUPPLIED IN A SWING FRAME PANEL; DRAWING NO: 0.52/30114; MODEL NO: 6DRB-7100; VENDORS ARE RESPONSIBLE FOR ENSURING THAT THEY ARE PERFORMING AGAINST THE CORRECT DRAWING REVISION NUMBER (IF APPLICABLE).","No",1,{"$f":"VLOOKUP(G$9,PS5_Supply!$B:$ZP,INDEX(PS5_Supply!$14:$14,MATCH(BoQ_Equipment!$B29,PS5_Supply!$9:$9,0)),FALSE)","v":0},{"$f":"VLOOKUP(H$9,PS5_Supply!$B:$ZP,INDEX(PS5_Supply!$14:$14,MATCH(BoQ_Equipment!$B29,PS5_Supply!$9:$9,0)),FALSE)","v":0},{"$f":"VLOOKUP(I$9,PS5_Supply!$B:$ZP,INDEX(PS5_Supply!$14:$14,MATCH(BoQ_Equipment!$B29,PS5_Supply!$9:$9,0)),FALSE)","v":0},0,0,{"$f":"VLOOKUP(L$9,PS5_Supply!$B:$ZP,INDEX(PS5_Supply!$14:$14,MATCH(BoQ_Equipment!$B29,PS5_Supply!$9:$9,0)),FALSE)","v":0},{"$f":"VLOOKUP(M$9,PS5_Supply!$B:$ZP,INDEX(PS5_Supply!$14:$14,MATCH(BoQ_Equipment!$B29,PS5_Supply!$9:$9,0)),FALSE)","v":0},0,0,{"$f":"VLOOKUP(P$9,PS5_Supply!$B:$ZP,INDEX(PS5_Supply!$14:$14,MATCH(BoQ_Equipment!$B29,PS5_Supply!$9:$9,0)),FALSE)","v":0},{"$f":"VLOOKUP(Q$9,PS5_Supply!$B:$ZP,INDEX(PS5_Supply!$14:$14,MATCH(BoQ_Equipment!$B29,PS5_Supply!$9:$9,0)),FALSE)","v":0},{"$f":"VLOOKUP(R$9,PS5_Supply!$B:$ZP,INDEX(PS5_Supply!$14:$14,MATCH(BoQ_Equipment!$B29,PS5_Supply!$9:$9,0)),FALSE)","v":0},{"$f":"VLOOKUP(S$9,PS5_Supply!$B:$ZP,INDEX(PS5_Supply!$14:$14,MATCH(BoQ_Equipment!$B29,PS5_Supply!$9:$9,0)),FALSE)","v":0},0,0,0,0,0,0]
[660249,17,"Scheme: 2 Feeders with Line Reactors BAH - 110 VDC","SCHEME, PROTECTION: TYPE: DFR:2 FDR+RX BAH; 110VDC; APPLICATION: DIGITAL FAULT RECORDER; DFR SCHEME: 2 FEEDERS WITH LINE REACTORS BREAKER-AND-A-HALF; DIGITAL FAULT RECORDER SCHEME WITH 2 QUALITROL IDM+ 6U UNITS AND 6 9A/32B BOARDS + CONFIGURATION. FULLY ASSEMBLED WITH AUXILIARY SCHEME COMPONENTS; TESTED AND SUPPLIED IN A SWING FRAME PANEL; DRAWING NO: 0.52/30114; MODEL NO: 6DRB-7100; VENDORS ARE RESPONSIBLE FOR ENSURING THAT THEY ARE PERFORMING AGAINST THE CORRECT DRAWING REVISION NUMBER (IF APPLICABLE).","No",1,{"$f":"VLOOKUP(G$9,PS5_Supply!$B:$ZP,INDEX(PS5_Supply!$14:$14,MATCH(BoQ_Equipment!$B30,PS5_Supply!$9:$9,0)),FALSE)","v":0},{"$f":"VLOOKUP(H$9,PS5_Supply!$B:$ZP,INDEX(PS5_Supply!$14:$14,MATCH(BoQ_Equipment!$B30,PS5_Supply!$9:$9,0)),FALSE)","v":0},{"$f":"VLOOKUP(I$9,PS5_Supply!$B:$ZP,INDEX(PS5_Supply!$14:$14,MATCH(BoQ_Equipment!$B30,PS5_Supply!$9:$9,0)),FALSE)","v":0},0,0,{"$f":"VLOOKUP(L$9,PS5_Supply!$B:$ZP,INDEX(PS5_Supply!$14:$14,MATCH(BoQ_Equipment!$B30,PS5_Supply!$9:$9,0)),FALSE)","v":0},{"$f":"VLOOKUP(M$9,PS5_Supply!$B:$ZP,INDEX(PS5_Supply!$14:$14,MATCH(BoQ_Equipment!$B30,PS5_Supply!$9:$9,0)),FALSE)","v":0},0,0,{"$f":"VLOOKUP(P$9,PS5_Supply!$B:$ZP,INDEX(PS5_Supply!$14:$14,MATCH(BoQ_Equipment!$B30,PS5_Supply!$9:$9,0)),FALSE)","v":0},{"$f":"VLOOKUP(Q$9,PS5_Supply!$B:$ZP,INDEX(PS5_Supply!$14:$14,MATCH(BoQ_Equipment!$B30,PS5_Supply!$9:$9,0)),FALSE)","v":0},{"$f":"VLOOKUP(R$9,PS5_Supply!$B:$ZP,INDEX(PS5_Supply!$14:$14,MATCH(BoQ_Equipment!$B30,PS5_Supply!$9:$9,0)),FALSE)","v":0},{"$f":"VLOOKUP(S$9,PS5_Supply!$B:$ZP,INDEX(PS5_Supply!$14:$14,MATCH(BoQ_Equipment!$B30,PS5_Supply!$9:$9,0)),FALSE)","v":0},0,0,0,0,0,0]
[660251,18,"Scheme: 2 Feeders with Line Reactors BAH - 220 VDC","SCHEME, PROTECTION: TYPE: DFR:2 FDR+RX BAH; 220VDC; APPLICATION: DIGITAL FAULT RECORDER; DFR SCHEME: 2 FEEDERS WITH LINE REACTORS BREAKER-AND-A-HALF; DIGITAL FAULT RECORDER SCHEME WITH 2 QUALITROL IDM+ 6U UNITS AND 6  9A/32B BOARDS + CONFIGURATION. FULLY ASSEMBLED WITH AUXILIARY SCHEME COMPONENTS; TESTED AND SUPPLIED IN A SWING FRAME PANEL; DRAWING NO: 0.52/30114\n; MODEL NO: 6DRB-7100; VENDORS ARE RESPONSIBLE FOR ENSURING THAT THEY ARE PERFORMING AGAINST THE CORRECT DRAWING REVISION NUMBER (IF APPLICABLE).","No",1,{"$f":"VLOOKUP(G$9,PS5_Supply!$B:$ZP,INDEX(PS5_Supply!$14:$14,MATCH(BoQ_Equipment!$B31,PS5_Supply!$9:$9,0)),FALSE)","v":0},{"$f":"VLOOKUP(H$9,PS5_Supply!$B:$ZP,INDEX(PS5_Supply!$14:$14,MATCH(BoQ_Equipment!$B31,PS5_Supply!$9:$9,0)),FALSE)","v":0},{"$f":"VLOOKUP(I$9,PS5_Supply!$B:$ZP,INDEX(PS5_Supply!$14:$14,MATCH(BoQ_Equipment!$B31,PS5_Supply!$9:$9,0)),FALSE)","v":0},0,0,{"$f":"VLOOKUP(L$9,PS5_Supply!$B:$ZP,INDEX(PS5_Supply!$14:$14,MATCH(BoQ_Equipment!$B31,PS5_Supply!$9:$9,0)),FALSE)","v":0},{"$f":"VLOOKUP(M$9,PS5_Supply!$B:$ZP,INDEX(PS5_Supply!$14:$14,MATCH(BoQ_Equipment!$B31,PS5_Supply!$9:$9,0)),FALSE)","v":0},0,0,{"$f":"VLOOKUP(P$9,PS5_Supply!$B:$ZP,INDEX(PS5_Supply!$14:$14,MATCH(BoQ_Equipment!$B31,PS5_Supply!$9:$9,0)),FALSE)","v":0},{"$f":"VLOOKUP(Q$9,PS5_Supply!$B:$ZP,INDEX(PS5_Supply!$14:$14,MATCH(BoQ_Equipment!$B31,PS5_Supply!$9:$9,0)),FALSE)","v":0},{"$f":"VLOOKUP(R$9,PS5_Supply!$B:$ZP,INDEX(PS5_Supply!$14:$14,MATCH(BoQ_Equipment!$B31,PS5_Supply!$9:$9,0)),FALSE)","v":0},{"$f":"VLOOKUP(S$9,PS5_Supply!$B:$ZP,INDEX(PS5_Supply!$14:$14,MATCH(BoQ_Equipment!$B31,PS5_Supply!$9:$9,0)),FALSE)","v":0},0,0,0,0,0,0]
[660252,19,"Scheme: 1 Feeder & 1 Feeder with Line Reactor BAH - 110 VDC","SCHEME, PROTECTION: TYPE: DFR:1 FDR-1 FDR+RX BAH 110; APPLICATION: DIGITAL FAULT RECORDER; DFR SCHEME: 1 FEEDER & 1 FEEDER WITH LINE REACTOR BREAKER-AND-A-HALF; DIGITAL FAULT RECORDER SCHEME WITH 2 QUALITROL IDM+ 6U UNITS AND 5 9A/32B BOARDS + CONFIGURATION. FULLY ASSEMBLED WITH AUXILIARY SCHEME COMPONENTS; TESTED AND SUPPLIED IN A SWING FRAME PANEL; DRAWING NO: 0.52/30114; MODEL NO: 6DRB-7100; VENDORS ARE RESPONSIBLE FOR ENSURING THAT THEY ARE PERFORMING AGAINST THE CORRECT DRAWING REVISION NUMBER (IF APPLICABLE).","No",1,{"$f":"VLOOKUP(G$9,PS5_Supply!$B:$ZP,INDEX(PS5_Supply!$14:$14,MATCH(BoQ_Equipment!$B32,PS5_Supply!$9:$9,0)),FALSE)","v":0},{"$f":"VLOOKUP(H$9,PS5_Supply!$B:$ZP,INDEX(PS5_Supply!$14:$14,MATCH(BoQ_Equipment!$B32,PS5_Supply!$9:$9,0)),FALSE)","v":0},{"$f":"VLOOKUP(I$9,PS5_Supply!$B:$ZP,INDEX(PS5_Supply!$14:$14,MATCH(BoQ_Equipment!$B32,PS5_Supply!$9:$9,0)),FALSE)","v":0},0,0,{"$f":"VLOOKUP(L$9,PS5_Supply!$B:$ZP,INDEX(PS5_Supply!$14:$14,MATCH(BoQ_Equipment!$B32,PS5_Supply!$9:$9,0)),FALSE)","v":0},{"$f":"VLOOKUP(M$9,PS5_Supply!$B:$ZP,INDEX(PS5_Supply!$14:$14,MATCH(BoQ_Equipment!$B32,PS5_Supply!$9:$9,0)),FALSE)","v":0},0,0,{"$f":"VLOOKUP(P$9,PS5_Supply!$B:$ZP,INDEX(PS5_Supply!$14:$14,MATCH(BoQ_Equipment!$B32,PS5_Supply!$9:$9,0)),FALSE)","v":0},{"$f":"VLOOKUP(Q$9,PS5_Supply!$B:$ZP,INDEX(PS5_Supply!$14:$14,MATCH(BoQ_Equipment!$B32,PS5_Supply!$9:$9,0)),FALSE)","v":0},{"$f":"VLOOKUP(R$9,PS5_Supply!$B:$ZP,INDEX(PS5_Supply!$14:$14,MATCH(BoQ_Equipment!$B32,PS5_Supply!$9:$9,0)),FALSE)","v":0},{"$f":"VLOOKUP(S$9,PS5_Supply!$B:$ZP,INDEX(PS5_Supply!$14:$14,MATCH(BoQ_Equipment!$B32,PS5_Supply!$9:$9,0)),FALSE)","v":0},0,0,0,0,0,0]
[660253,20,"Scheme: 1 Feeder & 1 Feeder with Line Reactor BAH - 220 VDC","SCHEME, PROTECTION: TYPE: DFR:1 FDR-1 FDR+RX BAH; 220; APPLICATION: DIGITAL FAULT RECORDER; DFR SCHEME: 1 FEEDER & 1 FEEDER WITH LINE REACTOR BREAKER-AND-A-HALF; DIGITAL FAULT RECORDER SCHEME WITH 2 QUALITROL IDM+ 6U UNITS AND 5 9A/32B BOARDS + CONFIGURATION. FULLY ASSEMBLED WITH AUXILIARY SCHEME COMPONENTS; TESTED AND SUPPLIED IN A SWING FRAME PANEL; DRAWING NO: 0.52/30114; MODEL NO: 6DRB-7100; VENDORS ARE RESPONSIBLE FOR ENSURING THAT THEY ARE PERFORMING AGAINST THE CORRECT DRAWING REVISION NUMBER (IF APPLICABLE).","No",1,{"$f":"VLOOKUP(G$9,PS5_Supply!$B:$ZP,INDEX(PS5_Supply!$14:$14,MATCH(BoQ_Equipment!$B33,PS5_Supply!$9:$9,0)),FALSE)","v":0},{"$f":"VLOOKUP(H$9,PS5_Supply!$B:$ZP,INDEX(PS5_Supply!$14:$14,MATCH(BoQ_Equipment!$B33,PS5_Supply!$9:$9,0)),FALSE)","v":0},{"$f":"VLOOKUP(I$9,PS5_Supply!$B:$ZP,INDEX(PS5_Supply!$14:$14,MATCH(BoQ_Equipment!$B33,PS5_Supply!$9:$9,0)),FALSE)","v":0},0,0,{"$f":"VLOOKUP(L$9,PS5_Supply!$B:$ZP,INDEX(PS5_Supply!$14:$14,MATCH(BoQ_Equipment!$B33,PS5_Supply!$9:$9,0)),FALSE)","v":0},{"$f":"VLOOKUP(M$9,PS5_Supply!$B:$ZP,INDEX(PS5_Supply!$14:$14,MATCH(BoQ_Equipment!$B33,PS5_Supply!$9:$9,0)),FALSE)","v":0},0,0,{"$f":"VLOOKUP(P$9,PS5_Supply!$B:$ZP,INDEX(PS5_Supply!$14:$14,MATCH(BoQ_Equipment!$B33,PS5_Supply!$9:$9,0)),FALSE)","v":0},{"$f":"VLOOKUP(Q$9,PS5_Supply!$B:$ZP,INDEX(PS5_Supply!$14:$14,MATCH(BoQ_Equipment!$B33,PS5_Supply!$9:$9,0)),FALSE)","v":0},{"$f":"VLOOKUP(R$9,PS5_Supply!$B:$ZP,INDEX(PS5_Supply!$14:$14,MATCH(BoQ_Equipment!$B33,PS5_Supply!$9:$9,0)),FALSE)","v":0},{"$f":"VLOOKUP(S$9,PS5_Supply!$B:$ZP,INDEX(PS5_Supply!$14:$14,MATCH(BoQ_Equipment!$B33,PS5_Supply!$9:$9,0)),FALSE)","v":0},0,0,0,0,0,0]
[660254,21,"Scheme: 1 Busbar Reactor BAH - 110 VDC","SCHEME, PROTECTION: TYPE: DFR:1 BUSBAR RX BAH; 110VDC; APPLICATION: DIGITAL FAULT RECORDER; DFR SCHEME: 1 BUSBAR REACTOR BREAKER-AND-A-HALF; DIGITAL FAULT RECORDER SCHEME WITH 1 QUALITROL IDM+ 6U UNIT AND 1 9A/32B BOARDS + CONFIGURATION. FULLY ASSEMBLED WITH AUXILIARY SCHEME COMPONENTS; TESTED AND SUPPLIED IN A SWING FRAME PANEL; DRAWING NO: 0.52/30114; MODEL NO: 6DRB-7100; VENDORS ARE RESPONSIBLE FOR ENSURING THAT THEY ARE PERFORMING AGAINST THE CORRECT DRAWING REVISION NUMBER (IF APPLICABLE).","No",1,{"$f":"VLOOKUP(G$9,PS5_Supply!$B:$ZP,INDEX(PS5_Supply!$14:$14,MATCH(BoQ_Equipment!$B34,PS5_Supply!$9:$9,0)),FALSE)","v":0},{"$f":"VLOOKUP(H$9,PS5_Supply!$B:$ZP,INDEX(PS5_Supply!$14:$14,MATCH(BoQ_Equipment!$B34,PS5_Supply!$9:$9,0)),FALSE)","v":0},{"$f":"VLOOKUP(I$9,PS5_Supply!$B:$ZP,INDEX(PS5_Supply!$14:$14,MATCH(BoQ_Equipment!$B34,PS5_Supply!$9:$9,0)),FALSE)","v":0},0,0,{"$f":"VLOOKUP(L$9,PS5_Supply!$B:$ZP,INDEX(PS5_Supply!$14:$14,MATCH(BoQ_Equipment!$B34,PS5_Supply!$9:$9,0)),FALSE)","v":0},{"$f":"VLOOKUP(M$9,PS5_Supply!$B:$ZP,INDEX(PS5_Supply!$14:$14,MATCH(BoQ_Equipment!$B34,PS5_Supply!$9:$9,0)),FALSE)","v":0},0,0,{"$f":"VLOOKUP(P$9,PS5_Supply!$B:$ZP,INDEX(PS5_Supply!$14:$14,MATCH(BoQ_Equipment!$B34,PS5_Supply!$9:$9,0)),FALSE)","v":0},{"$f":"VLOOKUP(Q$9,PS5_Supply!$B:$ZP,INDEX(PS5_Supply!$14:$14,MATCH(BoQ_Equipment!$B34,PS5_Supply!$9:$9,0)),FALSE)","v":0},{"$f":"VLOOKUP(R$9,PS5_Supply!$B:$ZP,INDEX(PS5_Supply!$14:$14,MATCH(BoQ_Equipment!$B34,PS5_Supply!$9:$9,0)),FALSE)","v":0},{"$f":"VLOOKUP(S$9,PS5_Supply!$B:$ZP,INDEX(PS5_Supply!$14:$14,MATCH(BoQ_Equipment!$B34,PS5_Supply!$9:$9,0)),FALSE)","v":0},0,0,0,0,0,0]
[660255,22,"Scheme: 1 Busbar Reactor BAH - 220 VDC","SCHEME, PROTECTION: TYPE: DFR:1 BUSBAR RX BAH; 220VDC; APPLICATION: DIGITAL FAULT RECORDER; DFR SCHEME: 1 BUSBAR REACTOR BREAKER-AND-A-HALF; DIGITAL FAULT RECORDER SCHEME WITH 1 QUALITROL IDM+ 6U UNIT AND 1 9A/32B BOARDS + CONFIGURATION. FULLY ASSEMBLED WITH AUXILIARY SCHEME COMPONENTS;  TESTED AND SUPPLIED IN A SWING FRAME PANEL; DRAWING NO: 0.52/30114; MODEL NO: 6DRB-7100; VENDORS ARE RESPONSIBLE FOR ENSURING THAT THEY ARE PERFORMING AGAINST THE CORRECT DRAWING REVISION NUMBER (IF APPLICABLE).","No",1,{"$f":"VLOOKUP(G$9,PS5_Supply!$B:$ZP,INDEX(PS5_Supply!$14:$14,MATCH(BoQ_Equipment!$B35,PS5_Supply!$9:$9,0)),FALSE)","v":0},{"$f":"VLOOKUP(H$9,PS5_Supply!$B:$ZP,INDEX(PS5_Supply!$14:$14,MATCH(BoQ_Equipment!$B35,PS5_Supply!$9:$9,0)),FALSE)","v":0},{"$f":"VLOOKUP(I$9,PS5_Supply!$B:$ZP,INDEX(PS5_Supply!$14:$14,MATCH(BoQ_Equipment!$B35,PS5_Supply!$9:$9,0)),FALSE)","v":0},0,0,{"$f":"VLOOKUP(L$9,PS5_Supply!$B:$ZP,INDEX(PS5_Supply!$14:$14,MATCH(BoQ_Equipment!$B35,PS5_Supply!$9:$9,0)),FALSE)","v":0},{"$f":"VLOOKUP(M$9,PS5_Supply!$B:$ZP,INDEX(PS5_Supply!$14:$14,MATCH(BoQ_Equipment!$B35,PS5_Supply!$9:$9,0)),FALSE)","v":0},0,0,{"$f":"VLOOKUP(P$9,PS5_Supply!$B:$ZP,INDEX(PS5_Supply!$14:$14,MATCH(BoQ_Equipment!$B35,PS5_Supply!$9:$9,0)),FALSE)","v":0},{"$f":"VLOOKUP(Q$9,PS5_Supply!$B:$ZP,INDEX(PS5_Supply!$14:$14,MATCH(BoQ_Equipment!$B35,PS5_Supply!$9:$9,0)),FALSE)","v":0},{"$f":"VLOOKUP(R$9,PS5_Supply!$B:$ZP,INDEX(PS5_Supply!$14:$14,MATCH(BoQ_Equipment!$B35,PS5_Supply!$9:$9,0)),FALSE)","v":0},{"$f":"VLOOKUP(S$9,PS5_Supply!$B:$ZP,INDEX(PS5_Supply!$14:$14,MATCH(BoQ_Equipment!$B35,PS5_Supply!$9:$9,0)),FALSE)","v":0},0,0,0,0,0,0]
[660256,23,"Scheme: 1 Feeder BAH - 110 VDC","SCHEME, PROTECTION: TYPE: DFR:1 FDR BAH; 110VDC; APPLICATION: DIGITAL FAULT RECORDER; DFR SCHEME: 1 FEEDER BREAKER-AND-A-HALF; DIGITAL FAULT RECORDER SCHEME WITH 1 QUALITROL IDM+ 6U UNIT AND 2 9A/32B BOARDS + CONFIGURATION. FULLY ASSEMBLED WITH AUXILIARY SCHEME COMPONENTS; TESTED AND SUPPLIED IN A SWING FRAME PANEL; DRAWING NO: 0.52/30114; MODEL NO: 6DRB-7100; VENDORS ARE RESPONSIBLE FOR ENSURING THAT THEY ARE PERFORMING AGAINST THE CORRECT DRAWING REVISION NUMBER (IF APPLICABLE).","No",4,{"$f":"VLOOKUP(G$9,PS5_Supply!$B:$ZP,INDEX(PS5_Supply!$14:$14,MATCH(BoQ_Equipment!$B36,PS5_Supply!$9:$9,0)),FALSE)","v":0},{"$f":"VLOOKUP(H$9,PS5_Supply!$B:$ZP,INDEX(PS5_Supply!$14:$14,MATCH(BoQ_Equipment!$B36,PS5_Supply!$9:$9,0)),FALSE)","v":0},{"$f":"VLOOKUP(I$9,PS5_Supply!$B:$ZP,INDEX(PS5_Supply!$14:$14,MATCH(BoQ_Equipment!$B36,PS5_Supply!$9:$9,0)),FALSE)","v":0},0,0,{"$f":"VLOOKUP(L$9,PS5_Supply!$B:$ZP,INDEX(PS5_Supply!$14:$14,MATCH(BoQ_Equipment!$B36,PS5_Supply!$9:$9,0)),FALSE)","v":0},{"$f":"VLOOKUP(M$9,PS5_Supply!$B:$ZP,INDEX(PS5_Supply!$14:$14,MATCH(BoQ_Equipment!$B36,PS5_Supply!$9:$9,0)),FALSE)","v":0},0,0,{"$f":"VLOOKUP(P$9,PS5_Supply!$B:$ZP,INDEX(PS5_Supply!$14:$14,MATCH(BoQ_Equipment!$B36,PS5_Supply!$9:$9,0)),FALSE)","v":0},{"$f":"VLOOKUP(Q$9,PS5_Supply!$B:$ZP,INDEX(PS5_Supply!$14:$14,MATCH(BoQ_Equipment!$B36,PS5_Supply!$9:$9,0)),FALSE)","v":0},{"$f":"VLOOKUP(R$9,PS5_Supply!$B:$ZP,INDEX(PS5_Supply!$14:$14,MATCH(BoQ_Equipment!$B36,PS5_Supply!$9:$9,0)),FALSE)","v":0},{"$f":"VLOOKUP(S$9,PS5_Supply!$B:$ZP,INDEX(PS5_Supply!$14:$14,MATCH(BoQ_Equipment!$B36,PS5_Supply!$9:$9,0)),FALSE)","v":0},0,0,0,0,0,0]
[660257,24,"Scheme: 1 Feeder BAH - 220 VDC","SCHEME, PROTECTION: TYPE: DFR:1 FDR BAH; 220VDC; APPLICATION: DIGITAL FAULT RECORDER; DFR SCHEME: 1 FEEDER BREAKER-AND-A-HALF; DIGITAL FAULT RECORDER SCHEME WITH 1 QUALITROL IDM+ 6U UNIT AND 2 9A/32B BOARDS + CONFIGURATION. FULLY ASSEMBLED WITH AUXILIARY SCHEME COMPONENTS; TESTED AND SUPPLIED IN A SWING FRAME PANEL; DRAWING NO: 0.52/30114; MODEL NO: 6DRB-7100; VENDORS ARE RESPONSIBLE FOR ENSURING THAT THEY ARE PERFORMING AGAINST THE CORRECT DRAWING REVISION NUMBER (IF APPLICABLE).","No",4,{"$f":"VLOOKUP(G$9,PS5_Supply!$B:$ZP,INDEX(PS5_Supply!$14:$14,MATCH(BoQ_Equipment!$B37,PS5_Supply!$9:$9,0)),FALSE)","v":0},{"$f":"VLOOKUP(H$9,PS5_Supply!$B:$ZP,INDEX(PS5_Supply!$14:$14,MATCH(BoQ_Equipment!$B37,PS5_Supply!$9:$9,0)),FALSE)","v":0},{"$f":"VLOOKUP(I$9,PS5_Supply!$B:$ZP,INDEX(PS5_Supply!$14:$14,MATCH(BoQ_Equipment!$B37,PS5_Supply!$9:$9,0)),FALSE)","v":0},0,0,{"$f":"VLOOKUP(L$9,PS5_Supply!$B:$ZP,INDEX(PS5_Supply!$14:$14,MATCH(BoQ_Equipment!$B37,PS5_Supply!$9:$9,0)),FALSE)","v":0},{"$f":"VLOOKUP(M$9,PS5_Supply!$B:$ZP,INDEX(PS5_Supply!$14:$14,MATCH(BoQ_Equipment!$B37,PS5_Supply!$9:$9,0)),FALSE)","v":0},0,0,{"$f":"VLOOKUP(P$9,PS5_Supply!$B:$ZP,INDEX(PS5_Supply!$14:$14,MATCH(BoQ_Equipment!$B37,PS5_Supply!$9:$9,0)),FALSE)","v":0},{"$f":"VLOOKUP(Q$9,PS5_Supply!$B:$ZP,INDEX(PS5_Supply!$14:$14,MATCH(BoQ_Equipment!$B37,PS5_Supply!$9:$9,0)),FALSE)","v":0},{"$f":"VLOOKUP(R$9,PS5_Supply!$B:$ZP,INDEX(PS5_Supply!$14:$14,MATCH(BoQ_Equipment!$B37,PS5_Supply!$9:$9,0)),FALSE)","v":0},{"$f":"VLOOKUP(S$9,PS5_Supply!$B:$ZP,INDEX(PS5_Supply!$14:$14,MATCH(BoQ_Equipment!$B37,PS5_Supply!$9:$9,0)),FALSE)","v":0},0,0,0,0,0,0]
[660259,25,"Scheme: 1 Transformer BAH - 110 VDC","SCHEME, PROTECTION: TYPE: DFR:1 TRFR BAH; 110VDC; APPLICATION: DIGITAL FAUILT RECORDER; DFR SCHEME: 1 TRANSFORMER BREAKER-AND-A-HALF; DIGITAL FAULT RECORDER SCHEME WITH 1 QUALITROL IDM+ 6U UNIT AND 4 9A/32B BOARDS + CONFIGURATION. FULLY ASSEMBLED WITH AUXILIARY SCHEME COMPONENTS; TESTED AND SUPPLIED IN A SWING FRAME PANEL; DRAWING NO: 0.52/30114; MODEL NO: 6DRB-7100; VENDORS ARE RESPONSIBLE FOR ENSURING THAT THEY ARE PERFORMING AGAINST THE CORRECT DRAWING REVISION NUMBER (IF APPLICABLE).","No",1,{"$f":"VLOOKUP(G$9,PS5_Supply!$B:$ZP,INDEX(PS5_Supply!$14:$14,MATCH(BoQ_Equipment!$B38,PS5_Supply!$9:$9,0)),FALSE)","v":0},{"$f":"VLOOKUP(H$9,PS5_Supply!$B:$ZP,INDEX(PS5_Supply!$14:$14,MATCH(BoQ_Equipment!$B38,PS5_Supply!$9:$9,0)),FALSE)","v":0},{"$f":"VLOOKUP(I$9,PS5_Supply!$B:$ZP,INDEX(PS5_Supply!$14:$14,MATCH(BoQ_Equipment!$B38,PS5_Supply!$9:$9,0)),FALSE)","v":0},0,0,{"$f":"VLOOKUP(L$9,PS5_Supply!$B:$ZP,INDEX(PS5_Supply!$14:$14,MATCH(BoQ_Equipment!$B38,PS5_Supply!$9:$9,0)),FALSE)","v":0},{"$f":"VLOOKUP(M$9,PS5_Supply!$B:$ZP,INDEX(PS5_Supply!$14:$14,MATCH(BoQ_Equipment!$B38,PS5_Supply!$9:$9,0)),FALSE)","v":0},0,0,{"$f":"VLOOKUP(P$9,PS5_Supply!$B:$ZP,INDEX(PS5_Supply!$14:$14,MATCH(BoQ_Equipment!$B38,PS5_Supply!$9:$9,0)),FALSE)","v":0},{"$f":"VLOOKUP(Q$9,PS5_Supply!$B:$ZP,INDEX(PS5_Supply!$14:$14,MATCH(BoQ_Equipment!$B38,PS5_Supply!$9:$9,0)),FALSE)","v":0},{"$f":"VLOOKUP(R$9,PS5_Supply!$B:$ZP,INDEX(PS5_Supply!$14:$14,MATCH(BoQ_Equipment!$B38,PS5_Supply!$9:$9,0)),FALSE)","v":0},{"$f":"VLOOKUP(S$9,PS5_Supply!$B:$ZP,INDEX(PS5_Supply!$14:$14,MATCH(BoQ_Equipment!$B38,PS5_Supply!$9:$9,0)),FALSE)","v":0},0,0,0,0,0,0]
[660260,26,"Scheme: 1 Transformer BAH - 220 VDC","SCHEME, PROTECTION: TYPE: DFR:1 TRFR BAH; 220VDC; APPLICATION: DIGITAL FAULT RECORDER; DFR SCHEME: 1 TRANSFORMER BREAKER-AND-A-HALF; DIGITAL FAULT RECORDER SCHEME WITH 1 QUALITROL IDM+ 6U UNIT AND 4 9A/32B BOARDS + CONFIGURATION. FULLY ASSEMBLED WITH AUXILIARY SCHEME COMPONENTS; TESTED AND SUPPLIED IN A SWING FRAME PANEL; DRAWING NO: 0.52/30114; MODEL NO: 6DRB-7100; VENDORS ARE RESPONSIBLE FOR ENSURING THAT THEY ARE PERFORMING AGAINST THE CORRECT DRAWING REVISION NUMBER (IF APPLICABLE).","No",1,{"$f":"VLOOKUP(G$9,PS5_Supply!$B:$ZP,INDEX(PS5_Supply!$14:$14,MATCH(BoQ_Equipment!$B39,PS5_Supply!$9:$9,0)),FALSE)","v":0},{"$f":"VLOOKUP(H$9,PS5_Supply!$B:$ZP,INDEX(PS5_Supply!$14:$14,MATCH(BoQ_Equipment!$B39,PS5_Supply!$9:$9,0)),FALSE)","v":0},{"$f":"VLOOKUP(I$9,PS5_Supply!$B:$ZP,INDEX(PS5_Supply!$14:$14,MATCH(BoQ_Equipment!$B39,PS5_Supply!$9:$9,0)),FALSE)","v":0},0,0,{"$f":"VLOOKUP(L$9,PS5_Supply!$B:$ZP,INDEX(PS5_Supply!$14:$14,MATCH(BoQ_Equipment!$B39,PS5_Supply!$9:$9,0)),FALSE)","v":0},{"$f":"VLOOKUP(M$9,PS5_Supply!$B:$ZP,INDEX(PS5_Supply!$14:$14,MATCH(BoQ_Equipment!$B39,PS5_Supply!$9:$9,0)),FALSE)","v":0},0,0,{"$f":"VLOOKUP(P$9,PS5_Supply!$B:$ZP,INDEX(PS5_Supply!$14:$14,MATCH(BoQ_Equipment!$B39,PS5_Supply!$9:$9,0)),FALSE)","v":0},{"$f":"VLOOKUP(Q$9,PS5_Supply!$B:$ZP,INDEX(PS5_Supply!$14:$14,MATCH(BoQ_Equipment!$B39,PS5_Supply!$9:$9,0)),FALSE)","v":0},{"$f":"VLOOKUP(R$9,PS5_Supply!$B:$ZP,INDEX(PS5_Supply!$14:$14,MATCH(BoQ_Equipment!$B39,PS5_Supply!$9:$9,0)),FALSE)","v":0},{"$f":"VLOOKUP(S$9,PS5_Supply!$B:$ZP,INDEX(PS5_Supply!$14:$14,MATCH(BoQ_Equipment!$B39,PS5_Supply!$9:$9,0)),FALSE)","v":0},0,0,0,0,0,0]
[661827,27,"Scheme: 1 Feeder & 1 Transformer BAH (Trfr MV - DBB Config) - 110 VDC","SCHEME, PROTECTION: TYPE: DFR 1FDR 1TRFR BAH MVDBB;110VDC; 1 FEEDER AND 1 TRANSFORMER BREAKER-AND-A-HALF (TRFR MV - DBB)DIGITAL FAULT RECORDER SCHEME WITH 2 X QUALITROL IDM+ 6U UNITS AND 5 X 9A/32B BOARDS + CONFIGURATION. FULLY ASSEMBLED WITH AUXILIARY SCHEME COMPONENTS; TESTED AND SUPPLIED IN A SWING FRAME PANEL; DRAWING NO:  0.52/30114; MODEL NO: 6DRB-7100; VENDORS ARE RESPONSIBLE FOR ENSURING THAT THEY ARE PERFORMING AGAINST THE CORRECT DRAWING REVISION NUMBER (IF APPLICABLE).","No",1,{"$f":"VLOOKUP(G$9,PS5_Supply!$B:$ZP,INDEX(PS5_Supply!$14:$14,MATCH(BoQ_Equipment!$B40,PS5_Supply!$9:$9,0)),FALSE)","v":0},{"$f":"VLOOKUP(H$9,PS5_Supply!$B:$ZP,INDEX(PS5_Supply!$14:$14,MATCH(BoQ_Equipment!$B40,PS5_Supply!$9:$9,0)),FALSE)","v":0},{"$f":"VLOOKUP(I$9,PS5_Supply!$B:$ZP,INDEX(PS5_Supply!$14:$14,MATCH(BoQ_Equipment!$B40,PS5_Supply!$9:$9,0)),FALSE)","v":0},0,0,{"$f":"VLOOKUP(L$9,PS5_Supply!$B:$ZP,INDEX(PS5_Supply!$14:$14,MATCH(BoQ_Equipment!$B40,PS5_Supply!$9:$9,0)),FALSE)","v":0},{"$f":"VLOOKUP(M$9,PS5_Supply!$B:$ZP,INDEX(PS5_Supply!$14:$14,MATCH(BoQ_Equipment!$B40,PS5_Supply!$9:$9,0)),FALSE)","v":0},0,0,{"$f":"VLOOKUP(P$9,PS5_Supply!$B:$ZP,INDEX(PS5_Supply!$14:$14,MATCH(BoQ_Equipment!$B40,PS5_Supply!$9:$9,0)),FALSE)","v":0},{"$f":"VLOOKUP(Q$9,PS5_Supply!$B:$ZP,INDEX(PS5_Supply!$14:$14,MATCH(BoQ_Equipment!$B40,PS5_Supply!$9:$9,0)),FALSE)","v":0},{"$f":"VLOOKUP(R$9,PS5_Supply!$B:$ZP,INDEX(PS5_Supply!$14:$14,MATCH(BoQ_Equipment!$B40,PS5_Supply!$9:$9,0)),FALSE)","v":0},{"$f":"VLOOKUP(S$9,PS5_Supply!$B:$ZP,INDEX(PS5_Supply!$14:$14,MATCH(BoQ_Equipment!$B40,PS5_Supply!$9:$9,0)),FALSE)","v":0},0,0,0,0,0,0]
[661851,28,"Scheme: 1 Feeder & 1 Transformer BAH (Trfr MV - DBB Config) - 220 VDC","SCHEME, PROTECTION: TYPE: DFR 1FDR 1TRFR BAH MVDBB;220VDC; 1 FEEDER AND 1 TRANSFORMER BREAKER-AND-A-HALF (TRFR MV - DBB); DIGITAL FAULT RECORDER SCHEME WITH 2 X QUALITROL IDM+ 6U UNITS AND 5 X 9A/32B BOARDS + CONFIGURATION. FULLY ASSEMBLED WITH AUXILIARY SCHEME COMPONENTS; TESTED AND SUPPLIED IN A SWING FRAME PANEL; DRAWING NO: 0.52/30114; MODEL NO: 6DRB-7100; VENDORS ARE RESPONSIBLE FOR ENSURING THAT THEY ARE PERFORMING AGAINST THE CORRECT DRAWING REVISION NUMBER (IF APPLICABLE).","No",1,{"$f":"VLOOKUP(G$9,PS5_Supply!$B:$ZP,INDEX(PS5_Supply!$14:$14,MATCH(BoQ_Equipment!$B41,PS5_Supply!$9:$9,0)),FALSE)","v":0},{"$f":"VLOOKUP(H$9,PS5_Supply!$B:$ZP,INDEX(PS5_Supply!$14:$14,MATCH(BoQ_Equipment!$B41,PS5_Supply!$9:$9,0)),FALSE)","v":0},{"$f":"VLOOKUP(I$9,PS5_Supply!$B:$ZP,INDEX(PS5_Supply!$14:$14,MATCH(BoQ_Equipment!$B41,PS5_Supply!$9:$9,0)),FALSE)","v":0},0,0,{"$f":"VLOOKUP(L$9,PS5_Supply!$B:$ZP,INDEX(PS5_Supply!$14:$14,MATCH(BoQ_Equipment!$B41,PS5_Supply!$9:$9,0)),FALSE)","v":0},{"$f":"VLOOKUP(M$9,PS5_Supply!$B:$ZP,INDEX(PS5_Supply!$14:$14,MATCH(BoQ_Equipment!$B41,PS5_Supply!$9:$9,0)),FALSE)","v":0},0,0,{"$f":"VLOOKUP(P$9,PS5_Supply!$B:$ZP,INDEX(PS5_Supply!$14:$14,MATCH(BoQ_Equipment!$B41,PS5_Supply!$9:$9,0)),FALSE)","v":0},{"$f":"VLOOKUP(Q$9,PS5_Supply!$B:$ZP,INDEX(PS5_Supply!$14:$14,MATCH(BoQ_Equipment!$B41,PS5_Supply!$9:$9,0)),FALSE)","v":0},{"$f":"VLOOKUP(R$9,PS5_Supply!$B:$ZP,INDEX(PS5_Supply!$14:$14,MATCH(BoQ_Equipment!$B41,PS5_Supply!$9:$9,0)),FALSE)","v":0},{"$f":"VLOOKUP(S$9,PS5_Supply!$B:$ZP,INDEX(PS5_Supply!$14:$14,MATCH(BoQ_Equipment!$B41,PS5_Supply!$9:$9,0)),FALSE)","v":0},0,0,0,0,0,0]
[661852,29,"Scheme: 1 Feeder with Line Reactor & 1 Transformer BAH (Trfr MV - DBB Config) - 110 VDC","SCHEME, PROTECTION: TYPE: DFR;1FDR+RX;1TRFR BAH MVDBB;110; 1 FEEDER WITH LINE REACTOR AND 1 TRANSFORMER BREAKER-AND-A-HALF (TRFR MV - DBB); DIGITAL FAULT RECORDER SCHEME WITH 2 X QUALITROL IDM+ 6U UNITS AND 6 X 9A/32B BOARDS + CONFIGURATION. FULLY ASSEMBLED WITH AUXILIARY SCHEME COMPONENTS; TESTED AND SUPPLIED IN A SWING FRAME PANEL; DRAWING NO: 0.52/30114; MODEL NO: 6DRB-7100; VENDORS ARE RESPONSIBLE FOR ENSURING THAT THEY ARE PERFORMING AGAINST THE CORRECT DRAWING REVISION NUMBER (IF APPLICABLE).","No",1,{"$f":"VLOOKUP(G$9,PS5_Supply!$B:$ZP,INDEX(PS5_Supply!$14:$14,MATCH(BoQ_Equipment!$B42,PS5_Supply!$9:$9,0)),FALSE)","v":0},{"$f":"VLOOKUP(H$9,PS5_Supply!$B:$ZP,INDEX(PS5_Supply!$14:$14,MATCH(BoQ_Equipment!$B42,PS5_Supply!$9:$9,0)),FALSE)","v":0},{"$f":"VLOOKUP(I$9,PS5_Supply!$B:$ZP,INDEX(PS5_Supply!$14:$14,MATCH(BoQ_Equipment!$B42,PS5_Supply!$9:$9,0)),FALSE)","v":0},0,0,{"$f":"VLOOKUP(L$9,PS5_Supply!$B:$ZP,INDEX(PS5_Supply!$14:$14,MATCH(BoQ_Equipment!$B42,PS5_Supply!$9:$9,0)),FALSE)","v":0},{"$f":"VLOOKUP(M$9,PS5_Supply!$B:$ZP,INDEX(PS5_Supply!$14:$14,MATCH(BoQ_Equipment!$B42,PS5_Supply!$9:$9,0)),FALSE)","v":0},0,0,{"$f":"VLOOKUP(P$9,PS5_Supply!$B:$ZP,INDEX(PS5_Supply!$14:$14,MATCH(BoQ_Equipment!$B42,PS5_Supply!$9:$9,0)),FALSE)","v":0},{"$f":"VLOOKUP(Q$9,PS5_Supply!$B:$ZP,INDEX(PS5_Supply!$14:$14,MATCH(BoQ_Equipment!$B42,PS5_Supply!$9:$9,0)),FALSE)","v":0},{"$f":"VLOOKUP(R$9,PS5_Supply!$B:$ZP,INDEX(PS5_Supply!$14:$14,MATCH(BoQ_Equipment!$B42,PS5_Supply!$9:$9,0)),FALSE)","v":0},{"$f":"VLOOKUP(S$9,PS5_Supply!$B:$ZP,INDEX(PS5_Supply!$14:$14,MATCH(BoQ_Equipment!$B42,PS5_Supply!$9:$9,0)),FALSE)","v":0},0,0,0,0,0,0]
[661853,30,"Scheme: 1 Feeder with Line Reactor & 1 Transformer BAH (Trfr MV - DBB Config) - 220 VDC","SCHEME, PROTECTION: TYPE: DFR;1FDR+RX;1TRFR BAH MVDBB;220; 1 FEEDER WITH LINE REACTOR AND 1 TRANSFORMER BREAKER-AND-A-HALF (TRFR MV - DBB); DIGITAL FAULT RECORDER SCHEME WITH 2 X QUALITROL IDM+ 6U UNITS AND 6 X 9A/32B BOARDS + CONFIGURATION. FULLY ASSEMBLED WITH AUXILIARY SCHEME COMPONENTS; TESTED AND SUPPLIED IN A SWING FRAME PANEL; DRAWING NO: 0.52/30114; MODEL NO: 6DRB-7100; VENDORS ARE RESPONSIBLE FOR ENSURING THAT THEY ARE PERFORMING AGAINST THE CORRECT DRAWING REVISION NUMBER (IF APPLICABLE).","No",1,{"$f":"VLOOKUP(G$9,PS5_Supply!$B:$ZP,INDEX(PS5_Supply!$14:$14,MATCH(BoQ_Equipment!$B43,PS5_Supply!$9:$9,0)),FALSE)","v":0},{"$f":"VLOOKUP(H$9,PS5_Supply!$B:$ZP,INDEX(PS5_Supply!$14:$14,MATCH(BoQ_Equipment!$B43,PS5_Supply!$9:$9,0)),FALSE)","v":0},{"$f":"VLOOKUP(I$9,PS5_Supply!$B:$ZP,INDEX(PS5_Supply!$14:$14,MATCH(BoQ_Equipment!$B43,PS5_Supply!$9:$9,0)),FALSE)","v":0},0,0,{"$f":"VLOOKUP(L$9,PS5_Supply!$B:$ZP,INDEX(PS5_Supply!$14:$14,MATCH(BoQ_Equipment!$B43,PS5_Supply!$9:$9,0)),FALSE)","v":0},{"$f":"VLOOKUP(M$9,PS5_Supply!$B:$ZP,INDEX(PS5_Supply!$14:$14,MATCH(BoQ_Equipment!$B43,PS5_Supply!$9:$9,0)),FALSE)","v":0},0,0,{"$f":"VLOOKUP(P$9,PS5_Supply!$B:$ZP,INDEX(PS5_Supply!$14:$14,MATCH(BoQ_Equipment!$B43,PS5_Supply!$9:$9,0)),FALSE)","v":0},{"$f":"VLOOKUP(Q$9,PS5_Supply!$B:$ZP,INDEX(PS5_Supply!$14:$14,MATCH(BoQ_Equipment!$B43,PS5_Supply!$9:$9,0)),FALSE)","v":0},{"$f":"VLOOKUP(R$9,PS5_Supply!$B:$ZP,INDEX(PS5_Supply!$14:$14,MATCH(BoQ_Equipment!$B43,PS5_Supply!$9:$9,0)),FALSE)","v":0},{"$f":"VLOOKUP(S$9,PS5_Supply!$B:$ZP,INDEX(PS5_Supply!$14:$14,MATCH(BoQ_Equipment!$B43,PS5_Supply!$9:$9,0)),FALSE)","v":0},0,0,0,0,0,0]
[661855,31,"Scheme: 1 Transformer BAH (Trfr MV - DBB Config) - 110 VDC","SCHEME, PROTECTION: TYPE: DFR 1TRFR BAH MVDBB;110VDC; 1 TRANSFORMER BREAKER-AND-A-HALF (TRFR MV - DBB); DIGITAL FAULT RECORDER SCHEME WITH 1 X QUALITROL IDM+ 6U UNIT AND 3 X 9A/32B BOARDS + CONFIGURATION. FULLY ASSEMBLED WITH AUXILIARY SCHEME COMPONENTS; TESTED AND SUPPLIED IN A SWING FRAME PANEL; DRAWING NO: 0.52/30114; MODEL NO: 6DRB-7100; VENDORS ARE RESPONSIBLE FOR ENSURING THAT THEY ARE PERFORMING AGAINST THE CORRECT DRAWING REVISION NUMBER (IF APPLICABLE).","No",8,{"$f":"VLOOKUP(G$9,PS5_Supply!$B:$ZP,INDEX(PS5_Supply!$14:$14,MATCH(BoQ_Equipment!$B44,PS5_Supply!$9:$9,0)),FALSE)","v":0},{"$f":"VLOOKUP(H$9,PS5_Supply!$B:$ZP,INDEX(PS5_Supply!$14:$14,MATCH(BoQ_Equipment!$B44,PS5_Supply!$9:$9,0)),FALSE)","v":0},{"$f":"VLOOKUP(I$9,PS5_Supply!$B:$ZP,INDEX(PS5_Supply!$14:$14,MATCH(BoQ_Equipment!$B44,PS5_Supply!$9:$9,0)),FALSE)","v":0},0,0,{"$f":"VLOOKUP(L$9,PS5_Supply!$B:$ZP,INDEX(PS5_Supply!$14:$14,MATCH(BoQ_Equipment!$B44,PS5_Supply!$9:$9,0)),FALSE)","v":0},{"$f":"VLOOKUP(M$9,PS5_Supply!$B:$ZP,INDEX(PS5_Supply!$14:$14,MATCH(BoQ_Equipment!$B44,PS5_Supply!$9:$9,0)),FALSE)","v":0},0,0,{"$f":"VLOOKUP(P$9,PS5_Supply!$B:$ZP,INDEX(PS5_Supply!$14:$14,MATCH(BoQ_Equipment!$B44,PS5_Supply!$9:$9,0)),FALSE)","v":0},{"$f":"VLOOKUP(Q$9,PS5_Supply!$B:$ZP,INDEX(PS5_Supply!$14:$14,MATCH(BoQ_Equipment!$B44,PS5_Supply!$9:$9,0)),FALSE)","v":0},{"$f":"VLOOKUP(R$9,PS5_Supply!$B:$ZP,INDEX(PS5_Supply!$14:$14,MATCH(BoQ_Equipment!$B44,PS5_Supply!$9:$9,0)),FALSE)","v":0},{"$f":"VLOOKUP(S$9,PS5_Supply!$B:$ZP,INDEX(PS5_Supply!$14:$14,MATCH(BoQ_Equipment!$B44,PS5_Supply!$9:$9,0)),FALSE)","v":0},0,0,0,0,0,0]
[661857,32,"Scheme: 1 Transformer BAH (Trfr MV - DBB Config) - 220 VDC","SCHEME, PROTECTION: TYPE: DFR 1TRFR BAH MVDBB;220VDC; 1 TRANSFORMER BREAKER-AND-A-HALF (TRFR MV - DBB); DIGITAL FAULT RECORDER SCHEME WITH 1 X QUALITROL IDM+ 6U UNIT AND 3 X 9A/32B BOARDS + CONFIGURATION. FULLY ASSEMBLED WITH AUXILIARY SCHEME COMPONENTS; TESTED AND SUPPLIED IN A SWING FRAME PANEL; DRAWING NO: 0.52/30114; MODEL NO: 6DRB-7100; VENDORS ARE RESPONSIBLE FOR ENSURING THAT THEY ARE PERFORMING AGAINST THE CORRECT DRAWING REVISION NUMBER (IF APPLICABLE).","No",8,{"$f":"VLOOKUP(G$9,PS5_Supply!$B:$ZP,INDEX(PS5_Supply!$14:$14,MATCH(BoQ_Equipment!$B45,PS5_Supply!$9:$9,0)),FALSE)","v":0},{"$f":"VLOOKUP(H$9,PS5_Supply!$B:$ZP,INDEX(PS5_Supply!$14:$14,MATCH(BoQ_Equipment!$B45,PS5_Supply!$9:$9,0)),FALSE)","v":0},{"$f":"VLOOKUP(I$9,PS5_Supply!$B:$ZP,INDEX(PS5_Supply!$14:$14,MATCH(BoQ_Equipment!$B45,PS5_Supply!$9:$9,0)),FALSE)","v":0},0,0,{"$f":"VLOOKUP(L$9,PS5_Supply!$B:$ZP,INDEX(PS5_Supply!$14:$14,MATCH(BoQ_Equipment!$B45,PS5_Supply!$9:$9,0)),FALSE)","v":0},{"$f":"VLOOKUP(M$9,PS5_Supply!$B:$ZP,INDEX(PS5_Supply!$14:$14,MATCH(BoQ_Equipment!$B45,PS5_Supply!$9:$9,0)),FALSE)","v":0},0,0,{"$f":"VLOOKUP(P$9,PS5_Supply!$B:$ZP,INDEX(PS5_Supply!$14:$14,MATCH(BoQ_Equipment!$B45,PS5_Supply!$9:$9,0)),FALSE)","v":0},{"$f":"VLOOKUP(Q$9,PS5_Supply!$B:$ZP,INDEX(PS5_Supply!$14:$14,MATCH(BoQ_Equipment!$B45,PS5_Supply!$9:$9,0)),FALSE)","v":0},{"$f":"VLOOKUP(R$9,PS5_Supply!$B:$ZP,INDEX(PS5_Supply!$14:$14,MATCH(BoQ_Equipment!$B45,PS5_Supply!$9:$9,0)),FALSE)","v":0},{"$f":"VLOOKUP(S$9,PS5_Supply!$B:$ZP,INDEX(PS5_Supply!$14:$14,MATCH(BoQ_Equipment!$B45,PS5_Supply!$9:$9,0)),FALSE)","v":0},0,0,0,0,0,0]
[660261,33,"Scheme: IDM+6U with 1 Traveling Wave Fault Locator Card for 2 Lines (DBB) - 110 VDC","SCHEME, PROTECTION: TYPE: TWS: 2 FDR DBB; 110VDC; APPLICATION: TWS FAULT LOCATOR; TWS SCHEME: FAULT LOCATOR FOR 2 FEEDERS DOUBLE BUSBAR; TWS FAULT LOCATOR SCHEME WITH 1 QUALITROL IDM+ 6U UNIT, 1 9A/32B BOARDS, 1 INTERNAL GPS RECEIVER ( WITH GPS ANTENNA AND CABLE) AND 1 TWS FL DAUGHTER BOARD + CONFIGURATION. FULLY ASSEMBLED WITH AUXILIARY SCHEME COMPONENTS; TESTED AND SUPPLIED IN A SWING FRAME PANEL; DRAWING NO: 0.52/30112; MODEL NO: 6DR-7100; VENDORS ARE RESPONSIBLE FOR ENSURING THAT THEY ARE PERFORMING AGAINST THE CORRECT DRAWING REVISION NUMBER (IF APPLICABLE).","No",1,{"$f":"VLOOKUP(G$9,PS5_Supply!$B:$ZP,INDEX(PS5_Supply!$14:$14,MATCH(BoQ_Equipment!$B46,PS5_Supply!$9:$9,0)),FALSE)","v":0},{"$f":"VLOOKUP(H$9,PS5_Supply!$B:$ZP,INDEX(PS5_Supply!$14:$14,MATCH(BoQ_Equipment!$B46,PS5_Supply!$9:$9,0)),FALSE)","v":0},{"$f":"VLOOKUP(I$9,PS5_Supply!$B:$ZP,INDEX(PS5_Supply!$14:$14,MATCH(BoQ_Equipment!$B46,PS5_Supply!$9:$9,0)),FALSE)","v":0},0,0,{"$f":"VLOOKUP(L$9,PS5_Supply!$B:$ZP,INDEX(PS5_Supply!$14:$14,MATCH(BoQ_Equipment!$B46,PS5_Supply!$9:$9,0)),FALSE)","v":0},{"$f":"VLOOKUP(M$9,PS5_Supply!$B:$ZP,INDEX(PS5_Supply!$14:$14,MATCH(BoQ_Equipment!$B46,PS5_Supply!$9:$9,0)),FALSE)","v":0},0,0,{"$f":"VLOOKUP(P$9,PS5_Supply!$B:$ZP,INDEX(PS5_Supply!$14:$14,MATCH(BoQ_Equipment!$B46,PS5_Supply!$9:$9,0)),FALSE)","v":0},{"$f":"VLOOKUP(Q$9,PS5_Supply!$B:$ZP,INDEX(PS5_Supply!$14:$14,MATCH(BoQ_Equipment!$B46,PS5_Supply!$9:$9,0)),FALSE)","v":0},{"$f":"VLOOKUP(R$9,PS5_Supply!$B:$ZP,INDEX(PS5_Supply!$14:$14,MATCH(BoQ_Equipment!$B46,PS5_Supply!$9:$9,0)),FALSE)","v":0},{"$f":"VLOOKUP(S$9,PS5_Supply!$B:$ZP,INDEX(PS5_Supply!$14:$14,MATCH(BoQ_Equipment!$B46,PS5_Supply!$9:$9,0)),FALSE)","v":0},0,0,0,0,0,0]
[660263,34,"Scheme: IDM+6U with 1 Traveling Wave Fault Locator Card for 2 Lines (DBB) - 220 VDC","SCHEME, PROTECTION: TYPE: TWS: 2 FDR DBB; 220VDC; APPLICATION: TWS FAULT LOCATOR; TWS SCHEME: FAULT LOCATOR FOR 2 FEEDERS DOUBLE BUSBAR; TWS FAULT LOCATOR SCHEME WITH 1 QUALITROL IDM+ 6U UNIT, 1 9A/32B BOARDS, 1 X INTERNAL GPS RECEIVER (WITH GPS ANTENNA AND CABLE) AND 1 TWS FL DAUGHTER BOARD + CONFIGURATION. FULLY ASSEMBLED WITH AUXILIARY SCHEME COMPONENTS; TESTED AND SUPPLIED IN A SWING FRAME PANEL; DRAWING NO: 0.52/30112; MODEL NO: 6DR-7100; VENDORS ARE RESPONSIBLE FOR ENSURING THAT THEY ARE PERFORMING AGAINST THE CORRECT DRAWING REVISION NUMBER (IF APPLICABLE).","No",1,{"$f":"VLOOKUP(G$9,PS5_Supply!$B:$ZP,INDEX(PS5_Supply!$14:$14,MATCH(BoQ_Equipment!$B47,PS5_Supply!$9:$9,0)),FALSE)","v":0},{"$f":"VLOOKUP(H$9,PS5_Supply!$B:$ZP,INDEX(PS5_Supply!$14:$14,MATCH(BoQ_Equipment!$B47,PS5_Supply!$9:$9,0)),FALSE)","v":0},{"$f":"VLOOKUP(I$9,PS5_Supply!$B:$ZP,INDEX(PS5_Supply!$14:$14,MATCH(BoQ_Equipment!$B47,PS5_Supply!$9:$9,0)),FALSE)","v":0},0,0,{"$f":"VLOOKUP(L$9,PS5_Supply!$B:$ZP,INDEX(PS5_Supply!$14:$14,MATCH(BoQ_Equipment!$B47,PS5_Supply!$9:$9,0)),FALSE)","v":0},{"$f":"VLOOKUP(M$9,PS5_Supply!$B:$ZP,INDEX(PS5_Supply!$14:$14,MATCH(BoQ_Equipment!$B47,PS5_Supply!$9:$9,0)),FALSE)","v":0},0,0,{"$f":"VLOOKUP(P$9,PS5_Supply!$B:$ZP,INDEX(PS5_Supply!$14:$14,MATCH(BoQ_Equipment!$B47,PS5_Supply!$9:$9,0)),FALSE)","v":0},{"$f":"VLOOKUP(Q$9,PS5_Supply!$B:$ZP,INDEX(PS5_Supply!$14:$14,MATCH(BoQ_Equipment!$B47,PS5_Supply!$9:$9,0)),FALSE)","v":0},{"$f":"VLOOKUP(R$9,PS5_Supply!$B:$ZP,INDEX(PS5_Supply!$14:$14,MATCH(BoQ_Equipment!$B47,PS5_Supply!$9:$9,0)),FALSE)","v":0},{"$f":"VLOOKUP(S$9,PS5_Supply!$B:$ZP,INDEX(PS5_Supply!$14:$14,MATCH(BoQ_Equipment!$B47,PS5_Supply!$9:$9,0)),FALSE)","v":0},0,0,0,0,0,0]
[660264,35,"Scheme: IDM+6U with 1 Traveling Wave Fault Locator Card for 1 Line (BAH) - 110 VDC","SCHEME, PROTECTION: TYPE: TWS:1 FDR BAH; 110VDC; APPLICATION: TWS FAULT LOCATOR; TWS SCHEME: FAULT LOCATOR FOR 1 FEEDER BREAKER-AND-A-HALF; TWS FAULT LOCATOR SCHEME WITH 1 QUALITROL IDM+ 6U UNIT, 1 9A/32B BOARDS, 1 INTERNAL GPS RECEIVER (WITH GPS ANTENNA AND CABLE) AND 1 TWS FL DAUGHTER BOARD + CONFIGURATION. FULLY ASSEMBLED WITH AUXILIARY SCHEME COMPONENTS; TESTED AND SUPPLIED IN A SWING FRAME PANEL; DRAWING NO: 0.52/30114; MODEL NO: 6DRB-7100; VENDORS ARE RESPONSIBLE FOR ENSURING THAT THEY ARE PERFORMING AGAINST THE CORRECT DRAWING REVISION NUMBER (IF APPLICABLE).","No",1,{"$f":"VLOOKUP(G$9,PS5_Supply!$B:$ZP,INDEX(PS5_Supply!$14:$14,MATCH(BoQ_Equipment!$B48,PS5_Supply!$9:$9,0)),FALSE)","v":0},{"$f":"VLOOKUP(H$9,PS5_Supply!$B:$ZP,INDEX(PS5_Supply!$14:$14,MATCH(BoQ_Equipment!$B48,PS5_Supply!$9:$9,0)),FALSE)","v":0},{"$f":"VLOOKUP(I$9,PS5_Supply!$B:$ZP,INDEX(PS5_Supply!$14:$14,MATCH(BoQ_Equipment!$B48,PS5_Supply!$9:$9,0)),FALSE)","v":0},0,0,{"$f":"VLOOKUP(L$9,PS5_Supply!$B:$ZP,INDEX(PS5_Supply!$14:$14,MATCH(BoQ_Equipment!$B48,PS5_Supply!$9:$9,0)),FALSE)","v":0},{"$f":"VLOOKUP(M$9,PS5_Supply!$B:$ZP,INDEX(PS5_Supply!$14:$14,MATCH(BoQ_Equipment!$B48,PS5_Supply!$9:$9,0)),FALSE)","v":0},0,0,{"$f":"VLOOKUP(P$9,PS5_Supply!$B:$ZP,INDEX(PS5_Supply!$14:$14,MATCH(BoQ_Equipment!$B48,PS5_Supply!$9:$9,0)),FALSE)","v":0},{"$f":"VLOOKUP(Q$9,PS5_Supply!$B:$ZP,INDEX(PS5_Supply!$14:$14,MATCH(BoQ_Equipment!$B48,PS5_Supply!$9:$9,0)),FALSE)","v":0},{"$f":"VLOOKUP(R$9,PS5_Supply!$B:$ZP,INDEX(PS5_Supply!$14:$14,MATCH(BoQ_Equipment!$B48,PS5_Supply!$9:$9,0)),FALSE)","v":0},{"$f":"VLOOKUP(S$9,PS5_Supply!$B:$ZP,INDEX(PS5_Supply!$14:$14,MATCH(BoQ_Equipment!$B48,PS5_Supply!$9:$9,0)),FALSE)","v":0},0,0,0,0,0,0]
[660265,36,"Scheme: IDM+6U with 1 Traveling Wave Fault Locator Card for 1 Line (BAH) - 220 VDC","SCHEME, PROTECTION: TYPE: TWS:1 FDR BAH; 220VDC; APPLICATION: TWS FAULT LOCATOR; TWS SCHEME: FAULT LOCATOR FOR 1 FEEDER BREAKER-AND-A-HALF; TWS FAULT LOCATOR SCHEME WITH 1 QUALITROL IDM+ 6U UNIT, 1 9A/32B BOARDS, 1 INTERNAL GPS RECEIVER (WITH GPS ANTENNA AND CABLE) AND 1 TWS FL DAUGHTER BOARD + CONFIGURATION. FULLY ASSEMBLED WITH AUXILIARY SCHEME COMPONENTS; TESTED AND SUPPLIED IN A SWING FRAME PANE; DRAWING NO: 0.52/30114; MODEL NO: 6DRB-7100; VENDORS ARE RESPONSIBLE FOR ENSURING THAT THEY ARE PERFORMING AGAINST THE CORRECT DRAWING REVISION NUMBER (IF APPLICABLE).","No",1,{"$f":"VLOOKUP(G$9,PS5_Supply!$B:$ZP,INDEX(PS5_Supply!$14:$14,MATCH(BoQ_Equipment!$B49,PS5_Supply!$9:$9,0)),FALSE)","v":0},{"$f":"VLOOKUP(H$9,PS5_Supply!$B:$ZP,INDEX(PS5_Supply!$14:$14,MATCH(BoQ_Equipment!$B49,PS5_Supply!$9:$9,0)),FALSE)","v":0},{"$f":"VLOOKUP(I$9,PS5_Supply!$B:$ZP,INDEX(PS5_Supply!$14:$14,MATCH(BoQ_Equipment!$B49,PS5_Supply!$9:$9,0)),FALSE)","v":0},0,0,{"$f":"VLOOKUP(L$9,PS5_Supply!$B:$ZP,INDEX(PS5_Supply!$14:$14,MATCH(BoQ_Equipment!$B49,PS5_Supply!$9:$9,0)),FALSE)","v":0},{"$f":"VLOOKUP(M$9,PS5_Supply!$B:$ZP,INDEX(PS5_Supply!$14:$14,MATCH(BoQ_Equipment!$B49,PS5_Supply!$9:$9,0)),FALSE)","v":0},0,0,{"$f":"VLOOKUP(P$9,PS5_Supply!$B:$ZP,INDEX(PS5_Supply!$14:$14,MATCH(BoQ_Equipment!$B49,PS5_Supply!$9:$9,0)),FALSE)","v":0},{"$f":"VLOOKUP(Q$9,PS5_Supply!$B:$ZP,INDEX(PS5_Supply!$14:$14,MATCH(BoQ_Equipment!$B49,PS5_Supply!$9:$9,0)),FALSE)","v":0},{"$f":"VLOOKUP(R$9,PS5_Supply!$B:$ZP,INDEX(PS5_Supply!$14:$14,MATCH(BoQ_Equipment!$B49,PS5_Supply!$9:$9,0)),FALSE)","v":0},{"$f":"VLOOKUP(S$9,PS5_Supply!$B:$ZP,INDEX(PS5_Supply!$14:$14,MATCH(BoQ_Equipment!$B49,PS5_Supply!$9:$9,0)),FALSE)","v":0},0,0,0,0,0,0]
[660267,37,"Scheme: IDM+6U with 2 Traveling Wave Fault Locator Cards for 4 Lines (DBB) - 110 VDC","SCHEME, PROTECTION: TYPE: TWS: 4 FDR DBB; 110VDC; APPLICATION: TWS FAULT LOCATOR; TWS SCHEME: FAULT LOCATOR FOR 4 FEEDERS DOUBLE BUSBAR; TWS FAULT LOCATOR SCHEME WITH 1 QUALITROL IDM+ 6U UNIT, 2 9A/32B BOARDS, 1  INTERNAL GPS RECEIVER (WITH GPS ANTENNA AND CABLE) AND 2 TWS FL DAUGHTER BOARDS + CONFIGURATION. FULLY ASSEMBLED WITH AUXILIARY SCHEME COMPONENTS; TESTED AND SUPPLIED IN A SWING FRAME PANEL; DRAWING NO: 0.52/30112; MODEL NO: 6DR-7100; VENDORS ARE RESPONSIBLE FOR ENSURING THAT THEY ARE PERFORMING AGAINST THE CORRECT DRAWING REVISION NUMBER (IF APPLICABLE).","No",1,{"$f":"VLOOKUP(G$9,PS5_Supply!$B:$ZP,INDEX(PS5_Supply!$14:$14,MATCH(BoQ_Equipment!$B50,PS5_Supply!$9:$9,0)),FALSE)","v":0},{"$f":"VLOOKUP(H$9,PS5_Supply!$B:$ZP,INDEX(PS5_Supply!$14:$14,MATCH(BoQ_Equipment!$B50,PS5_Supply!$9:$9,0)),FALSE)","v":0},{"$f":"VLOOKUP(I$9,PS5_Supply!$B:$ZP,INDEX(PS5_Supply!$14:$14,MATCH(BoQ_Equipment!$B50,PS5_Supply!$9:$9,0)),FALSE)","v":0},0,0,{"$f":"VLOOKUP(L$9,PS5_Supply!$B:$ZP,INDEX(PS5_Supply!$14:$14,MATCH(BoQ_Equipment!$B50,PS5_Supply!$9:$9,0)),FALSE)","v":0},{"$f":"VLOOKUP(M$9,PS5_Supply!$B:$ZP,INDEX(PS5_Supply!$14:$14,MATCH(BoQ_Equipment!$B50,PS5_Supply!$9:$9,0)),FALSE)","v":0},0,0,{"$f":"VLOOKUP(P$9,PS5_Supply!$B:$ZP,INDEX(PS5_Supply!$14:$14,MATCH(BoQ_Equipment!$B50,PS5_Supply!$9:$9,0)),FALSE)","v":0},{"$f":"VLOOKUP(Q$9,PS5_Supply!$B:$ZP,INDEX(PS5_Supply!$14:$14,MATCH(BoQ_Equipment!$B50,PS5_Supply!$9:$9,0)),FALSE)","v":0},{"$f":"VLOOKUP(R$9,PS5_Supply!$B:$ZP,INDEX(PS5_Supply!$14:$14,MATCH(BoQ_Equipment!$B50,PS5_Supply!$9:$9,0)),FALSE)","v":0},{"$f":"VLOOKUP(S$9,PS5_Supply!$B:$ZP,INDEX(PS5_Supply!$14:$14,MATCH(BoQ_Equipment!$B50,PS5_Supply!$9:$9,0)),FALSE)","v":0},0,0,0,0,0,0]
[660268,38,"Scheme: IDM+6U with 2 Traveling Wave Fault Locator Cards for 4 Lines (DBB) - 220 VDC","SCHEME, PROTECTION: TYPE: TWS: 4 FDR DBB; 220VDC; APPLICATION: TWS FAULT LOCATOR; TWS SCHEME: FAULT LOCATOR FOR 4 FEEDERS DOUBLE BUSBAR; TWS FAULT LOCATOR SCHEME WITH 1 QUALITROL IDM+ 6U UNIT, 2 9A/32B BOARDS, 1 X INTERNAL GPS RECEIVER (WITH GPS ANTENNA AND CABLE) AND 2 TWS FL DAUGHTER BOARDS + CONFIGURATION. FULLY ASSEMBLED WITH AUXILIARY SCHEME COMPONENTS; TESTED AND SUPPLIED IN A SWING FRAME PANEL; DRAWING NO: 0.52/30112; MODEL NO: 6DR-7100; VENDORS ARE RESPONSIBLE FOR ENSURING THAT THEY ARE PERFORMING AGAINST THE CORRECT DRAWING REVISION NUMBER (IF APPLICABLE).","No",1,{"$f":"VLOOKUP(G$9,PS5_Supply!$B:$ZP,INDEX(PS5_Supply!$14:$14,MATCH(BoQ_Equipment!$B51,PS5_Supply!$9:$9,0)),FALSE)","v":0},{"$f":"VLOOKUP(H$9,PS5_Supply!$B:$ZP,INDEX(PS5_Supply!$14:$14,MATCH(BoQ_Equipment!$B51,PS5_Supply!$9:$9,0)),FALSE)","v":0},{"$f":"VLOOKUP(I$9,PS5_Supply!$B:$ZP,INDEX(PS5_Supply!$14:$14,MATCH(BoQ_Equipment!$B51,PS5_Supply!$9:$9,0)),FALSE)","v":0},0,0,{"$f":"VLOOKUP(L$9,PS5_Supply!$B:$ZP,INDEX(PS5_Supply!$14:$14,MATCH(BoQ_Equipment!$B51,PS5_Supply!$9:$9,0)),FALSE)","v":0},{"$f":"VLOOKUP(M$9,PS5_Supply!$B:$ZP,INDEX(PS5_Supply!$14:$14,MATCH(BoQ_Equipment!$B51,PS5_Supply!$9:$9,0)),FALSE)","v":0},0,0,{"$f":"VLOOKUP(P$9,PS5_Supply!$B:$ZP,INDEX(PS5_Supply!$14:$14,MATCH(BoQ_Equipment!$B51,PS5_Supply!$9:$9,0)),FALSE)","v":0},{"$f":"VLOOKUP(Q$9,PS5_Supply!$B:$ZP,INDEX(PS5_Supply!$14:$14,MATCH(BoQ_Equipment!$B51,PS5_Supply!$9:$9,0)),FALSE)","v":0},{"$f":"VLOOKUP(R$9,PS5_Supply!$B:$ZP,INDEX(PS5_Supply!$14:$14,MATCH(BoQ_Equipment!$B51,PS5_Supply!$9:$9,0)),FALSE)","v":0},{"$f":"VLOOKUP(S$9,PS5_Supply!$B:$ZP,INDEX(PS5_Supply!$14:$14,MATCH(BoQ_Equipment!$B51,PS5_Supply!$9:$9,0)),FALSE)","v":0},0,0,0,0,0,0]
[660269,39,"Scheme: IDM+6U with 2 Traveling Wave Fault Locator Cards for 2 Lines (BAH)  - 110 VDC","SCHEME, PROTECTION: TYPE: TWS: 2 FDR BAH; 110VDC; APPLICATION: TWS FAULT LOCATOR; TWS SCHEME: FAULT LOCATOR FOR 2 FEEDERS BREAKER-AND-A-HALF; TWS FAULT LOCATOR SCHEME WITH 1 QUALITROL IDM+ 6U UNIT, 2 9A/32B BOARDS, 1 INTERNAL GPS RECEIVER (WITH GPS ANTENNA AND CABLE) AND 2 TWS FL DAUGHTER BOARDS + CONFIGURATION. FULLY ASSEMBLED WITH AUXILIARY SCHEME COMPONENTS; TESTED AND SUPPLIED IN A SWING FRAME PANEL; DRAWING NO: 0.52/30114; MODEL NO: 6DRB-7100; VENDORS ARE RESPONSIBLE FOR ENSURING THAT THEY ARE PERFORMING AGAINST THE CORRECT DRAWING REVISION NUMBER (IF APPLICABLE).","No",1,{"$f":"VLOOKUP(G$9,PS5_Supply!$B:$ZP,INDEX(PS5_Supply!$14:$14,MATCH(BoQ_Equipment!$B52,PS5_Supply!$9:$9,0)),FALSE)","v":0},{"$f":"VLOOKUP(H$9,PS5_Supply!$B:$ZP,INDEX(PS5_Supply!$14:$14,MATCH(BoQ_Equipment!$B52,PS5_Supply!$9:$9,0)),FALSE)","v":0},{"$f":"VLOOKUP(I$9,PS5_Supply!$B:$ZP,INDEX(PS5_Supply!$14:$14,MATCH(BoQ_Equipment!$B52,PS5_Supply!$9:$9,0)),FALSE)","v":0},0,0,{"$f":"VLOOKUP(L$9,PS5_Supply!$B:$ZP,INDEX(PS5_Supply!$14:$14,MATCH(BoQ_Equipment!$B52,PS5_Supply!$9:$9,0)),FALSE)","v":0},{"$f":"VLOOKUP(M$9,PS5_Supply!$B:$ZP,INDEX(PS5_Supply!$14:$14,MATCH(BoQ_Equipment!$B52,PS5_Supply!$9:$9,0)),FALSE)","v":0},0,0,{"$f":"VLOOKUP(P$9,PS5_Supply!$B:$ZP,INDEX(PS5_Supply!$14:$14,MATCH(BoQ_Equipment!$B52,PS5_Supply!$9:$9,0)),FALSE)","v":0},{"$f":"VLOOKUP(Q$9,PS5_Supply!$B:$ZP,INDEX(PS5_Supply!$14:$14,MATCH(BoQ_Equipment!$B52,PS5_Supply!$9:$9,0)),FALSE)","v":0},{"$f":"VLOOKUP(R$9,PS5_Supply!$B:$ZP,INDEX(PS5_Supply!$14:$14,MATCH(BoQ_Equipment!$B52,PS5_Supply!$9:$9,0)),FALSE)","v":0},{"$f":"VLOOKUP(S$9,PS5_Supply!$B:$ZP,INDEX(PS5_Supply!$14:$14,MATCH(BoQ_Equipment!$B52,PS5_Supply!$9:$9,0)),FALSE)","v":0},0,0,0,0,0,0]
[660270,40,"Scheme: IDM+6U with 2 Traveling Wave Fault Locator Cards for 2 Lines (BAH)  - 220 VDC","SCHEME, PROTECTION: TYPE: TWS: 2 FDR BAH; 220VDC; APPLICATION: TWS FAULT LOCATOR; TWS SCHEME: FAULT LOCATOR FOR 2 FEEDERS BREAKER-AND-A-HALF; TWS FAULT LOCATOR SCHEME WITH 1 QUALITROL IDM+ 6U UNIT, 2 9A/32B BOARDS, 1 INTERNAL GPS RECEIVER (WITH GPS ANTENNA AND CABLE) AND 2 TWS FL DAUGHTER BOARDS + CONFIGURATION. FULLY ASSEMBLED WITH AUXILIARY SCHEME COMPONENTS; TESTED AND SUPPLIED IN A SWING FRAME PANEL; DRAWING NO: 0.52/30114; MODEL NO: 6DRB-7100; VENDORS ARE RESPONSIBLE FOR ENSURING THAT THEY ARE PERFORMING AGAINST THE CORRECT DRAWING REVISION NUMBER (IF APPLICABLE).","No",1,{"$f":"VLOOKUP(G$9,PS5_Supply!$B:$ZP,INDEX(PS5_Supply!$14:$14,MATCH(BoQ_Equipment!$B53,PS5_Supply!$9:$9,0)),FALSE)","v":0},{"$f":"VLOOKUP(H$9,PS5_Supply!$B:$ZP,INDEX(PS5_Supply!$14:$14,MATCH(BoQ_Equipment!$B53,PS5_Supply!$9:$9,0)),FALSE)","v":0},{"$f":"VLOOKUP(I$9,PS5_Supply!$B:$ZP,INDEX(PS5_Supply!$14:$14,MATCH(BoQ_Equipment!$B53,PS5_Supply!$9:$9,0)),FALSE)","v":0},0,0,{"$f":"VLOOKUP(L$9,PS5_Supply!$B:$ZP,INDEX(PS5_Supply!$14:$14,MATCH(BoQ_Equipment!$B53,PS5_Supply!$9:$9,0)),FALSE)","v":0},{"$f":"VLOOKUP(M$9,PS5_Supply!$B:$ZP,INDEX(PS5_Supply!$14:$14,MATCH(BoQ_Equipment!$B53,PS5_Supply!$9:$9,0)),FALSE)","v":0},0,0,{"$f":"VLOOKUP(P$9,PS5_Supply!$B:$ZP,INDEX(PS5_Supply!$14:$14,MATCH(BoQ_Equipment!$B53,PS5_Supply!$9:$9,0)),FALSE)","v":0},{"$f":"VLOOKUP(Q$9,PS5_Supply!$B:$ZP,INDEX(PS5_Supply!$14:$14,MATCH(BoQ_Equipment!$B53,PS5_Supply!$9:$9,0)),FALSE)","v":0},{"$f":"VLOOKUP(R$9,PS5_Supply!$B:$ZP,INDEX(PS5_Supply!$14:$14,MATCH(BoQ_Equipment!$B53,PS5_Supply!$9:$9,0)),FALSE)","v":0},{"$f":"VLOOKUP(S$9,PS5_Supply!$B:$ZP,INDEX(PS5_Supply!$14:$14,MATCH(BoQ_Equipment!$B53,PS5_Supply!$9:$9,0)),FALSE)","v":0},0,0,0,0,0,0]
[]
[null,null,"MISCELLANEOUS",{"$nulls":7},{"$f":"SUM(K57:K118)","v":0},{"$nulls":3},{"$f":"SUM(O57:O118)","v":0},{"$nulls":4},{"$f":"SUM(T57:T118)","v":0},{"$f":"SUM(U57:U118)","v":0},null,{"$f":"SUM(W57:W118)","v":0},null,{"$f":"SUM(Y57:Y118)","v":0}]
[null,null,"Eskom standard device licenses and configurations to apply."]
[660721,41,"Loose: IDM+6U with 9A/32B c/w Chassis Plate & Loom - 110 VDC","UNIT: TYPE: LOOSE DFR: 9A 32B; APPLICATION: 110 VDC; QUALITROL IDM+ 6U UNIT WITH 1 X 9A/32B BOARDS + CONFIGURATION. LOOSE UNIT; TESTED AND SUPPLIED WITH TERMINAL RAIL, AUXILIARY SCHEME COMPONENTS (EXCLUDING TEST BLOCKS), PATCH LEADS, COMMUNICATIONS CABLES, LOOM AND ALL OTHER EQUIPMENT REQUIRED FOR INSTALLATION IN AN EXISTING PANEL AS PER 6DR-7100 OR 6DRB-7100 SCHEME DESIGN - AS APPLICABLE (MASTER DRAWING NO. 0.52/30112 OR 0.52/30114 RESPECTIVELY); VENDORS ARE RESPONSIBLE FOR ENSURING THAT THEY ARE PERFORMING AGAINST THE CORRECT DRAWING REVISION NUMBER (IF APPLICABLE).","No",8,{"$f":"VLOOKUP(G$9,PS5_Supply!$B:$ZP,INDEX(PS5_Supply!$14:$14,MATCH(BoQ_Equipment!$B57,PS5_Supply!$9:$9,0)),FALSE)","v":0},{"$f":"VLOOKUP(H$9,PS5_Supply!$B:$ZP,INDEX(PS5_Supply!$14:$14,MATCH(BoQ_Equipment!$B57,PS5_Supply!$9:$9,0)),FALSE)","v":0},{"$f":"VLOOKUP(I$9,PS5_Supply!$B:$ZP,INDEX(PS5_Supply!$14:$14,MATCH(BoQ_Equipment!$B57,PS5_Supply!$9:$9,0)),FALSE)","v":0},{"$f":"I57+H57+G57","v":0},{"$f":"F57*J57","v":0},{"$f":"VLOOKUP(L$9,PS5_Supply!$B:$ZP,INDEX(PS5_Supply!$14:$14,MATCH(BoQ_Equipment!$B57,PS5_Supply!$9:$9,0)),FALSE)","v":0},{"$f":"VLOOKUP(M$9,PS5_Supply!$B:$ZP,INDEX(PS5_Supply!$14:$14,MATCH(BoQ_Equipment!$B57,PS5_Supply!$9:$9,0)),FALSE)","v":0},{"$f":"SUM(L57:M57)","v":0},{"$f":"N57*F57","v":0},{"$f":"VLOOKUP(P$9,PS5_Supply!$B:$ZP,INDEX(PS5_Supply!$14:$14,MATCH(BoQ_Equipment!$B57,PS5_Supply!$9:$9,0)),FALSE)","v":0},{"$f":"VLOOKUP(Q$9,PS5_Supply!$B:$ZP,INDEX(PS5_Supply!$14:$14,MATCH(BoQ_Equipment!$B57,PS5_Supply!$9:$9,0)),FALSE)","v":0},{"$f":"VLOOKUP(R$9,PS5_Supply!$B:$ZP,INDEX(PS5_Supply!$14:$14,MATCH(BoQ_Equipment!$B57,PS5_Supply!$9:$9,0)),FALSE)","v":0},{"$f":"VLOOKUP(S$9,PS5_Supply!$B:$ZP,INDEX(PS5_Supply!$14:$14,MATCH(BoQ_Equipment!$B57,PS5_Supply!$9:$9,0)),FALSE)","v":0},{"$f":"(Q57+R57)*F57","v":0},{"$f":"(P57+S57)*F57","v":0},{"$f":"P57+Q57+R57+S57","v":0},{"$f":"F57*V57","v":0},{"$f":"J57+N57+V57","v":0},{"$f":"IF(F57=0,\"Rate Only\",X57*F57)","v":0}]
[661829,42,"Loose: IDM+6U with 9A/32B c/w Chassis Plate & Loom - 220 VDC","UNIT: TYPE: LOOSE DFR; 9A/32B; APPLICATION: 220 VDC; QUALITROL IDM+ 6U UNIT WITH 1 X 9A/32B BOARDS + CONFIGURATION . LOOSE UNIT; TESTED AND SUPPLIED WITH TERMINAL RAIL, AUXILIARY SCHEME COMPONENTS (EXCLUDING TEST BLOCKS), PATCH LEADS, COMMUNICATIONS CABLES, LOOM AND ALL OTHER EQUIPMENT REQUIRED FOR INSTALLATION IN AN EXISTING PANEL AS PER 6DR-7100 OR 6DRB-7100 SCHEME DESIGN - AS APPLICABLE (MASTER DRAWING NO: 0.52/30112 OR 0.52/30114 RESPECTIVELY); VENDORS ARE RESPONSIBLE FOR ENSURING THAT THEY ARE PERFORMING AGAINST THE CORRECT DRAWING REVISION NUMBER (IF APPLICABLE).","No",7,{"$f":"VLOOKUP(G$9,PS5_Supply!$B:$ZP,INDEX(PS5_Supply!$14:$14,MATCH(BoQ_Equipment!$B58,PS5_Supply!$9:$9,0)),FALSE)","v":0},{"$f":"VLOOKUP(H$9,PS5_Supply!$B:$ZP,INDEX(PS5_Supply!$14:$14,MATCH(BoQ_Equipment!$B58,PS5_Supply!$9:$9,0)),FALSE)","v":0},{"$f":"VLOOKUP(I$9,PS5_Supply!$B:$ZP,INDEX(PS5_Supply!$14:$14,MATCH(BoQ_Equipment!$B58,PS5_Supply!$9:$9,0)),FALSE)","v":0},0,0,{"$f":"VLOOKUP(L$9,PS5_Supply!$B:$ZP,INDEX(PS5_Supply!$14:$14,MATCH(BoQ_Equipment!$B58,PS5_Supply!$9:$9,0)),FALSE)","v":0},{"$f":"VLOOKUP(M$9,PS5_Supply!$B:$ZP,INDEX(PS5_Supply!$14:$14,MATCH(BoQ_Equipment!$B58,PS5_Supply!$9:$9,0)),FALSE)","v":0},0,0,{"$f":"VLOOKUP(P$9,PS5_Supply!$B:$ZP,INDEX(PS5_Supply!$14:$14,MATCH(BoQ_Equipment!$B58,PS5_Supply!$9:$9,0)),FALSE)","v":0},{"$f":"VLOOKUP(Q$9,PS5_Supply!$B:$ZP,INDEX(PS5_Supply!$14:$14,MATCH(BoQ_Equipment!$B58,PS5_Supply!$9:$9,0)),FALSE)","v":0},{"$f":"VLOOKUP(R$9,PS5_Supply!$B:$ZP,INDEX(PS5_Supply!$14:$14,MATCH(BoQ_Equipment!$B58,PS5_Supply!$9:$9,0)),FALSE)","v":0},{"$f":"VLOOKUP(S$9,PS5_Supply!$B:$ZP,INDEX(PS5_Supply!$14:$14,MATCH(BoQ_Equipment!$B58,PS5_Supply!$9:$9,0)),FALSE)","v":0},0,0,0,0,0,0]
[660722,43,"Loose: IDM+6U with 18A/64B c/w Chassis Plate & Loom - 110 VDC","UNIT: TYPE: LOOSE DFR: 18A 64B; APPLICATION: 110 VDC; QUALITROL IDM+ 6U UNIT WITH 2 X 9A/32B BOARDS + CONFIGURATION. LOOSE UNIT; TESTED AND SUPPLIED WITH TERMINAL RAILS, AUXILIARY SCHEME COMPONENTS (EXCLUDING TEST BLOCKS), PATCH LEADS, COMMUNICATIONS CABLES, LOOM AND ALL OTHER EQUIPMENT REQUIRED FOR INSTALLATION IN AN EXISTING PANEL AS PER 6DR-7100 OR 6DRB-7100 SCHEME DESIGN - AS APPLICABLE (MASTER DRAWING NO. 0.52/30112 OR 0.52/30114 RESPECTIVELY); VENDORS ARE RESPONSIBLE FOR ENSURING THAT THEY ARE PERFORMING AGAINST THE CORRECT DRAWING REVISION NUMBER (IF APPLICABLE).","No",10,{"$f":"VLOOKUP(G$9,PS5_Supply!$B:$ZP,INDEX(PS5_Supply!$14:$14,MATCH(BoQ_Equipment!$B59,PS5_Supply!$9:$9,0)),FALSE)","v":0},{"$f":"VLOOKUP(H$9,PS5_Supply!$B:$ZP,INDEX(PS5_Supply!$14:$14,MATCH(BoQ_Equipment!$B59,PS5_Supply!$9:$9,0)),FALSE)","v":0},{"$f":"VLOOKUP(I$9,PS5_Supply!$B:$ZP,INDEX(PS5_Supply!$14:$14,MATCH(BoQ_Equipment!$B59,PS5_Supply!$9:$9,0)),FALSE)","v":0},0,0,{"$f":"VLOOKUP(L$9,PS5_Supply!$B:$ZP,INDEX(PS5_Supply!$14:$14,MATCH(BoQ_Equipment!$B59,PS5_Supply!$9:$9,0)),FALSE)","v":0},{"$f":"VLOOKUP(M$9,PS5_Supply!$B:$ZP,INDEX(PS5_Supply!$14:$14,MATCH(BoQ_Equipment!$B59,PS5_Supply!$9:$9,0)),FALSE)","v":0},0,0,{"$f":"VLOOKUP(P$9,PS5_Supply!$B:$ZP,INDEX(PS5_Supply!$14:$14,MATCH(BoQ_Equipment!$B59,PS5_Supply!$9:$9,0)),FALSE)","v":0},{"$f":"VLOOKUP(Q$9,PS5_Supply!$B:$ZP,INDEX(PS5_Supply!$14:$14,MATCH(BoQ_Equipment!$B59,PS5_Supply!$9:$9,0)),FALSE)","v":0},{"$f":"VLOOKUP(R$9,PS5_Supply!$B:$ZP,INDEX(PS5_Supply!$14:$14,MATCH(BoQ_Equipment!$B59,PS5_Supply!$9:$9,0)),FALSE)","v":0},{"$f":"VLOOKUP(S$9,PS5_Supply!$B:$ZP,INDEX(PS5_Supply!$14:$14,MATCH(BoQ_Equipment!$B59,PS5_Supply!$9:$9,0)),FALSE)","v":0},0,0,0,0,0,0]
[661830,44,"Loose: IDM+6U with 18A/64B c/w Chassis Plate & Loom - 220 VDC","UNIT: TYPE: LOOSE DFR: 18A/64B; APPLICATION: 220 VDC; QUALITROL IDM+ 6U UNIT WITH 2 X 9A/32B BOARDS + CONFIGURATION. LOOSE UNIT; TESTED AND SUPPLIED WITH TERMINAL RAILS, AUXILIARY SCHEME COMPONENTS (EXCLUDING TEST BLOCKS), PATCH LEADS, COMMUNICATIONS CABLES, LOOM AND ALL OTHER EQUIPMENT REQUIRED FOR INSTALLATION IN AN EXISTING PANEL AS PER 6DR-7100 OR 6DRB-7100 SCHEME DESIGN - AS APPLICABLE (MASTER DRAWING NO: 0.52/30112 OR 0.52/30114 RESPECTIVELY); VENDORS ARE RESPONSIBLE FOR ENSURING THAT THEY ARE PERFORMING AGAINST THE CORRECT DRAWING REVISION NUMBER (IF APPLICABLE).","No",9,{"$f":"VLOOKUP(G$9,PS5_Supply!$B:$ZP,INDEX(PS5_Supply!$14:$14,MATCH(BoQ_Equipment!$B60,PS5_Supply!$9:$9,0)),FALSE)","v":0},{"$f":"VLOOKUP(H$9,PS5_Supply!$B:$ZP,INDEX(PS5_Supply!$14:$14,MATCH(BoQ_Equipment!$B60,PS5_Supply!$9:$9,0)),FALSE)","v":0},{"$f":"VLOOKUP(I$9,PS5_Supply!$B:$ZP,INDEX(PS5_Supply!$14:$14,MATCH(BoQ_Equipment!$B60,PS5_Supply!$9:$9,0)),FALSE)","v":0},0,0,{"$f":"VLOOKUP(L$9,PS5_Supply!$B:$ZP,INDEX(PS5_Supply!$14:$14,MATCH(BoQ_Equipment!$B60,PS5_Supply!$9:$9,0)),FALSE)","v":0},{"$f":"VLOOKUP(M$9,PS5_Supply!$B:$ZP,INDEX(PS5_Supply!$14:$14,MATCH(BoQ_Equipment!$B60,PS5_Supply!$9:$9,0)),FALSE)","v":0},0,0,{"$f":"VLOOKUP(P$9,PS5_Supply!$B:$ZP,INDEX(PS5_Supply!$14:$14,MATCH(BoQ_Equipment!$B60,PS5_Supply!$9:$9,0)),FALSE)","v":0},{"$f":"VLOOKUP(Q$9,PS5_Supply!$B:$ZP,INDEX(PS5_Supply!$14:$14,MATCH(BoQ_Equipment!$B60,PS5_Supply!$9:$9,0)),FALSE)","v":0},{"$f":"VLOOKUP(R$9,PS5_Supply!$B:$ZP,INDEX(PS5_Supply!$14:$14,MATCH(BoQ_Equipment!$B60,PS5_Supply!$9:$9,0)),FALSE)","v":0},{"$f":"VLOOKUP(S$9,PS5_Supply!$B:$ZP,INDEX(PS5_Supply!$14:$14,MATCH(BoQ_Equipment!$B60,PS5_Supply!$9:$9,0)),FALSE)","v":0},0,0,0,0,0,0]
[660723,45,"Loose: IDM+6U with 27A/96B c/w Chassis Plate & Loom - 110 VDC","UNIT: TYPE: LOOSE DFR: 27A 96B; APPLICATION: 110 VDC; QUALITROL IDM+ 6U UNIT WITH 3 X 9A/32B BOARDS + CONFIGURATION. LOOSE UNIT; TESTED AND SUPPLIED WITH TERMINAL RAILS, AUXILIARY SCHEME COMPONENTS (EXCLUDING TEST BLOCKS), PATCH LEADS, COMMUNICATIONS CABLES, LOOM AND ALL OTHER EQUIPMENT REQUIRED FOR INSTALLATION IN AN EXISTING PANEL AS PER 6DR-7100 OR 6DRB-7100 SCHEME DESIGN - AS APPLICABLE (MASTER DRAWING NO. 0.52/30112 OR 0.52/30114 RESPECTIVELY); VENDORS ARE RESPONSIBLE FOR ENSURING THAT THEY ARE PERFORMING AGAINST THE CORRECT DRAWING REVISION NUMBER (IF APPLICABLE).","No",12,{"$f":"VLOOKUP(G$9,PS5_Supply!$B:$ZP,INDEX(PS5_Supply!$14:$14,MATCH(BoQ_Equipment!$B61,PS5_Supply!$9:$9,0)),FALSE)","v":0},{"$f":"VLOOKUP(H$9,PS5_Supply!$B:$ZP,INDEX(PS5_Supply!$14:$14,MATCH(BoQ_Equipment!$B61,PS5_Supply!$9:$9,0)),FALSE)","v":0},{"$f":"VLOOKUP(I$9,PS5_Supply!$B:$ZP,INDEX(PS5_Supply!$14:$14,MATCH(BoQ_Equipment!$B61,PS5_Supply!$9:$9,0)),FALSE)","v":0},0,0,{"$f":"VLOOKUP(L$9,PS5_Supply!$B:$ZP,INDEX(PS5_Supply!$14:$14,MATCH(BoQ_Equipment!$B61,PS5_Supply!$9:$9,0)),FALSE)","v":0},{"$f":"VLOOKUP(M$9,PS5_Supply!$B:$ZP,INDEX(PS5_Supply!$14:$14,MATCH(BoQ_Equipment!$B61,PS5_Supply!$9:$9,0)),FALSE)","v":0},0,0,{"$f":"VLOOKUP(P$9,PS5_Supply!$B:$ZP,INDEX(PS5_Supply!$14:$14,MATCH(BoQ_Equipment!$B61,PS5_Supply!$9:$9,0)),FALSE)","v":0},{"$f":"VLOOKUP(Q$9,PS5_Supply!$B:$ZP,INDEX(PS5_Supply!$14:$14,MATCH(BoQ_Equipment!$B61,PS5_Supply!$9:$9,0)),FALSE)","v":0},{"$f":"VLOOKUP(R$9,PS5_Supply!$B:$ZP,INDEX(PS5_Supply!$14:$14,MATCH(BoQ_Equipment!$B61,PS5_Supply!$9:$9,0)),FALSE)","v":0},{"$f":"VLOOKUP(S$9,PS5_Supply!$B:$ZP,INDEX(PS5_Supply!$14:$14,MATCH(BoQ_Equipment!$B61,PS5_Supply!$9:$9,0)),FALSE)","v":0},0,0,0,0,0,0]
[661833,46,"Loose: IDM+6U with 27A/96B c/w Chassis Plate & Loom - 220 VDC","UNIT: TYPE: LOOSE DFR; 27A/96B; APPLICATION: 220 VDC; QUALITROL IDM+ 6U UNIT WITH 3 X 9A/32B BOARDS + CONFIGURATION. LOOSE UNIT; TESTED AND SUPPLIED WITH TERMINAL RAILS, AUXILIARY SCHEME COMPONENTS (EXCLUDING TEST BLOCKS), PATCH LEADS, COMMUNICATIONS CABLES, LOOM AND ALL OTHER EQUIPMENT REQUIRED FOR INSTALLATION IN AN EXISTING PANEL AS PER 6DR-7100 OR 6DRB-7100 SCHEME DESIGN - AS APPLICABLE (MASTER DRAWING NO: 0.52/30112 OR 0.52/30114 RESPECTIVELY); VENDORS ARE RESPONSIBLE FOR ENSURING THAT THEY ARE PERFORMING AGAINST THE CORRECT DRAWING REVISION NUMBER (IF APPLICABLE).","No",12,{"$f":"VLOOKUP(G$9,PS5_Supply!$B:$ZP,INDEX(PS5_Supply!$14:$14,MATCH(BoQ_Equipment!$B62,PS5_Supply!$9:$9,0)),FALSE)","v":0},{"$f":"VLOOKUP(H$9,PS5_Supply!$B:$ZP,INDEX(PS5_Supply!$14:$14,MATCH(BoQ_Equipment!$B62,PS5_Supply!$9:$9,0)),FALSE)","v":0},{"$f":"VLOOKUP(I$9,PS5_Supply!$B:$ZP,INDEX(PS5_Supply!$14:$14,MATCH(BoQ_Equipment!$B62,PS5_Supply!$9:$9,0)),FALSE)","v":0},0,0,{"$f":"VLOOKUP(L$9,PS5_Supply!$B:$ZP,INDEX(PS5_Supply!$14:$14,MATCH(BoQ_Equipment!$B62,PS5_Supply!$9:$9,0)),FALSE)","v":0},{"$f":"VLOOKUP(M$9,PS5_Supply!$B:$ZP,INDEX(PS5_Supply!$14:$14,MATCH(BoQ_Equipment!$B62,PS5_Supply!$9:$9,0)),FALSE)","v":0},0,0,{"$f":"VLOOKUP(P$9,PS5_Supply!$B:$ZP,INDEX(PS5_Supply!$14:$14,MATCH(BoQ_Equipment!$B62,PS5_Supply!$9:$9,0)),FALSE)","v":0},{"$f":"VLOOKUP(Q$9,PS5_Supply!$B:$ZP,INDEX(PS5_Supply!$14:$14,MATCH(BoQ_Equipment!$B62,PS5_Supply!$9:$9,0)),FALSE)","v":0},{"$f":"VLOOKUP(R$9,PS5_Supply!$B:$ZP,INDEX(PS5_Supply!$14:$14,MATCH(BoQ_Equipment!$B62,PS5_Supply!$9:$9,0)),FALSE)","v":0},{"$f":"VLOOKUP(S$9,PS5_Supply!$B:$ZP,INDEX(PS5_Supply!$14:$14,MATCH(BoQ_Equipment!$B62,PS5_Supply!$9:$9,0)),FALSE)","v":0},0,0,0,0,0,0]
[660724,47,"Loose: IDM+6U with 36A/128B c/w Chassis Plate & Loom - 110 VDC","UNIT: TYPE: LOOSE DFR: 36A 128B; APPLICATION: 110 VDC; QUALITROL IDM+ 6U UNIT WITH 4 X 9A/32B BOARDS + CONFIGURATION. LOOSE UNIT; TESTED AND SUPPLIED WITH TERMINAL RAILS, AUXILIARY SCHEME COMPONENTS (EXCLUDING TEST BLOCKS), PATCH LEADS, COMMUNICATIONS CABLES, LOOM AND ALL OTHER EQUIPMENT REQUIRED FOR INSTALLATION IN AN EXISTING PANEL AS PER 6DR-7100 OR 6DRB-7100 SCHEME DESIGN - AS APPLICABLE (MASTER DRAWING NO. 0.52/30112 OR 0.52/30114 RESPECTIVELY); VENDORS ARE RESPONSIBLE FOR ENSURING THAT THEY ARE PERFORMING AGAINST THE CORRECT DRAWING REVISION NUMBER (IF APPLICABLE).","No",27,{"$f":"VLOOKUP(G$9,PS5_Supply!$B:$ZP,INDEX(PS5_Supply!$14:$14,MATCH(BoQ_Equipment!$B63,PS5_Supply!$9:$9,0)),FALSE)","v":0},{"$f":"VLOOKUP(H$9,PS5_Supply!$B:$ZP,INDEX(PS5_Supply!$14:$14,MATCH(BoQ_Equipment!$B63,PS5_Supply!$9:$9,0)),FALSE)","v":0},{"$f":"VLOOKUP(I$9,PS5_Supply!$B:$ZP,INDEX(PS5_Supply!$14:$14,MATCH(BoQ_Equipment!$B63,PS5_Supply!$9:$9,0)),FALSE)","v":0},0,0,{"$f":"VLOOKUP(L$9,PS5_Supply!$B:$ZP,INDEX(PS5_Supply!$14:$14,MATCH(BoQ_Equipment!$B63,PS5_Supply!$9:$9,0)),FALSE)","v":0},{"$f":"VLOOKUP(M$9,PS5_Supply!$B:$ZP,INDEX(PS5_Supply!$14:$14,MATCH(BoQ_Equipment!$B63,PS5_Supply!$9:$9,0)),FALSE)","v":0},0,0,{"$f":"VLOOKUP(P$9,PS5_Supply!$B:$ZP,INDEX(PS5_Supply!$14:$14,MATCH(BoQ_Equipment!$B63,PS5_Supply!$9:$9,0)),FALSE)","v":0},{"$f":"VLOOKUP(Q$9,PS5_Supply!$B:$ZP,INDEX(PS5_Supply!$14:$14,MATCH(BoQ_Equipment!$B63,PS5_Supply!$9:$9,0)),FALSE)","v":0},{"$f":"VLOOKUP(R$9,PS5_Supply!$B:$ZP,INDEX(PS5_Supply!$14:$14,MATCH(BoQ_Equipment!$B63,PS5_Supply!$9:$9,0)),FALSE)","v":0},{"$f":"VLOOKUP(S$9,PS5_Supply!$B:$ZP,INDEX(PS5_Supply!$14:$14,MATCH(BoQ_Equipment!$B63,PS5_Supply!$9:$9,0)),FALSE)","v":0},0,0,0,0,0,0]
[661834,48,"Loose: IDM+6U with 36A/128B c/w Chassis Plate & Loom - 220 VDC","UNIT: TYPE: LOOSE DFR: 36A/128B; APPLICATION: 220 VDC; QUALITROL IDM+ 6U UNIT WITH 4 X 9A/32B BOARDS + CONFIGURATION. LOOSE UNIT; TESTED AND SUPPLIED WITH TERMINAL RAILS, AUXILIARY SCHEME COMPONENTS (EXCLUDING TEST BLOCKS), PATCH LEADS, COMMUNICATIONS CABLES, LOOM AND ALL OTHER EQUIPMENT REQUIRED FOR INSTALLATION IN AN EXISTING PANEL AS PER 6DR-7100 OR 6DRB-7100 SCHEME DESIGN - AS APPLICABLE (MASTER DRAWING NO: 0.52/30112 OR 0.52/30114 RESPECTIVELY); VENDORS ARE RESPONSIBLE FOR ENSURING THAT THEY ARE PERFORMING AGAINST THE CORRECT DRAWING REVISION NUMBER (IF APPLICABLE).","No",27,{"$f":"VLOOKUP(G$9,PS5_Supply!$B:$ZP,INDEX(PS5_Supply!$14:$14,MATCH(BoQ_Equipment!$B64,PS5_Supply!$9:$9,0)),FALSE)","v":0},{"$f":"VLOOKUP(H$9,PS5_Supply!$B:$ZP,INDEX(PS5_Supply!$14:$14,MATCH(BoQ_Equipment!$B64,PS5_Supply!$9:$9,0)),FALSE)","v":0},{"$f":"VLOOKUP(I$9,PS5_Supply!$B:$ZP,INDEX(PS5_Supply!$14:$14,MATCH(BoQ_Equipment!$B64,PS5_Supply!$9:$9,0)),FALSE)","v":0},0,0,{"$f":"VLOOKUP(L$9,PS5_Supply!$B:$ZP,INDEX(PS5_Supply!$14:$14,MATCH(BoQ_Equipment!$B64,PS5_Supply!$9:$9,0)),FALSE)","v":0},{"$f":"VLOOKUP(M$9,PS5_Supply!$B:$ZP,INDEX(PS5_Supply!$14:$14,MATCH(BoQ_Equipment!$B64,PS5_Supply!$9:$9,0)),FALSE)","v":0},0,0,{"$f":"VLOOKUP(P$9,PS5_Supply!$B:$ZP,INDEX(PS5_Supply!$14:$14,MATCH(BoQ_Equipment!$B64,PS5_Supply!$9:$9,0)),FALSE)","v":0},{"$f":"VLOOKUP(Q$9,PS5_Supply!$B:$ZP,INDEX(PS5_Supply!$14:$14,MATCH(BoQ_Equipment!$B64,PS5_Supply!$9:$9,0)),FALSE)","v":0},{"$f":"VLOOKUP(R$9,PS5_Supply!$B:$ZP,INDEX(PS5_Supply!$14:$14,MATCH(BoQ_Equipment!$B64,PS5_Supply!$9:$9,0)),FALSE)","v":0},{"$f":"VLOOKUP(S$9,PS5_Supply!$B:$ZP,INDEX(PS5_Supply!$14:$14,MATCH(BoQ_Equipment!$B64,PS5_Supply!$9:$9,0)),FALSE)","v":0},0,0,0,0,0,0]
[660715,49,"Loose: IDM+6U with 1 x TWS Card, 1 x 9A/32B Card c/w Chassis Plate & Loom - 110 VDC","UNIT: TYPE: LOOSE TWS; 1 TWS FL BOARD; APPLICATION: 110 VDC; QUALITROL IDM+ 6U UNIT WITH 1 X 9A/32B BOARDS AND 1 X TWS FL DAUGHTER BOARD + CONFIGURATION. LOOSE UNIT; TESTED AND SUPPLIED WITH TERMINAL RAILS, LC SNAP TRACK BOARDS, AUXILIARY SCHEME COMPONENTS (EXCLUDING TEST BLOCKS), PATCH LEADS, COMMUNICATIONS CABLES, LOOM AND ALL OTHER EQUIPMENT REQUIRED FOR INSTALLATION IN AN EXISTING PANEL AS PER 6DR-7100 OR 6DRB-7100 SCHEME DESIGN - AS APPLICABLE (MASTER DRAWING NO. 0.52/30112 OR 0.52/30114 RESPECTIVELY); VENDORS ARE RESPONSIBLE FOR ENSURING THAT THEY ARE PERFORMING AGAINST THE CORRECT DRAWING REVISION NUMBER (IF APPLICABLE).","No",1,{"$f":"VLOOKUP(G$9,PS5_Supply!$B:$ZP,INDEX(PS5_Supply!$14:$14,MATCH(BoQ_Equipment!$B65,PS5_Supply!$9:$9,0)),FALSE)","v":0},{"$f":"VLOOKUP(H$9,PS5_Supply!$B:$ZP,INDEX(PS5_Supply!$14:$14,MATCH(BoQ_Equipment!$B65,PS5_Supply!$9:$9,0)),FALSE)","v":0},{"$f":"VLOOKUP(I$9,PS5_Supply!$B:$ZP,INDEX(PS5_Supply!$14:$14,MATCH(BoQ_Equipment!$B65,PS5_Supply!$9:$9,0)),FALSE)","v":0},0,0,{"$f":"VLOOKUP(L$9,PS5_Supply!$B:$ZP,INDEX(PS5_Supply!$14:$14,MATCH(BoQ_Equipment!$B65,PS5_Supply!$9:$9,0)),FALSE)","v":0},{"$f":"VLOOKUP(M$9,PS5_Supply!$B:$ZP,INDEX(PS5_Supply!$14:$14,MATCH(BoQ_Equipment!$B65,PS5_Supply!$9:$9,0)),FALSE)","v":0},0,0,{"$f":"VLOOKUP(P$9,PS5_Supply!$B:$ZP,INDEX(PS5_Supply!$14:$14,MATCH(BoQ_Equipment!$B65,PS5_Supply!$9:$9,0)),FALSE)","v":0},{"$f":"VLOOKUP(Q$9,PS5_Supply!$B:$ZP,INDEX(PS5_Supply!$14:$14,MATCH(BoQ_Equipment!$B65,PS5_Supply!$9:$9,0)),FALSE)","v":0},{"$f":"VLOOKUP(R$9,PS5_Supply!$B:$ZP,INDEX(PS5_Supply!$14:$14,MATCH(BoQ_Equipment!$B65,PS5_Supply!$9:$9,0)),FALSE)","v":0},{"$f":"VLOOKUP(S$9,PS5_Supply!$B:$ZP,INDEX(PS5_Supply!$14:$14,MATCH(BoQ_Equipment!$B65,PS5_Supply!$9:$9,0)),FALSE)","v":0},0,0,0,0,0,0]
[661825,50,"Loose: IDM+6U with 1 x TWS Card, 1 x 9A/32B Card c/w Chassis Plate & Loom - 220 VDC","UNIT: TYPE: LOOSE TWS; 1 X TWS FL BOARD; APPLICATION: 220 VDC; QUALITROL IDM+ 6U UNIT WITH 1 X 9A/32B BOARDS AND 1 X TWS FL DAUGHTER BOARD + CONFIGURATION. LOOSE UNIT; TESTED AND SUPPLIED WITH TERMINAL RAILS, LC SNAP TRACK BOARDS, AUXILIARY SCHEME COMPONENTS (EXCLUDING TEST BLOCKS), PATCH LEADS, COMMUNICATIONS CABLES, LOOM AND ALL OTHER EQUIPMENT REQUIRED FOR INSTALLATION IN AN EXISTING PANEL  AS PER 6DR-7100 OR 6DRB-7100 SCHEME DESIGN - AS APPLICABLE (MASTER DRAWING NO: 0.52/30112 OR 0.52/30114 RESPECTIVELY); VENDORS ARE RESPONSIBLE FOR ENSURING THAT THEY ARE PERFORMING AGAINST THE CORRECT DRAWING REVISION NUMBER (IF APPLICABLE).","No",1,{"$f":"VLOOKUP(G$9,PS5_Supply!$B:$ZP,INDEX(PS5_Supply!$14:$14,MATCH(BoQ_Equipment!$B66,PS5_Supply!$9:$9,0)),FALSE)","v":0},{"$f":"VLOOKUP(H$9,PS5_Supply!$B:$ZP,INDEX(PS5_Supply!$14:$14,MATCH(BoQ_Equipment!$B66,PS5_Supply!$9:$9,0)),FALSE)","v":0},{"$f":"VLOOKUP(I$9,PS5_Supply!$B:$ZP,INDEX(PS5_Supply!$14:$14,MATCH(BoQ_Equipment!$B66,PS5_Supply!$9:$9,0)),FALSE)","v":0},0,0,{"$f":"VLOOKUP(L$9,PS5_Supply!$B:$ZP,INDEX(PS5_Supply!$14:$14,MATCH(BoQ_Equipment!$B66,PS5_Supply!$9:$9,0)),FALSE)","v":0},{"$f":"VLOOKUP(M$9,PS5_Supply!$B:$ZP,INDEX(PS5_Supply!$14:$14,MATCH(BoQ_Equipment!$B66,PS5_Supply!$9:$9,0)),FALSE)","v":0},0,0,{"$f":"VLOOKUP(P$9,PS5_Supply!$B:$ZP,INDEX(PS5_Supply!$14:$14,MATCH(BoQ_Equipment!$B66,PS5_Supply!$9:$9,0)),FALSE)","v":0},{"$f":"VLOOKUP(Q$9,PS5_Supply!$B:$ZP,INDEX(PS5_Supply!$14:$14,MATCH(BoQ_Equipment!$B66,PS5_Supply!$9:$9,0)),FALSE)","v":0},{"$f":"VLOOKUP(R$9,PS5_Supply!$B:$ZP,INDEX(PS5_Supply!$14:$14,MATCH(BoQ_Equipment!$B66,PS5_Supply!$9:$9,0)),FALSE)","v":0},{"$f":"VLOOKUP(S$9,PS5_Supply!$B:$ZP,INDEX(PS5_Supply!$14:$14,MATCH(BoQ_Equipment!$B66,PS5_Supply!$9:$9,0)),FALSE)","v":0},0,0,0,0,0,0]
[660720,51,"Loose: IDM+6U with 2 x TWS Cards, 2 x 9A/32B Cards c/w Chassis Plate & Loom - 110 VDC","UNIT: TYPE: LOOSE TWS: 2 TWS FL BOARDS; APPLICATION: 110 VDC; QUALITROL IDM+ 6U UNIT WITH 2 X 9A/32B BOARDS AND 2 X TWS FL DAUGHTER BOARDS + CONFIGURATION. LOOSE UNIT; TESTED AND SUPPLIED WITH TERMINAL RAILS, LC SNAP TRACK BOARDS, AUXILIARY SCHEME COMPONENTS (EXCLUDING TEST BLOCKS), PATCH LEADS, COMMUNICATIONS CABLES, LOOM AND ALL OTHER EQUIPMENT REQUIRED FOR INSTALLATION IN AN EXISTING PANEL AS PER 6DR-7100 OR 6DRB-7100 SCHEME DESIGN - AS APPLICABLE (MASTER DRAWING NO. 0.52/30112 OR 0.52/30114 RESPECTIVELY); VENDORS ARE RESPONSIBLE FOR ENSURING THAT THEY ARE PERFORMING AGAINST THE CORRECT DRAWING REVISION NUMBER (IF APPLICABLE).","No",1,{"$f":"VLOOKUP(G$9,PS5_Supply!$B:$ZP,INDEX(PS5_Supply!$14:$14,MATCH(BoQ_Equipment!$B67,PS5_Supply!$9:$9,0)),FALSE)","v":0},{"$f":"VLOOKUP(H$9,PS5_Supply!$B:$ZP,INDEX(PS5_Supply!$14:$14,MATCH(BoQ_Equipment!$B67,PS5_Supply!$9:$9,0)),FALSE)","v":0},{"$f":"VLOOKUP(I$9,PS5_Supply!$B:$ZP,INDEX(PS5_Supply!$14:$14,MATCH(BoQ_Equipment!$B67,PS5_Supply!$9:$9,0)),FALSE)","v":0},0,0,{"$f":"VLOOKUP(L$9,PS5_Supply!$B:$ZP,INDEX(PS5_Supply!$14:$14,MATCH(BoQ_Equipment!$B67,PS5_Supply!$9:$9,0)),FALSE)","v":0},{"$f":"VLOOKUP(M$9,PS5_Supply!$B:$ZP,INDEX(PS5_Supply!$14:$14,MATCH(BoQ_Equipment!$B67,PS5_Supply!$9:$9,0)),FALSE)","v":0},0,0,{"$f":"VLOOKUP(P$9,PS5_Supply!$B:$ZP,INDEX(PS5_Supply!$14:$14,MATCH(BoQ_Equipment!$B67,PS5_Supply!$9:$9,0)),FALSE)","v":0},{"$f":"VLOOKUP(Q$9,PS5_Supply!$B:$ZP,INDEX(PS5_Supply!$14:$14,MATCH(BoQ_Equipment!$B67,PS5_Supply!$9:$9,0)),FALSE)","v":0},{"$f":"VLOOKUP(R$9,PS5_Supply!$B:$ZP,INDEX(PS5_Supply!$14:$14,MATCH(BoQ_Equipment!$B67,PS5_Supply!$9:$9,0)),FALSE)","v":0},{"$f":"VLOOKUP(S$9,PS5_Supply!$B:$ZP,INDEX(PS5_Supply!$14:$14,MATCH(BoQ_Equipment!$B67,PS5_Supply!$9:$9,0)),FALSE)","v":0},0,0,0,0,0,0]
[661826,52,"Loose: IDM+6U with 2 x TWS Cards, 2 x 9A/32B Cards c/w Chassis Plate & Loom - 220 VDC","UNIT: TYPE: LOOSE TWS; 2 X TWS FL BOARD; APPLICATION: 220 VDC; QUALITROL IDM+ 6U UNIT WITH 2 X 9A/32B BOARDS AND 2 X TWS FL DAUGHTER BOARDS + CONFIGURATION. LOOSE UNIT; TESTED AND SUPPLIED WITH TERMINAL RAILS, LC SNAP TRACK BOARDS, AUXILIARY SCHEME COMPONENTS (EXCLUDING TEST BLOCKS), PATCH LEADS, COMMUNICATIONS CABLES, LOOM AND ALL OTHER EQUIPMENT REQUIRED FOR INSTALLATION IN AN EXISTING PANEL AS PER 6DR-7100 OR 6DRB-7100 SCHEME DESIGN - AS APPLICABLE (MASTER DRAWING NO: 0.52/30112 OR 0.52/30114 RESPECTIVELY); VENDORS ARE RESPONSIBLE FOR ENSURING THAT THEY ARE PERFORMING AGAINST THE CORRECT DRAWING REVISION NUMBER (IF APPLICABLE).","No",1,{"$f":"VLOOKUP(G$9,PS5_Supply!$B:$ZP,INDEX(PS5_Supply!$14:$14,MATCH(BoQ_Equipment!$B68,PS5_Supply!$9:$9,0)),FALSE)","v":0},{"$f":"VLOOKUP(H$9,PS5_Supply!$B:$ZP,INDEX(PS5_Supply!$14:$14,MATCH(BoQ_Equipment!$B68,PS5_Supply!$9:$9,0)),FALSE)","v":0},{"$f":"VLOOKUP(I$9,PS5_Supply!$B:$ZP,INDEX(PS5_Supply!$14:$14,MATCH(BoQ_Equipment!$B68,PS5_Supply!$9:$9,0)),FALSE)","v":0},0,0,{"$f":"VLOOKUP(L$9,PS5_Supply!$B:$ZP,INDEX(PS5_Supply!$14:$14,MATCH(BoQ_Equipment!$B68,PS5_Supply!$9:$9,0)),FALSE)","v":0},{"$f":"VLOOKUP(M$9,PS5_Supply!$B:$ZP,INDEX(PS5_Supply!$14:$14,MATCH(BoQ_Equipment!$B68,PS5_Supply!$9:$9,0)),FALSE)","v":0},0,0,{"$f":"VLOOKUP(P$9,PS5_Supply!$B:$ZP,INDEX(PS5_Supply!$14:$14,MATCH(BoQ_Equipment!$B68,PS5_Supply!$9:$9,0)),FALSE)","v":0},{"$f":"VLOOKUP(Q$9,PS5_Supply!$B:$ZP,INDEX(PS5_Supply!$14:$14,MATCH(BoQ_Equipment!$B68,PS5_Supply!$9:$9,0)),FALSE)","v":0},{"$f":"VLOOKUP(R$9,PS5_Supply!$B:$ZP,INDEX(PS5_Supply!$14:$14,MATCH(BoQ_Equipment!$B68,PS5_Supply!$9:$9,0)),FALSE)","v":0},{"$f":"VLOOKUP(S$9,PS5_Supply!$B:$ZP,INDEX(PS5_Supply!$14:$14,MATCH(BoQ_Equipment!$B68,PS5_Supply!$9:$9,0)),FALSE)","v":0},0,0,0,0,0,0]
[660729,53,"Portable IDM+6U Unit 1 with 18A/64B and long loom","UNIT: TYPE: PORTABLE DFR; 18A 64B; APPLICATION: DIGITAL FAULT RECORDER; QUALITROL IDM+ 6U UNIT WITH 2 X 9A/32B BOARDS + CONFIGURATION. PORTABLE UNIT; TESTED AND SUPPLIED WITH A LONG LOOM (3 METRES); VENDORS ARE RESPONSIBLE FOR ENSURING THAT THEY ARE PERFORMING AGAINST THE CORRECT DRAWING REVISION NUMBER (IF APPLICABLE).","No",2,{"$f":"VLOOKUP(G$9,PS5_Supply!$B:$ZP,INDEX(PS5_Supply!$14:$14,MATCH(BoQ_Equipment!$B69,PS5_Supply!$9:$9,0)),FALSE)","v":0},{"$f":"VLOOKUP(H$9,PS5_Supply!$B:$ZP,INDEX(PS5_Supply!$14:$14,MATCH(BoQ_Equipment!$B69,PS5_Supply!$9:$9,0)),FALSE)","v":0},{"$f":"VLOOKUP(I$9,PS5_Supply!$B:$ZP,INDEX(PS5_Supply!$14:$14,MATCH(BoQ_Equipment!$B69,PS5_Supply!$9:$9,0)),FALSE)","v":0},0,0,{"$f":"VLOOKUP(L$9,PS5_Supply!$B:$ZP,INDEX(PS5_Supply!$14:$14,MATCH(BoQ_Equipment!$B69,PS5_Supply!$9:$9,0)),FALSE)","v":0},{"$f":"VLOOKUP(M$9,PS5_Supply!$B:$ZP,INDEX(PS5_Supply!$14:$14,MATCH(BoQ_Equipment!$B69,PS5_Supply!$9:$9,0)),FALSE)","v":0},0,0,{"$f":"VLOOKUP(P$9,PS5_Supply!$B:$ZP,INDEX(PS5_Supply!$14:$14,MATCH(BoQ_Equipment!$B69,PS5_Supply!$9:$9,0)),FALSE)","v":0},{"$f":"VLOOKUP(Q$9,PS5_Supply!$B:$ZP,INDEX(PS5_Supply!$14:$14,MATCH(BoQ_Equipment!$B69,PS5_Supply!$9:$9,0)),FALSE)","v":0},{"$f":"VLOOKUP(R$9,PS5_Supply!$B:$ZP,INDEX(PS5_Supply!$14:$14,MATCH(BoQ_Equipment!$B69,PS5_Supply!$9:$9,0)),FALSE)","v":0},{"$f":"VLOOKUP(S$9,PS5_Supply!$B:$ZP,INDEX(PS5_Supply!$14:$14,MATCH(BoQ_Equipment!$B69,PS5_Supply!$9:$9,0)),FALSE)","v":0},0,0,0,0,0,0]
[660730,54,"Portable IDM+6U Unit 2 with 36A/128B and long loom","UNIT: TYPE: PORTABLE DFR; 36A 128B; APPLICATION: DIGITAL FAULT RECORDER; QUALITROL IDM+ 6U UNIT WITH 4 X 9A/32B BOARDS + CONFIGURATION. PORTABLE UNIT; TESTED AND SUPPLIED WITH A LONG LOOM (3 METRES); VENDORS ARE RESPONSIBLE FOR ENSURING THAT THEY ARE PERFORMING AGAINST THE CORRECT DRAWING REVISION NUMBER (IF APPLICABLE).","No",2,{"$f":"VLOOKUP(G$9,PS5_Supply!$B:$ZP,INDEX(PS5_Supply!$14:$14,MATCH(BoQ_Equipment!$B70,PS5_Supply!$9:$9,0)),FALSE)","v":0},{"$f":"VLOOKUP(H$9,PS5_Supply!$B:$ZP,INDEX(PS5_Supply!$14:$14,MATCH(BoQ_Equipment!$B70,PS5_Supply!$9:$9,0)),FALSE)","v":0},{"$f":"VLOOKUP(I$9,PS5_Supply!$B:$ZP,INDEX(PS5_Supply!$14:$14,MATCH(BoQ_Equipment!$B70,PS5_Supply!$9:$9,0)),FALSE)","v":0},0,0,{"$f":"VLOOKUP(L$9,PS5_Supply!$B:$ZP,INDEX(PS5_Supply!$14:$14,MATCH(BoQ_Equipment!$B70,PS5_Supply!$9:$9,0)),FALSE)","v":0},{"$f":"VLOOKUP(M$9,PS5_Supply!$B:$ZP,INDEX(PS5_Supply!$14:$14,MATCH(BoQ_Equipment!$B70,PS5_Supply!$9:$9,0)),FALSE)","v":0},0,0,{"$f":"VLOOKUP(P$9,PS5_Supply!$B:$ZP,INDEX(PS5_Supply!$14:$14,MATCH(BoQ_Equipment!$B70,PS5_Supply!$9:$9,0)),FALSE)","v":0},{"$f":"VLOOKUP(Q$9,PS5_Supply!$B:$ZP,INDEX(PS5_Supply!$14:$14,MATCH(BoQ_Equipment!$B70,PS5_Supply!$9:$9,0)),FALSE)","v":0},{"$f":"VLOOKUP(R$9,PS5_Supply!$B:$ZP,INDEX(PS5_Supply!$14:$14,MATCH(BoQ_Equipment!$B70,PS5_Supply!$9:$9,0)),FALSE)","v":0},{"$f":"VLOOKUP(S$9,PS5_Supply!$B:$ZP,INDEX(PS5_Supply!$14:$14,MATCH(BoQ_Equipment!$B70,PS5_Supply!$9:$9,0)),FALSE)","v":0},0,0,0,0,0,0]
[661836,55,"Portable IDM+6U Unit 3 with 1 x TWS Card, 1 x 9A/32B Card and long loom ","UNIT: TYPE: PORTABLE TWS; 1 X TWS FL BOARD; APPLICATION: FAULT LOCATOR; QUALITROL IDM+ 6U UNIT, 1 X 9A/32B BOARD, 1 X INTERNAL GPS RECEIVER (WITH GPS ANTENNA AND CABLE) AND 1 X TWS FL DAUGHTER BOARD + CONFIGURATION. PORTABLE UNIT; TESTED AND SUPPLIED WITH A LONG LOOM (3 METRES) AND 6 X LINEAR COUPLERS WITH CABLES; VENDORS ARE RESPONSIBLE FOR ENSURING THAT THEY ARE PERFORMING AGAINST THE CORRECT DRAWING REVISION NUMBER (IF APPLICABLE).","No",2,{"$f":"VLOOKUP(G$9,PS5_Supply!$B:$ZP,INDEX(PS5_Supply!$14:$14,MATCH(BoQ_Equipment!$B71,PS5_Supply!$9:$9,0)),FALSE)","v":0},{"$f":"VLOOKUP(H$9,PS5_Supply!$B:$ZP,INDEX(PS5_Supply!$14:$14,MATCH(BoQ_Equipment!$B71,PS5_Supply!$9:$9,0)),FALSE)","v":0},{"$f":"VLOOKUP(I$9,PS5_Supply!$B:$ZP,INDEX(PS5_Supply!$14:$14,MATCH(BoQ_Equipment!$B71,PS5_Supply!$9:$9,0)),FALSE)","v":0},0,0,{"$f":"VLOOKUP(L$9,PS5_Supply!$B:$ZP,INDEX(PS5_Supply!$14:$14,MATCH(BoQ_Equipment!$B71,PS5_Supply!$9:$9,0)),FALSE)","v":0},{"$f":"VLOOKUP(M$9,PS5_Supply!$B:$ZP,INDEX(PS5_Supply!$14:$14,MATCH(BoQ_Equipment!$B71,PS5_Supply!$9:$9,0)),FALSE)","v":0},0,0,{"$f":"VLOOKUP(P$9,PS5_Supply!$B:$ZP,INDEX(PS5_Supply!$14:$14,MATCH(BoQ_Equipment!$B71,PS5_Supply!$9:$9,0)),FALSE)","v":0},{"$f":"VLOOKUP(Q$9,PS5_Supply!$B:$ZP,INDEX(PS5_Supply!$14:$14,MATCH(BoQ_Equipment!$B71,PS5_Supply!$9:$9,0)),FALSE)","v":0},{"$f":"VLOOKUP(R$9,PS5_Supply!$B:$ZP,INDEX(PS5_Supply!$14:$14,MATCH(BoQ_Equipment!$B71,PS5_Supply!$9:$9,0)),FALSE)","v":0},{"$f":"VLOOKUP(S$9,PS5_Supply!$B:$ZP,INDEX(PS5_Supply!$14:$14,MATCH(BoQ_Equipment!$B71,PS5_Supply!$9:$9,0)),FALSE)","v":0},0,0,0,0,0,0]
[661837,56,"Portable IDM+6U Unit 4 with 2 x TWS Card, 2 x 9A/32B Card and long loom ","UNIT: TYPE: PORTABLE TWS; 2 X TWS FL BOARD; APPLICATION: FAULT LOCATOR; QUALITROL IDM+ 6U UNIT, 2 X 9A/32B BOARDS, 1 X INTERNAL GPS RECEIVER (WITH GPS ANTENNA AND CABLE) AND 2 X TWS FL DAUGHTER BOARDS + CONFIGURATION. PORTABLE UNIT; TESTED AND SUPPLIED WITH A LONG LOOM (3 METRES) AND 12 X LINEAR COUPLERS WITH CABLES; VENDORS ARE RESPONSIBLE FOR ENSURING THAT THEY ARE PERFORMING AGAINST THE CORRECT DRAWING REVISION NUMBER (IF APPLICABLE).","No",2,{"$f":"VLOOKUP(G$9,PS5_Supply!$B:$ZP,INDEX(PS5_Supply!$14:$14,MATCH(BoQ_Equipment!$B72,PS5_Supply!$9:$9,0)),FALSE)","v":0},{"$f":"VLOOKUP(H$9,PS5_Supply!$B:$ZP,INDEX(PS5_Supply!$14:$14,MATCH(BoQ_Equipment!$B72,PS5_Supply!$9:$9,0)),FALSE)","v":0},{"$f":"VLOOKUP(I$9,PS5_Supply!$B:$ZP,INDEX(PS5_Supply!$14:$14,MATCH(BoQ_Equipment!$B72,PS5_Supply!$9:$9,0)),FALSE)","v":0},0,0,{"$f":"VLOOKUP(L$9,PS5_Supply!$B:$ZP,INDEX(PS5_Supply!$14:$14,MATCH(BoQ_Equipment!$B72,PS5_Supply!$9:$9,0)),FALSE)","v":0},{"$f":"VLOOKUP(M$9,PS5_Supply!$B:$ZP,INDEX(PS5_Supply!$14:$14,MATCH(BoQ_Equipment!$B72,PS5_Supply!$9:$9,0)),FALSE)","v":0},0,0,{"$f":"VLOOKUP(P$9,PS5_Supply!$B:$ZP,INDEX(PS5_Supply!$14:$14,MATCH(BoQ_Equipment!$B72,PS5_Supply!$9:$9,0)),FALSE)","v":0},{"$f":"VLOOKUP(Q$9,PS5_Supply!$B:$ZP,INDEX(PS5_Supply!$14:$14,MATCH(BoQ_Equipment!$B72,PS5_Supply!$9:$9,0)),FALSE)","v":0},{"$f":"VLOOKUP(R$9,PS5_Supply!$B:$ZP,INDEX(PS5_Supply!$14:$14,MATCH(BoQ_Equipment!$B72,PS5_Supply!$9:$9,0)),FALSE)","v":0},{"$f":"VLOOKUP(S$9,PS5_Supply!$B:$ZP,INDEX(PS5_Supply!$14:$14,MATCH(BoQ_Equipment!$B72,PS5_Supply!$9:$9,0)),FALSE)","v":0},0,0,0,0,0,0]
[660854,57,"Additional Card for Traveling Wave Fault Locator ","MODULE: TYPE: TWS FAULT LOCATOR BOARD; QUALITROL IDM+ 6U TWS FAULT LOCATOR DAUGHTER BOARD + CONFIGURATION. TESTED AND SUPPLIED WITH TERMINAL RAILS, LC SNAP TRACK BOARDS, LOOM AND ALL OTHER EQUIPMENT REQUIRED; FOR INSTALLATION IN AN EXISTING QUALITROL IDM+ 6U UNIT AS PER 6DR-7100 OR 6DRB-7100 SCHEME DESIGN - AS APPLICABLE (MASTER DRAWING NO: 0.52/30112 OR 0.52/30114 RESPECTIVELY); VENDORS ARE RESPONSIBLE FOR ENSURING THAT THEY ARE PERFORMING AGAINST THE CORRECT DRAWING REVISION NUMBER (IF APPLICABLE).","No",453,{"$f":"VLOOKUP(G$9,PS5_Supply!$B:$ZP,INDEX(PS5_Supply!$14:$14,MATCH(BoQ_Equipment!$B73,PS5_Supply!$9:$9,0)),FALSE)","v":0},{"$f":"VLOOKUP(H$9,PS5_Supply!$B:$ZP,INDEX(PS5_Supply!$14:$14,MATCH(BoQ_Equipment!$B73,PS5_Supply!$9:$9,0)),FALSE)","v":0},{"$f":"VLOOKUP(I$9,PS5_Supply!$B:$ZP,INDEX(PS5_Supply!$14:$14,MATCH(BoQ_Equipment!$B73,PS5_Supply!$9:$9,0)),FALSE)","v":0},0,0,{"$f":"VLOOKUP(L$9,PS5_Supply!$B:$ZP,INDEX(PS5_Supply!$14:$14,MATCH(BoQ_Equipment!$B73,PS5_Supply!$9:$9,0)),FALSE)","v":0},{"$f":"VLOOKUP(M$9,PS5_Supply!$B:$ZP,INDEX(PS5_Supply!$14:$14,MATCH(BoQ_Equipment!$B73,PS5_Supply!$9:$9,0)),FALSE)","v":0},0,0,{"$f":"VLOOKUP(P$9,PS5_Supply!$B:$ZP,INDEX(PS5_Supply!$14:$14,MATCH(BoQ_Equipment!$B73,PS5_Supply!$9:$9,0)),FALSE)","v":0},{"$f":"VLOOKUP(Q$9,PS5_Supply!$B:$ZP,INDEX(PS5_Supply!$14:$14,MATCH(BoQ_Equipment!$B73,PS5_Supply!$9:$9,0)),FALSE)","v":0},{"$f":"VLOOKUP(R$9,PS5_Supply!$B:$ZP,INDEX(PS5_Supply!$14:$14,MATCH(BoQ_Equipment!$B73,PS5_Supply!$9:$9,0)),FALSE)","v":0},{"$f":"VLOOKUP(S$9,PS5_Supply!$B:$ZP,INDEX(PS5_Supply!$14:$14,MATCH(BoQ_Equipment!$B73,PS5_Supply!$9:$9,0)),FALSE)","v":0},0,0,0,0,0,0]
[660859,58,"Expansion Kit: 9A/32B to 18A/64B ","MODULE: TYPE: DFR EXP; 9A 32B TO 18A 64B; QUALITROL IDM+ 6U 9A/32B BOARDS + CONFIGURATION. EXPANSION KIT TO EXTEND A UNIT WITH 9A/32B CONFIGURATION TO A 18A/64B CONFIGURAITON. TESTED AND SUPPLIED WITH TERMINAL RAILS, AUXILIARY SCHEME COMPONENTS (EXCLUDING TEST BLOCKS), LOOM AND ALL OTHER EQUIPMENT REQUIRED; FOR INSTALLATION IN AN EXISITNG QUALITROL IDM+ 6U UNIT AS PER 6DR-7100 OR 6DRB-7100 SCHEME DESIGN - AS APPLICABLE (MASTER DRAWING NO: 0.52/30112 OR 0.52/30114 RESPECTIVELY); VENDORS ARE RESPONSIBLE FOR ENSURING THAT THEY ARE PERFORMING AGAINST THE CORRECT DRAWING REVISION NUMBER (IF APPLICABLE).","No",1,{"$f":"VLOOKUP(G$9,PS5_Supply!$B:$ZP,INDEX(PS5_Supply!$14:$14,MATCH(BoQ_Equipment!$B74,PS5_Supply!$9:$9,0)),FALSE)","v":0},{"$f":"VLOOKUP(H$9,PS5_Supply!$B:$ZP,INDEX(PS5_Supply!$14:$14,MATCH(BoQ_Equipment!$B74,PS5_Supply!$9:$9,0)),FALSE)","v":0},{"$f":"VLOOKUP(I$9,PS5_Supply!$B:$ZP,INDEX(PS5_Supply!$14:$14,MATCH(BoQ_Equipment!$B74,PS5_Supply!$9:$9,0)),FALSE)","v":0},0,0,{"$f":"VLOOKUP(L$9,PS5_Supply!$B:$ZP,INDEX(PS5_Supply!$14:$14,MATCH(BoQ_Equipment!$B74,PS5_Supply!$9:$9,0)),FALSE)","v":0},{"$f":"VLOOKUP(M$9,PS5_Supply!$B:$ZP,INDEX(PS5_Supply!$14:$14,MATCH(BoQ_Equipment!$B74,PS5_Supply!$9:$9,0)),FALSE)","v":0},0,0,{"$f":"VLOOKUP(P$9,PS5_Supply!$B:$ZP,INDEX(PS5_Supply!$14:$14,MATCH(BoQ_Equipment!$B74,PS5_Supply!$9:$9,0)),FALSE)","v":0},{"$f":"VLOOKUP(Q$9,PS5_Supply!$B:$ZP,INDEX(PS5_Supply!$14:$14,MATCH(BoQ_Equipment!$B74,PS5_Supply!$9:$9,0)),FALSE)","v":0},{"$f":"VLOOKUP(R$9,PS5_Supply!$B:$ZP,INDEX(PS5_Supply!$14:$14,MATCH(BoQ_Equipment!$B74,PS5_Supply!$9:$9,0)),FALSE)","v":0},{"$f":"VLOOKUP(S$9,PS5_Supply!$B:$ZP,INDEX(PS5_Supply!$14:$14,MATCH(BoQ_Equipment!$B74,PS5_Supply!$9:$9,0)),FALSE)","v":0},0,0,0,0,0,0]
[660861,59,"Expansion Kit: 18A/64B to 27A/96B - 110 VDC","MODULE: TYPE: DFR EXP; 18A64B TO 27A96B; APPLICATION: 110  VDC; QUALITROL IDM+ 6U CPU BOARD, QUALITROL IDM+ 6U 9A/32B BOARDS + CONFIGURATION;  EXPANSION KIT TO EXTEND A UNIT WITH 18A/64B CONFIGURATION TO A  27A/96B CONFIGURAITON. TESTED AND SUPPLIED WITH TERMINAL RAILS, AUXILIARY SCHEME COMPONENTS (EXCLUDING TEST BLOCKS), PATCH LEADS, COMMUNICATIONS CABLES, LOOM AND ALL OTHER EQUIPMENT REQUIRED FOR INSTALLATION IN AN EXISITNG QUALITROL IDM+ 6U UNIT  AS PER 6DR-7100 OR 6DRB-7100 SCHEME DESIGN - AS APPLICABLE (MASTER DRAWING NO: 0.52/30112 OR 0.52/30114 RESPECTIVELY); VENDORS ARE RESPONSIBLE FOR ENSURING THAT THEY ARE PERFORMING AGAINST THE CORRECT DRAWING REVISION NUMBER (IF APPLICABLE).","No",1,{"$f":"VLOOKUP(G$9,PS5_Supply!$B:$ZP,INDEX(PS5_Supply!$14:$14,MATCH(BoQ_Equipment!$B75,PS5_Supply!$9:$9,0)),FALSE)","v":0},{"$f":"VLOOKUP(H$9,PS5_Supply!$B:$ZP,INDEX(PS5_Supply!$14:$14,MATCH(BoQ_Equipment!$B75,PS5_Supply!$9:$9,0)),FALSE)","v":0},{"$f":"VLOOKUP(I$9,PS5_Supply!$B:$ZP,INDEX(PS5_Supply!$14:$14,MATCH(BoQ_Equipment!$B75,PS5_Supply!$9:$9,0)),FALSE)","v":0},0,0,{"$f":"VLOOKUP(L$9,PS5_Supply!$B:$ZP,INDEX(PS5_Supply!$14:$14,MATCH(BoQ_Equipment!$B75,PS5_Supply!$9:$9,0)),FALSE)","v":0},{"$f":"VLOOKUP(M$9,PS5_Supply!$B:$ZP,INDEX(PS5_Supply!$14:$14,MATCH(BoQ_Equipment!$B75,PS5_Supply!$9:$9,0)),FALSE)","v":0},0,0,{"$f":"VLOOKUP(P$9,PS5_Supply!$B:$ZP,INDEX(PS5_Supply!$14:$14,MATCH(BoQ_Equipment!$B75,PS5_Supply!$9:$9,0)),FALSE)","v":0},{"$f":"VLOOKUP(Q$9,PS5_Supply!$B:$ZP,INDEX(PS5_Supply!$14:$14,MATCH(BoQ_Equipment!$B75,PS5_Supply!$9:$9,0)),FALSE)","v":0},{"$f":"VLOOKUP(R$9,PS5_Supply!$B:$ZP,INDEX(PS5_Supply!$14:$14,MATCH(BoQ_Equipment!$B75,PS5_Supply!$9:$9,0)),FALSE)","v":0},{"$f":"VLOOKUP(S$9,PS5_Supply!$B:$ZP,INDEX(PS5_Supply!$14:$14,MATCH(BoQ_Equipment!$B75,PS5_Supply!$9:$9,0)),FALSE)","v":0},0,0,0,0,0,0]
[661820,60,"Expansion Kit: 18A/64B to 27A/96B - 220 VDC","MODULE: TYPE: DFR EXP; 18A64B TO 27A96B; APPLICATION: 220 VDC; DFR EXPANSION KIT; QUALITROL IDM+ 6U CPU BOARD, QUALITROL IDM+ 6U 9A/32B BOARDS;+ CONFIGURATION  EXPANSION KIT TO EXTEND A UNIT WITH 18A/64B CONFIGURATION TO A  27A/96B CONFIGURATION; TESTED AND SUPPLIED WITH TERMINAL RAILS, AUXILIARY SCHEME COMPONENTS (EXCLUDING TEST BLOCKS), PATCH LEADS, COMMUNICATIONS CABLES, LOOM AND ALL OTHER EQUIPMENT REQUIRED FOR INSTALLATION IN AN EXISITNG QUALITROL IDM+ 6U UNIT  AS PER 6DR-7100 OR 6DRB-7100 SCHEME DESIGN - AS APPLICABLE (MASTER DRAWING NO: 0.52/30112 OR 0.52/30114 REPECTIVELY); VENDORS ARE RESPONSIBLE FOR ENSURING THAT THEY ARE PERFORMING AGAINST THE CORRECT DRAWING REVISION NUMBER (IF APPLICABLE).","No",1,{"$f":"VLOOKUP(G$9,PS5_Supply!$B:$ZP,INDEX(PS5_Supply!$14:$14,MATCH(BoQ_Equipment!$B76,PS5_Supply!$9:$9,0)),FALSE)","v":0},{"$f":"VLOOKUP(H$9,PS5_Supply!$B:$ZP,INDEX(PS5_Supply!$14:$14,MATCH(BoQ_Equipment!$B76,PS5_Supply!$9:$9,0)),FALSE)","v":0},{"$f":"VLOOKUP(I$9,PS5_Supply!$B:$ZP,INDEX(PS5_Supply!$14:$14,MATCH(BoQ_Equipment!$B76,PS5_Supply!$9:$9,0)),FALSE)","v":0},0,0,{"$f":"VLOOKUP(L$9,PS5_Supply!$B:$ZP,INDEX(PS5_Supply!$14:$14,MATCH(BoQ_Equipment!$B76,PS5_Supply!$9:$9,0)),FALSE)","v":0},{"$f":"VLOOKUP(M$9,PS5_Supply!$B:$ZP,INDEX(PS5_Supply!$14:$14,MATCH(BoQ_Equipment!$B76,PS5_Supply!$9:$9,0)),FALSE)","v":0},0,0,{"$f":"VLOOKUP(P$9,PS5_Supply!$B:$ZP,INDEX(PS5_Supply!$14:$14,MATCH(BoQ_Equipment!$B76,PS5_Supply!$9:$9,0)),FALSE)","v":0},{"$f":"VLOOKUP(Q$9,PS5_Supply!$B:$ZP,INDEX(PS5_Supply!$14:$14,MATCH(BoQ_Equipment!$B76,PS5_Supply!$9:$9,0)),FALSE)","v":0},{"$f":"VLOOKUP(R$9,PS5_Supply!$B:$ZP,INDEX(PS5_Supply!$14:$14,MATCH(BoQ_Equipment!$B76,PS5_Supply!$9:$9,0)),FALSE)","v":0},{"$f":"VLOOKUP(S$9,PS5_Supply!$B:$ZP,INDEX(PS5_Supply!$14:$14,MATCH(BoQ_Equipment!$B76,PS5_Supply!$9:$9,0)),FALSE)","v":0},0,0,0,0,0,0]
[660862,61,"Expansion Kit: 27A/96B to 36A/128B","MODULE: TYPE: DFR EXP; 27A 96B TO 36A128B; QUALITROL IDM+ 6U 9A/32B BOARDS + CONFIGURATION. EXPANSION KIT TO EXTEND A UNIT WITH 27A/96B CONFIGURATION TO A 36A/128B CONFIGURAITON. TESTED AND SUPPLIED WITH TERMINAL RAILS, AUXILIARY SCHEME COMPONENTS (EXCLUDING TEST BLOCKS), LOOM AND ALL OTHER EQUIPMENT REQUIRED FOR INSTALLATION IN AN EXISITNG QUALITROL IDM+ 6U UNIT  AS PER 6DR-7100 OR 6DRB-7100 SCHEME DESIGN - AS APPLICABLE (MASTER DRAWING NO: 0.52/30112 OR 0.52/30114 RESPECTIVELY); VENDORS ARE RESPONSIBLE FOR ENSURING THAT THEY ARE PERFORMING AGAINST THE CORRECT DRAWING REVISION NUMBER (IF APPLICABLE).","No",1,{"$f":"VLOOKUP(G$9,PS5_Supply!$B:$ZP,INDEX(PS5_Supply!$14:$14,MATCH(BoQ_Equipment!$B77,PS5_Supply!$9:$9,0)),FALSE)","v":0},{"$f":"VLOOKUP(H$9,PS5_Supply!$B:$ZP,INDEX(PS5_Supply!$14:$14,MATCH(BoQ_Equipment!$B77,PS5_Supply!$9:$9,0)),FALSE)","v":0},{"$f":"VLOOKUP(I$9,PS5_Supply!$B:$ZP,INDEX(PS5_Supply!$14:$14,MATCH(BoQ_Equipment!$B77,PS5_Supply!$9:$9,0)),FALSE)","v":0},0,0,{"$f":"VLOOKUP(L$9,PS5_Supply!$B:$ZP,INDEX(PS5_Supply!$14:$14,MATCH(BoQ_Equipment!$B77,PS5_Supply!$9:$9,0)),FALSE)","v":0},{"$f":"VLOOKUP(M$9,PS5_Supply!$B:$ZP,INDEX(PS5_Supply!$14:$14,MATCH(BoQ_Equipment!$B77,PS5_Supply!$9:$9,0)),FALSE)","v":0},0,0,{"$f":"VLOOKUP(P$9,PS5_Supply!$B:$ZP,INDEX(PS5_Supply!$14:$14,MATCH(BoQ_Equipment!$B77,PS5_Supply!$9:$9,0)),FALSE)","v":0},{"$f":"VLOOKUP(Q$9,PS5_Supply!$B:$ZP,INDEX(PS5_Supply!$14:$14,MATCH(BoQ_Equipment!$B77,PS5_Supply!$9:$9,0)),FALSE)","v":0},{"$f":"VLOOKUP(R$9,PS5_Supply!$B:$ZP,INDEX(PS5_Supply!$14:$14,MATCH(BoQ_Equipment!$B77,PS5_Supply!$9:$9,0)),FALSE)","v":0},{"$f":"VLOOKUP(S$9,PS5_Supply!$B:$ZP,INDEX(PS5_Supply!$14:$14,MATCH(BoQ_Equipment!$B77,PS5_Supply!$9:$9,0)),FALSE)","v":0},0,0,0,0,0,0]
[661226,62,"Loose: Chassis Plate & Loom for 9A/32B Card ","TERMINAL STRIP, GROUNDING: TYPE: 9A 32B BOARD; CONNECTION TYPE: SLIDING LINK & SPRING LOADED TERMINALS; MATERIAL: POLYAMIDE TERMINALS; MOUNTING: DIN RAIL; DIMENSIONS: WD 600 X HT 86 X DP 68 MM; TERMINAL RAIL; CHASSIS PLATE WITH DIN RAIL, TERMINALS, MCBS, TRUNKING AND LOOM FOR A QUALITROL IDM+ 6U 9A/32B BOARD FOR INSTALLATION IN AN EXISTING PANEL AS PER 6DR-7100 OR 6DRB-7100 SCHEME DESIGN - AS APPLICABLE (MASTER DRAWING N0: 0.52/30112 OR 0.52/30114 RESPECTIVELY); VENDORS ARE RESPONSIBLE FOR ENSURING THAT THEY ARE PERFORMING AGAINST THE CORRECT DRAWING REVISION NUMBER (IF APPLICABLE).","No",1,{"$f":"VLOOKUP(G$9,PS5_Supply!$B:$ZP,INDEX(PS5_Supply!$14:$14,MATCH(BoQ_Equipment!$B78,PS5_Supply!$9:$9,0)),FALSE)","v":0},{"$f":"VLOOKUP(H$9,PS5_Supply!$B:$ZP,INDEX(PS5_Supply!$14:$14,MATCH(BoQ_Equipment!$B78,PS5_Supply!$9:$9,0)),FALSE)","v":0},{"$f":"VLOOKUP(I$9,PS5_Supply!$B:$ZP,INDEX(PS5_Supply!$14:$14,MATCH(BoQ_Equipment!$B78,PS5_Supply!$9:$9,0)),FALSE)","v":0},0,0,{"$f":"VLOOKUP(L$9,PS5_Supply!$B:$ZP,INDEX(PS5_Supply!$14:$14,MATCH(BoQ_Equipment!$B78,PS5_Supply!$9:$9,0)),FALSE)","v":0},{"$f":"VLOOKUP(M$9,PS5_Supply!$B:$ZP,INDEX(PS5_Supply!$14:$14,MATCH(BoQ_Equipment!$B78,PS5_Supply!$9:$9,0)),FALSE)","v":0},0,0,{"$f":"VLOOKUP(P$9,PS5_Supply!$B:$ZP,INDEX(PS5_Supply!$14:$14,MATCH(BoQ_Equipment!$B78,PS5_Supply!$9:$9,0)),FALSE)","v":0},{"$f":"VLOOKUP(Q$9,PS5_Supply!$B:$ZP,INDEX(PS5_Supply!$14:$14,MATCH(BoQ_Equipment!$B78,PS5_Supply!$9:$9,0)),FALSE)","v":0},{"$f":"VLOOKUP(R$9,PS5_Supply!$B:$ZP,INDEX(PS5_Supply!$14:$14,MATCH(BoQ_Equipment!$B78,PS5_Supply!$9:$9,0)),FALSE)","v":0},{"$f":"VLOOKUP(S$9,PS5_Supply!$B:$ZP,INDEX(PS5_Supply!$14:$14,MATCH(BoQ_Equipment!$B78,PS5_Supply!$9:$9,0)),FALSE)","v":0},0,0,0,0,0,0]
[661241,63,"PC Communications cable for DFRs (RJ45 for PC connection)","CABLE: TYPE: ETHERNET; DIAMETER: 8 MM; LENGTH: 3 M; MATERIAL: UTP COPPER; CAT5E ETHERNET CABLE STRAIGHT WITH RJ45 CONNECTORS FOR PC CONNECTION; VENDORS ARE RESPONSIBLE FOR ENSURING THAT THEY ARE PERFORMING AGAINST THE CORRECT DRAWING REVISION NUMBER (IF APPLICABLE).","No",212,{"$f":"VLOOKUP(G$9,PS5_Supply!$B:$ZP,INDEX(PS5_Supply!$14:$14,MATCH(BoQ_Equipment!$B79,PS5_Supply!$9:$9,0)),FALSE)","v":0},{"$f":"VLOOKUP(H$9,PS5_Supply!$B:$ZP,INDEX(PS5_Supply!$14:$14,MATCH(BoQ_Equipment!$B79,PS5_Supply!$9:$9,0)),FALSE)","v":0},{"$f":"VLOOKUP(I$9,PS5_Supply!$B:$ZP,INDEX(PS5_Supply!$14:$14,MATCH(BoQ_Equipment!$B79,PS5_Supply!$9:$9,0)),FALSE)","v":0},0,0,{"$f":"VLOOKUP(L$9,PS5_Supply!$B:$ZP,INDEX(PS5_Supply!$14:$14,MATCH(BoQ_Equipment!$B79,PS5_Supply!$9:$9,0)),FALSE)","v":0},{"$f":"VLOOKUP(M$9,PS5_Supply!$B:$ZP,INDEX(PS5_Supply!$14:$14,MATCH(BoQ_Equipment!$B79,PS5_Supply!$9:$9,0)),FALSE)","v":0},0,0,{"$f":"VLOOKUP(P$9,PS5_Supply!$B:$ZP,INDEX(PS5_Supply!$14:$14,MATCH(BoQ_Equipment!$B79,PS5_Supply!$9:$9,0)),FALSE)","v":0},{"$f":"VLOOKUP(Q$9,PS5_Supply!$B:$ZP,INDEX(PS5_Supply!$14:$14,MATCH(BoQ_Equipment!$B79,PS5_Supply!$9:$9,0)),FALSE)","v":0},{"$f":"VLOOKUP(R$9,PS5_Supply!$B:$ZP,INDEX(PS5_Supply!$14:$14,MATCH(BoQ_Equipment!$B79,PS5_Supply!$9:$9,0)),FALSE)","v":0},{"$f":"VLOOKUP(S$9,PS5_Supply!$B:$ZP,INDEX(PS5_Supply!$14:$14,MATCH(BoQ_Equipment!$B79,PS5_Supply!$9:$9,0)),FALSE)","v":0},0,0,0,0,0,0]
[660725,64,"Ethernet Switch: RSG2100 ","UNIT: TYPE: ETHERNET SWITCH; APPLICATION: NETWORKING DEVICE; RUGGEDCOM RSG2100 ETHERNET SWITCH WITH 8 X FIBRE PORTS (100FX -MULTIMODE 1300NM, LC CONNECTORS) AND  8 X COPPER PORTS (10/100TX RJ45) + CONFIGURATION DUAL POWER SUPPLY (HI-HI = 88-300 VDC OR 85-264 VAC, SCREW TERMINAL BLOCK); 19 INCH RACK MOUNT KIT; ETHERNET ON REAR; LED PANEL ON FRONT; POWER CONNECTOR ON REAR; VENDORS ARE RESPONSIBLE FOR ENSURING THAT THEY ARE PERFORMING AGAINST THE CORRECT DRAWING REVISION NUMBER (IF APPLICABLE).","No",212,{"$f":"VLOOKUP(G$9,PS5_Supply!$B:$ZP,INDEX(PS5_Supply!$14:$14,MATCH(BoQ_Equipment!$B80,PS5_Supply!$9:$9,0)),FALSE)","v":0},{"$f":"VLOOKUP(H$9,PS5_Supply!$B:$ZP,INDEX(PS5_Supply!$14:$14,MATCH(BoQ_Equipment!$B80,PS5_Supply!$9:$9,0)),FALSE)","v":0},{"$f":"VLOOKUP(I$9,PS5_Supply!$B:$ZP,INDEX(PS5_Supply!$14:$14,MATCH(BoQ_Equipment!$B80,PS5_Supply!$9:$9,0)),FALSE)","v":0},0,0,{"$f":"VLOOKUP(L$9,PS5_Supply!$B:$ZP,INDEX(PS5_Supply!$14:$14,MATCH(BoQ_Equipment!$B80,PS5_Supply!$9:$9,0)),FALSE)","v":0},{"$f":"VLOOKUP(M$9,PS5_Supply!$B:$ZP,INDEX(PS5_Supply!$14:$14,MATCH(BoQ_Equipment!$B80,PS5_Supply!$9:$9,0)),FALSE)","v":0},0,0,{"$f":"VLOOKUP(P$9,PS5_Supply!$B:$ZP,INDEX(PS5_Supply!$14:$14,MATCH(BoQ_Equipment!$B80,PS5_Supply!$9:$9,0)),FALSE)","v":0},{"$f":"VLOOKUP(Q$9,PS5_Supply!$B:$ZP,INDEX(PS5_Supply!$14:$14,MATCH(BoQ_Equipment!$B80,PS5_Supply!$9:$9,0)),FALSE)","v":0},{"$f":"VLOOKUP(R$9,PS5_Supply!$B:$ZP,INDEX(PS5_Supply!$14:$14,MATCH(BoQ_Equipment!$B80,PS5_Supply!$9:$9,0)),FALSE)","v":0},{"$f":"VLOOKUP(S$9,PS5_Supply!$B:$ZP,INDEX(PS5_Supply!$14:$14,MATCH(BoQ_Equipment!$B80,PS5_Supply!$9:$9,0)),FALSE)","v":0},0,0,0,0,0,0]
[660727,65,"Fibre Optic Patch Panel","UNIT: TYPE: 12-WAY; FIBRE PATCH PANEL; APPLICATION: NETWORKING EQUIPMENT; 12-WAY FIBRE OPTIC SPLICE AND PATCH PANEL (MULTIMODE INCLUDING 6 DUPLEX LC MID-COUPLERS WITH PIGTAILS); VENDORS ARE RESPONSIBLE FOR ENSURING THAT THEY ARE PERFORMING AGAINST THE CORRECT DRAWING REVISION NUMBER (IF APPLICABLE).","No",212,{"$f":"VLOOKUP(G$9,PS5_Supply!$B:$ZP,INDEX(PS5_Supply!$14:$14,MATCH(BoQ_Equipment!$B81,PS5_Supply!$9:$9,0)),FALSE)","v":0},{"$f":"VLOOKUP(H$9,PS5_Supply!$B:$ZP,INDEX(PS5_Supply!$14:$14,MATCH(BoQ_Equipment!$B81,PS5_Supply!$9:$9,0)),FALSE)","v":0},{"$f":"VLOOKUP(I$9,PS5_Supply!$B:$ZP,INDEX(PS5_Supply!$14:$14,MATCH(BoQ_Equipment!$B81,PS5_Supply!$9:$9,0)),FALSE)","v":0},0,0,{"$f":"VLOOKUP(L$9,PS5_Supply!$B:$ZP,INDEX(PS5_Supply!$14:$14,MATCH(BoQ_Equipment!$B81,PS5_Supply!$9:$9,0)),FALSE)","v":0},{"$f":"VLOOKUP(M$9,PS5_Supply!$B:$ZP,INDEX(PS5_Supply!$14:$14,MATCH(BoQ_Equipment!$B81,PS5_Supply!$9:$9,0)),FALSE)","v":0},0,0,{"$f":"VLOOKUP(P$9,PS5_Supply!$B:$ZP,INDEX(PS5_Supply!$14:$14,MATCH(BoQ_Equipment!$B81,PS5_Supply!$9:$9,0)),FALSE)","v":0},{"$f":"VLOOKUP(Q$9,PS5_Supply!$B:$ZP,INDEX(PS5_Supply!$14:$14,MATCH(BoQ_Equipment!$B81,PS5_Supply!$9:$9,0)),FALSE)","v":0},{"$f":"VLOOKUP(R$9,PS5_Supply!$B:$ZP,INDEX(PS5_Supply!$14:$14,MATCH(BoQ_Equipment!$B81,PS5_Supply!$9:$9,0)),FALSE)","v":0},{"$f":"VLOOKUP(S$9,PS5_Supply!$B:$ZP,INDEX(PS5_Supply!$14:$14,MATCH(BoQ_Equipment!$B81,PS5_Supply!$9:$9,0)),FALSE)","v":0},0,0,0,0,0,0]
[]
[null,null,"SPARES",{"$nulls":7},{"$f":"SUM(K85:K117)","v":0},{"$nulls":3},{"$f":"SUM(O85:O117)","v":0},{"$nulls":4},{"$f":"SUM(T85:T117)","v":0},{"$f":"SUM(U85:U117)","v":0},null,{"$f":"SUM(W85:W117)","v":0},null,{"$f":"SUM(Y85:Y117)","v":0}]
[null,null,"Eskom standard device licenses and configurations to apply."]
[660865,66,"CPU Board ","MODULE: TYPE: SPARE;  CPU BOARD; QUALITROL IDM+ 6U CPU BOARD. SPARE; TESTED AND SUPPLIED; VENDORS ARE RESPONSIBLE FOR ENSURING THAT THEY ARE PERFORMING AGAINST THE CORRECT DRAWING REVISION NUMBER (IF APPLICABLE).","No",19,{"$f":"VLOOKUP(G$9,PS5_Supply!$B:$ZP,INDEX(PS5_Supply!$14:$14,MATCH(BoQ_Equipment!$B85,PS5_Supply!$9:$9,0)),FALSE)","v":0},{"$f":"VLOOKUP(H$9,PS5_Supply!$B:$ZP,INDEX(PS5_Supply!$14:$14,MATCH(BoQ_Equipment!$B85,PS5_Supply!$9:$9,0)),FALSE)","v":0},{"$f":"VLOOKUP(I$9,PS5_Supply!$B:$ZP,INDEX(PS5_Supply!$14:$14,MATCH(BoQ_Equipment!$B85,PS5_Supply!$9:$9,0)),FALSE)","v":0},{"$f":"I85+H85+G85","v":0},{"$f":"F85*J85","v":0},{"$f":"VLOOKUP(L$9,PS5_Supply!$B:$ZP,INDEX(PS5_Supply!$14:$14,MATCH(BoQ_Equipment!$B85,PS5_Supply!$9:$9,0)),FALSE)","v":0},{"$f":"VLOOKUP(M$9,PS5_Supply!$B:$ZP,INDEX(PS5_Supply!$14:$14,MATCH(BoQ_Equipment!$B85,PS5_Supply!$9:$9,0)),FALSE)","v":0},{"$f":"SUM(L85:M85)","v":0},{"$f":"N85*F85","v":0},{"$f":"VLOOKUP(P$9,PS5_Supply!$B:$ZP,INDEX(PS5_Supply!$14:$14,MATCH(BoQ_Equipment!$B85,PS5_Supply!$9:$9,0)),FALSE)","v":0},{"$f":"VLOOKUP(Q$9,PS5_Supply!$B:$ZP,INDEX(PS5_Supply!$14:$14,MATCH(BoQ_Equipment!$B85,PS5_Supply!$9:$9,0)),FALSE)","v":0},{"$f":"VLOOKUP(R$9,PS5_Supply!$B:$ZP,INDEX(PS5_Supply!$14:$14,MATCH(BoQ_Equipment!$B85,PS5_Supply!$9:$9,0)),FALSE)","v":0},{"$f":"VLOOKUP(S$9,PS5_Supply!$B:$ZP,INDEX(PS5_Supply!$14:$14,MATCH(BoQ_Equipment!$B85,PS5_Supply!$9:$9,0)),FALSE)","v":0},{"$f":"(Q85+R85)*F85","v":0},{"$f":"(P85+S85)*F85","v":0},{"$f":"P85+Q85+R85+S85","v":0},{"$f":"F85*V85","v":0},{"$f":"J85+N85+V85","v":0},{"$f":"IF(F85=0,\"Rate Only\",X85*F85)","v":0}]
[660868,67,"Signal Conditioning Board  (18-250Vdc Pickup)","MODULE: TYPE: SPARE; 9A 32B BOARD; DI PU; 18VDC; QUALITROL IDM+ 6U 9A/32B BOARD; DIGITAL INPUT PICKUP: 18VDC; NOMINAL INPUT VOLTAGE: 24-250 VDC; SPARE; TESTED AND SUPPLIED; VENDORS ARE RESPONSIBLE FOR ENSURING THAT THEY ARE PERFORMING AGAINST THE CORRECT DRAWING REVISION NUMBER (IF APPLICABLE).","No",35,{"$f":"VLOOKUP(G$9,PS5_Supply!$B:$ZP,INDEX(PS5_Supply!$14:$14,MATCH(BoQ_Equipment!$B86,PS5_Supply!$9:$9,0)),FALSE)","v":0},{"$f":"VLOOKUP(H$9,PS5_Supply!$B:$ZP,INDEX(PS5_Supply!$14:$14,MATCH(BoQ_Equipment!$B86,PS5_Supply!$9:$9,0)),FALSE)","v":0},{"$f":"VLOOKUP(I$9,PS5_Supply!$B:$ZP,INDEX(PS5_Supply!$14:$14,MATCH(BoQ_Equipment!$B86,PS5_Supply!$9:$9,0)),FALSE)","v":0},0,0,{"$f":"VLOOKUP(L$9,PS5_Supply!$B:$ZP,INDEX(PS5_Supply!$14:$14,MATCH(BoQ_Equipment!$B86,PS5_Supply!$9:$9,0)),FALSE)","v":0},{"$f":"VLOOKUP(M$9,PS5_Supply!$B:$ZP,INDEX(PS5_Supply!$14:$14,MATCH(BoQ_Equipment!$B86,PS5_Supply!$9:$9,0)),FALSE)","v":0},0,0,{"$f":"VLOOKUP(P$9,PS5_Supply!$B:$ZP,INDEX(PS5_Supply!$14:$14,MATCH(BoQ_Equipment!$B86,PS5_Supply!$9:$9,0)),FALSE)","v":0},{"$f":"VLOOKUP(Q$9,PS5_Supply!$B:$ZP,INDEX(PS5_Supply!$14:$14,MATCH(BoQ_Equipment!$B86,PS5_Supply!$9:$9,0)),FALSE)","v":0},{"$f":"VLOOKUP(R$9,PS5_Supply!$B:$ZP,INDEX(PS5_Supply!$14:$14,MATCH(BoQ_Equipment!$B86,PS5_Supply!$9:$9,0)),FALSE)","v":0},{"$f":"VLOOKUP(S$9,PS5_Supply!$B:$ZP,INDEX(PS5_Supply!$14:$14,MATCH(BoQ_Equipment!$B86,PS5_Supply!$9:$9,0)),FALSE)","v":0},0,0,0,0,0,0]
[660876,68,"Signal Conditioning Board  (35-250Vdc Pickup)","MODULE: TYPE: SPARE; 9A 32B BOARD; DI PU; 35VDC; QUALITROL IDM+ 6U 9A/32B BOARD; DIGITAL INPUT PICKUP: 35VDC; NOMINAL INPUT VOLTAGE: 48-250 VDC; SPARE; TESTED AND SUPPLIED; VENDORS ARE RESPONSIBLE FOR ENSURING THAT THEY ARE PERFORMING AGAINST THE CORRECT DRAWING REVISION NUMBER (IF APPLICABLE).","No",2,{"$f":"VLOOKUP(G$9,PS5_Supply!$B:$ZP,INDEX(PS5_Supply!$14:$14,MATCH(BoQ_Equipment!$B87,PS5_Supply!$9:$9,0)),FALSE)","v":0},{"$f":"VLOOKUP(H$9,PS5_Supply!$B:$ZP,INDEX(PS5_Supply!$14:$14,MATCH(BoQ_Equipment!$B87,PS5_Supply!$9:$9,0)),FALSE)","v":0},{"$f":"VLOOKUP(I$9,PS5_Supply!$B:$ZP,INDEX(PS5_Supply!$14:$14,MATCH(BoQ_Equipment!$B87,PS5_Supply!$9:$9,0)),FALSE)","v":0},0,0,{"$f":"VLOOKUP(L$9,PS5_Supply!$B:$ZP,INDEX(PS5_Supply!$14:$14,MATCH(BoQ_Equipment!$B87,PS5_Supply!$9:$9,0)),FALSE)","v":0},{"$f":"VLOOKUP(M$9,PS5_Supply!$B:$ZP,INDEX(PS5_Supply!$14:$14,MATCH(BoQ_Equipment!$B87,PS5_Supply!$9:$9,0)),FALSE)","v":0},0,0,{"$f":"VLOOKUP(P$9,PS5_Supply!$B:$ZP,INDEX(PS5_Supply!$14:$14,MATCH(BoQ_Equipment!$B87,PS5_Supply!$9:$9,0)),FALSE)","v":0},{"$f":"VLOOKUP(Q$9,PS5_Supply!$B:$ZP,INDEX(PS5_Supply!$14:$14,MATCH(BoQ_Equipment!$B87,PS5_Supply!$9:$9,0)),FALSE)","v":0},{"$f":"VLOOKUP(R$9,PS5_Supply!$B:$ZP,INDEX(PS5_Supply!$14:$14,MATCH(BoQ_Equipment!$B87,PS5_Supply!$9:$9,0)),FALSE)","v":0},{"$f":"VLOOKUP(S$9,PS5_Supply!$B:$ZP,INDEX(PS5_Supply!$14:$14,MATCH(BoQ_Equipment!$B87,PS5_Supply!$9:$9,0)),FALSE)","v":0},0,0,0,0,0,0]
[660878,69,"PSU Board ","MODULE: TYPE: SPARE; PSU BOARD; QUALITROL IDM+ 6U POWER SUPPLY BOARD; INPUT RANGE: 90-264 VAC (88 - 300 VDC), 47 –63 HZ. SPARE; TESTED AND SUPPLIED; VENDORS ARE RESPONSIBLE FOR ENSURING THAT THEY ARE PERFORMING AGAINST THE CORRECT DRAWING REVISION NUMBER (IF APPLICABLE).","No",12,{"$f":"VLOOKUP(G$9,PS5_Supply!$B:$ZP,INDEX(PS5_Supply!$14:$14,MATCH(BoQ_Equipment!$B88,PS5_Supply!$9:$9,0)),FALSE)","v":0},{"$f":"VLOOKUP(H$9,PS5_Supply!$B:$ZP,INDEX(PS5_Supply!$14:$14,MATCH(BoQ_Equipment!$B88,PS5_Supply!$9:$9,0)),FALSE)","v":0},{"$f":"VLOOKUP(I$9,PS5_Supply!$B:$ZP,INDEX(PS5_Supply!$14:$14,MATCH(BoQ_Equipment!$B88,PS5_Supply!$9:$9,0)),FALSE)","v":0},0,0,{"$f":"VLOOKUP(L$9,PS5_Supply!$B:$ZP,INDEX(PS5_Supply!$14:$14,MATCH(BoQ_Equipment!$B88,PS5_Supply!$9:$9,0)),FALSE)","v":0},{"$f":"VLOOKUP(M$9,PS5_Supply!$B:$ZP,INDEX(PS5_Supply!$14:$14,MATCH(BoQ_Equipment!$B88,PS5_Supply!$9:$9,0)),FALSE)","v":0},0,0,{"$f":"VLOOKUP(P$9,PS5_Supply!$B:$ZP,INDEX(PS5_Supply!$14:$14,MATCH(BoQ_Equipment!$B88,PS5_Supply!$9:$9,0)),FALSE)","v":0},{"$f":"VLOOKUP(Q$9,PS5_Supply!$B:$ZP,INDEX(PS5_Supply!$14:$14,MATCH(BoQ_Equipment!$B88,PS5_Supply!$9:$9,0)),FALSE)","v":0},{"$f":"VLOOKUP(R$9,PS5_Supply!$B:$ZP,INDEX(PS5_Supply!$14:$14,MATCH(BoQ_Equipment!$B88,PS5_Supply!$9:$9,0)),FALSE)","v":0},{"$f":"VLOOKUP(S$9,PS5_Supply!$B:$ZP,INDEX(PS5_Supply!$14:$14,MATCH(BoQ_Equipment!$B88,PS5_Supply!$9:$9,0)),FALSE)","v":0},0,0,0,0,0,0]
[660879,70,"MMI Board ","MODULE: TYPE: SPARE; MMI BOARD; QUALITROL IDM+ 6U MMI BOARD WITH LCD, KEYPAD AND LEDS. SPARE; TESTED AND SUPPLIED; VENDORS ARE RESPONSIBLE FOR ENSURING THAT THEY ARE PERFORMING AGAINST THE CORRECT DRAWING REVISION NUMBER (IF APPLICABLE).","No",12,{"$f":"VLOOKUP(G$9,PS5_Supply!$B:$ZP,INDEX(PS5_Supply!$14:$14,MATCH(BoQ_Equipment!$B89,PS5_Supply!$9:$9,0)),FALSE)","v":0},{"$f":"VLOOKUP(H$9,PS5_Supply!$B:$ZP,INDEX(PS5_Supply!$14:$14,MATCH(BoQ_Equipment!$B89,PS5_Supply!$9:$9,0)),FALSE)","v":0},{"$f":"VLOOKUP(I$9,PS5_Supply!$B:$ZP,INDEX(PS5_Supply!$14:$14,MATCH(BoQ_Equipment!$B89,PS5_Supply!$9:$9,0)),FALSE)","v":0},0,0,{"$f":"VLOOKUP(L$9,PS5_Supply!$B:$ZP,INDEX(PS5_Supply!$14:$14,MATCH(BoQ_Equipment!$B89,PS5_Supply!$9:$9,0)),FALSE)","v":0},{"$f":"VLOOKUP(M$9,PS5_Supply!$B:$ZP,INDEX(PS5_Supply!$14:$14,MATCH(BoQ_Equipment!$B89,PS5_Supply!$9:$9,0)),FALSE)","v":0},0,0,{"$f":"VLOOKUP(P$9,PS5_Supply!$B:$ZP,INDEX(PS5_Supply!$14:$14,MATCH(BoQ_Equipment!$B89,PS5_Supply!$9:$9,0)),FALSE)","v":0},{"$f":"VLOOKUP(Q$9,PS5_Supply!$B:$ZP,INDEX(PS5_Supply!$14:$14,MATCH(BoQ_Equipment!$B89,PS5_Supply!$9:$9,0)),FALSE)","v":0},{"$f":"VLOOKUP(R$9,PS5_Supply!$B:$ZP,INDEX(PS5_Supply!$14:$14,MATCH(BoQ_Equipment!$B89,PS5_Supply!$9:$9,0)),FALSE)","v":0},{"$f":"VLOOKUP(S$9,PS5_Supply!$B:$ZP,INDEX(PS5_Supply!$14:$14,MATCH(BoQ_Equipment!$B89,PS5_Supply!$9:$9,0)),FALSE)","v":0},0,0,0,0,0,0]
[660732,71,"IDM+ with 9A/32D ","UNIT: TYPE: SPARE DFR; 9A 32B; APPLICATION: DIGITAL FAULT RECORDER; QUALITROL IDM+ 6U UNIT WITH 1 X 9A/32B BOARDS + CONFIGURATION. SPARE UNIT; TESTED AND SUPPLIED; VENDORS ARE RESPONSIBLE FOR ENSURING THAT THEY ARE PERFORMING AGAINST THE CORRECT DRAWING REVISION NUMBER (IF APPLICABLE).","No",7,{"$f":"VLOOKUP(G$9,PS5_Supply!$B:$ZP,INDEX(PS5_Supply!$14:$14,MATCH(BoQ_Equipment!$B90,PS5_Supply!$9:$9,0)),FALSE)","v":0},{"$f":"VLOOKUP(H$9,PS5_Supply!$B:$ZP,INDEX(PS5_Supply!$14:$14,MATCH(BoQ_Equipment!$B90,PS5_Supply!$9:$9,0)),FALSE)","v":0},{"$f":"VLOOKUP(I$9,PS5_Supply!$B:$ZP,INDEX(PS5_Supply!$14:$14,MATCH(BoQ_Equipment!$B90,PS5_Supply!$9:$9,0)),FALSE)","v":0},0,0,{"$f":"VLOOKUP(L$9,PS5_Supply!$B:$ZP,INDEX(PS5_Supply!$14:$14,MATCH(BoQ_Equipment!$B90,PS5_Supply!$9:$9,0)),FALSE)","v":0},{"$f":"VLOOKUP(M$9,PS5_Supply!$B:$ZP,INDEX(PS5_Supply!$14:$14,MATCH(BoQ_Equipment!$B90,PS5_Supply!$9:$9,0)),FALSE)","v":0},0,0,{"$f":"VLOOKUP(P$9,PS5_Supply!$B:$ZP,INDEX(PS5_Supply!$14:$14,MATCH(BoQ_Equipment!$B90,PS5_Supply!$9:$9,0)),FALSE)","v":0},{"$f":"VLOOKUP(Q$9,PS5_Supply!$B:$ZP,INDEX(PS5_Supply!$14:$14,MATCH(BoQ_Equipment!$B90,PS5_Supply!$9:$9,0)),FALSE)","v":0},{"$f":"VLOOKUP(R$9,PS5_Supply!$B:$ZP,INDEX(PS5_Supply!$14:$14,MATCH(BoQ_Equipment!$B90,PS5_Supply!$9:$9,0)),FALSE)","v":0},{"$f":"VLOOKUP(S$9,PS5_Supply!$B:$ZP,INDEX(PS5_Supply!$14:$14,MATCH(BoQ_Equipment!$B90,PS5_Supply!$9:$9,0)),FALSE)","v":0},0,0,0,0,0,0]
[660734,72,"IDM+ with 18A/64D ","UNIT: TYPE: SPARE DFR; 18A 64B; APPLICATION: DIGITAL FAULT RECORDER; QUALITROL IDM+ 6U UNIT WITH 2 X 9A/32B BOARDS + CONFIGURATION. SPARE UNIT; TESTED AND SUPPLIED; VENDORS ARE RESPONSIBLE FOR ENSURING THAT THEY ARE PERFORMING AGAINST THE CORRECT DRAWING REVISION NUMBER (IF APPLICABLE).","No",10,{"$f":"VLOOKUP(G$9,PS5_Supply!$B:$ZP,INDEX(PS5_Supply!$14:$14,MATCH(BoQ_Equipment!$B91,PS5_Supply!$9:$9,0)),FALSE)","v":0},{"$f":"VLOOKUP(H$9,PS5_Supply!$B:$ZP,INDEX(PS5_Supply!$14:$14,MATCH(BoQ_Equipment!$B91,PS5_Supply!$9:$9,0)),FALSE)","v":0},{"$f":"VLOOKUP(I$9,PS5_Supply!$B:$ZP,INDEX(PS5_Supply!$14:$14,MATCH(BoQ_Equipment!$B91,PS5_Supply!$9:$9,0)),FALSE)","v":0},0,0,{"$f":"VLOOKUP(L$9,PS5_Supply!$B:$ZP,INDEX(PS5_Supply!$14:$14,MATCH(BoQ_Equipment!$B91,PS5_Supply!$9:$9,0)),FALSE)","v":0},{"$f":"VLOOKUP(M$9,PS5_Supply!$B:$ZP,INDEX(PS5_Supply!$14:$14,MATCH(BoQ_Equipment!$B91,PS5_Supply!$9:$9,0)),FALSE)","v":0},0,0,{"$f":"VLOOKUP(P$9,PS5_Supply!$B:$ZP,INDEX(PS5_Supply!$14:$14,MATCH(BoQ_Equipment!$B91,PS5_Supply!$9:$9,0)),FALSE)","v":0},{"$f":"VLOOKUP(Q$9,PS5_Supply!$B:$ZP,INDEX(PS5_Supply!$14:$14,MATCH(BoQ_Equipment!$B91,PS5_Supply!$9:$9,0)),FALSE)","v":0},{"$f":"VLOOKUP(R$9,PS5_Supply!$B:$ZP,INDEX(PS5_Supply!$14:$14,MATCH(BoQ_Equipment!$B91,PS5_Supply!$9:$9,0)),FALSE)","v":0},{"$f":"VLOOKUP(S$9,PS5_Supply!$B:$ZP,INDEX(PS5_Supply!$14:$14,MATCH(BoQ_Equipment!$B91,PS5_Supply!$9:$9,0)),FALSE)","v":0},0,0,0,0,0,0]
[660735,73,"IDM+ with 27A/96D ","UNIT: TYPE: SPARE DFR; 27A 96B; APPLICATION: DIGITAL FAULT RECORDER; QUALITROL IDM+ 6U UNIT WITH 3 X 9A/32B BOARDS + CONFIGURATION. SPARE UNIT; TESTED AND SUPPLIED; VENDORS ARE RESPONSIBLE FOR ENSURING THAT THEY ARE PERFORMING AGAINST THE CORRECT DRAWING REVISION NUMBER (IF APPLICABLE).","No",7,{"$f":"VLOOKUP(G$9,PS5_Supply!$B:$ZP,INDEX(PS5_Supply!$14:$14,MATCH(BoQ_Equipment!$B92,PS5_Supply!$9:$9,0)),FALSE)","v":0},{"$f":"VLOOKUP(H$9,PS5_Supply!$B:$ZP,INDEX(PS5_Supply!$14:$14,MATCH(BoQ_Equipment!$B92,PS5_Supply!$9:$9,0)),FALSE)","v":0},{"$f":"VLOOKUP(I$9,PS5_Supply!$B:$ZP,INDEX(PS5_Supply!$14:$14,MATCH(BoQ_Equipment!$B92,PS5_Supply!$9:$9,0)),FALSE)","v":0},0,0,{"$f":"VLOOKUP(L$9,PS5_Supply!$B:$ZP,INDEX(PS5_Supply!$14:$14,MATCH(BoQ_Equipment!$B92,PS5_Supply!$9:$9,0)),FALSE)","v":0},{"$f":"VLOOKUP(M$9,PS5_Supply!$B:$ZP,INDEX(PS5_Supply!$14:$14,MATCH(BoQ_Equipment!$B92,PS5_Supply!$9:$9,0)),FALSE)","v":0},0,0,{"$f":"VLOOKUP(P$9,PS5_Supply!$B:$ZP,INDEX(PS5_Supply!$14:$14,MATCH(BoQ_Equipment!$B92,PS5_Supply!$9:$9,0)),FALSE)","v":0},{"$f":"VLOOKUP(Q$9,PS5_Supply!$B:$ZP,INDEX(PS5_Supply!$14:$14,MATCH(BoQ_Equipment!$B92,PS5_Supply!$9:$9,0)),FALSE)","v":0},{"$f":"VLOOKUP(R$9,PS5_Supply!$B:$ZP,INDEX(PS5_Supply!$14:$14,MATCH(BoQ_Equipment!$B92,PS5_Supply!$9:$9,0)),FALSE)","v":0},{"$f":"VLOOKUP(S$9,PS5_Supply!$B:$ZP,INDEX(PS5_Supply!$14:$14,MATCH(BoQ_Equipment!$B92,PS5_Supply!$9:$9,0)),FALSE)","v":0},0,0,0,0,0,0]
[660736,74,"IDM+ with 36A/128D ","UNIT: TYPE: SPARE DFR; 36A 128B; APPLICATION: DIGITAL FAULT RECORDER; QUALITROL IDM+ 6U UNIT WITH 4 X 9A/32B BOARDS + CONFIGURATION. SPARE UNIT; TESTED AND SUPPLIED; VENDORS ARE RESPONSIBLE FOR ENSURING THAT THEY ARE PERFORMING AGAINST THE CORRECT DRAWING REVISION NUMBER (IF APPLICABLE).","No",18,{"$f":"VLOOKUP(G$9,PS5_Supply!$B:$ZP,INDEX(PS5_Supply!$14:$14,MATCH(BoQ_Equipment!$B93,PS5_Supply!$9:$9,0)),FALSE)","v":0},{"$f":"VLOOKUP(H$9,PS5_Supply!$B:$ZP,INDEX(PS5_Supply!$14:$14,MATCH(BoQ_Equipment!$B93,PS5_Supply!$9:$9,0)),FALSE)","v":0},{"$f":"VLOOKUP(I$9,PS5_Supply!$B:$ZP,INDEX(PS5_Supply!$14:$14,MATCH(BoQ_Equipment!$B93,PS5_Supply!$9:$9,0)),FALSE)","v":0},0,0,{"$f":"VLOOKUP(L$9,PS5_Supply!$B:$ZP,INDEX(PS5_Supply!$14:$14,MATCH(BoQ_Equipment!$B93,PS5_Supply!$9:$9,0)),FALSE)","v":0},{"$f":"VLOOKUP(M$9,PS5_Supply!$B:$ZP,INDEX(PS5_Supply!$14:$14,MATCH(BoQ_Equipment!$B93,PS5_Supply!$9:$9,0)),FALSE)","v":0},0,0,{"$f":"VLOOKUP(P$9,PS5_Supply!$B:$ZP,INDEX(PS5_Supply!$14:$14,MATCH(BoQ_Equipment!$B93,PS5_Supply!$9:$9,0)),FALSE)","v":0},{"$f":"VLOOKUP(Q$9,PS5_Supply!$B:$ZP,INDEX(PS5_Supply!$14:$14,MATCH(BoQ_Equipment!$B93,PS5_Supply!$9:$9,0)),FALSE)","v":0},{"$f":"VLOOKUP(R$9,PS5_Supply!$B:$ZP,INDEX(PS5_Supply!$14:$14,MATCH(BoQ_Equipment!$B93,PS5_Supply!$9:$9,0)),FALSE)","v":0},{"$f":"VLOOKUP(S$9,PS5_Supply!$B:$ZP,INDEX(PS5_Supply!$14:$14,MATCH(BoQ_Equipment!$B93,PS5_Supply!$9:$9,0)),FALSE)","v":0},0,0,0,0,0,0]
[661838,75,"IDM+ with 1 x TWS (No LC or CT Snap) & 1 x 9/32 ","UNIT: TYPE: SPARE TWS; 1 X TWS FL BOARD; APPLICATION: FAULT LOCATOR; QUALITROL IDM+ 6U UNIT, 1 X 9A/32B BOARD AND 1 X TWS FL DAUGHTER BOARD + CONFIGURATION. SPARE UNIT; TESTED AND SUPPLIED; VENDORS ARE RESPONSIBLE FOR ENSURING THAT THEY ARE PERFORMING AGAINST THE CORRECT DRAWING REVISION NUMBER (IF APPLICABLE).","No",1,{"$f":"VLOOKUP(G$9,PS5_Supply!$B:$ZP,INDEX(PS5_Supply!$14:$14,MATCH(BoQ_Equipment!$B94,PS5_Supply!$9:$9,0)),FALSE)","v":0},{"$f":"VLOOKUP(H$9,PS5_Supply!$B:$ZP,INDEX(PS5_Supply!$14:$14,MATCH(BoQ_Equipment!$B94,PS5_Supply!$9:$9,0)),FALSE)","v":0},{"$f":"VLOOKUP(I$9,PS5_Supply!$B:$ZP,INDEX(PS5_Supply!$14:$14,MATCH(BoQ_Equipment!$B94,PS5_Supply!$9:$9,0)),FALSE)","v":0},0,0,{"$f":"VLOOKUP(L$9,PS5_Supply!$B:$ZP,INDEX(PS5_Supply!$14:$14,MATCH(BoQ_Equipment!$B94,PS5_Supply!$9:$9,0)),FALSE)","v":0},{"$f":"VLOOKUP(M$9,PS5_Supply!$B:$ZP,INDEX(PS5_Supply!$14:$14,MATCH(BoQ_Equipment!$B94,PS5_Supply!$9:$9,0)),FALSE)","v":0},0,0,{"$f":"VLOOKUP(P$9,PS5_Supply!$B:$ZP,INDEX(PS5_Supply!$14:$14,MATCH(BoQ_Equipment!$B94,PS5_Supply!$9:$9,0)),FALSE)","v":0},{"$f":"VLOOKUP(Q$9,PS5_Supply!$B:$ZP,INDEX(PS5_Supply!$14:$14,MATCH(BoQ_Equipment!$B94,PS5_Supply!$9:$9,0)),FALSE)","v":0},{"$f":"VLOOKUP(R$9,PS5_Supply!$B:$ZP,INDEX(PS5_Supply!$14:$14,MATCH(BoQ_Equipment!$B94,PS5_Supply!$9:$9,0)),FALSE)","v":0},{"$f":"VLOOKUP(S$9,PS5_Supply!$B:$ZP,INDEX(PS5_Supply!$14:$14,MATCH(BoQ_Equipment!$B94,PS5_Supply!$9:$9,0)),FALSE)","v":0},0,0,0,0,0,0]
[661840,76,"IDM+ with 2 x TWS (No LC or CT Snap) & 2 x 9/32 ","UNIT: TYPE: SPARE TWS: 2 X TWS FL BOARDS; APPLICATION: FAULT LOCATOR; QUALITROL IDM+ 6U UNIT, 2 X 9A/32B BOARDS AND 2 X TWS FL DAUGHTER BOARDS + CONFIGURATION. SPARE UNIT; TESTED AND SUPPLIED; VENDORS ARE RESPONSIBLE FOR ENSURING THAT THEY ARE PERFORMING AGAINST THE CORRECT DRAWING REVISION NUMBER (IF APPLICABLE).","No",1,{"$f":"VLOOKUP(G$9,PS5_Supply!$B:$ZP,INDEX(PS5_Supply!$14:$14,MATCH(BoQ_Equipment!$B95,PS5_Supply!$9:$9,0)),FALSE)","v":0},{"$f":"VLOOKUP(H$9,PS5_Supply!$B:$ZP,INDEX(PS5_Supply!$14:$14,MATCH(BoQ_Equipment!$B95,PS5_Supply!$9:$9,0)),FALSE)","v":0},{"$f":"VLOOKUP(I$9,PS5_Supply!$B:$ZP,INDEX(PS5_Supply!$14:$14,MATCH(BoQ_Equipment!$B95,PS5_Supply!$9:$9,0)),FALSE)","v":0},0,0,{"$f":"VLOOKUP(L$9,PS5_Supply!$B:$ZP,INDEX(PS5_Supply!$14:$14,MATCH(BoQ_Equipment!$B95,PS5_Supply!$9:$9,0)),FALSE)","v":0},{"$f":"VLOOKUP(M$9,PS5_Supply!$B:$ZP,INDEX(PS5_Supply!$14:$14,MATCH(BoQ_Equipment!$B95,PS5_Supply!$9:$9,0)),FALSE)","v":0},0,0,{"$f":"VLOOKUP(P$9,PS5_Supply!$B:$ZP,INDEX(PS5_Supply!$14:$14,MATCH(BoQ_Equipment!$B95,PS5_Supply!$9:$9,0)),FALSE)","v":0},{"$f":"VLOOKUP(Q$9,PS5_Supply!$B:$ZP,INDEX(PS5_Supply!$14:$14,MATCH(BoQ_Equipment!$B95,PS5_Supply!$9:$9,0)),FALSE)","v":0},{"$f":"VLOOKUP(R$9,PS5_Supply!$B:$ZP,INDEX(PS5_Supply!$14:$14,MATCH(BoQ_Equipment!$B95,PS5_Supply!$9:$9,0)),FALSE)","v":0},{"$f":"VLOOKUP(S$9,PS5_Supply!$B:$ZP,INDEX(PS5_Supply!$14:$14,MATCH(BoQ_Equipment!$B95,PS5_Supply!$9:$9,0)),FALSE)","v":0},0,0,0,0,0,0]
[660880,77,"FL Card ","MODULE: TYPE: SPARE; TWS FAULT LOCATOR BOARD; QUALITROL IDM+ 6U; TWS FAULT LOCATOR DAUGHTER BOARD; SPARE; TESTED AND SUPPLIED; VENDORS ARE RESPONSIBLE FOR ENSURING THAT THEY ARE PERFORMING AGAINST THE CORRECT DRAWING REVISION NUMBER (IF APPLICABLE).","No",28,{"$f":"VLOOKUP(G$9,PS5_Supply!$B:$ZP,INDEX(PS5_Supply!$14:$14,MATCH(BoQ_Equipment!$B96,PS5_Supply!$9:$9,0)),FALSE)","v":0},{"$f":"VLOOKUP(H$9,PS5_Supply!$B:$ZP,INDEX(PS5_Supply!$14:$14,MATCH(BoQ_Equipment!$B96,PS5_Supply!$9:$9,0)),FALSE)","v":0},{"$f":"VLOOKUP(I$9,PS5_Supply!$B:$ZP,INDEX(PS5_Supply!$14:$14,MATCH(BoQ_Equipment!$B96,PS5_Supply!$9:$9,0)),FALSE)","v":0},0,0,{"$f":"VLOOKUP(L$9,PS5_Supply!$B:$ZP,INDEX(PS5_Supply!$14:$14,MATCH(BoQ_Equipment!$B96,PS5_Supply!$9:$9,0)),FALSE)","v":0},{"$f":"VLOOKUP(M$9,PS5_Supply!$B:$ZP,INDEX(PS5_Supply!$14:$14,MATCH(BoQ_Equipment!$B96,PS5_Supply!$9:$9,0)),FALSE)","v":0},0,0,{"$f":"VLOOKUP(P$9,PS5_Supply!$B:$ZP,INDEX(PS5_Supply!$14:$14,MATCH(BoQ_Equipment!$B96,PS5_Supply!$9:$9,0)),FALSE)","v":0},{"$f":"VLOOKUP(Q$9,PS5_Supply!$B:$ZP,INDEX(PS5_Supply!$14:$14,MATCH(BoQ_Equipment!$B96,PS5_Supply!$9:$9,0)),FALSE)","v":0},{"$f":"VLOOKUP(R$9,PS5_Supply!$B:$ZP,INDEX(PS5_Supply!$14:$14,MATCH(BoQ_Equipment!$B96,PS5_Supply!$9:$9,0)),FALSE)","v":0},{"$f":"VLOOKUP(S$9,PS5_Supply!$B:$ZP,INDEX(PS5_Supply!$14:$14,MATCH(BoQ_Equipment!$B96,PS5_Supply!$9:$9,0)),FALSE)","v":0},0,0,0,0,0,0]
[660881,78,"Internal GPS Receiver ","MODULE: TYPE: INTERNAL GPS RECEIVER; QUALITROL IDM+ 6U INTERNAL GPS RECEIVER DAUGHTER BOARD. TESTED AND SUPPLIED WITH A TRIMBLE BULLET ANTENNA AND RG6 ANTENNA CABLE (30M) WITH BNC TERMINATIONS; VENDORS ARE RESPONSIBLE FOR ENSURING THAT THEY ARE PERFORMING AGAINST THE CORRECT DRAWING REVISION NUMBER (IF APPLICABLE).","No",210,{"$f":"VLOOKUP(G$9,PS5_Supply!$B:$ZP,INDEX(PS5_Supply!$14:$14,MATCH(BoQ_Equipment!$B97,PS5_Supply!$9:$9,0)),FALSE)","v":0},{"$f":"VLOOKUP(H$9,PS5_Supply!$B:$ZP,INDEX(PS5_Supply!$14:$14,MATCH(BoQ_Equipment!$B97,PS5_Supply!$9:$9,0)),FALSE)","v":0},{"$f":"VLOOKUP(I$9,PS5_Supply!$B:$ZP,INDEX(PS5_Supply!$14:$14,MATCH(BoQ_Equipment!$B97,PS5_Supply!$9:$9,0)),FALSE)","v":0},0,0,{"$f":"VLOOKUP(L$9,PS5_Supply!$B:$ZP,INDEX(PS5_Supply!$14:$14,MATCH(BoQ_Equipment!$B97,PS5_Supply!$9:$9,0)),FALSE)","v":0},{"$f":"VLOOKUP(M$9,PS5_Supply!$B:$ZP,INDEX(PS5_Supply!$14:$14,MATCH(BoQ_Equipment!$B97,PS5_Supply!$9:$9,0)),FALSE)","v":0},0,0,{"$f":"VLOOKUP(P$9,PS5_Supply!$B:$ZP,INDEX(PS5_Supply!$14:$14,MATCH(BoQ_Equipment!$B97,PS5_Supply!$9:$9,0)),FALSE)","v":0},{"$f":"VLOOKUP(Q$9,PS5_Supply!$B:$ZP,INDEX(PS5_Supply!$14:$14,MATCH(BoQ_Equipment!$B97,PS5_Supply!$9:$9,0)),FALSE)","v":0},{"$f":"VLOOKUP(R$9,PS5_Supply!$B:$ZP,INDEX(PS5_Supply!$14:$14,MATCH(BoQ_Equipment!$B97,PS5_Supply!$9:$9,0)),FALSE)","v":0},{"$f":"VLOOKUP(S$9,PS5_Supply!$B:$ZP,INDEX(PS5_Supply!$14:$14,MATCH(BoQ_Equipment!$B97,PS5_Supply!$9:$9,0)),FALSE)","v":0},0,0,0,0,0,0]
[663145,79,"GPS Cable & Antenna 30m ","ANTENNA: TYPE: GPS; FREQUENCY: 1575.42 MHZ; DIMENSIONS: DIA 80 X LG 100 MM; MATERIAL: FIBREGLASS; SOLDER; PLASTIC ENCLOSURE; APPLICATION: QUALITROL IDM+; TRIMBLE BULLET GPS ANTENNA AND RG6 CABLE (30M) WITH BNC TERMINATIONS FOR USE WITH QUALITROL IDM+UNITS ; VENDORS ARE RESPONSIBLE FOR ENSURING THAT THEY ARE PERFORMING AGAINST THE CORRECT DRAWING REVISION NUMBER (IF APPLICABLE).","No",15,{"$f":"VLOOKUP(G$9,PS5_Supply!$B:$ZP,INDEX(PS5_Supply!$14:$14,MATCH(BoQ_Equipment!$B98,PS5_Supply!$9:$9,0)),FALSE)","v":0},{"$f":"VLOOKUP(H$9,PS5_Supply!$B:$ZP,INDEX(PS5_Supply!$14:$14,MATCH(BoQ_Equipment!$B98,PS5_Supply!$9:$9,0)),FALSE)","v":0},{"$f":"VLOOKUP(I$9,PS5_Supply!$B:$ZP,INDEX(PS5_Supply!$14:$14,MATCH(BoQ_Equipment!$B98,PS5_Supply!$9:$9,0)),FALSE)","v":0},0,0,{"$f":"VLOOKUP(L$9,PS5_Supply!$B:$ZP,INDEX(PS5_Supply!$14:$14,MATCH(BoQ_Equipment!$B98,PS5_Supply!$9:$9,0)),FALSE)","v":0},{"$f":"VLOOKUP(M$9,PS5_Supply!$B:$ZP,INDEX(PS5_Supply!$14:$14,MATCH(BoQ_Equipment!$B98,PS5_Supply!$9:$9,0)),FALSE)","v":0},0,0,{"$f":"VLOOKUP(P$9,PS5_Supply!$B:$ZP,INDEX(PS5_Supply!$14:$14,MATCH(BoQ_Equipment!$B98,PS5_Supply!$9:$9,0)),FALSE)","v":0},{"$f":"VLOOKUP(Q$9,PS5_Supply!$B:$ZP,INDEX(PS5_Supply!$14:$14,MATCH(BoQ_Equipment!$B98,PS5_Supply!$9:$9,0)),FALSE)","v":0},{"$f":"VLOOKUP(R$9,PS5_Supply!$B:$ZP,INDEX(PS5_Supply!$14:$14,MATCH(BoQ_Equipment!$B98,PS5_Supply!$9:$9,0)),FALSE)","v":0},{"$f":"VLOOKUP(S$9,PS5_Supply!$B:$ZP,INDEX(PS5_Supply!$14:$14,MATCH(BoQ_Equipment!$B98,PS5_Supply!$9:$9,0)),FALSE)","v":0},0,0,0,0,0,0]
[661821,80,"Linear Couplers with cables (set of 3) ","MODULE: TYPE: LINEAR COUPLERS & CABLES-SET OF 3; 3 X QUALITROL LINEAR COUPLERS (CURRENT TRANSDUCERS) WITH CABLES FOR CONNECTION TO TWS INPUTS ON QUALITROL IDM+ 6U UNIT; VENDORS ARE RESPONSIBLE FOR ENSURING THAT THEY ARE PERFORMING AGAINST THE CORRECT DRAWING REVISION NUMBER (IF APPLICABLE).","No",6,{"$f":"VLOOKUP(G$9,PS5_Supply!$B:$ZP,INDEX(PS5_Supply!$14:$14,MATCH(BoQ_Equipment!$B99,PS5_Supply!$9:$9,0)),FALSE)","v":0},{"$f":"VLOOKUP(H$9,PS5_Supply!$B:$ZP,INDEX(PS5_Supply!$14:$14,MATCH(BoQ_Equipment!$B99,PS5_Supply!$9:$9,0)),FALSE)","v":0},{"$f":"VLOOKUP(I$9,PS5_Supply!$B:$ZP,INDEX(PS5_Supply!$14:$14,MATCH(BoQ_Equipment!$B99,PS5_Supply!$9:$9,0)),FALSE)","v":0},0,0,{"$f":"VLOOKUP(L$9,PS5_Supply!$B:$ZP,INDEX(PS5_Supply!$14:$14,MATCH(BoQ_Equipment!$B99,PS5_Supply!$9:$9,0)),FALSE)","v":0},{"$f":"VLOOKUP(M$9,PS5_Supply!$B:$ZP,INDEX(PS5_Supply!$14:$14,MATCH(BoQ_Equipment!$B99,PS5_Supply!$9:$9,0)),FALSE)","v":0},0,0,{"$f":"VLOOKUP(P$9,PS5_Supply!$B:$ZP,INDEX(PS5_Supply!$14:$14,MATCH(BoQ_Equipment!$B99,PS5_Supply!$9:$9,0)),FALSE)","v":0},{"$f":"VLOOKUP(Q$9,PS5_Supply!$B:$ZP,INDEX(PS5_Supply!$14:$14,MATCH(BoQ_Equipment!$B99,PS5_Supply!$9:$9,0)),FALSE)","v":0},{"$f":"VLOOKUP(R$9,PS5_Supply!$B:$ZP,INDEX(PS5_Supply!$14:$14,MATCH(BoQ_Equipment!$B99,PS5_Supply!$9:$9,0)),FALSE)","v":0},{"$f":"VLOOKUP(S$9,PS5_Supply!$B:$ZP,INDEX(PS5_Supply!$14:$14,MATCH(BoQ_Equipment!$B99,PS5_Supply!$9:$9,0)),FALSE)","v":0},0,0,0,0,0,0]
[660882,81,"Linear Couplers mounted on Snaptrack with cables (set of 3) ","MODULE: TYPE: SPARE; LC SNAP TRACK BOARD; SNAP TRACK BOARD WITH 3 X QUALITROL LINEAR COUPLERS (CURRENT TRANSDUCERS), TERMINALS  FOR TWS INPUTS AND CABLES; VENDORS ARE RESPONSIBLE FOR ENSURING THAT THEY ARE PERFORMING AGAINST THE CORRECT DRAWING REVISION NUMBER (IF APPLICABLE).","No",12,{"$f":"VLOOKUP(G$9,PS5_Supply!$B:$ZP,INDEX(PS5_Supply!$14:$14,MATCH(BoQ_Equipment!$B100,PS5_Supply!$9:$9,0)),FALSE)","v":0},{"$f":"VLOOKUP(H$9,PS5_Supply!$B:$ZP,INDEX(PS5_Supply!$14:$14,MATCH(BoQ_Equipment!$B100,PS5_Supply!$9:$9,0)),FALSE)","v":0},{"$f":"VLOOKUP(I$9,PS5_Supply!$B:$ZP,INDEX(PS5_Supply!$14:$14,MATCH(BoQ_Equipment!$B100,PS5_Supply!$9:$9,0)),FALSE)","v":0},0,0,{"$f":"VLOOKUP(L$9,PS5_Supply!$B:$ZP,INDEX(PS5_Supply!$14:$14,MATCH(BoQ_Equipment!$B100,PS5_Supply!$9:$9,0)),FALSE)","v":0},{"$f":"VLOOKUP(M$9,PS5_Supply!$B:$ZP,INDEX(PS5_Supply!$14:$14,MATCH(BoQ_Equipment!$B100,PS5_Supply!$9:$9,0)),FALSE)","v":0},0,0,{"$f":"VLOOKUP(P$9,PS5_Supply!$B:$ZP,INDEX(PS5_Supply!$14:$14,MATCH(BoQ_Equipment!$B100,PS5_Supply!$9:$9,0)),FALSE)","v":0},{"$f":"VLOOKUP(Q$9,PS5_Supply!$B:$ZP,INDEX(PS5_Supply!$14:$14,MATCH(BoQ_Equipment!$B100,PS5_Supply!$9:$9,0)),FALSE)","v":0},{"$f":"VLOOKUP(R$9,PS5_Supply!$B:$ZP,INDEX(PS5_Supply!$14:$14,MATCH(BoQ_Equipment!$B100,PS5_Supply!$9:$9,0)),FALSE)","v":0},{"$f":"VLOOKUP(S$9,PS5_Supply!$B:$ZP,INDEX(PS5_Supply!$14:$14,MATCH(BoQ_Equipment!$B100,PS5_Supply!$9:$9,0)),FALSE)","v":0},0,0,0,0,0,0]
[660283,82,"230Vac Finder Relay with Base (60.13.8.230)","RELAY: TYPE: AUXILIARY; COIL VOLTAGE: 230 VAC; CONTACT ARRANGEMENT: 3 CHANGEOVER; CONTACT RATING: 10 A; ACTION: NA; TERMINAL: 11 PIN; MOUNT: PLUG IN; ENCLOSURE RATING: IP40; FINDER 230VAC RELAY (TYPE: 60.13.8.230.0040) WITH BASE (TYPE: 90.21); VENDORS ARE RESPONSIBLE FOR ENSURING THAT THEY ARE PERFORMING AGAINST THE CORRECT DRAWING REVISION NUMBER (IF APPLICABLE).","No",8,{"$f":"VLOOKUP(G$9,PS5_Supply!$B:$ZP,INDEX(PS5_Supply!$14:$14,MATCH(BoQ_Equipment!$B101,PS5_Supply!$9:$9,0)),FALSE)","v":0},{"$f":"VLOOKUP(H$9,PS5_Supply!$B:$ZP,INDEX(PS5_Supply!$14:$14,MATCH(BoQ_Equipment!$B101,PS5_Supply!$9:$9,0)),FALSE)","v":0},{"$f":"VLOOKUP(I$9,PS5_Supply!$B:$ZP,INDEX(PS5_Supply!$14:$14,MATCH(BoQ_Equipment!$B101,PS5_Supply!$9:$9,0)),FALSE)","v":0},0,0,{"$f":"VLOOKUP(L$9,PS5_Supply!$B:$ZP,INDEX(PS5_Supply!$14:$14,MATCH(BoQ_Equipment!$B101,PS5_Supply!$9:$9,0)),FALSE)","v":0},{"$f":"VLOOKUP(M$9,PS5_Supply!$B:$ZP,INDEX(PS5_Supply!$14:$14,MATCH(BoQ_Equipment!$B101,PS5_Supply!$9:$9,0)),FALSE)","v":0},0,0,{"$f":"VLOOKUP(P$9,PS5_Supply!$B:$ZP,INDEX(PS5_Supply!$14:$14,MATCH(BoQ_Equipment!$B101,PS5_Supply!$9:$9,0)),FALSE)","v":0},{"$f":"VLOOKUP(Q$9,PS5_Supply!$B:$ZP,INDEX(PS5_Supply!$14:$14,MATCH(BoQ_Equipment!$B101,PS5_Supply!$9:$9,0)),FALSE)","v":0},{"$f":"VLOOKUP(R$9,PS5_Supply!$B:$ZP,INDEX(PS5_Supply!$14:$14,MATCH(BoQ_Equipment!$B101,PS5_Supply!$9:$9,0)),FALSE)","v":0},{"$f":"VLOOKUP(S$9,PS5_Supply!$B:$ZP,INDEX(PS5_Supply!$14:$14,MATCH(BoQ_Equipment!$B101,PS5_Supply!$9:$9,0)),FALSE)","v":0},0,0,0,0,0,0]
[660284,83,"24Vdc Finder Relay with Base (60.13.9.24)","RELAY: TYPE: AUXILIARY; COIL VOLTAGE: 24 VDC; CONTACT ARRANGEMENT: 3 CHANGEOVER; CONTACT RATING: 10 A; ACTION: NA; TERMINAL: 11 PIN; MOUNT: PLUG IN; ENCLOSURE RATING: IP40; FINDER 24VDC RELAY (TYPE: 60.13.9.024.0040) WITH BASE (TYPE: 90.21); VENDORS ARE RESPONSIBLE FOR ENSURING THAT THEY ARE PERFORMING AGAINST THE CORRECT DRAWING REVISION NUMBER (IF APPLICABLE).","No",8,{"$f":"VLOOKUP(G$9,PS5_Supply!$B:$ZP,INDEX(PS5_Supply!$14:$14,MATCH(BoQ_Equipment!$B102,PS5_Supply!$9:$9,0)),FALSE)","v":0},{"$f":"VLOOKUP(H$9,PS5_Supply!$B:$ZP,INDEX(PS5_Supply!$14:$14,MATCH(BoQ_Equipment!$B102,PS5_Supply!$9:$9,0)),FALSE)","v":0},{"$f":"VLOOKUP(I$9,PS5_Supply!$B:$ZP,INDEX(PS5_Supply!$14:$14,MATCH(BoQ_Equipment!$B102,PS5_Supply!$9:$9,0)),FALSE)","v":0},0,0,{"$f":"VLOOKUP(L$9,PS5_Supply!$B:$ZP,INDEX(PS5_Supply!$14:$14,MATCH(BoQ_Equipment!$B102,PS5_Supply!$9:$9,0)),FALSE)","v":0},{"$f":"VLOOKUP(M$9,PS5_Supply!$B:$ZP,INDEX(PS5_Supply!$14:$14,MATCH(BoQ_Equipment!$B102,PS5_Supply!$9:$9,0)),FALSE)","v":0},0,0,{"$f":"VLOOKUP(P$9,PS5_Supply!$B:$ZP,INDEX(PS5_Supply!$14:$14,MATCH(BoQ_Equipment!$B102,PS5_Supply!$9:$9,0)),FALSE)","v":0},{"$f":"VLOOKUP(Q$9,PS5_Supply!$B:$ZP,INDEX(PS5_Supply!$14:$14,MATCH(BoQ_Equipment!$B102,PS5_Supply!$9:$9,0)),FALSE)","v":0},{"$f":"VLOOKUP(R$9,PS5_Supply!$B:$ZP,INDEX(PS5_Supply!$14:$14,MATCH(BoQ_Equipment!$B102,PS5_Supply!$9:$9,0)),FALSE)","v":0},{"$f":"VLOOKUP(S$9,PS5_Supply!$B:$ZP,INDEX(PS5_Supply!$14:$14,MATCH(BoQ_Equipment!$B102,PS5_Supply!$9:$9,0)),FALSE)","v":0},0,0,0,0,0,0]
[660286,84,"48Vdc Finder Relay with Base (60.13.9.48)","RELAY: TYPE: AUXILIARY; COIL VOLTAGE: 48 VDC; CONTACT ARRANGEMENT: 3 CHANGEOVER; CONTACT RATING: 10 A; ACTION: NA; TERMINAL: 11 PIN; MOUNT: PLUG IN; ENCLOSURE RATING: IP40; FINDER 48VDC RELAY (TYPE: 60.13.9.048.0040) WITH BASE (TYPE: 90.21); VENDORS ARE RESPONSIBLE FOR ENSURING THAT THEY ARE PERFORMING AGAINST THE CORRECT DRAWING REVISION NUMBER (IF APPLICABLE).","No",8,{"$f":"VLOOKUP(G$9,PS5_Supply!$B:$ZP,INDEX(PS5_Supply!$14:$14,MATCH(BoQ_Equipment!$B103,PS5_Supply!$9:$9,0)),FALSE)","v":0},{"$f":"VLOOKUP(H$9,PS5_Supply!$B:$ZP,INDEX(PS5_Supply!$14:$14,MATCH(BoQ_Equipment!$B103,PS5_Supply!$9:$9,0)),FALSE)","v":0},{"$f":"VLOOKUP(I$9,PS5_Supply!$B:$ZP,INDEX(PS5_Supply!$14:$14,MATCH(BoQ_Equipment!$B103,PS5_Supply!$9:$9,0)),FALSE)","v":0},0,0,{"$f":"VLOOKUP(L$9,PS5_Supply!$B:$ZP,INDEX(PS5_Supply!$14:$14,MATCH(BoQ_Equipment!$B103,PS5_Supply!$9:$9,0)),FALSE)","v":0},{"$f":"VLOOKUP(M$9,PS5_Supply!$B:$ZP,INDEX(PS5_Supply!$14:$14,MATCH(BoQ_Equipment!$B103,PS5_Supply!$9:$9,0)),FALSE)","v":0},0,0,{"$f":"VLOOKUP(P$9,PS5_Supply!$B:$ZP,INDEX(PS5_Supply!$14:$14,MATCH(BoQ_Equipment!$B103,PS5_Supply!$9:$9,0)),FALSE)","v":0},{"$f":"VLOOKUP(Q$9,PS5_Supply!$B:$ZP,INDEX(PS5_Supply!$14:$14,MATCH(BoQ_Equipment!$B103,PS5_Supply!$9:$9,0)),FALSE)","v":0},{"$f":"VLOOKUP(R$9,PS5_Supply!$B:$ZP,INDEX(PS5_Supply!$14:$14,MATCH(BoQ_Equipment!$B103,PS5_Supply!$9:$9,0)),FALSE)","v":0},{"$f":"VLOOKUP(S$9,PS5_Supply!$B:$ZP,INDEX(PS5_Supply!$14:$14,MATCH(BoQ_Equipment!$B103,PS5_Supply!$9:$9,0)),FALSE)","v":0},0,0,0,0,0,0]
[660287,85,"110Vdc Finder Relay with Base (60.13.9.110)","RELAY: TYPE: AUXILIARY; COIL VOLTAGE: 110 VDC; CONTACT ARRANGEMENT: 3 CHANGEOVER; CONTACT RATING: 10 A; ACTION: NA; TERMINAL: 11 PIN; MOUNT: PLUG IN; ENCLOSURE RATING: IP40; FINDER 110VDC RELAY (TYPE: 60.13.9.110.0040) WITH BASE (TYPE: 90.21); VENDORS ARE RESPONSIBLE FOR ENSURING THAT THEY ARE PERFORMING AGAINST THE CORRECT DRAWING REVISION NUMBER (IF APPLICABLE).","No",8,{"$f":"VLOOKUP(G$9,PS5_Supply!$B:$ZP,INDEX(PS5_Supply!$14:$14,MATCH(BoQ_Equipment!$B104,PS5_Supply!$9:$9,0)),FALSE)","v":0},{"$f":"VLOOKUP(H$9,PS5_Supply!$B:$ZP,INDEX(PS5_Supply!$14:$14,MATCH(BoQ_Equipment!$B104,PS5_Supply!$9:$9,0)),FALSE)","v":0},{"$f":"VLOOKUP(I$9,PS5_Supply!$B:$ZP,INDEX(PS5_Supply!$14:$14,MATCH(BoQ_Equipment!$B104,PS5_Supply!$9:$9,0)),FALSE)","v":0},0,0,{"$f":"VLOOKUP(L$9,PS5_Supply!$B:$ZP,INDEX(PS5_Supply!$14:$14,MATCH(BoQ_Equipment!$B104,PS5_Supply!$9:$9,0)),FALSE)","v":0},{"$f":"VLOOKUP(M$9,PS5_Supply!$B:$ZP,INDEX(PS5_Supply!$14:$14,MATCH(BoQ_Equipment!$B104,PS5_Supply!$9:$9,0)),FALSE)","v":0},0,0,{"$f":"VLOOKUP(P$9,PS5_Supply!$B:$ZP,INDEX(PS5_Supply!$14:$14,MATCH(BoQ_Equipment!$B104,PS5_Supply!$9:$9,0)),FALSE)","v":0},{"$f":"VLOOKUP(Q$9,PS5_Supply!$B:$ZP,INDEX(PS5_Supply!$14:$14,MATCH(BoQ_Equipment!$B104,PS5_Supply!$9:$9,0)),FALSE)","v":0},{"$f":"VLOOKUP(R$9,PS5_Supply!$B:$ZP,INDEX(PS5_Supply!$14:$14,MATCH(BoQ_Equipment!$B104,PS5_Supply!$9:$9,0)),FALSE)","v":0},{"$f":"VLOOKUP(S$9,PS5_Supply!$B:$ZP,INDEX(PS5_Supply!$14:$14,MATCH(BoQ_Equipment!$B104,PS5_Supply!$9:$9,0)),FALSE)","v":0},0,0,0,0,0,0]
[660288,86,"220Vdc Finder Relay with Base (60.13.9.220)","RELAY: TYPE: AUXILIARY; COIL VOLTAGE: 220 VDC; CONTACT ARRANGEMENT: 3 CHANGEOVER; CONTACT RATING: 10 A; ACTION: NA; TERMINAL: 11 PIN; MOUNT: PLUG IN; ENCLOSURE RATING: IP40; FINDER 220VDC RELAY (TYPE: 60.13.9.220.0040) WITH BASE (TYPE: 90.21); VENDORS ARE RESPONSIBLE FOR ENSURING THAT THEY ARE PERFORMING AGAINST THE CORRECT DRAWING REVISION NUMBER (IF APPLICABLE).","No",8,{"$f":"VLOOKUP(G$9,PS5_Supply!$B:$ZP,INDEX(PS5_Supply!$14:$14,MATCH(BoQ_Equipment!$B105,PS5_Supply!$9:$9,0)),FALSE)","v":0},{"$f":"VLOOKUP(H$9,PS5_Supply!$B:$ZP,INDEX(PS5_Supply!$14:$14,MATCH(BoQ_Equipment!$B105,PS5_Supply!$9:$9,0)),FALSE)","v":0},{"$f":"VLOOKUP(I$9,PS5_Supply!$B:$ZP,INDEX(PS5_Supply!$14:$14,MATCH(BoQ_Equipment!$B105,PS5_Supply!$9:$9,0)),FALSE)","v":0},0,0,{"$f":"VLOOKUP(L$9,PS5_Supply!$B:$ZP,INDEX(PS5_Supply!$14:$14,MATCH(BoQ_Equipment!$B105,PS5_Supply!$9:$9,0)),FALSE)","v":0},{"$f":"VLOOKUP(M$9,PS5_Supply!$B:$ZP,INDEX(PS5_Supply!$14:$14,MATCH(BoQ_Equipment!$B105,PS5_Supply!$9:$9,0)),FALSE)","v":0},0,0,{"$f":"VLOOKUP(P$9,PS5_Supply!$B:$ZP,INDEX(PS5_Supply!$14:$14,MATCH(BoQ_Equipment!$B105,PS5_Supply!$9:$9,0)),FALSE)","v":0},{"$f":"VLOOKUP(Q$9,PS5_Supply!$B:$ZP,INDEX(PS5_Supply!$14:$14,MATCH(BoQ_Equipment!$B105,PS5_Supply!$9:$9,0)),FALSE)","v":0},{"$f":"VLOOKUP(R$9,PS5_Supply!$B:$ZP,INDEX(PS5_Supply!$14:$14,MATCH(BoQ_Equipment!$B105,PS5_Supply!$9:$9,0)),FALSE)","v":0},{"$f":"VLOOKUP(S$9,PS5_Supply!$B:$ZP,INDEX(PS5_Supply!$14:$14,MATCH(BoQ_Equipment!$B105,PS5_Supply!$9:$9,0)),FALSE)","v":0},0,0,0,0,0,0]
[660289,87,"RF4 Relay with Base (RF4 & FN-DE-IP-10) (110Vdc)","RELAY: TYPE: SECURE SUPPLY; COIL VOLTAGE: 110 VDC; CONTACT ARRANGEMENT: 4 CHANGEOVER; CONTACT RATING: 10 A; ACTION: NA; TERMINAL: 14 PIN; MOUNT: PLUG IN; ENCLOSURE RATING: IP40; ARTECHE RF4 110VDC RELAY WITH BASE; VENDORS ARE RESPONSIBLE FOR ENSURING THAT THEY ARE PERFORMING AGAINST THE CORRECT DRAWING REVISION NUMBER (IF APPLICABLE).","No",8,{"$f":"VLOOKUP(G$9,PS5_Supply!$B:$ZP,INDEX(PS5_Supply!$14:$14,MATCH(BoQ_Equipment!$B106,PS5_Supply!$9:$9,0)),FALSE)","v":0},{"$f":"VLOOKUP(H$9,PS5_Supply!$B:$ZP,INDEX(PS5_Supply!$14:$14,MATCH(BoQ_Equipment!$B106,PS5_Supply!$9:$9,0)),FALSE)","v":0},{"$f":"VLOOKUP(I$9,PS5_Supply!$B:$ZP,INDEX(PS5_Supply!$14:$14,MATCH(BoQ_Equipment!$B106,PS5_Supply!$9:$9,0)),FALSE)","v":0},0,0,{"$f":"VLOOKUP(L$9,PS5_Supply!$B:$ZP,INDEX(PS5_Supply!$14:$14,MATCH(BoQ_Equipment!$B106,PS5_Supply!$9:$9,0)),FALSE)","v":0},{"$f":"VLOOKUP(M$9,PS5_Supply!$B:$ZP,INDEX(PS5_Supply!$14:$14,MATCH(BoQ_Equipment!$B106,PS5_Supply!$9:$9,0)),FALSE)","v":0},0,0,{"$f":"VLOOKUP(P$9,PS5_Supply!$B:$ZP,INDEX(PS5_Supply!$14:$14,MATCH(BoQ_Equipment!$B106,PS5_Supply!$9:$9,0)),FALSE)","v":0},{"$f":"VLOOKUP(Q$9,PS5_Supply!$B:$ZP,INDEX(PS5_Supply!$14:$14,MATCH(BoQ_Equipment!$B106,PS5_Supply!$9:$9,0)),FALSE)","v":0},{"$f":"VLOOKUP(R$9,PS5_Supply!$B:$ZP,INDEX(PS5_Supply!$14:$14,MATCH(BoQ_Equipment!$B106,PS5_Supply!$9:$9,0)),FALSE)","v":0},{"$f":"VLOOKUP(S$9,PS5_Supply!$B:$ZP,INDEX(PS5_Supply!$14:$14,MATCH(BoQ_Equipment!$B106,PS5_Supply!$9:$9,0)),FALSE)","v":0},0,0,0,0,0,0]
[660290,88,"RF4 Relay with Base (RF4 & FN-DE-IP-10) (220Vdc)","RELAY: TYPE: SECURE SUPPLY; COIL VOLTAGE: 220 VDC; CONTACT ARRANGEMENT: 4 CHANGEOVER; CONTACT RATING: 10 A; ACTION: NA; TERMINAL: 14 PIN; MOUNT: PLUG IN; ENCLOSURE RATING: IP40; ARTECHE RF4 220VDC RELAY WITH BASE; VENDORS ARE RESPONSIBLE FOR ENSURING THAT THEY ARE PERFORMING AGAINST THE CORRECT DRAWING REVISION NUMBER (IF APPLICABLE).","No",8,{"$f":"VLOOKUP(G$9,PS5_Supply!$B:$ZP,INDEX(PS5_Supply!$14:$14,MATCH(BoQ_Equipment!$B107,PS5_Supply!$9:$9,0)),FALSE)","v":0},{"$f":"VLOOKUP(H$9,PS5_Supply!$B:$ZP,INDEX(PS5_Supply!$14:$14,MATCH(BoQ_Equipment!$B107,PS5_Supply!$9:$9,0)),FALSE)","v":0},{"$f":"VLOOKUP(I$9,PS5_Supply!$B:$ZP,INDEX(PS5_Supply!$14:$14,MATCH(BoQ_Equipment!$B107,PS5_Supply!$9:$9,0)),FALSE)","v":0},0,0,{"$f":"VLOOKUP(L$9,PS5_Supply!$B:$ZP,INDEX(PS5_Supply!$14:$14,MATCH(BoQ_Equipment!$B107,PS5_Supply!$9:$9,0)),FALSE)","v":0},{"$f":"VLOOKUP(M$9,PS5_Supply!$B:$ZP,INDEX(PS5_Supply!$14:$14,MATCH(BoQ_Equipment!$B107,PS5_Supply!$9:$9,0)),FALSE)","v":0},0,0,{"$f":"VLOOKUP(P$9,PS5_Supply!$B:$ZP,INDEX(PS5_Supply!$14:$14,MATCH(BoQ_Equipment!$B107,PS5_Supply!$9:$9,0)),FALSE)","v":0},{"$f":"VLOOKUP(Q$9,PS5_Supply!$B:$ZP,INDEX(PS5_Supply!$14:$14,MATCH(BoQ_Equipment!$B107,PS5_Supply!$9:$9,0)),FALSE)","v":0},{"$f":"VLOOKUP(R$9,PS5_Supply!$B:$ZP,INDEX(PS5_Supply!$14:$14,MATCH(BoQ_Equipment!$B107,PS5_Supply!$9:$9,0)),FALSE)","v":0},{"$f":"VLOOKUP(S$9,PS5_Supply!$B:$ZP,INDEX(PS5_Supply!$14:$14,MATCH(BoQ_Equipment!$B107,PS5_Supply!$9:$9,0)),FALSE)","v":0},0,0,0,0,0,0]
[660291,89,"DC Monitoring Relay (CM-ESS.1S)","RELAY: TYPE: DC VOLTAGE MONITORING; COIL VOLTAGE: 30-300 VDC; CONTACT ARRANGEMENT: 1 CHANGEOVER; CONTACT RATING: 5 A; ACTION: NA; TERMINAL: 7 SCREW; MOUNT: DIN RAIL; ENCLOSURE RATING: IP50; VOLTAGE MONITORING RELAY; PART NO: ABB CM-ESS.1; VENDORS ARE RESPONSIBLE FOR ENSURING THAT THEY ARE PERFORMING AGAINST THE CORRECT DRAWING REVISION NUMBER (IF APPLICABLE).","No",8,{"$f":"VLOOKUP(G$9,PS5_Supply!$B:$ZP,INDEX(PS5_Supply!$14:$14,MATCH(BoQ_Equipment!$B108,PS5_Supply!$9:$9,0)),FALSE)","v":0},{"$f":"VLOOKUP(H$9,PS5_Supply!$B:$ZP,INDEX(PS5_Supply!$14:$14,MATCH(BoQ_Equipment!$B108,PS5_Supply!$9:$9,0)),FALSE)","v":0},{"$f":"VLOOKUP(I$9,PS5_Supply!$B:$ZP,INDEX(PS5_Supply!$14:$14,MATCH(BoQ_Equipment!$B108,PS5_Supply!$9:$9,0)),FALSE)","v":0},0,0,{"$f":"VLOOKUP(L$9,PS5_Supply!$B:$ZP,INDEX(PS5_Supply!$14:$14,MATCH(BoQ_Equipment!$B108,PS5_Supply!$9:$9,0)),FALSE)","v":0},{"$f":"VLOOKUP(M$9,PS5_Supply!$B:$ZP,INDEX(PS5_Supply!$14:$14,MATCH(BoQ_Equipment!$B108,PS5_Supply!$9:$9,0)),FALSE)","v":0},0,0,{"$f":"VLOOKUP(P$9,PS5_Supply!$B:$ZP,INDEX(PS5_Supply!$14:$14,MATCH(BoQ_Equipment!$B108,PS5_Supply!$9:$9,0)),FALSE)","v":0},{"$f":"VLOOKUP(Q$9,PS5_Supply!$B:$ZP,INDEX(PS5_Supply!$14:$14,MATCH(BoQ_Equipment!$B108,PS5_Supply!$9:$9,0)),FALSE)","v":0},{"$f":"VLOOKUP(R$9,PS5_Supply!$B:$ZP,INDEX(PS5_Supply!$14:$14,MATCH(BoQ_Equipment!$B108,PS5_Supply!$9:$9,0)),FALSE)","v":0},{"$f":"VLOOKUP(S$9,PS5_Supply!$B:$ZP,INDEX(PS5_Supply!$14:$14,MATCH(BoQ_Equipment!$B108,PS5_Supply!$9:$9,0)),FALSE)","v":0},0,0,0,0,0,0]
[661596,90,"110/220Vdc 6A MCB (S202M-C6UC +S2C-H6R)",null,"No",8,{"$f":"VLOOKUP(G$9,PS5_Supply!$B:$ZP,INDEX(PS5_Supply!$14:$14,MATCH(BoQ_Equipment!$B109,PS5_Supply!$9:$9,0)),FALSE)","v":0},{"$f":"VLOOKUP(H$9,PS5_Supply!$B:$ZP,INDEX(PS5_Supply!$14:$14,MATCH(BoQ_Equipment!$B109,PS5_Supply!$9:$9,0)),FALSE)","v":0},{"$f":"VLOOKUP(I$9,PS5_Supply!$B:$ZP,INDEX(PS5_Supply!$14:$14,MATCH(BoQ_Equipment!$B109,PS5_Supply!$9:$9,0)),FALSE)","v":0},0,0,{"$f":"VLOOKUP(L$9,PS5_Supply!$B:$ZP,INDEX(PS5_Supply!$14:$14,MATCH(BoQ_Equipment!$B109,PS5_Supply!$9:$9,0)),FALSE)","v":0},{"$f":"VLOOKUP(M$9,PS5_Supply!$B:$ZP,INDEX(PS5_Supply!$14:$14,MATCH(BoQ_Equipment!$B109,PS5_Supply!$9:$9,0)),FALSE)","v":0},0,0,{"$f":"VLOOKUP(P$9,PS5_Supply!$B:$ZP,INDEX(PS5_Supply!$14:$14,MATCH(BoQ_Equipment!$B109,PS5_Supply!$9:$9,0)),FALSE)","v":0},{"$f":"VLOOKUP(Q$9,PS5_Supply!$B:$ZP,INDEX(PS5_Supply!$14:$14,MATCH(BoQ_Equipment!$B109,PS5_Supply!$9:$9,0)),FALSE)","v":0},{"$f":"VLOOKUP(R$9,PS5_Supply!$B:$ZP,INDEX(PS5_Supply!$14:$14,MATCH(BoQ_Equipment!$B109,PS5_Supply!$9:$9,0)),FALSE)","v":0},{"$f":"VLOOKUP(S$9,PS5_Supply!$B:$ZP,INDEX(PS5_Supply!$14:$14,MATCH(BoQ_Equipment!$B109,PS5_Supply!$9:$9,0)),FALSE)","v":0},0,0,0,0,0,0]
[661594,91,"110/220Vdc 10A MCB (S202M-C10UC +S2C-H6R)",null,"No",8,{"$f":"VLOOKUP(G$9,PS5_Supply!$B:$ZP,INDEX(PS5_Supply!$14:$14,MATCH(BoQ_Equipment!$B110,PS5_Supply!$9:$9,0)),FALSE)","v":0},{"$f":"VLOOKUP(H$9,PS5_Supply!$B:$ZP,INDEX(PS5_Supply!$14:$14,MATCH(BoQ_Equipment!$B110,PS5_Supply!$9:$9,0)),FALSE)","v":0},{"$f":"VLOOKUP(I$9,PS5_Supply!$B:$ZP,INDEX(PS5_Supply!$14:$14,MATCH(BoQ_Equipment!$B110,PS5_Supply!$9:$9,0)),FALSE)","v":0},0,0,{"$f":"VLOOKUP(L$9,PS5_Supply!$B:$ZP,INDEX(PS5_Supply!$14:$14,MATCH(BoQ_Equipment!$B110,PS5_Supply!$9:$9,0)),FALSE)","v":0},{"$f":"VLOOKUP(M$9,PS5_Supply!$B:$ZP,INDEX(PS5_Supply!$14:$14,MATCH(BoQ_Equipment!$B110,PS5_Supply!$9:$9,0)),FALSE)","v":0},0,0,{"$f":"VLOOKUP(P$9,PS5_Supply!$B:$ZP,INDEX(PS5_Supply!$14:$14,MATCH(BoQ_Equipment!$B110,PS5_Supply!$9:$9,0)),FALSE)","v":0},{"$f":"VLOOKUP(Q$9,PS5_Supply!$B:$ZP,INDEX(PS5_Supply!$14:$14,MATCH(BoQ_Equipment!$B110,PS5_Supply!$9:$9,0)),FALSE)","v":0},{"$f":"VLOOKUP(R$9,PS5_Supply!$B:$ZP,INDEX(PS5_Supply!$14:$14,MATCH(BoQ_Equipment!$B110,PS5_Supply!$9:$9,0)),FALSE)","v":0},{"$f":"VLOOKUP(S$9,PS5_Supply!$B:$ZP,INDEX(PS5_Supply!$14:$14,MATCH(BoQ_Equipment!$B110,PS5_Supply!$9:$9,0)),FALSE)","v":0},0,0,0,0,0,0]
[661462,92,"230Vac 10A 2P MCB (S202-C10)",null,"No",8,{"$f":"VLOOKUP(G$9,PS5_Supply!$B:$ZP,INDEX(PS5_Supply!$14:$14,MATCH(BoQ_Equipment!$B111,PS5_Supply!$9:$9,0)),FALSE)","v":0},{"$f":"VLOOKUP(H$9,PS5_Supply!$B:$ZP,INDEX(PS5_Supply!$14:$14,MATCH(BoQ_Equipment!$B111,PS5_Supply!$9:$9,0)),FALSE)","v":0},{"$f":"VLOOKUP(I$9,PS5_Supply!$B:$ZP,INDEX(PS5_Supply!$14:$14,MATCH(BoQ_Equipment!$B111,PS5_Supply!$9:$9,0)),FALSE)","v":0},0,0,{"$f":"VLOOKUP(L$9,PS5_Supply!$B:$ZP,INDEX(PS5_Supply!$14:$14,MATCH(BoQ_Equipment!$B111,PS5_Supply!$9:$9,0)),FALSE)","v":0},{"$f":"VLOOKUP(M$9,PS5_Supply!$B:$ZP,INDEX(PS5_Supply!$14:$14,MATCH(BoQ_Equipment!$B111,PS5_Supply!$9:$9,0)),FALSE)","v":0},0,0,{"$f":"VLOOKUP(P$9,PS5_Supply!$B:$ZP,INDEX(PS5_Supply!$14:$14,MATCH(BoQ_Equipment!$B111,PS5_Supply!$9:$9,0)),FALSE)","v":0},{"$f":"VLOOKUP(Q$9,PS5_Supply!$B:$ZP,INDEX(PS5_Supply!$14:$14,MATCH(BoQ_Equipment!$B111,PS5_Supply!$9:$9,0)),FALSE)","v":0},{"$f":"VLOOKUP(R$9,PS5_Supply!$B:$ZP,INDEX(PS5_Supply!$14:$14,MATCH(BoQ_Equipment!$B111,PS5_Supply!$9:$9,0)),FALSE)","v":0},{"$f":"VLOOKUP(S$9,PS5_Supply!$B:$ZP,INDEX(PS5_Supply!$14:$14,MATCH(BoQ_Equipment!$B111,PS5_Supply!$9:$9,0)),FALSE)","v":0},0,0,0,0,0,0]
[661593,93,"230Vac 2A 2P MCB (S202-C2 + S2C-H6R)",null,"No",8,{"$f":"VLOOKUP(G$9,PS5_Supply!$B:$ZP,INDEX(PS5_Supply!$14:$14,MATCH(BoQ_Equipment!$B112,PS5_Supply!$9:$9,0)),FALSE)","v":0},{"$f":"VLOOKUP(H$9,PS5_Supply!$B:$ZP,INDEX(PS5_Supply!$14:$14,MATCH(BoQ_Equipment!$B112,PS5_Supply!$9:$9,0)),FALSE)","v":0},{"$f":"VLOOKUP(I$9,PS5_Supply!$B:$ZP,INDEX(PS5_Supply!$14:$14,MATCH(BoQ_Equipment!$B112,PS5_Supply!$9:$9,0)),FALSE)","v":0},0,0,{"$f":"VLOOKUP(L$9,PS5_Supply!$B:$ZP,INDEX(PS5_Supply!$14:$14,MATCH(BoQ_Equipment!$B112,PS5_Supply!$9:$9,0)),FALSE)","v":0},{"$f":"VLOOKUP(M$9,PS5_Supply!$B:$ZP,INDEX(PS5_Supply!$14:$14,MATCH(BoQ_Equipment!$B112,PS5_Supply!$9:$9,0)),FALSE)","v":0},0,0,{"$f":"VLOOKUP(P$9,PS5_Supply!$B:$ZP,INDEX(PS5_Supply!$14:$14,MATCH(BoQ_Equipment!$B112,PS5_Supply!$9:$9,0)),FALSE)","v":0},{"$f":"VLOOKUP(Q$9,PS5_Supply!$B:$ZP,INDEX(PS5_Supply!$14:$14,MATCH(BoQ_Equipment!$B112,PS5_Supply!$9:$9,0)),FALSE)","v":0},{"$f":"VLOOKUP(R$9,PS5_Supply!$B:$ZP,INDEX(PS5_Supply!$14:$14,MATCH(BoQ_Equipment!$B112,PS5_Supply!$9:$9,0)),FALSE)","v":0},{"$f":"VLOOKUP(S$9,PS5_Supply!$B:$ZP,INDEX(PS5_Supply!$14:$14,MATCH(BoQ_Equipment!$B112,PS5_Supply!$9:$9,0)),FALSE)","v":0},0,0,0,0,0,0]
[661598,94,"415Vac 2A 3P MCB (S203-C2 + S2C-H6R)",null,"No",8,{"$f":"VLOOKUP(G$9,PS5_Supply!$B:$ZP,INDEX(PS5_Supply!$14:$14,MATCH(BoQ_Equipment!$B113,PS5_Supply!$9:$9,0)),FALSE)","v":0},{"$f":"VLOOKUP(H$9,PS5_Supply!$B:$ZP,INDEX(PS5_Supply!$14:$14,MATCH(BoQ_Equipment!$B113,PS5_Supply!$9:$9,0)),FALSE)","v":0},{"$f":"VLOOKUP(I$9,PS5_Supply!$B:$ZP,INDEX(PS5_Supply!$14:$14,MATCH(BoQ_Equipment!$B113,PS5_Supply!$9:$9,0)),FALSE)","v":0},0,0,{"$f":"VLOOKUP(L$9,PS5_Supply!$B:$ZP,INDEX(PS5_Supply!$14:$14,MATCH(BoQ_Equipment!$B113,PS5_Supply!$9:$9,0)),FALSE)","v":0},{"$f":"VLOOKUP(M$9,PS5_Supply!$B:$ZP,INDEX(PS5_Supply!$14:$14,MATCH(BoQ_Equipment!$B113,PS5_Supply!$9:$9,0)),FALSE)","v":0},0,0,{"$f":"VLOOKUP(P$9,PS5_Supply!$B:$ZP,INDEX(PS5_Supply!$14:$14,MATCH(BoQ_Equipment!$B113,PS5_Supply!$9:$9,0)),FALSE)","v":0},{"$f":"VLOOKUP(Q$9,PS5_Supply!$B:$ZP,INDEX(PS5_Supply!$14:$14,MATCH(BoQ_Equipment!$B113,PS5_Supply!$9:$9,0)),FALSE)","v":0},{"$f":"VLOOKUP(R$9,PS5_Supply!$B:$ZP,INDEX(PS5_Supply!$14:$14,MATCH(BoQ_Equipment!$B113,PS5_Supply!$9:$9,0)),FALSE)","v":0},{"$f":"VLOOKUP(S$9,PS5_Supply!$B:$ZP,INDEX(PS5_Supply!$14:$14,MATCH(BoQ_Equipment!$B113,PS5_Supply!$9:$9,0)),FALSE)","v":0},0,0,0,0,0,0]
[660295,95,"SecuControl 8 Way Test Block (FLTP08015AD-SL17F-1523)","BLOCK, CONTACT: TYPE: 8 WAY; CT TEST BLOCK; POTENTIAL: 600 VAC; CIRCUIT: 8; CURRENT TRANSFORMER TEST BLOCK; PART NO: SECUCONTROL FTLP08015AD-SL 17F-1523; VENDORS ARE RESPONSIBLE FOR ENSURING THAT THEY ARE PERFORMING AGAINST THE CORRECT DRAWING REVISION NUMBER (IF APPLICABLE).","No",48,{"$f":"VLOOKUP(G$9,PS5_Supply!$B:$ZP,INDEX(PS5_Supply!$14:$14,MATCH(BoQ_Equipment!$B114,PS5_Supply!$9:$9,0)),FALSE)","v":0},{"$f":"VLOOKUP(H$9,PS5_Supply!$B:$ZP,INDEX(PS5_Supply!$14:$14,MATCH(BoQ_Equipment!$B114,PS5_Supply!$9:$9,0)),FALSE)","v":0},{"$f":"VLOOKUP(I$9,PS5_Supply!$B:$ZP,INDEX(PS5_Supply!$14:$14,MATCH(BoQ_Equipment!$B114,PS5_Supply!$9:$9,0)),FALSE)","v":0},0,0,{"$f":"VLOOKUP(L$9,PS5_Supply!$B:$ZP,INDEX(PS5_Supply!$14:$14,MATCH(BoQ_Equipment!$B114,PS5_Supply!$9:$9,0)),FALSE)","v":0},{"$f":"VLOOKUP(M$9,PS5_Supply!$B:$ZP,INDEX(PS5_Supply!$14:$14,MATCH(BoQ_Equipment!$B114,PS5_Supply!$9:$9,0)),FALSE)","v":0},0,0,{"$f":"VLOOKUP(P$9,PS5_Supply!$B:$ZP,INDEX(PS5_Supply!$14:$14,MATCH(BoQ_Equipment!$B114,PS5_Supply!$9:$9,0)),FALSE)","v":0},{"$f":"VLOOKUP(Q$9,PS5_Supply!$B:$ZP,INDEX(PS5_Supply!$14:$14,MATCH(BoQ_Equipment!$B114,PS5_Supply!$9:$9,0)),FALSE)","v":0},{"$f":"VLOOKUP(R$9,PS5_Supply!$B:$ZP,INDEX(PS5_Supply!$14:$14,MATCH(BoQ_Equipment!$B114,PS5_Supply!$9:$9,0)),FALSE)","v":0},{"$f":"VLOOKUP(S$9,PS5_Supply!$B:$ZP,INDEX(PS5_Supply!$14:$14,MATCH(BoQ_Equipment!$B114,PS5_Supply!$9:$9,0)),FALSE)","v":0},0,0,0,0,0,0]
[661240,96,"DC/DC Converter (ML60.242)","CONVERTER: TYPE: DC-DC; INPUT: 88-375 VDC; OUTPUT: 24 VDC; APPLICATION: 110/220 VDC TO 24 VDC; PART NO: PULS ML 60.242; VENDORS ARE RESPONSIBLE FOR ENSURING THAT THEY ARE PERFORMING AGAINST THE CORRECT DRAWING REVISION NUMBER (IF APPLICABLE).","No",8,{"$f":"VLOOKUP(G$9,PS5_Supply!$B:$ZP,INDEX(PS5_Supply!$14:$14,MATCH(BoQ_Equipment!$B115,PS5_Supply!$9:$9,0)),FALSE)","v":0},{"$f":"VLOOKUP(H$9,PS5_Supply!$B:$ZP,INDEX(PS5_Supply!$14:$14,MATCH(BoQ_Equipment!$B115,PS5_Supply!$9:$9,0)),FALSE)","v":0},{"$f":"VLOOKUP(I$9,PS5_Supply!$B:$ZP,INDEX(PS5_Supply!$14:$14,MATCH(BoQ_Equipment!$B115,PS5_Supply!$9:$9,0)),FALSE)","v":0},0,0,{"$f":"VLOOKUP(L$9,PS5_Supply!$B:$ZP,INDEX(PS5_Supply!$14:$14,MATCH(BoQ_Equipment!$B115,PS5_Supply!$9:$9,0)),FALSE)","v":0},{"$f":"VLOOKUP(M$9,PS5_Supply!$B:$ZP,INDEX(PS5_Supply!$14:$14,MATCH(BoQ_Equipment!$B115,PS5_Supply!$9:$9,0)),FALSE)","v":0},0,0,{"$f":"VLOOKUP(P$9,PS5_Supply!$B:$ZP,INDEX(PS5_Supply!$14:$14,MATCH(BoQ_Equipment!$B115,PS5_Supply!$9:$9,0)),FALSE)","v":0},{"$f":"VLOOKUP(Q$9,PS5_Supply!$B:$ZP,INDEX(PS5_Supply!$14:$14,MATCH(BoQ_Equipment!$B115,PS5_Supply!$9:$9,0)),FALSE)","v":0},{"$f":"VLOOKUP(R$9,PS5_Supply!$B:$ZP,INDEX(PS5_Supply!$14:$14,MATCH(BoQ_Equipment!$B115,PS5_Supply!$9:$9,0)),FALSE)","v":0},{"$f":"VLOOKUP(S$9,PS5_Supply!$B:$ZP,INDEX(PS5_Supply!$14:$14,MATCH(BoQ_Equipment!$B115,PS5_Supply!$9:$9,0)),FALSE)","v":0},0,0,0,0,0,0]
[661822,97,"8GB Flash Drive ","MODULE: TYPE: COMPACT FLASH; 8GB; VENDORS ARE RESPONSIBLE FOR ENSURING THAT THEY ARE PERFORMING AGAINST THE CORRECT DRAWING REVISION NUMBER (IF APPLICABLE).","No",5,{"$f":"VLOOKUP(G$9,PS5_Supply!$B:$ZP,INDEX(PS5_Supply!$14:$14,MATCH(BoQ_Equipment!$B116,PS5_Supply!$9:$9,0)),FALSE)","v":0},{"$f":"VLOOKUP(H$9,PS5_Supply!$B:$ZP,INDEX(PS5_Supply!$14:$14,MATCH(BoQ_Equipment!$B116,PS5_Supply!$9:$9,0)),FALSE)","v":0},{"$f":"VLOOKUP(I$9,PS5_Supply!$B:$ZP,INDEX(PS5_Supply!$14:$14,MATCH(BoQ_Equipment!$B116,PS5_Supply!$9:$9,0)),FALSE)","v":0},0,0,{"$f":"VLOOKUP(L$9,PS5_Supply!$B:$ZP,INDEX(PS5_Supply!$14:$14,MATCH(BoQ_Equipment!$B116,PS5_Supply!$9:$9,0)),FALSE)","v":0},{"$f":"VLOOKUP(M$9,PS5_Supply!$B:$ZP,INDEX(PS5_Supply!$14:$14,MATCH(BoQ_Equipment!$B116,PS5_Supply!$9:$9,0)),FALSE)","v":0},0,0,{"$f":"VLOOKUP(P$9,PS5_Supply!$B:$ZP,INDEX(PS5_Supply!$14:$14,MATCH(BoQ_Equipment!$B116,PS5_Supply!$9:$9,0)),FALSE)","v":0},{"$f":"VLOOKUP(Q$9,PS5_Supply!$B:$ZP,INDEX(PS5_Supply!$14:$14,MATCH(BoQ_Equipment!$B116,PS5_Supply!$9:$9,0)),FALSE)","v":0},{"$f":"VLOOKUP(R$9,PS5_Supply!$B:$ZP,INDEX(PS5_Supply!$14:$14,MATCH(BoQ_Equipment!$B116,PS5_Supply!$9:$9,0)),FALSE)","v":0},{"$f":"VLOOKUP(S$9,PS5_Supply!$B:$ZP,INDEX(PS5_Supply!$14:$14,MATCH(BoQ_Equipment!$B116,PS5_Supply!$9:$9,0)),FALSE)","v":0},0,0,0,0,0,0]
[661460,98,"Diode Board (4 Way)","BOARD, PRINTED CIRCUIT: TYPE: DIODE BOARD; 4 WAY TRIPPING; PART NO: CONCO 10300/1; VENDORS ARE RESPONSIBLE FOR ENSURING THAT THEY ARE PERFORMING AGAINST THE CORRECT DRAWING REVISION NUMBER (IF APPLICABLE).","No",8,{"$f":"VLOOKUP(G$9,PS5_Supply!$B:$ZP,INDEX(PS5_Supply!$14:$14,MATCH(BoQ_Equipment!$B117,PS5_Supply!$9:$9,0)),FALSE)","v":0},{"$f":"VLOOKUP(H$9,PS5_Supply!$B:$ZP,INDEX(PS5_Supply!$14:$14,MATCH(BoQ_Equipment!$B117,PS5_Supply!$9:$9,0)),FALSE)","v":0},{"$f":"VLOOKUP(I$9,PS5_Supply!$B:$ZP,INDEX(PS5_Supply!$14:$14,MATCH(BoQ_Equipment!$B117,PS5_Supply!$9:$9,0)),FALSE)","v":0},0,0,{"$f":"VLOOKUP(L$9,PS5_Supply!$B:$ZP,INDEX(PS5_Supply!$14:$14,MATCH(BoQ_Equipment!$B117,PS5_Supply!$9:$9,0)),FALSE)","v":0},{"$f":"VLOOKUP(M$9,PS5_Supply!$B:$ZP,INDEX(PS5_Supply!$14:$14,MATCH(BoQ_Equipment!$B117,PS5_Supply!$9:$9,0)),FALSE)","v":0},0,0,{"$f":"VLOOKUP(P$9,PS5_Supply!$B:$ZP,INDEX(PS5_Supply!$14:$14,MATCH(BoQ_Equipment!$B117,PS5_Supply!$9:$9,0)),FALSE)","v":0},{"$f":"VLOOKUP(Q$9,PS5_Supply!$B:$ZP,INDEX(PS5_Supply!$14:$14,MATCH(BoQ_Equipment!$B117,PS5_Supply!$9:$9,0)),FALSE)","v":0},{"$f":"VLOOKUP(R$9,PS5_Supply!$B:$ZP,INDEX(PS5_Supply!$14:$14,MATCH(BoQ_Equipment!$B117,PS5_Supply!$9:$9,0)),FALSE)","v":0},{"$f":"VLOOKUP(S$9,PS5_Supply!$B:$ZP,INDEX(PS5_Supply!$14:$14,MATCH(BoQ_Equipment!$B117,PS5_Supply!$9:$9,0)),FALSE)","v":0},0,0,0,0,0,0]
[]
[{"$nulls":10},{"$f":"SUBTOTAL(9,K12,K83,K55)","v":0},{"$nulls":3},{"$f":"SUBTOTAL(9,O12,O83,O55)","v":0},{"$nulls":4},{"$f":"SUBTOTAL(9,T12,T83,T55)","v":0},{"$f":"SUBTOTAL(9,U12,U83,U55)","v":0},null,{"$f":"SUBTOTAL(9,W12,W83,W55)","v":0},null,{"$f":"SUBTOTAL(9,Y12,Y83,Y55)","v":0}]

{"sheet":"BoQ - Services","index":3,"n_rows":32,"n_cols":13,"rows_kept":32,"merged":[[8,5,8,6],[8,7,8,10],[8,11,10,11],[8,12,10,12]]}
["SCHEDULE OF PRICES"]
[]
["ESKOM TENDER",null,{"$f":"Cover!B17","v":0}]
[]
["YOUR REF: ",null,{"$f":"Cover!B15","v":0}]
[]
["SERVICES - ENGINEERING & TRAINING"]
[]
[{"$nulls":5},"Local Portion",null,"Foreign Portion",{"$nulls":3},"Total Local + Foreign Value Rate/Unit (In Local Currency)","Total Local + Foreign TOTAL Value (In Local Currency)"]
[]
["ITEM","SAP No.","DESCRIPTION","UOM","Estimated Qty","Rate","Amount (ZAR)","Rate of Exchange (RoE)","Foreign Portion Rate/Unit (Foreign Currency)","Foreign Portion Rate/Unit (Local Currency)","Foreign Portion TOTAL (Local Currency - ZAR)"]
[{"$nulls":5},"CPA Formula:",null,null,"CPA Formula:"]
[]
[null,null,"INSTALL, EQUIPMENT, ELECTRONIC: TYPE: ETHERNET SWITCH; METHOD: HANDLING AND INTEGRATION; ENGINEERING: HANDLING AND INTEGRATION OF ONE FREE-ISSUE ETHERNET SWITCH IN PANEL AS PER 6DR-7100 OR 6DRB-7100 SCHEME DESIGN - AS APPLICABLE (MASTER DRAWING NO. 0.52/30112 OR 0.52/30114 RESPECTIVELY)"]
[{"v":1,"d":"1.00"},3000013256,"Engineering: Handling & Integration of one free issue Ethernet Switch - per panel","No",{"v":1,"d":"1.00"},null,{"$f":"F15*E15","v":0},null,null,{"$f":"I15*H15","v":0},{"$f":"J15*E15","v":0},{"$f":"F15+J15","v":0},{"$f":"L15*E15","v":0}]
[]
[null,null,"INSTALL, EQUIPMENT, ELECTRONIC: TYPE: FIBRE PATCH PANEL; ENGINEERING: HANDLING AND INTEGRATION OF ONE FREE-ISSUE FIBRE PATCH PANEL AS PER 6DR-7100 OR 6DRB-7100 SCHEME DESIGN - AS APPLICABLE (MASTER DRAWING NO. 0.52/30112 OR 0.52/30114 RESPECTIVELY)"]
[{"v":2,"d":"2.00"},3000013301,"Engineering: Handling & Integration of one free issue fibre patch panel - per panel","No",{"v":1,"d":"1.00"},null,{"$f":"F18*E18","v":0},null,null,{"$f":"I18*H18","v":0},{"$f":"J18*E18","v":0},{"$f":"F18+J18","v":0},{"$f":"L18*E18","v":0}]
[]
[null,null,"TRAIN, PERSONNEL: COURSE TYPE: PRODUCT TRAINING - ADVANCED; DURATION: 5 DAY; ADVANCED COURSE ON IDM+ DEVICE AND IQ+ SOFTWARE FOR A GROUP OF 8 PEOPLE"]
[{"v":3,"d":"3.00"},3000013312,"Training: Advanced Product Training (per group of 8)","Per Group(8)",{"v":2,"d":"2.00"},null,{"$f":"F21*E21","v":0},null,null,{"$f":"I21*H21","v":0},{"$f":"J21*E21","v":0},{"$f":"F21+J21","v":0},{"$f":"L21*E21","v":0}]
[]
[null,null,"TRAIN, PERSONNEL: COURSE TYPE: PRODUCT TRAINING; DURATION: 3 DAY; FOR A GROUP OF 8 PEOPLE; COMMISSIONING & MAINTENANCE TRAINING ON IDM+ DEVICE AND IQ+ SOFTWARE"]
[{"v":4,"d":"4.00"},3000013313,"Training: Commissioning & Maintenance Training (per group of 8)","Per Group(8)",{"v":15,"d":"15.00"},null,{"$f":"F24*E24","v":0},null,null,{"$f":"I24*H24","v":0},{"$f":"J24*E24","v":0},{"$f":"F24+J24","v":0},{"$f":"L24*E24","v":0}]
[]
[null,null,"HIRE, ENGINEER: SENIORITY: SENIOR ENGINEER/TECHNOLOGIST OR HIGHER; TYPE: PROTECTION ENGINEER; QUALIFICATION: B/BSC ENG; BTECH OR EQUVALENT; PROFESSIONAL REGISTRATION: ECSA; YEARS EXPERIENCE: 5 YR; RELEVANT EXPERIENCE: POWER SYSTEM PROTECTION ENGINEERING; RATE PER DAY"]
[{"v":5,"d":"5.00"},3000013315,"Engineering: Protection Engineer Rate per day","No",{"v":2,"d":"2.00"},null,{"$f":"F27*E27","v":0},null,null,{"$f":"I27*H27","v":0},{"$f":"J27*E27","v":0},{"$f":"F27+J27","v":0},{"$f":"L27*E27","v":0}]
[]
[null,null,"HIRE, ENGINEER: SENIORITY: SENIOR ENGINEER/TECHNOLOGIST OR HIGHER; TYPE: SCADA ENGINEER; QUALIFICATION: B/BSC ENG; BTECH OR EQUVALANT; PROFESSIONAL REGISTRATION: ECSA; YEARS EXPERIENCE: 5 YR; RELEVANT EXPERIENCE: SCADA SYSTEM ENGINEERING; RATE PER DAY"]
[{"v":6,"d":"6.00"},3000013316,"Engineering: SCADA Engineer Rate per day","No",{"v":2,"d":"2.00"},null,{"$f":"F30*E30","v":0},null,null,{"$f":"I30*H30","v":0},{"$f":"J30*E30","v":0},{"$f":"F30+J30","v":0},{"$f":"L30*E30","v":0}]
[]
[{"$nulls":6},{"$f":"SUM(G14:G31)","v":0},{"$nulls":3},{"$f":"SUM(K14:K31)","v":0},null,{"$f":"SUM(M14:M31)","v":0}]

{"sheet":"Summary","index":4,"n_rows":36,"n_cols":7,"rows_kept":36,"merged":[[10,6,11,6],[14,1,15,3],[14,4,15,4],[14,5,15,5],[14,6,15,6],[16,1,17,3],[16,4,17,4],[16,5,17,5],[16,6,17,6],[18,1,19,3],[18,4,19,4],[18,5,19,5],[18,6,19,6],[20,1,21,3],[20,4,21,4],[20,5,21,5],[20,6,21,6]]}
[null,"Enquiry No."]
[]
[null,"Package Name:"]
[]
[null,"Tenderer's Name:"]
[]
[null,"Category of Offer:"]
[]
[null,"SUMMARY"]
[]
[{"$nulls":4},"Foreign Portion","Local Portion","Total Foreign + Local TOTAL Value (In Local Currency)"]
[{"$nulls":4},"Amount (Local Currency - ZAR)","Amount (Local Currency - ZAR)"]
[null,"SCHEMES "]
[]
[null,"SCHEMES (BoQ_Equipment)",null,null,{"$f":"BoQ_Equipment!K12+BoQ_Equipment!T12","v":0},{"$f":"BoQ_Equipment!O12+BoQ_Equipment!U12","v":0},{"$f":"SUM(E15:F16)","v":0}]
[]
[null,"MISCELLANEOUS (BoQ_Equipment)",null,null,{"$f":"BoQ_Equipment!K55+BoQ_Equipment!T55","v":0},{"$f":"BoQ_Equipment!O55+BoQ_Equipment!U55","v":0},{"$f":"SUM(E17:F18)","v":0}]
[]
[null,"SPARES (BoQ_Equipment)",null,null,{"$f":"BoQ_Equipment!K83+BoQ_Equipment!T83","v":0},{"$f":"BoQ_Equipment!O83+BoQ_Equipment!U83","v":0},{"$f":"SUM(E19:F20)","v":0}]
[]
[null,"SERVICES - ENGINEERING & TRAINING (BoQ_Services)",null,null,{"$f":"'BoQ - Services'!K32","v":0},{"$f":"'BoQ - Services'!G32","v":0},{"$f":"SUM(E21:F22)","v":0}]
[]
[]
[null,"TOTAL EXCLUDING VAT",{"$nulls":4},{"$f":"SUM(G15:G23)","v":0}]
[]
[null,"Add: VAT"]
[]
[null,"TOTAL INCLUDING VAT",{"$nulls":4},{"$f":"SUM(G24,G26)","v":0}]
[]
[]
[]
[]
["Authorised (Name & Surname)................................................",{"$nulls":4},"CAPACITY........................................................................"]
[]
[]
["SIGNATURE.............................................................................",{"$nulls":4},"Date..................................................................................."]

{"sheet":"Transport and Offloading Matrix","index":5,"n_rows":32,"n_cols":4,"rows_kept":32,"merged":[[0,0,0,3],[2,0,3,2],[2,3,3,3],[4,0,5,2],[4,3,5,3],[6,0,7,2],[6,3,7,3],[8,0,11,0],[8,1,11,1],[8,2,8,3],[9,2,9,3],[10,2,10,3],[28,2,28,3],[31,0,31,3],[32,0,32,3],[33,0,33,3],[34,0,34,3]]}
["TRANSPORT AND OFF LOADING COSTS MATRIX"]
[]
[" ENQUIRY NO",null,null,{"$f":"Cover!B15","v":0}]
[]
["COMMODITY",null,null,{"$f":"Cover!B17","v":0}]
[]
["SUPPLIER",null,null,{"$f":"Cover!B21","v":0}]
[]
["Item","One way Trip Distance [km]","Prices in South African Currency (Excluding VAT)"]
[null,null,"Transport to site or regional store and off-loading"]
[null,null,"Fixed Rate/Km Radius for up to three (3) Fully populated Panels per load"]
[null,null,"Fixed Rate/Load"]
[1,"0-50 KM"]
[2,"51-100 KM"]
[3,"101-200 KM"]
[4,"201-300 KM"]
[5,"301-400 KM"]
[6,"401-500 KM"]
[7,"501-600 KM"]
[8,"601-700 KM"]
[9,"701-800 KM"]
[10,"801-900 KM"]
[11,"901-1000 KM"]
[12,"1001-1100 KM"]
[13,"1101-1200 KM"]
[14,"1201-1300 KM"]
[15,"1301-1400 KM"]
[16,"1401-1500 KM"]
[]
["NB:"]
["Rate to Include packaging, Transportation and off-loading for up to three (3) fully populated panels per load."]
["COMMENTS:"]

{"sheet":"Installation & Commissioning","index":6,"n_rows":33,"n_cols":5,"rows_kept":33,"merged":[[0,0,0,5],[2,0,3,1],[2,2,3,5],[4,0,5,1],[4,2,5,5],[6,0,7,1],[6,2,7,5],[8,0,11,0],[8,1,11,1],[8,2,8,5],[9,2,9,5],[10,2,10,5],[11,2,11,3],[11,4,11,5],[12,2,12,3],[12,4,12,5],[13,2,13,3],[13,4,13,5],[14,2,14,3],[14,4,14,5],[15,2,15,3],[15,4,15,5],[16,2,16,3],[16,4,16,5],[17,2,17,3],[17,4,17,5],[18,2,18,3],[18,4,18,5],[19,2,19,3],[19,4,19,5],[20,2,20,3],[20,4,20,5],[21,2,21,3],[21,4,21,5],[22,2,22,3],[22,4,22,5],[23,2,23,3],[23,4,23,5],[24,2,24,3],[24,4,24,5],[25,2,25,3],[25,4,25,5],[26,2,26,3],[26,4,26,5],[27,2,27,3],[27,4,27,5],[28,2,28,3],[28,4,28,5],[30,1,30,5],[31,1,31,5],[32,0,32,5],[33,0,33,5],[34,0,34,5],[35,0,35,5]]}
["INSTALLATION & COMMISSIONING MATRIX"]
[]
[" ENQUIRY NO",null,{"$f":"Cover!B15","v":0}]
[]
["COMMODITY",null,{"$f":"Cover!B17","v":0}]
[]
["SUPPLIER",null,{"$f":"Cover!B21","v":0}]
[]
["Item","One way Trip Distance [km]","Prices in South African Currency (Excluding VAT)"]
[null,null,"Installation on site, in theControl Room"]
[null,null,"Rate/Item, at Km Radius ranges listed below"]
[null,null,"Panel Erection1",null,"DFR installation in existing panel, in control room2"]
[1,"0-50 KM"]
[2,"51-100 KM"]
[3,"101-200 KM"]
[4,"201-300 KM"]
[5,"301-400 KM"]
[6,"401-500 KM"]
[7,"501-600 KM"]
[8,"601-700 KM"]
[9,"701-800 KM"]
[10,"801-900 KM"]
[11,"901-1000 KM"]
[12,"1001-1100 KM"]
[13,"1101-1200 KM"]
[14,"1201-1300 KM"]
[15,"1301-1400 KM"]
[16,"1401-1500 KM"]
[]
["NB:"]
[1,"POSITION, EQUIPMENT: TYPE: PANEL; ERECTION OF DFR/TWS PANEL IN CONTROL ROOM"]
[2,"INSTALL, EQUIPMENT, ELECTRONIC: TYPE: DFR/TWS UNIT OR BOARD; INSTALLATION OF LOOSE QUALITROL IDM+ 6U UNIT OR BOARD(S), TERMINAL RAILS AND ALL OTHER AUXILIARY EQUIPMENT REQUIRED FOR INTEGRATION IN AN EXISTING PANEL AS PER 6DR-7100 OR 6DRB-7100 SCHEME DESIGN - AS APPLICABLE (MASTER DRAWING NO. 0.52/30112 OR 0.52/30114 RESPECTIVELY)"]
["COMMENTS:"]

{"sheet":"CPA Formula","index":7,"n_rows":148,"n_cols":14,"rows_kept":148,"merged":[[0,0,0,1],[1,0,1,1],[2,0,2,1],[3,0,3,1],[5,0,5,4],[8,2,8,3],[8,5,8,7],[9,2,9,4],[9,5,18,7],[10,2,10,4],[11,2,11,4],[12,2,12,4],[13,2,13,4],[14,2,14,4],[15,2,15,4],[16,2,16,4],[17,2,17,4],[18,2,18,4],[21,1,21,6],[22,1,22,6],[25,1,25,6],[26,1,26,6],[27,1,27,6],[28,1,28,6],[29,1,29,6],[30,1,30,6],[32,1,32,6],[33,1,33,6],[34,1,34,6],[35,1,35,6],[36,1,36,6],[40,1,40,6],[51,1,51,6],[62,1,62,6],[73,1,73,6],[84,1,84,6],[95,1,95,6],[106,1,106,6],[117,1,117,6],[128,1,128,6],[139,1,139,6]]}
["Enquiry No.",null,{"$f":"Cover!B15","v":0}]
["Package Name:",null,{"$f":"Cover!B17","v":0}]
["Tenderer's Name:",null,{"$f":"Cover!B21","v":0}]
["Category of Offer:",null,"Main Offer Only"]
[]
["CONTRACT PRICE ADJUSTMENT (CPA) FOR INFLATION"]
[]
["No.","Formula Code","Summary of the description of the Tenderer's Formulae"]
[1,"Fixed","Firm and Fixed and Firm for the full duration of Contract",null,null,"Prices are 100 % fixed and firm. CPA is not applicable. "]
[2,"A",{"$f":"B41","v":"Tenderer's description of Formula A"},null,null,"Type in the description of each formula in the tables below"]
[3,"B",{"$f":"B52","v":"Tenderer's description of Formula B"}]
[4,"C",{"$f":"B63","v":"Tenderer's description of Formula C"}]
[5,"D",{"$f":"B74","v":"Tenderer's description of Formula D"}]
[6,"E",{"$f":"B85","v":"Tenderer's description of Formula E"}]
[7,"F",{"$f":"B96","v":"Tenderer's description of Formula F"}]
[8,"G",{"$f":"B107","v":"Tenderer's description of Formula G"}]
[9,"H",{"$f":"B118","v":"Tenderer's description of Formula H"}]
[10,"I",{"$f":"B129","v":"Tenderer's description of Formula I"}]
[11,"J",{"$f":"B140","v":"Tenderer's description of Formula J"}]
[]
["SPECIFIC REQUIREMENTS"]
[{"v":1,"d":"1."},"Only Main Offer is to be submitted. Main offer tenderers are to fully comply with the requirements in the General Notes and CPA Formulae Notes below."]
[{"v":2,"d":"2."},"No ALTERNATIVE offers are accepted."]
[]
["GENERAL NOTES :"]
[1,"References to \"indices\" below mean \"cost indices or reference prices\"."]
[2,"Where 5 year historical information must be provided as instructed below, internet address references which are accessible to the general public may be submitted by the Tenderer instead, with the specific electronic route and web page reflecting the applicable data."]
[3,"The worksheet  CPA Formula in PS5 Summary has to be populated by the tenderer (Row 9:9), unless the tenderer’s prices are fixed and firm for the duration of the contract. Each CPA formula must add up to a total of 100%.  All columns are to be populated. No inhouse CPA indices may be used. Tenderers are to provide all requested information.CPA Formulae should represent cost breakdown of the goods/commodities/components/items being sourced.\n"]
[4,"CPA Formulae Codes B8:B19 above is to be populated by the tenderer in the \"PS5 Summary\" tab, row 9:9, by selecting the respecting the correct formula code from the dropdown list as developed by Tenderer hereunder. Codes and descriptions must be selected by the tenderer and inserted into each row of activity. "]
[5,"CPA will be applicable from the base date prior to enquiry to the contract end date."]
[6,"The CPA escalation will be calculated as follows: The base date for CPA calculation purposes will be one month prior to enquiry closing or as agreed to between the parties (if there is a need to move the base date during contract negotiations). The latest / ruling index used for CPA calculation purposes will be aligned to the delivery dates of the equipment on the assessment for payment on a particular payment certificate month."]
["CPA FORMULA NOTES :"]
[1,"Proportions/weightings in CPA Formulae: The fixed portion of each formula, not subject to CPA, must be at least 15%.  The other constituent indices and their proportions in each formula must be realistic and relative to the applicable work. The fixed portion and other proportions must add up to 100%.   "]
[2,"Formulae must be linked to independent cost indices or other benchmarks (\"reference prices\") and must be clearly and completely defined. The source must be a recognised and independent statistical publishing organisation.  The Tenderers' in-house indices may not be used."]
[3,"Local Price CPA: Where local indices other than those published by SEIFSA or Statistics SA are specified, the Tenderer must submit 5 years' of month by month historical data for such indices. The Tenderer must ensure that indices are published and recommended by the source thereof as applicable to the work involved and that they are still in force/use and applicable at the date of submission of the tender. "]
[4,"CPA Base Date: The CPA base date for calculating price movements will be the Base Date, Month before Tender closes. For indices or reference prices published as at certain dates, and where such a date is not the Base Date, the latest date for which it is published before the Base Date will be considered as the Base Date index or reference price.  In instances where the figure or value is not as at the Base Date or considered as the Base Date Index or reference price as explained herein, the date, figure or value as well as the reason for the deviation must be clearly separately stated and must be realistic for purposes of CPA.  "]
[5,"Base Date Index :   The base index or reference price must be inserted in the appropriate column."]
[" "," "]
[]
[]
["Formula A","Tenderer's description of Formula A"]
["Index Ref.","Proportions / weightings for each index (refer note 1)","Description / scope of index (e.g. Labour)","Title/Definition : Linked to the index, e.g., Table C3, All hourly paid employees.  Must be completely defined","Source/publisher of index (e.g. SEIFSA, StatsSA, LME)","Base Month for CPA if not Base Date as defined (refer note 4)","Base Date Index (refer note 5)","Historical data provided (Yes or No- provide http link)","yy/mm/dd","yy/mm/dd","yy/mm/dd","yy/mm/dd","yy/mm/dd","yy/mm/dd"]
["A1"]
["A2"]
["A3"]
["A4"," "]
["A5"]
["A6",{"v":0.15,"d":"15%"},"Fixed 15% minimum not subject to CPA (0.150)"]
[null,{"$f":"SUM(B43:B48)","v":{"v":0.15,"d":"15%"}},"Total","This Total is to add up to 100% for each CPA formula submitted by tenderer"]
[]
[]
["Formula B","Tenderer's description of Formula B"]
["Index Ref.","Proportions / weightings for each index (refer note 1)","Description / scope of index (e.g. Labour)","Title/Definition : Linked to the index, e.g., Table C3, All hourly paid employees.  Must be completely defined","Source/publisher of index (e.g. SEIFSA, StatsSA, LME)","Base Month for CPA if not Base Date as defined (refer note 4)","Base Date Index (refer note 5)","Historical data provided (Yes or No- provide Internet address)","yy/mm/dd","yy/mm/dd","yy/mm/dd","yy/mm/dd","yy/mm/dd","yy/mm/dd"]
["B1"]
["B2"," "]
["B3"]
["B4"," "]
["B5"," "]
["B6",{"v":0.15,"d":"15%"},"Fixed 15% minimum not subject to CPA (0.150)"]
[null,{"$f":"SUM(B54:B59)","v":{"v":0.15,"d":"15%"}},"Total","This Total is to add up to 100% for each CPA formula submitted by tenderer"]
[]
[]
["Formula C","Tenderer's description of Formula C"]
["Index Ref.","Proportions / weightings for each index (refer note 1)","Description / scope of index (e.g. Labour)","Title/Definition : Linked to the index, e.g., Table C3, All hourly paid employees.  Must be completely defined","Source/publisher of index (e.g. SEIFSA, StatsSA, LME)","Base Month for CPA if not Base Date as defined (refer note 4)","Base Date Index (refer note 5)","Historical data provided (Yes or No- provide Internet address)","yy/mm/dd","yy/mm/dd","yy/mm/dd","yy/mm/dd","yy/mm/dd","yy/mm/dd"]
["C1",{"$nulls":4}," "," "," "]
["C2"," "]
["C3"]
["C4"," "]
["C5"," "]
["C6",{"v":0.15,"d":"15%"},"Fixed 15% minimum not subject to CPA (0.150)"]
[null,{"$f":"SUM(B65:B70)","v":{"v":0.15,"d":"15%"}},"Total","This Total is to add up to 100% for each CPA formula submitted by tenderer"]
[]
[]
["Formula D","Tenderer's description of Formula D"]
["Index Ref.","Proportions / weightings for each index (refer note 1)","Description / scope of index (e.g. Labour)","Title/Definition : Linked to the index, e.g., Table C3, All hourly paid employees.  Must be completely defined","Source/publisher of index (e.g. SEIFSA, StatsSA, LME)","Base Month for CPA if not Base Date as defined (refer note 4)","Base Date Index (refer note 5)","Historical data provided (Yes or No- provide Internet address)","yy/mm/dd","yy/mm/dd","yy/mm/dd","yy/mm/dd","yy/mm/dd","yy/mm/dd"]
["D1"," "]
["D2"," "]
["D3"]
["D4"," "]
["D5"," "]
["D6",{"v":0.15,"d":"15%"},"Fixed 15% minimum not subject to CPA (0.150)"]
[null,{"$f":"SUM(B76:B81)","v":{"v":0.15,"d":"15%"}},"Total","This Total is to add up to 100% for each CPA formula submitted by tenderer"]
[]
[]
["Formula E","Tenderer's description of Formula E"]
["Index Ref.","Proportions / weightings for each index (refer note 1)","Description / scope of index (e.g. Labour)","Title/Definition : Linked to the index, e.g., Table C3, All hourly paid employees.  Must be completely defined","Source/publisher of index (e.g. SEIFSA, StatsSA, LME)","Base Month for CPA if not Base Date as defined (refer note 4)","Base Date Index (refer note 5)","Historical data provided (Yes or No- provide Internet address)","yy/mm/dd","yy/mm/dd","yy/mm/dd","yy/mm/dd","yy/mm/dd","yy/mm/dd"]
["E1"," "]
["E2"," "]
["E3"]
["E4"," "]
["E5"," "]
["E6",{"v":0.15,"d":"15%"},"Fixed 15% minimum not subject to CPA (0.150)"]
[null,{"$f":"SUM(B87:B92)","v":{"v":0.15,"d":"15%"}},"Total","This Total is to add up to 100% for each CPA formula submitted by tenderer"]
[]
[]
["Formula F","Tenderer's description of Formula F"]
["Index Ref.","Proportions / weightings for each index (refer note 1)","Description / scope of index (e.g. Labour)","Title/Definition : Linked to the index, e.g., Table C3, All hourly paid employees.  Must be completely defined","Source/publisher of index (e.g. SEIFSA, StatsSA, LME)","Base Month for CPA if not Base Date as defined (refer note 4)","Base Date Index (refer note 5)","Historical data provided (Yes or No- provide Internet address)","yy/mm/dd","yy/mm/dd","yy/mm/dd","yy/mm/dd","yy/mm/dd","yy/mm/dd"]
["F1"]
["F2"]
["F3"]
["F4"]
["F5"]
["F6",{"v":0.15,"d":"15%"},"Fixed 15% minimum not subject to CPA (0.150)"]
[null,{"$f":"SUM(B98:B103)","v":{"v":0.15,"d":"15%"}},"Total","This Total is to add up to 100% for each CPA formula submitted by tenderer"]
[]
[]
["Formula G","Tenderer's description of Formula G"]
["Index Ref.","Proportions / weightings for each index (refer note 1)","Description / scope of index (e.g. Labour)","Title/Definition : Linked to the index, e.g., Table C3, All hourly paid employees.  Must be completely defined","Source/publisher of index (e.g. SEIFSA, StatsSA, LME)","Base Month for CPA if not Base Date as defined (refer note 4)","Base Date Index (refer note 5)","Historical data provided (Yes or No- provide Internet address)","yy/mm/dd","yy/mm/dd","yy/mm/dd","yy/mm/dd","yy/mm/dd","yy/mm/dd"]
["G1"," "]
["G2"," "]
["G3"," "]
["G4"]
["G5"," "]
["G6",{"v":0.15,"d":"15%"},"Fixed 15% minimum not subject to CPA (0.150)"]
[null,{"$f":"SUM(B109:B114)","v":{"v":0.15,"d":"15%"}},"Total","This Total is to add up to 100% for each CPA formula submitted by tenderer"]
[]
[]
["Formula H","Tenderer's description of Formula H"]
["Index Ref.","Proportions / weightings for each index (refer note 1)","Description / scope of index (e.g. Labour)","Title/Definition : Linked to the index, e.g., Table C3, All hourly paid employees.  Must be completely defined","Source/publisher of index (e.g. SEIFSA, StatsSA, LME)","Base Month for CPA if not Base Date as defined (refer note 4)","Base Date Index (refer note 5)","Historical data provided (Yes or No- provide Internet address)","yy/mm/dd","yy/mm/dd","yy/mm/dd","yy/mm/dd","yy/mm/dd","yy/mm/dd"]
["H1"," "]
["H2"," "]
["H3"," "]
["H4"," "]
["H5"," "]
["H6",{"v":0.15,"d":"15%"},"Fixed 15% minimum not subject to CPA (0.150)"]
[null,{"$f":"SUM(B120:B125)","v":{"v":0.15,"d":"15%"}},"Total","This Total is to add up to 100% for each CPA formula submitted by tenderer"]
[]
[]
["Formula I","Tenderer's description of Formula I"]
["Index Ref.","Proportions / weightings for each index (refer note 1)","Description / scope of index (e.g. Labour)","Title/Definition : Linked to the index, e.g., Table C3, All hourly paid employees.  Must be completely defined","Source/publisher of index (e.g. SEIFSA, StatsSA, LME)","Base Month for CPA if not Base Date as defined (refer note 4)","Base Date Index (refer note 5)","Historical data provided (Yes or No- provide Internet address)","yy/mm/dd","yy/mm/dd","yy/mm/dd","yy/mm/dd","yy/mm/dd","yy/mm/dd"]
["I1"," "]
["I2"," "]
["I3"," "]
["I4"]
["I5"," "]
["I6",{"v":0.15,"d":"15%"},"Fixed 15% minimum not subject to CPA (0.150)"]
[null,{"$f":"SUM(B131:B136)","v":{"v":0.15,"d":"15%"}},"Total","This Total is to add up to 100% for each CPA formula submitted by tenderer"]
[]
[]
["Formula J","Tenderer's description of Formula J"]
["Index Ref.","Proportions / weightings for each index (refer note 1)","Description / scope of index (e.g. Labour)","Title/Definition : Linked to the index, e.g., Table C3, All hourly paid employees.  Must be completely defined","Source/publisher of index (e.g. SEIFSA, StatsSA, LME)","Base Month for CPA if not Base Date as defined (refer note 4)","Base Date Index (refer note 5)","Historical data provided (Yes or No- provide Internet address)","yy/mm/dd","yy/mm/dd","yy/mm/dd","yy/mm/dd","yy/mm/dd","yy/mm/dd"]
["J1"," "]
["J2"]
["J3"," "]
["J4"," "]
["J5"," "]
["J6",{"v":0.15,"d":"15%"},"Fixed 15% minimum not subject to CPA (0.150)"]
[null,{"$f":"SUM(B142:B147)","v":{"v":0.15,"d":"15%"}},"Total","This Total is to add up to 100% for each CPA formula submitted by tenderer"]

{"sheet":"Exchange Rates","index":8,"n_rows":36,"n_cols":8,"rows_kept":36,"merged":[[0,0,0,1],[0,2,0,4],[1,0,1,1],[1,2,1,4],[2,0,2,1],[2,2,2,4],[7,1,7,6],[8,0,10,0],[8,1,8,6],[8,14,8,19],[9,1,9,6],[10,1,10,6],[11,1,11,6],[12,1,12,6],[13,0,15,0],[13,1,13,6],[14,1,14,6],[15,1,15,6],[20,7,20,12]]}
["Enquiry No.",null,{"$f":"Cover!B15","v":0}]
["Package Name:",null,{"$f":"Cover!B17","v":0}]
["Tenderer's Name:",null,{"$f":"Cover!B21","v":0}]
[]
["EXCHANGE RATES FOR MULTIPLE CURRENCIES"]
[]
["NOTES:"]
[1,"The table below needs to be completed if the Employer will be exposed to any currency fluctuation as stipulated in Secondary Clause X3.  For conversion of the foreign portions to Rand, please use the South African Reserve Bank's (SARB) exchange rate at 12:00 on the day of advertisement of the bid.  This is in terms of the Preferential Procurement Policy Framework Act (PPPFA) with which the Employer has to comply.\nNB: Tenderers must submit proof of the SARB rate(s) of exchange used  "]
[2,"The following URL (electronic route) is to be followed to access the relevant SARB rates on their web pages:\n"]
[null,"www.resbank.co.za"]
[null,"-  Select Research\n-  Then select Rates\n-  Click on \"Select historical exchange rates and other interest rates\"\n-  Clicking on the exchange rate in the following page opens the daily rates per currency and SA Rand"]
[3,"The Employer deals only in the currencies listed below unless other currencies are specifically approved for this tender.  Kindly notify the Employer of any currency that the tenderer intends to use, but is not stipulated in the table, to consider sanctioning such currency.  Sufficient time must be allowed for the assessment and to respond to such request.  The onus is on the tenderer to submit a bid with approved currencies"]
[4,"The format in which the exchange rate must be inserted in the table is:  1 (One) Foreign Currency = R Amount  (i.e. the Rand amount for one of each foreign currency applicable).  Exchange rates must be rounded to 4 decimals\n\nNB :  Only the USD/ZAR, GBP/ZAR and EUR/ZAR are published in this way on the SARB web pages above.  The Rand rate with the other currencies must be inverted (1/Foreign Currency Rate) in order to list it in the required format in the table below\n"]
[5,"All information in the table below must conform with all other equivalent information in the offer. "]
[null,"Payment in terms of Payment Method 2  is considered as a \"foreign payment\" although it will be effected in South African Rand. However, amounts for  \"F.O.R. Price-Goods supplied from Imported Items\", are NOT considered as \"foreign payments\""]
[null,"If more than one payment method apply for a currency, the Tenderer must request an additional row be inserted in the table in order to split the values and identify the relevant method.   "]
[" "]
[" "]
["EXCHANGE RATES PUBLISHED BY SARB"]
["NB: Tenderers must submit proof of the SARB rate (s) of exchange used."]
[{"$nulls":4},"Date for which the rates are published :",null,null,"Date to be inserted in the following format: Day, Month and Year.\n\nMust be the SARB rate at 12:00 on day of advertisement of bid"]
["No","Currency Description","Code","Exchange Rate\nCurrency 1,00 = R Amount","Payment Method 1a, 1b or 2","Source"]
[1,"South African Rand","ZAR",{"v":1,"d":"R 1.00"}]
[2,"Australian Dollar","AUD",{"v":0,"d":"R 0.00"}]
[3,"Canadian Dollar","CAN",{"v":0,"d":"R 0.00"}]
[4,"Swiss Franc","CHF",{"v":0,"d":"R 0.00"}]
[5,"Danish Krone","DKK",{"v":0,"d":"R 0.00"}]
[6,"European Currency","EUR",{"v":0,"d":"R 0.00"}]
[7,"British Pound","GBP",{"v":0,"d":"R 0.00"}]
[8,"Hong Kong Dollar","HKD",{"v":0,"d":"R 0.00"}]
[9,"Japanese Yen","JPY",{"v":0,"d":"R 0.00"}]
[10,"Norwegian Krone","NOK",{"v":0,"d":"R 0.00"}]
[11,"New Zealand Dollar","NZD",{"v":0,"d":"R 0.00"}]
[12,"Swedish Krone","SEK",{"v":0,"d":"R 0.00"}]
[13,"Singapore Dollar","SGD",{"v":0,"d":"R 0.00"}]
[14,"United States Dollar","USD",{"v":0,"d":"R 0.00"}]